Workbook

Sheet Deckblatt

Sheet Impressum
F1: Grundsicherung für Arbeitsuchende (SGBII)
A4: Impressum
A7: Produktlinie/Reihe: | C7: Tabellen
A9: Titel: | C9: Kinder in Bedarfsgemeinschaften (Monatszahlen)
A11: Region: | C11: Deutschland, West/Ost, Länder und Kreise
A13: Berichtsmonat: | C13: 2017-12-01
A15: Erstellungsdatum: | C15: 2018-07-16
A17: Periodizität: | C17: halbjährlich
A19: Hinweise:
A21: Nächster Veröffentlichungstermin:
C22: 2018-10-10
A24: Herausgeberin: | C24: Bundesagentur für Arbeit
C25: Statistik
A27: Rückfragen an: | C27: Zentraler Statistik-Service
C28: Regensburger Straße 104
C29: 90478 Nürnberg
A30: E-Mail: | C30: Zentraler-Statistik-Service@arbeitsagentur.de
A31: Hotline: | C31: 0911/179-3632
A32: Fax: | C32: 0911/179-1131
A35: Weiterführende statistische Informationen
A37: Internet: | C37: http://statistik.arbeitsagentur.de
C38: Register: "Statistik nach Themen"
C39: http://statistik.arbeitsagentur.de/Navigation/Statistik/Statistik-nach-Themen/Statistik-nach-Themen-Nav.html
A41: Zitierhinweis: | C41: Statistik der Bundesagentur für Arbeit
C42: Tabellen, Kinder in Bedarfsgemeinschaften (Monatszahlen), Nürnberg, April 2018
A44: Nutzungsbedingungen: | C44: © Statistik der Bundesagentur für Arbeit
C45: Sie können Informationen speichern, (auch auszugsweise) mit Quellen-
C46: angabe weitergeben, vervielfältigen und verbreiten. Die Inhalte dürfen
C47: nicht verändert oder verfälscht werden. Eigene Berechnungen sind
C48: erlaubt, jedoch als solche kenntlich zu machen.
C49: Im Falle einer Zugänglichmachung im Internet soll dies in Form einer
C50: Verlinkung auf die Homepage der Statistik der Bundesagentur für Arbeit
C51: erfolgen.
C52: Die Nutzung der Inhalte für gewerbliche Zwecke, ausgenommen Presse,
C53: Rundfunk und Fernsehen und wissenschaftliche Publikationen, bedarf
C54: der Genehmigung durch die Statistik der Bundesagentur für Arbeit.

Sheet Inhalt
F1: Grundsicherung für Arbeitsuchende (SGBII)
A5: Inhaltsverzeichnis
A10: 1. Einführung | F10: 1
A13: 2. Kinder in Bedarfsgemeinschaften
A15: 2.1 Bestand der Kinder in Bedarfsgemeinschaften nach Strukturmerkmalen und Vergleichsmonaten | F15: 2.1
A16: 2.2 Bestand Kinder unter 18 Jahren in Bedarfsgemeinschaften nach ausgewählten Altersklassen | F16: 2.2
A17: 2.3 Bestand an Kindern nach Alter und BG-Typ | F17: 2.3
A20: 3. Bedarfsgemeinschaften mit Kindern
A22: 3.1 Bestand Bedarfsgemeinschaften (BG) mit Kindern unter 18 Jahren nach BG-Typ | F22: 3.1
A23: 3.2 Bedarfsgemeinschaften (BG) mit Kindern nach Anzahl der Kinder, BG-Typ | F23: 3.2
B24: und ausgewählten Merkmalen
A25: 3.3 Durchschnittliches Haushaltsbudget von Regelleistungsbedarfsgemeinschaften (RL-BG) | F25: 3.3
B26: mit Kindern unter 18 Jahren nach BG-Typ pro RL-BG in Euro
A29: 4. SGB II-Hilfequoten
A31: 4.1 SGB II-Hilfequote der leistungsberechtigten Kinder unter 18 Jahren in Bedarfsgemeinschaften | F31: 4.1
A32: 4.2 SGB II-Hilfequote der leistungsberechtigten Kinder unter 3 Jahren in Bedarfsgemeinschaften | F32: 4.2
A35: 5. Anteil minderjähriger Kinder in Bedarfsgemeinschaften an der Bevölkerung | F35: 5
A38: Methodische Hinweise 1
A40: Methodische Hinweise 2
A42: Methodische Hinweise 3
A44: Statistik Infoseite
A47: (über das Statistik-Symbol am linken oberen Rand gelangen Sie von jeder Seite auf das Inhaltsverzeichnis zurück)

Sheet 1
F1: Grundsicherung für Arbeitsuchende nach dem SGB II
A4: 1. Einführung
A6: In der vorliegenden Publikation finden Sie Zahlen und Strukturdaten zu den Kindern und Jugendlichen in der Grundsicherung nach dem SGB II. Je nach Fragestellung gibt es unterschiedliche Definitionen des Begriffs "Kind". Grundlegend kann man zwei Ansätze unterscheiden: "Kinder" können definiert werden als Personen in einem frühen Lebensalter und/oder als Personen in einer bestimmten Stellung in einem Haushalt oder einer Bedarfsgemeinschaft (BG). Beide Abgrenzungen finden sich im SGB II.
A12: Kinder nach dem SGB VIII
A13: Im Kinder- und Jugendhilfegesetz gelten alle Bestimmungen, die sich auf die Annahme einer Person als Kind beziehen, nur für Personen, die das 18. Lebensjahr noch nicht vollendet haben (§ 7 Abs.1 (1) SGB VIII). Im Sinne des Jugendschutzgesetzes unterteilen sich diese in Kinder (Personen, die noch nicht 14 Jahre alt sind) und Jugendliche (Personen im Alter von 14 bis unter 18 Jahren) (§ 1 Jugendschutzgesetz).
A17: Im Dezember 2017 lebten 2.038.999 Personen unter 18 Jahren in Bedarfsgemeinschaften - darunter 1.662.246 Kinder unter 14 Jahren.
A20: Kinder nach dem SGB II
A21: In der Grundsicherung für Arbeitsuchende wird leistungsrechtlich der Haushaltskontext betrachtet, so dass Kinder (bis unter 25 Jahren) grundsätzlich anhand ihrer Stellung in der Bedarfsgemeinschaft definiert werden. Statistisch können minderjährige und volljährige Kinder nach verschiedenen Altersgrenzen differenziert werden. Kinder unter 15 Jahren gelten als nicht erwerbsfähig.
A25: Im Dezember 2017 lebten 1.758.587 Kinder unter 15 Jahren in Bedarfsgemeinschaften.
A27: Kinder in Bedarfsgemeinschaften
A28: Zu einer Bedarfsgemeinschaft gehören grundsätzlich alle erwerbsfähigen Leistungsberechtigten mit deren Ehegatten/Partnern und unverheirateten Kindern, „wenn sie das 25. Lebensjahr noch nicht vollendet haben, soweit sie die Leistungen zur Sicherung ihres Lebensunterhaltes nicht aus eigenem Einkommen oder Vermögen beschaffen können“ (§ 7 Abs. 3 Nr. 4 SGB II).
A32: Im Dezember 2017 lebten 2.230.001 unverheiratete Kinder unter 25 Jahren, die Ihren Lebensunterhalt nicht aus eigenem Einkommen oder Vermögen beschaffen konnten, in Bedarfsgemeinschaften.
A34: Zur Typisierung von Bedarfsgemeinschaften werden nur die Informationen über minderjährige, unverheiratete Kinder herangezogen. Volljährige Kinder bis zur Vollendung des 25. Lebensjahres werden bei der Typisierung nicht berücksichtigt, was bedeutet, dass z.B. eine Bedarfsgemeinschaft mit zwei Ehegatten und einem 20jährigen Sohn als Paar ohne Kinder geführt wird. Verheiratete minderjährige Personen oder Personen unter 18 Jahren mit Kind und Partner bilden eigene Bedarfsgemeinschaften, in denen sie selbst nicht als Kind gezählt werden.
A39: Im Dezember 2017 lebten 2.027.907 minderjährige unverheiratete Kinder unter 18 Jahren in Bedarfsgemeinschaften.
A40: Bedarfsgemeinschaften mit minderjährigen Kindern können nach alleinerziehenden BG und Partner-BG mit Kindern differenziert werden.
A42: Im Dezember 2017 gab es 1.107.854 Bedarfsgemeinschaften mit Kindern (34% aller BG) - 572.621 davon waren alleinerziehende BG und 505.075 Partner-BG mit Kindern.
A45: Regelbedarfssätze von (minderjährigen und unverheirateten) Kindern und Jugendlichen unter 25 Jahren
A46: (nach § 22 (2) Abs 2 Nr.1 und § 23 (1) SGB II); Stand: 01.01.2018
A47: Regelbedarfsstufe 3 | B47: (Volljährige von 18 bis unter 25 Jahre) | D47: 332 Euro
A48: Regelbedarfsstufe 4 | B48: (Jugendliche von 14 bis unter 18 Jahre): | D48: 316 Euro
A49: Regelbedarfsstufe 5 | B49: (Kinder von 6 bis unter 14 Jahre): | D49: 296 Euro
A50: Regelbedarfsstufe 6 | B50: (Kinder von 0 bis unter 6 Jahre): | D50: 240 Euro
A51: Im Dezember 2017 gab es 758.710 Kinder unter 6 Jahren, 903.536 im Alter von 6 bis unter 14 Jahren, 365.661 Jugendliche von 14 bis unter 18 Jahren und 202.094 volljährige Personen von 18 bis unter 25 Jahren, die noch bei den Eltern lebten.
A55: Kinder mit bedarfsdeckendem Einkommen
A56: Es gibt Personen innerhalb von Bedarfsgemeinschaften, die individuell keine Leistungen beziehen, jedoch als Personen einer Bedarfsgemeinschaft gezählt werden. Dabei handelt es sich vor allem um Kinder (bis zum 25. Lebensjahr), die in der Bedarfsgemeinschaft der Eltern leben und deren Einkommen den eigenen Bedarf übersteigt. Nach den Bestimmungen des SGB II verbleibt das Einkommen eines Kindes (z.B. Unterhaltszahlungen oder Einkommen aus Erwerbstätigkeit) beim Kind und muss nicht zur Bedarfsdeckung der übrigen Mitglieder der Bedarfsgemeinschaft eingesetzt werden (Ausnahme: Kindergeld). Die Kinder mit ausreichendem Einkommen haben daher keinen individuellen Leistungsanspruch im SGB II.
A62: Im Dezember 2017 gab es 103.771 Kinder ohne Leistungsanspruch (KOL).

Sheet 2.1
J1: Grundsicherung für Arbeitsuchende (SGBII)
A3: =CONCATENATE(A5&A4) -> 2.1 Entwicklung des Bestands an Kindern unter 18 Jahren in Bedarfsgemeinschaften - Deutschland
A4: ='2.1 roh'!$A$1 -> Deutschland
A5: 2.1 Entwicklung des Bestands an Kindern unter 18 Jahren in Bedarfsgemeinschaften -
A17: Tabelle 2.1 Bestand der Kinder in Bedarfsgemeinschaften nach Strukturmerkmalen und Vergleichsmonaten
A20: 2017-12-01
A21: Bund, Länder, Kreise und kreisfreie Städte
A23: Merkmal | C23: 2017-12-01 | D23: 2016-12-01 | E23: 2015-12-01 | F23: 2014-12-01 | G23: 2013-12-01 | H23: 2012-12-01 | I23: Veränderung Dezember 2017 zu Dezember 2016 in % | J23: Veränderung Dezember 2017 zu Dezember 2012 in %
C24: 1 | D24: 2 | E24: 3 | F24: 4 | G24: 5 | H24: 6 | I24: 7 | J24: 8
A25: Personen unter 18 Jahren2) | C25: =IF('Vorl 2.1'!D14=".",".",IF('Vorl 2.1'!D14-'Vorl 2.1'!D15<3,IF('Vorl 2.1'!D14-'Vorl 2.1'!D15>0,"*",'Vorl 2.1'!D14),'Vorl 2.1'!D14)) -> 2038999 | D25: =IF('Vorl 2.1'!E14=".",".",IF('Vorl 2.1'!E14-'Vorl 2.1'!E15<3,IF('Vorl 2.1'!E14-'Vorl 2.1'!E15>0,"*",'Vorl 2.1'!E14),'Vorl 2.1'!E14)) -> 2003809 | E25: =IF('Vorl 2.1'!F14=".",".",IF('Vorl 2.1'!F14-'Vorl 2.1'!F15<3,IF('Vorl 2.1'!F14-'Vorl 2.1'!F15>0,"*",'Vorl 2.1'!F14),'Vorl 2.1'!F14)) -> 1939187 | F25: =IF('Vorl 2.1'!G14=".",".",IF('Vorl 2.1'!G14-'Vorl 2.1'!G15<3,IF('Vorl 2.1'!G14-'Vorl 2.1'!G15>0,"*",'Vorl 2.1'!G14),'Vorl 2.1'!G14)) -> 1913465 | G25: =IF('Vorl 2.1'!H14=".",".",IF('Vorl 2.1'!H14-'Vorl 2.1'!H15<3,IF('Vorl 2.1'!H14-'Vorl 2.1'!H15>0,"*",'Vorl 2.1'!H14),'Vorl 2.1'!H14)) -> 1893692 | H25: =IF('Vorl 2.1'!I14=".",".",IF('Vorl 2.1'!I14-'Vorl 2.1'!I15<3,IF('Vorl 2.1'!I14-'Vorl 2.1'!I15>0,"*",'Vorl 2.1'!I14),'Vorl 2.1'!I14)) -> 1873659 | I25: =IF(ISNUMBER((C25-D25)/D25%),((C25-D25)/D25%),"-") -> 1.756155402 | J25: =IF(ISNUMBER((C25-H25)/H25%),((C25-H25)/H25%),"-") -> 8.824444576
A26: Kinder unter 18 Jahren3) | C26: ='Vorl 2.1'!D15 -> 2027907 | D26: ='Vorl 2.1'!E15 -> 1993704 | E26: ='Vorl 2.1'!F15 -> 1931474 | F26: ='Vorl 2.1'!G15 -> 1906330 | G26: ='Vorl 2.1'!H15 -> 1886472 | H26: ='Vorl 2.1'!I15 -> 1866783 | I26: =IF(ISNUMBER((C26-D26)/D26%),((C26-D26)/D26%),"-") -> 1.715550553 | J26: =IF(ISNUMBER((C26-H26)/H26%),((C26-H26)/H26%),"-") -> 8.631104954
A27: dav.
A28: nicht erwerbsfähige Leistungsberechtigte (NEF) | C28: ='Vorl 2.1'!D18 -> 1636200 | D28: ='Vorl 2.1'!E18 -> 1598809 | E28: ='Vorl 2.1'!F18 -> 1541155 | F28: ='Vorl 2.1'!G18 -> 1523695 | G28: ='Vorl 2.1'!H18 -> 1489603 | H28: ='Vorl 2.1'!I18 -> 1451266 | I28: =IF(ISNUMBER((C28-D28)/D28%),((C28-D28)/D28%),"-") -> 2.338678354 | J28: =IF(ISNUMBER((C28-H28)/H28%),((C28-H28)/H28%),"-") -> 12.74294306
A29: erwerbsfähige Leistungsberechtigte (ELB) | C29: ='Vorl 2.1'!D19 -> 241823 | D29: ='Vorl 2.1'!E19 -> 246517 | E29: ='Vorl 2.1'!F19 -> 242049 | F29: ='Vorl 2.1'!G19 -> 227481 | G29: ='Vorl 2.1'!H19 -> 220460 | H29: ='Vorl 2.1'!I19 -> 211564 | I29: =IF(ISNUMBER((C29-D29)/D29%),((C29-D29)/D29%),"-") -> -1.904128316 | J29: =IF(ISNUMBER((C29-H29)/H29%),((C29-H29)/H29%),"-") -> 14.30252784
A30: sonstige Leistungsberechtigte (SLB) | C30: =IF(C79="*",IF(C79="-",'Vorl 2.1'!D20,"*"),'Vorl 2.1'!D20) -> 35388 | D30: =IF(D79="*",IF(D79="-",'Vorl 2.1'!E20,"*"),'Vorl 2.1'!E20) -> 33135 | E30: =IF(E79="*",IF(E79="-",'Vorl 2.1'!F20,"*"),'Vorl 2.1'!F20) -> 31483 | F30: =IF(F79="*",IF(F79="-",'Vorl 2.1'!G20,"*"),'Vorl 2.1'!G20) -> 25861 | G30: =IF(G79="*",IF(G79="-",'Vorl 2.1'!H20,"*"),'Vorl 2.1'!H20) -> 25978 | H30: =IF(H79="*",IF(H79="-",'Vorl 2.1'!I20,"*"),'Vorl 2.1'!I20) -> 14323 | I30: =IF(ISNUMBER((C30-D30)/D30%),(IF((C30-D30)/D30%<250,(C30-D30)/D30%,".X")),"-") -> 6.799456768 | J30: =IF(ISNUMBER((C30-H30)/H30%),(IF((C30-H30)/H30%<250,(C30-H30)/H30%,".X")),"-") -> 147.0711443
A31: Kinder ohne Leistungsanspruch (KOL) | C31: ='Vorl 2.1'!D21 -> 103771 | D31: ='Vorl 2.1'!E21 -> 103204 | E31: ='Vorl 2.1'!F21 -> 107693 | F31: ='Vorl 2.1'!G21 -> 118564 | G31: ='Vorl 2.1'!H21 -> 139452 | H31: ='Vorl 2.1'!I21 -> 178776 | I31: =IF(ISNUMBER((C31-D31)/D31%),((C31-D31)/D31%),"-") -> 0.5493973102 | J31: =IF(ISNUMBER((C31-H31)/H31%),((C31-H31)/H31%),"-") -> -41.95473665
A32: vom Leistungsanspruch ausgeschlossene Personen (AUS) | C32: =IF(C30="*","*",'Vorl 2.1'!D22) -> 10725 | D32: =IF(D30="*","*",'Vorl 2.1'!E22) -> 12040 | E32: =IF(E30="*","*",'Vorl 2.1'!F22) -> 9094 | F32: =IF(F30="*","*",'Vorl 2.1'!G22) -> 10729 | G32: =IF(G30="*","*",'Vorl 2.1'!H22) -> 10979 | H32: =IF(H30="*","*",'Vorl 2.1'!I22) -> 10854 | I32: =IF(ISNUMBER((C32-D32)/D32%),(IF((C32-D32)/D32%<250,(C32-D32)/D32%,".X")),"-") -> -10.92192691 | J32: =IF(ISNUMBER((C32-H32)/H32%),(IF((C32-H32)/H32%<250,(C32-H32)/H32%,".X")),"-") -> -1.188501935
A33: dar.
A34: männlich | C34: ='Vorl 2.1'!D24 -> 1047003 | D34: ='Vorl 2.1'!E24 -> 1026746 | E34: ='Vorl 2.1'!F24 -> 990455 | F34: ='Vorl 2.1'!G24 -> 977001 | G34: ='Vorl 2.1'!H24 -> 966327 | H34: ='Vorl 2.1'!I24 -> 957256 | I34: =IF(ISNUMBER((C34-D34)/D34%),((C34-D34)/D34%),"-") -> 1.972931962 | J34: =IF(ISNUMBER((C34-H34)/H34%),((C34-H34)/H34%),"-") -> 9.375443977
A35: weiblich | C35: ='Vorl 2.1'!D25 -> 980808 | D35: ='Vorl 2.1'!E25 -> 966900 | E35: ='Vorl 2.1'!F25 -> 940986 | F35: ='Vorl 2.1'!G25 -> 929327 | G35: ='Vorl 2.1'!H25 -> 920145 | H35: ='Vorl 2.1'!I25 -> 909527 | I35: =IF(ISNUMBER((C35-D35)/D35%),((C35-D35)/D35%),"-") -> 1.438411418 | J35: =IF(ISNUMBER((C35-H35)/H35%),((C35-H35)/H35%),"-") -> 7.837150519
A36: dar.
A37: Ausländer1) | C37: ='Vorl 2.1'!D27 -> 621357 | D37: ='Vorl 2.1'!E27 -> 505578 | E37: ='Vorl 2.1'!F27 -> 367521 | F37: ='Vorl 2.1'!G27 -> 317938 | G37: ='Vorl 2.1'!H27 -> 290983 | H37: ='Vorl 2.1'!I27 -> 283816 | I37: =IF(ISNUMBER((C37-D37)/D37%),((C37-D37)/D37%),"-") -> 22.90032399 | J37: =IF(ISNUMBER((C37-H37)/H37%),((C37-H37)/H37%),"-") -> 118.9295177
A38: dar.
A39: unter 15 Jahren | C39: ='Vorl 2.1'!D29 -> 1758587 | D39: ='Vorl 2.1'!E29 -> 1722313 | E39: ='Vorl 2.1'!F29 -> 1663237 | F39: ='Vorl 2.1'!G29 -> 1642442 | G39: ='Vorl 2.1'!H29 -> 1626176 | H39: ='Vorl 2.1'!I29 -> 1611588 | I39: =IF(ISNUMBER((C39-D39)/D39%),((C39-D39)/D39%),"-") -> 2.106121245 | J39: =IF(ISNUMBER((C39-H39)/H39%),((C39-H39)/H39%),"-") -> 9.121375935
A40: dav.
A41: unter 3 Jahren | C41: ='Vorl 2.1'!D31 -> 388628 | D41: ='Vorl 2.1'!E31 -> 372956 | E41: ='Vorl 2.1'!F31 -> 348962 | F41: ='Vorl 2.1'!G31 -> 345128 | G41: ='Vorl 2.1'!H31 -> 344855 | H41: ='Vorl 2.1'!I31 -> 346630 | I41: =IF(ISNUMBER((C41-D41)/D41%),((C41-D41)/D41%),"-") -> 4.20210427 | J41: =IF(ISNUMBER((C41-H41)/H41%),((C41-H41)/H41%),"-") -> 12.1160892
A42: 3 bis unter 6 Jahren | C42: ='Vorl 2.1'!D32 -> 370082 | D42: ='Vorl 2.1'!E32 -> 361006 | E42: ='Vorl 2.1'!F32 -> 352011 | F42: ='Vorl 2.1'!G32 -> 348420 | G42: ='Vorl 2.1'!H32 -> 349954 | H42: ='Vorl 2.1'!I32 -> 346588 | I42: =IF(ISNUMBER((C42-D42)/D42%),((C42-D42)/D42%),"-") -> 2.514085638 | J42: =IF(ISNUMBER((C42-H42)/H42%),((C42-H42)/H42%),"-") -> 6.778653618
A43: 6 bis unter 15 Jahren | C43: ='Vorl 2.1'!D33 -> 999877 | D43: ='Vorl 2.1'!E33 -> 988351 | E43: ='Vorl 2.1'!F33 -> 962264 | F43: ='Vorl 2.1'!G33 -> 948894 | G43: ='Vorl 2.1'!H33 -> 931367 | H43: ='Vorl 2.1'!I33 -> 918370 | I43: =IF(ISNUMBER((C43-D43)/D43%),((C43-D43)/D43%),"-") -> 1.166184888 | J43: =IF(ISNUMBER((C43-H43)/H43%),((C43-H43)/H43%),"-") -> 8.875181027
A44: 15 bis unter 18 Jahren3) | C44: ='Vorl 2.1'!D34 -> 269320 | D44: ='Vorl 2.1'!E34 -> 271392 | E44: ='Vorl 2.1'!F34 -> 268237 | F44: ='Vorl 2.1'!G34 -> 263888 | G44: ='Vorl 2.1'!H34 -> 260296 | H44: ='Vorl 2.1'!I34 -> 255195 | I44: =IF(ISNUMBER((C44-D44)/D44%),((C44-D44)/D44%),"-") -> -0.7634712888 | J44: =IF(ISNUMBER((C44-H44)/H44%),((C44-H44)/H44%),"-") -> 5.534983052
A45: dar. (nach Regelbedarfsaltersstufen)4)
A46: unter 6 Jahren | C46: ='Vorl 2.1'!D36 -> 758710 | D46: ='Vorl 2.1'!E36 -> 733961 | E46: ='Vorl 2.1'!F36 -> 700973 | F46: ='Vorl 2.1'!G36 -> 693548 | G46: ='Vorl 2.1'!H36 -> 694809 | H46: ='Vorl 2.1'!I36 -> 693218 | I46: =IF(ISNUMBER((C46-D46)/D46%),((C46-D46)/D46%),"-") -> 3.37197753 | J46: =IF(ISNUMBER((C46-H46)/H46%),((C46-H46)/H46%),"-") -> 9.447533099
A47: 6 bis unter 14 Jahren | C47: ='Vorl 2.1'!D37 -> 903536 | D47: ='Vorl 2.1'!E37 -> 892059 | E47: ='Vorl 2.1'!F37 -> 865868 | F47: ='Vorl 2.1'!G37 -> 851831 | G47: ='Vorl 2.1'!H37 -> 838146 | H47: ='Vorl 2.1'!I37 -> 826362 | I47: =IF(ISNUMBER((C47-D47)/D47%),((C47-D47)/D47%),"-") -> 1.286574094 | J47: =IF(ISNUMBER((C47-H47)/H47%),((C47-H47)/H47%),"-") -> 9.339006392
A48: 14 bis unter 18 Jahren | C48: ='Vorl 2.1'!D38 -> 365661 | D48: ='Vorl 2.1'!E38 -> 367684 | E48: ='Vorl 2.1'!F38 -> 364633 | F48: ='Vorl 2.1'!G38 -> 360951 | G48: ='Vorl 2.1'!H38 -> 353517 | H48: ='Vorl 2.1'!I38 -> 347203 | I48: =IF(ISNUMBER((C48-D48)/D48%),((C48-D48)/D48%),"-") -> -0.5502007158 | J48: =IF(ISNUMBER((C48-H48)/H48%),((C48-H48)/H48%),"-") -> 5.316198305
A49: Nachrichtlich: Personen unter 25 Jahren | C49: ='Vorl 2.1'!D39 -> 2591648 | D49: ='Vorl 2.1'!E39 -> 2549498 | E49: ='Vorl 2.1'!F39 -> 2432440 | F49: ='Vorl 2.1'!G39 -> 2411511 | G49: ='Vorl 2.1'!H39 -> 2403255 | H49: ='Vorl 2.1'!I39 -> 2395484 | I49: =IF(ISNUMBER((C49-D49)/D49%),((C49-D49)/D49%),"-") -> 1.653266643 | J49: =IF(ISNUMBER((C49-H49)/H49%),((C49-H49)/H49%),"-") -> 8.188908797
A50: Hinweis: Nicht plausible Werte werden mit "." ausgewiesen. | J50: © Statistik der Bundesagentur für Arbeit
A51: Hinweis: Veränderungswerte > 250% werden mit ".X" gekennzeichnet.
A52: 1) Für Kinder unter 18 Jahren, die eine doppelter Staatsangehörigkeit besitzen, kann bei Antragstellung nur eine Staatsbürgerschaft erfasst werden.
A53: 2) alle minderjährigen Personen unter 18 Jahren in Bedarfsgemeinschaften
A54: 3) minderjährige, unverheiratete Kinder unter 18 Jahren in Bedarfsgemeinschaften
A55: 4) Der Regelbedarf der Kinder unter 6 Jahren beträgt 240 Euro, der 6 bis 13-Jährigen 296 Euro und der Jugendlichen von 14 bis unter 18 Jahren 316 Euro (Stand 01.01.2018).
C79: ='Vorl 2.1'!D22 -> 10725 | D79: ='Vorl 2.1'!E22 -> 12040 | E79: ='Vorl 2.1'!F22 -> 9094 | F79: ='Vorl 2.1'!G22 -> 10729 | G79: ='Vorl 2.1'!H22 -> 10979 | H79: ='Vorl 2.1'!I22 -> 10854

Sheet 2.2
L1: Grundsicherung für Arbeitsuchende (SGBII)
A3: 2.2 Bestand und Veränderung der Anzahl der Kinder unter 18 Jahren in Bedarfsgemeinschaften nach Altersstufen gegenüber dem Vorjahresmonat in %
A24: Tabelle 2.2 Bestand Kinder unter 18 Jahren in Bedarfsgemeinschaften nach ausgewählten Altersklassen
A27: 2017-12-01
A28: Bund, Länder, Kreise und kreisfreie Städte
A30: Region | C30: Insgesamt | H30: Veränderung zum Vorjahresmonat
C32: Kinder unter 18 Jahren | D32: davon | H32: Kinder unter 18 Jahren | I32: davon
D33: unter 3 Jahren | E33: 3 bis unter 6 Jahren | F33: 6 bis unter 15 Jahren | G33: 15 bis unter 18 Jahren | I33: unter 3 Jahren | J33: 3 bis unter 6 Jahren | K33: 6 bis unter 15 Jahren | L33: 15 bis unter 18 Jahren
C34: 1 | D34: 2 | E34: 3 | F34: 4 | G34: 5 | H34: 6 | I34: 7 | J34: 8 | K34: 9 | L34: 10
A35: Deutschland | C35: ='2.2 Daten'!E4 -> 2027907 | D35: ='2.2 Daten'!F4 -> 388628 | E35: ='2.2 Daten'!G4 -> 370082 | F35: ='2.2 Daten'!H4 -> 999877 | G35: ='2.2 Daten'!I4 -> 269320 | H35: ='2.2 Daten'!K4 -> 1.715550553 | I35: ='2.2 Daten'!L4 -> 4.20210427 | J35: ='2.2 Daten'!M4 -> 2.514085638 | K35: ='2.2 Daten'!N4 -> 1.166184888 | L35: ='2.2 Daten'!O4 -> -0.7634712888
A36: Westdeutschland | C36: ='2.2 Daten'!E5 -> 1540671 | D36: ='2.2 Daten'!F5 -> 295506 | E36: ='2.2 Daten'!G5 -> 280442 | F36: ='2.2 Daten'!H5 -> 756989 | G36: ='2.2 Daten'!I5 -> 207734 | H36: ='2.2 Daten'!K5 -> 3.313164747 | I36: ='2.2 Daten'!L5 -> 6.201617251 | J36: ='2.2 Daten'!M5 -> 4.439892745 | K36: ='2.2 Daten'!N5 -> 2.608767552 | L36: ='2.2 Daten'!O5 -> 0.4754511465
A37: Ostdeutschland | C37: ='2.2 Daten'!E6 -> 487236 | D37: ='2.2 Daten'!F6 -> 93122 | E37: ='2.2 Daten'!G6 -> 89640 | F37: ='2.2 Daten'!H6 -> 242888 | G37: ='2.2 Daten'!I6 -> 61586 | H37: ='2.2 Daten'!K6 -> -3.026225965 | I37: ='2.2 Daten'!L6 -> -1.672544506 | J37: ='2.2 Daten'!M6 -> -3.077222499 | K37: ='2.2 Daten'!N6 -> -3.080508204 | L37: ='2.2 Daten'!O6 -> -4.726102628
A38: =CHOOSE('2.2 Daten'!$A$2,'2.2 Daten'!B460,'2.2 Daten'!B9,'2.2 Daten'!B26,'2.2 Daten'!B43,'2.2 Daten'!B46,'2.2 Daten'!B93,'2.2 Daten'!B97,'2.2 Daten'!B152,'2.2 Daten'!B180,'2.2 Daten'!B218,'2.2 Daten'!B264,'2.2 Daten'!B362,'2.2 Daten'!B370,'2.2 Daten'!B373,'2.2 Daten'!B393,'2.2 Daten'!B403,'2.2 Daten'!B418,'2.2 Daten'!B434,x) -> Schleswig-Holstein | B38: =IF($A38<>0,INDEX('2.2 Daten'!C$9:C$860,MATCH('2.2'!$A38,'2.2 Daten'!$B$9:$B$860,0))," ") -> 01 | C38: =IF($A38<>0,INDEX('2.2 Daten'!E$9:E$860,MATCH('2.2'!$A38,'2.2 Daten'!$B$9:$B$860,0))) -> 76691 | D38: =IF($A38<>0,INDEX('2.2 Daten'!F$9:F$860,MATCH('2.2'!$A38,'2.2 Daten'!$B$9:$B$860,0))) -> 14582 | E38: =IF($A38<>0,INDEX('2.2 Daten'!G$9:G$860,MATCH('2.2'!$A38,'2.2 Daten'!$B$9:$B$860,0))) -> 14224 | F38: =IF($A38<>0,INDEX('2.2 Daten'!H$9:H$860,MATCH('2.2'!$A38,'2.2 Daten'!$B$9:$B$860,0))) -> 37852 | G38: =IF($A38<>0,INDEX('2.2 Daten'!I$9:I$860,MATCH('2.2'!$A38,'2.2 Daten'!$B$9:$B$860,0))) -> 10033 | H38: =IF($A38<>0,INDEX('2.2 Daten'!K$9:K$860,MATCH('2.2'!$A38,'2.2 Daten'!$B$9:$B$860,0))) -> 3.549728606 | I38: =IF($A38<>0,INDEX('2.2 Daten'!L$9:L$860,MATCH('2.2'!$A38,'2.2 Daten'!$B$9:$B$860,0))) -> 6.539051655 | J38: =IF($A38<>0,INDEX('2.2 Daten'!M$9:M$860,MATCH('2.2'!$A38,'2.2 Daten'!$B$9:$B$860,0))) -> 5.144884684 | K38: =IF($A38<>0,INDEX('2.2 Daten'!N$9:N$860,MATCH('2.2'!$A38,'2.2 Daten'!$B$9:$B$860,0))) -> 2.917425705 | L38: =IF($A38<>0,INDEX('2.2 Daten'!O$9:O$860,MATCH('2.2'!$A38,'2.2 Daten'!$B$9:$B$860,0))) -> -0.3476360747
A39: =CHOOSE('2.2 Daten'!$A$2,'2.2 Daten'!B461,'2.2 Daten'!B10,'2.2 Daten'!B27,'2.2 Daten'!B44,'2.2 Daten'!B47,'2.2 Daten'!B94,'2.2 Daten'!B98,'2.2 Daten'!B153,'2.2 Daten'!B181,'2.2 Daten'!B219,'2.2 Daten'!B265,'2.2 Daten'!B363,'2.2 Daten'!B371,'2.2 Daten'!B374,'2.2 Daten'!B394,'2.2 Daten'!B404,'2.2 Daten'!B419,'2.2 Daten'!B435,x) -> Hamburg | B39: =IF($A39<>0,INDEX('2.2 Daten'!C$9:C$860,MATCH('2.2'!$A39,'2.2 Daten'!$B$9:$B$860,0))," ") -> 02 | C39: =IF($A39<>0,INDEX('2.2 Daten'!E$9:E$860,MATCH('2.2'!$A39,'2.2 Daten'!$B$9:$B$860,0))) -> 62248 | D39: =IF($A39<>0,INDEX('2.2 Daten'!F$9:F$860,MATCH('2.2'!$A39,'2.2 Daten'!$B$9:$B$860,0))) -> 11879 | E39: =IF($A39<>0,INDEX('2.2 Daten'!G$9:G$860,MATCH('2.2'!$A39,'2.2 Daten'!$B$9:$B$860,0))) -> 11283 | F39: =IF($A39<>0,INDEX('2.2 Daten'!H$9:H$860,MATCH('2.2'!$A39,'2.2 Daten'!$B$9:$B$860,0))) -> 30486 | G39: =IF($A39<>0,INDEX('2.2 Daten'!I$9:I$860,MATCH('2.2'!$A39,'2.2 Daten'!$B$9:$B$860,0))) -> 8600 | H39: =IF($A39<>0,INDEX('2.2 Daten'!K$9:K$860,MATCH('2.2'!$A39,'2.2 Daten'!$B$9:$B$860,0))) -> 3.529255231 | I39: =IF($A39<>0,INDEX('2.2 Daten'!L$9:L$860,MATCH('2.2'!$A39,'2.2 Daten'!$B$9:$B$860,0))) -> 5.581726069 | J39: =IF($A39<>0,INDEX('2.2 Daten'!M$9:M$860,MATCH('2.2'!$A39,'2.2 Daten'!$B$9:$B$860,0))) -> 6.483578709 | K39: =IF($A39<>0,INDEX('2.2 Daten'!N$9:N$860,MATCH('2.2'!$A39,'2.2 Daten'!$B$9:$B$860,0))) -> 2.31574708 | L39: =IF($A39<>0,INDEX('2.2 Daten'!O$9:O$860,MATCH('2.2'!$A39,'2.2 Daten'!$B$9:$B$860,0))) -> 1.379229046
A40: =CHOOSE('2.2 Daten'!$A$2,'2.2 Daten'!B462,'2.2 Daten'!B11,'2.2 Daten'!B28,'2.2 Daten'!B45,'2.2 Daten'!B48,'2.2 Daten'!B95,'2.2 Daten'!B99,'2.2 Daten'!B154,'2.2 Daten'!B182,'2.2 Daten'!B220,'2.2 Daten'!B266,'2.2 Daten'!B364,'2.2 Daten'!B372,'2.2 Daten'!B375,'2.2 Daten'!B395,'2.2 Daten'!B405,'2.2 Daten'!B420,'2.2 Daten'!B436,x) -> Niedersachsen | B40: =IF($A40<>0,INDEX('2.2 Daten'!C$9:C$860,MATCH('2.2'!$A40,'2.2 Daten'!$B$9:$B$860,0))," ") -> 03 | C40: =IF($A40<>0,INDEX('2.2 Daten'!E$9:E$860,MATCH('2.2'!$A40,'2.2 Daten'!$B$9:$B$860,0))) -> 206310 | D40: =IF($A40<>0,INDEX('2.2 Daten'!F$9:F$860,MATCH('2.2'!$A40,'2.2 Daten'!$B$9:$B$860,0))) -> 38605 | E40: =IF($A40<>0,INDEX('2.2 Daten'!G$9:G$860,MATCH('2.2'!$A40,'2.2 Daten'!$B$9:$B$860,0))) -> 37705 | F40: =IF($A40<>0,INDEX('2.2 Daten'!H$9:H$860,MATCH('2.2'!$A40,'2.2 Daten'!$B$9:$B$860,0))) -> 101465 | G40: =IF($A40<>0,INDEX('2.2 Daten'!I$9:I$860,MATCH('2.2'!$A40,'2.2 Daten'!$B$9:$B$860,0))) -> 28535 | H40: =IF($A40<>0,INDEX('2.2 Daten'!K$9:K$860,MATCH('2.2'!$A40,'2.2 Daten'!$B$9:$B$860,0))) -> 2.980962174 | I40: =IF($A40<>0,INDEX('2.2 Daten'!L$9:L$860,MATCH('2.2'!$A40,'2.2 Daten'!$B$9:$B$860,0))) -> 4.674493642 | J40: =IF($A40<>0,INDEX('2.2 Daten'!M$9:M$860,MATCH('2.2'!$A40,'2.2 Daten'!$B$9:$B$860,0))) -> 5.019079186 | K40: =IF($A40<>0,INDEX('2.2 Daten'!N$9:N$860,MATCH('2.2'!$A40,'2.2 Daten'!$B$9:$B$860,0))) -> 2.469198142 | L40: =IF($A40<>0,INDEX('2.2 Daten'!O$9:O$860,MATCH('2.2'!$A40,'2.2 Daten'!$B$9:$B$860,0))) -> 0.003504591014
A41: =CHOOSE('2.2 Daten'!$A$2,'2.2 Daten'!B463,'2.2 Daten'!B12,'2.2 Daten'!B29,'2.2 Daten'!B46,'2.2 Daten'!B49,'2.2 Daten'!B96,'2.2 Daten'!B100,'2.2 Daten'!B155,'2.2 Daten'!B183,'2.2 Daten'!B221,'2.2 Daten'!B267,'2.2 Daten'!B365,'2.2 Daten'!B373,'2.2 Daten'!B376,'2.2 Daten'!B396,'2.2 Daten'!B406,'2.2 Daten'!B421,'2.2 Daten'!B437,x) -> Bremen | B41: =IF($A41<>0,INDEX('2.2 Daten'!C$9:C$860,MATCH('2.2'!$A41,'2.2 Daten'!$B$9:$B$860,0))," ") -> 04 | C41: =IF($A41<>0,INDEX('2.2 Daten'!E$9:E$860,MATCH('2.2'!$A41,'2.2 Daten'!$B$9:$B$860,0))) -> 35223 | D41: =IF($A41<>0,INDEX('2.2 Daten'!F$9:F$860,MATCH('2.2'!$A41,'2.2 Daten'!$B$9:$B$860,0))) -> 7141 | E41: =IF($A41<>0,INDEX('2.2 Daten'!G$9:G$860,MATCH('2.2'!$A41,'2.2 Daten'!$B$9:$B$860,0))) -> 6383 | F41: =IF($A41<>0,INDEX('2.2 Daten'!H$9:H$860,MATCH('2.2'!$A41,'2.2 Daten'!$B$9:$B$860,0))) -> 16939 | G41: =IF($A41<>0,INDEX('2.2 Daten'!I$9:I$860,MATCH('2.2'!$A41,'2.2 Daten'!$B$9:$B$860,0))) -> 4760 | H41: =IF($A41<>0,INDEX('2.2 Daten'!K$9:K$860,MATCH('2.2'!$A41,'2.2 Daten'!$B$9:$B$860,0))) -> 4.736842105 | I41: =IF($A41<>0,INDEX('2.2 Daten'!L$9:L$860,MATCH('2.2'!$A41,'2.2 Daten'!$B$9:$B$860,0))) -> 6.312341819 | J41: =IF($A41<>0,INDEX('2.2 Daten'!M$9:M$860,MATCH('2.2'!$A41,'2.2 Daten'!$B$9:$B$860,0))) -> 7.223248782 | K41: =IF($A41<>0,INDEX('2.2 Daten'!N$9:N$860,MATCH('2.2'!$A41,'2.2 Daten'!$B$9:$B$860,0))) -> 4.535917058 | L41: =IF($A41<>0,INDEX('2.2 Daten'!O$9:O$860,MATCH('2.2'!$A41,'2.2 Daten'!$B$9:$B$860,0))) -> 0.08410428932
A42: =CHOOSE('2.2 Daten'!$A$2,'2.2 Daten'!B464,'2.2 Daten'!B13,'2.2 Daten'!B30,'2.2 Daten'!B47,'2.2 Daten'!B50,'2.2 Daten'!B97,'2.2 Daten'!B101,'2.2 Daten'!B156,'2.2 Daten'!B184,'2.2 Daten'!B222,'2.2 Daten'!B268,'2.2 Daten'!B366,'2.2 Daten'!B374,'2.2 Daten'!B377,'2.2 Daten'!B397,'2.2 Daten'!B407,'2.2 Daten'!B422,'2.2 Daten'!B438,x) -> Nordrhein-Westfalen | B42: =IF($A42<>0,INDEX('2.2 Daten'!C$9:C$860,MATCH('2.2'!$A42,'2.2 Daten'!$B$9:$B$860,0))," ") -> 05 | C42: =IF($A42<>0,INDEX('2.2 Daten'!E$9:E$860,MATCH('2.2'!$A42,'2.2 Daten'!$B$9:$B$860,0))) -> 579078 | D42: =IF($A42<>0,INDEX('2.2 Daten'!F$9:F$860,MATCH('2.2'!$A42,'2.2 Daten'!$B$9:$B$860,0))) -> 107963 | E42: =IF($A42<>0,INDEX('2.2 Daten'!G$9:G$860,MATCH('2.2'!$A42,'2.2 Daten'!$B$9:$B$860,0))) -> 103603 | F42: =IF($A42<>0,INDEX('2.2 Daten'!H$9:H$860,MATCH('2.2'!$A42,'2.2 Daten'!$B$9:$B$860,0))) -> 286485 | G42: =IF($A42<>0,INDEX('2.2 Daten'!I$9:I$860,MATCH('2.2'!$A42,'2.2 Daten'!$B$9:$B$860,0))) -> 81027 | H42: =IF($A42<>0,INDEX('2.2 Daten'!K$9:K$860,MATCH('2.2'!$A42,'2.2 Daten'!$B$9:$B$860,0))) -> 3.00396663 | I42: =IF($A42<>0,INDEX('2.2 Daten'!L$9:L$860,MATCH('2.2'!$A42,'2.2 Daten'!$B$9:$B$860,0))) -> 5.49443033 | J42: =IF($A42<>0,INDEX('2.2 Daten'!M$9:M$860,MATCH('2.2'!$A42,'2.2 Daten'!$B$9:$B$860,0))) -> 4.209499286 | K42: =IF($A42<>0,INDEX('2.2 Daten'!N$9:N$860,MATCH('2.2'!$A42,'2.2 Daten'!$B$9:$B$860,0))) -> 2.410069242 | L42: =IF($A42<>0,INDEX('2.2 Daten'!O$9:O$860,MATCH('2.2'!$A42,'2.2 Daten'!$B$9:$B$860,0))) -> 0.4188922902
A43: =CHOOSE('2.2 Daten'!$A$2,'2.2 Daten'!B465,'2.2 Daten'!B14,'2.2 Daten'!B31,'2.2 Daten'!B48,'2.2 Daten'!B51,'2.2 Daten'!B98,'2.2 Daten'!B102,'2.2 Daten'!B157,'2.2 Daten'!B185,'2.2 Daten'!B223,'2.2 Daten'!B269,'2.2 Daten'!B367,'2.2 Daten'!B375,'2.2 Daten'!B378,'2.2 Daten'!B398,'2.2 Daten'!B408,'2.2 Daten'!B423,'2.2 Daten'!B439,x) -> Hessen | B43: =IF($A43<>0,INDEX('2.2 Daten'!C$9:C$860,MATCH('2.2'!$A43,'2.2 Daten'!$B$9:$B$860,0))," ") -> 06 | C43: =IF($A43<>0,INDEX('2.2 Daten'!E$9:E$860,MATCH('2.2'!$A43,'2.2 Daten'!$B$9:$B$860,0))) -> 154329 | D43: =IF($A43<>0,INDEX('2.2 Daten'!F$9:F$860,MATCH('2.2'!$A43,'2.2 Daten'!$B$9:$B$860,0))) -> 30297 | E43: =IF($A43<>0,INDEX('2.2 Daten'!G$9:G$860,MATCH('2.2'!$A43,'2.2 Daten'!$B$9:$B$860,0))) -> 27971 | F43: =IF($A43<>0,INDEX('2.2 Daten'!H$9:H$860,MATCH('2.2'!$A43,'2.2 Daten'!$B$9:$B$860,0))) -> 75690 | G43: =IF($A43<>0,INDEX('2.2 Daten'!I$9:I$860,MATCH('2.2'!$A43,'2.2 Daten'!$B$9:$B$860,0))) -> 20371 | H43: =IF($A43<>0,INDEX('2.2 Daten'!K$9:K$860,MATCH('2.2'!$A43,'2.2 Daten'!$B$9:$B$860,0))) -> 5.180333679 | I43: =IF($A43<>0,INDEX('2.2 Daten'!L$9:L$860,MATCH('2.2'!$A43,'2.2 Daten'!$B$9:$B$860,0))) -> 10.34746503 | J43: =IF($A43<>0,INDEX('2.2 Daten'!M$9:M$860,MATCH('2.2'!$A43,'2.2 Daten'!$B$9:$B$860,0))) -> 5.150182324 | K43: =IF($A43<>0,INDEX('2.2 Daten'!N$9:N$860,MATCH('2.2'!$A43,'2.2 Daten'!$B$9:$B$860,0))) -> 4.177276168 | L43: =IF($A43<>0,INDEX('2.2 Daten'!O$9:O$860,MATCH('2.2'!$A43,'2.2 Daten'!$B$9:$B$860,0))) -> 1.768496778
A44: =CHOOSE('2.2 Daten'!$A$2,'2.2 Daten'!B466,'2.2 Daten'!B15,'2.2 Daten'!B32,'2.2 Daten'!B49,'2.2 Daten'!B52,'2.2 Daten'!B99,'2.2 Daten'!B103,'2.2 Daten'!B158,'2.2 Daten'!B186,'2.2 Daten'!B224,'2.2 Daten'!B270,'2.2 Daten'!B368,'2.2 Daten'!B376,'2.2 Daten'!B379,'2.2 Daten'!B399,'2.2 Daten'!B409,'2.2 Daten'!B424,'2.2 Daten'!B440,x) -> Rheinland-Pfalz | B44: =IF($A44<>0,INDEX('2.2 Daten'!C$9:C$860,MATCH('2.2'!$A44,'2.2 Daten'!$B$9:$B$860,0))," ") -> 07 | C44: =IF($A44<>0,INDEX('2.2 Daten'!E$9:E$860,MATCH('2.2'!$A44,'2.2 Daten'!$B$9:$B$860,0))) -> 82270 | D44: =IF($A44<>0,INDEX('2.2 Daten'!F$9:F$860,MATCH('2.2'!$A44,'2.2 Daten'!$B$9:$B$860,0))) -> 16939 | E44: =IF($A44<>0,INDEX('2.2 Daten'!G$9:G$860,MATCH('2.2'!$A44,'2.2 Daten'!$B$9:$B$860,0))) -> 15132 | F44: =IF($A44<>0,INDEX('2.2 Daten'!H$9:H$860,MATCH('2.2'!$A44,'2.2 Daten'!$B$9:$B$860,0))) -> 39692 | G44: =IF($A44<>0,INDEX('2.2 Daten'!I$9:I$860,MATCH('2.2'!$A44,'2.2 Daten'!$B$9:$B$860,0))) -> 10507 | H44: =IF($A44<>0,INDEX('2.2 Daten'!K$9:K$860,MATCH('2.2'!$A44,'2.2 Daten'!$B$9:$B$860,0))) -> 3.311441237 | I44: =IF($A44<>0,INDEX('2.2 Daten'!L$9:L$860,MATCH('2.2'!$A44,'2.2 Daten'!$B$9:$B$860,0))) -> 6.180655676 | J44: =IF($A44<>0,INDEX('2.2 Daten'!M$9:M$860,MATCH('2.2'!$A44,'2.2 Daten'!$B$9:$B$860,0))) -> 4.128819158 | K44: =IF($A44<>0,INDEX('2.2 Daten'!N$9:N$860,MATCH('2.2'!$A44,'2.2 Daten'!$B$9:$B$860,0))) -> 2.603076128 | L44: =IF($A44<>0,INDEX('2.2 Daten'!O$9:O$860,MATCH('2.2'!$A44,'2.2 Daten'!$B$9:$B$860,0))) -> 0.4205294849
A45: =CHOOSE('2.2 Daten'!$A$2,'2.2 Daten'!B467,'2.2 Daten'!B16,'2.2 Daten'!B33,'2.2 Daten'!B50,'2.2 Daten'!B53,'2.2 Daten'!B100,'2.2 Daten'!B104,'2.2 Daten'!B159,'2.2 Daten'!B187,'2.2 Daten'!B225,'2.2 Daten'!B271,'2.2 Daten'!B369,'2.2 Daten'!B377,'2.2 Daten'!B380,'2.2 Daten'!B400,'2.2 Daten'!B410,'2.2 Daten'!B425,'2.2 Daten'!B441,x) -> Baden-Württemberg | B45: =IF($A45<>0,INDEX('2.2 Daten'!C$9:C$860,MATCH('2.2'!$A45,'2.2 Daten'!$B$9:$B$860,0))," ") -> 08 | C45: =IF($A45<>0,INDEX('2.2 Daten'!E$9:E$860,MATCH('2.2'!$A45,'2.2 Daten'!$B$9:$B$860,0))) -> 162555 | D45: =IF($A45<>0,INDEX('2.2 Daten'!F$9:F$860,MATCH('2.2'!$A45,'2.2 Daten'!$B$9:$B$860,0))) -> 31883 | E45: =IF($A45<>0,INDEX('2.2 Daten'!G$9:G$860,MATCH('2.2'!$A45,'2.2 Daten'!$B$9:$B$860,0))) -> 29766 | F45: =IF($A45<>0,INDEX('2.2 Daten'!H$9:H$860,MATCH('2.2'!$A45,'2.2 Daten'!$B$9:$B$860,0))) -> 79691 | G45: =IF($A45<>0,INDEX('2.2 Daten'!I$9:I$860,MATCH('2.2'!$A45,'2.2 Daten'!$B$9:$B$860,0))) -> 21215 | H45: =IF($A45<>0,INDEX('2.2 Daten'!K$9:K$860,MATCH('2.2'!$A45,'2.2 Daten'!$B$9:$B$860,0))) -> 4.155186775 | I45: =IF($A45<>0,INDEX('2.2 Daten'!L$9:L$860,MATCH('2.2'!$A45,'2.2 Daten'!$B$9:$B$860,0))) -> 8.125614678 | J45: =IF($A45<>0,INDEX('2.2 Daten'!M$9:M$860,MATCH('2.2'!$A45,'2.2 Daten'!$B$9:$B$860,0))) -> 5.740674956 | K45: =IF($A45<>0,INDEX('2.2 Daten'!N$9:N$860,MATCH('2.2'!$A45,'2.2 Daten'!$B$9:$B$860,0))) -> 3.071809199 | L45: =IF($A45<>0,INDEX('2.2 Daten'!O$9:O$860,MATCH('2.2'!$A45,'2.2 Daten'!$B$9:$B$860,0))) -> 0.4640810721
A46: =CHOOSE('2.2 Daten'!$A$2,'2.2 Daten'!B468,'2.2 Daten'!B17,'2.2 Daten'!B34,'2.2 Daten'!B51,'2.2 Daten'!B54,'2.2 Daten'!B101,'2.2 Daten'!B105,'2.2 Daten'!B160,'2.2 Daten'!B188,'2.2 Daten'!B226,'2.2 Daten'!B272,'2.2 Daten'!B370,'2.2 Daten'!B378,'2.2 Daten'!B381,'2.2 Daten'!B401,'2.2 Daten'!B411,'2.2 Daten'!B426,'2.2 Daten'!B442,x) -> Bayern | B46: =IF($A46<>0,INDEX('2.2 Daten'!C$9:C$860,MATCH('2.2'!$A46,'2.2 Daten'!$B$9:$B$860,0))," ") -> 09 | C46: =IF($A46<>0,INDEX('2.2 Daten'!E$9:E$860,MATCH('2.2'!$A46,'2.2 Daten'!$B$9:$B$860,0))) -> 152473 | D46: =IF($A46<>0,INDEX('2.2 Daten'!F$9:F$860,MATCH('2.2'!$A46,'2.2 Daten'!$B$9:$B$860,0))) -> 30519 | E46: =IF($A46<>0,INDEX('2.2 Daten'!G$9:G$860,MATCH('2.2'!$A46,'2.2 Daten'!$B$9:$B$860,0))) -> 29131 | F46: =IF($A46<>0,INDEX('2.2 Daten'!H$9:H$860,MATCH('2.2'!$A46,'2.2 Daten'!$B$9:$B$860,0))) -> 74119 | G46: =IF($A46<>0,INDEX('2.2 Daten'!I$9:I$860,MATCH('2.2'!$A46,'2.2 Daten'!$B$9:$B$860,0))) -> 18704 | H46: =IF($A46<>0,INDEX('2.2 Daten'!K$9:K$860,MATCH('2.2'!$A46,'2.2 Daten'!$B$9:$B$860,0))) -> 1.851691037 | I46: =IF($A46<>0,INDEX('2.2 Daten'!L$9:L$860,MATCH('2.2'!$A46,'2.2 Daten'!$B$9:$B$860,0))) -> 5.03871967 | J46: =IF($A46<>0,INDEX('2.2 Daten'!M$9:M$860,MATCH('2.2'!$A46,'2.2 Daten'!$B$9:$B$860,0))) -> 1.828159955 | K46: =IF($A46<>0,INDEX('2.2 Daten'!N$9:N$860,MATCH('2.2'!$A46,'2.2 Daten'!$B$9:$B$860,0))) -> 1.110429029 | L46: =IF($A46<>0,INDEX('2.2 Daten'!O$9:O$860,MATCH('2.2'!$A46,'2.2 Daten'!$B$9:$B$860,0))) -> -0.154807025
A47: =CHOOSE('2.2 Daten'!$A$2,'2.2 Daten'!B469,'2.2 Daten'!B18,'2.2 Daten'!B35,'2.2 Daten'!B52,'2.2 Daten'!B55,'2.2 Daten'!B102,'2.2 Daten'!B106,'2.2 Daten'!B161,'2.2 Daten'!B189,'2.2 Daten'!B227,'2.2 Daten'!B273,'2.2 Daten'!B371,'2.2 Daten'!B379,'2.2 Daten'!B382,'2.2 Daten'!B402,'2.2 Daten'!B412,'2.2 Daten'!B427,'2.2 Daten'!B443,x) -> Saarland | B47: =IF($A47<>0,INDEX('2.2 Daten'!C$9:C$860,MATCH('2.2'!$A47,'2.2 Daten'!$B$9:$B$860,0))," ") -> 10 | C47: =IF($A47<>0,INDEX('2.2 Daten'!E$9:E$860,MATCH('2.2'!$A47,'2.2 Daten'!$B$9:$B$860,0))) -> 29494 | D47: =IF($A47<>0,INDEX('2.2 Daten'!F$9:F$860,MATCH('2.2'!$A47,'2.2 Daten'!$B$9:$B$860,0))) -> 5698 | E47: =IF($A47<>0,INDEX('2.2 Daten'!G$9:G$860,MATCH('2.2'!$A47,'2.2 Daten'!$B$9:$B$860,0))) -> 5244 | F47: =IF($A47<>0,INDEX('2.2 Daten'!H$9:H$860,MATCH('2.2'!$A47,'2.2 Daten'!$B$9:$B$860,0))) -> 14570 | G47: =IF($A47<>0,INDEX('2.2 Daten'!I$9:I$860,MATCH('2.2'!$A47,'2.2 Daten'!$B$9:$B$860,0))) -> 3982 | H47: =IF($A47<>0,INDEX('2.2 Daten'!K$9:K$860,MATCH('2.2'!$A47,'2.2 Daten'!$B$9:$B$860,0))) -> 2.463088414 | I47: =IF($A47<>0,INDEX('2.2 Daten'!L$9:L$860,MATCH('2.2'!$A47,'2.2 Daten'!$B$9:$B$860,0))) -> 5.070993915 | J47: =IF($A47<>0,INDEX('2.2 Daten'!M$9:M$860,MATCH('2.2'!$A47,'2.2 Daten'!$B$9:$B$860,0))) -> 0.2485184477 | K47: =IF($A47<>0,INDEX('2.2 Daten'!N$9:N$860,MATCH('2.2'!$A47,'2.2 Daten'!$B$9:$B$860,0))) -> 2.31741573 | L47: =IF($A47<>0,INDEX('2.2 Daten'!O$9:O$860,MATCH('2.2'!$A47,'2.2 Daten'!$B$9:$B$860,0))) -> 2.338730403
A48: =CHOOSE('2.2 Daten'!$A$2,'2.2 Daten'!B470,'2.2 Daten'!B19,'2.2 Daten'!B36,'2.2 Daten'!B53,'2.2 Daten'!B56,'2.2 Daten'!B103,'2.2 Daten'!B107,'2.2 Daten'!B162,'2.2 Daten'!B190,'2.2 Daten'!B228,'2.2 Daten'!B274,'2.2 Daten'!B372,'2.2 Daten'!B380,'2.2 Daten'!B383,'2.2 Daten'!B403,'2.2 Daten'!B413,'2.2 Daten'!B428,'2.2 Daten'!B444,x) -> Berlin | B48: =IF($A48<>0,INDEX('2.2 Daten'!C$9:C$860,MATCH('2.2'!$A48,'2.2 Daten'!$B$9:$B$860,0))," ") -> 11 | C48: =IF($A48<>0,INDEX('2.2 Daten'!E$9:E$860,MATCH('2.2'!$A48,'2.2 Daten'!$B$9:$B$860,0))) -> 172421 | D48: =IF($A48<>0,INDEX('2.2 Daten'!F$9:F$860,MATCH('2.2'!$A48,'2.2 Daten'!$B$9:$B$860,0))) -> 32676 | E48: =IF($A48<>0,INDEX('2.2 Daten'!G$9:G$860,MATCH('2.2'!$A48,'2.2 Daten'!$B$9:$B$860,0))) -> 30999 | F48: =IF($A48<>0,INDEX('2.2 Daten'!H$9:H$860,MATCH('2.2'!$A48,'2.2 Daten'!$B$9:$B$860,0))) -> 85024 | G48: =IF($A48<>0,INDEX('2.2 Daten'!I$9:I$860,MATCH('2.2'!$A48,'2.2 Daten'!$B$9:$B$860,0))) -> 23722 | H48: =IF($A48<>0,INDEX('2.2 Daten'!K$9:K$860,MATCH('2.2'!$A48,'2.2 Daten'!$B$9:$B$860,0))) -> -1.131346262 | I48: =IF($A48<>0,INDEX('2.2 Daten'!L$9:L$860,MATCH('2.2'!$A48,'2.2 Daten'!$B$9:$B$860,0))) -> -0.2838048155 | J48: =IF($A48<>0,INDEX('2.2 Daten'!M$9:M$860,MATCH('2.2'!$A48,'2.2 Daten'!$B$9:$B$860,0))) -> -0.3984191755 | K48: =IF($A48<>0,INDEX('2.2 Daten'!N$9:N$860,MATCH('2.2'!$A48,'2.2 Daten'!$B$9:$B$860,0))) -> -1.308168216 | L48: =IF($A48<>0,INDEX('2.2 Daten'!O$9:O$860,MATCH('2.2'!$A48,'2.2 Daten'!$B$9:$B$860,0))) -> -2.583056137
A49: =CHOOSE('2.2 Daten'!$A$2,'2.2 Daten'!B471,'2.2 Daten'!B20,'2.2 Daten'!B37,'2.2 Daten'!B54,'2.2 Daten'!B57,'2.2 Daten'!B104,'2.2 Daten'!B108,'2.2 Daten'!B163,'2.2 Daten'!B191,'2.2 Daten'!B229,'2.2 Daten'!B275,'2.2 Daten'!B373,'2.2 Daten'!B381,'2.2 Daten'!B384,'2.2 Daten'!B404,'2.2 Daten'!B414,'2.2 Daten'!B429,'2.2 Daten'!B445,x) -> Brandenburg | B49: =IF($A49<>0,INDEX('2.2 Daten'!C$9:C$860,MATCH('2.2'!$A49,'2.2 Daten'!$B$9:$B$860,0))," ") -> 12 | C49: =IF($A49<>0,INDEX('2.2 Daten'!E$9:E$860,MATCH('2.2'!$A49,'2.2 Daten'!$B$9:$B$860,0))) -> 57438 | D49: =IF($A49<>0,INDEX('2.2 Daten'!F$9:F$860,MATCH('2.2'!$A49,'2.2 Daten'!$B$9:$B$860,0))) -> 10816 | E49: =IF($A49<>0,INDEX('2.2 Daten'!G$9:G$860,MATCH('2.2'!$A49,'2.2 Daten'!$B$9:$B$860,0))) -> 10579 | F49: =IF($A49<>0,INDEX('2.2 Daten'!H$9:H$860,MATCH('2.2'!$A49,'2.2 Daten'!$B$9:$B$860,0))) -> 28998 | G49: =IF($A49<>0,INDEX('2.2 Daten'!I$9:I$860,MATCH('2.2'!$A49,'2.2 Daten'!$B$9:$B$860,0))) -> 7045 | H49: =IF($A49<>0,INDEX('2.2 Daten'!K$9:K$860,MATCH('2.2'!$A49,'2.2 Daten'!$B$9:$B$860,0))) -> -4.739949582 | I49: =IF($A49<>0,INDEX('2.2 Daten'!L$9:L$860,MATCH('2.2'!$A49,'2.2 Daten'!$B$9:$B$860,0))) -> -3.411323451 | J49: =IF($A49<>0,INDEX('2.2 Daten'!M$9:M$860,MATCH('2.2'!$A49,'2.2 Daten'!$B$9:$B$860,0))) -> -4.702279074 | K49: =IF($A49<>0,INDEX('2.2 Daten'!N$9:N$860,MATCH('2.2'!$A49,'2.2 Daten'!$B$9:$B$860,0))) -> -4.671422466 | L49: =IF($A49<>0,INDEX('2.2 Daten'!O$9:O$860,MATCH('2.2'!$A49,'2.2 Daten'!$B$9:$B$860,0))) -> -7.033518079
A50: =CHOOSE('2.2 Daten'!$A$2,'2.2 Daten'!B472,'2.2 Daten'!B21,'2.2 Daten'!B38,'2.2 Daten'!B55,'2.2 Daten'!B58,'2.2 Daten'!B105,'2.2 Daten'!B109,'2.2 Daten'!B164,'2.2 Daten'!B192,'2.2 Daten'!B230,'2.2 Daten'!B276,'2.2 Daten'!B374,'2.2 Daten'!B382,'2.2 Daten'!B385,'2.2 Daten'!B405,'2.2 Daten'!B415,'2.2 Daten'!B430,'2.2 Daten'!B446,x) -> Mecklenburg-Vorpommern | B50: =IF($A50<>0,INDEX('2.2 Daten'!C$9:C$860,MATCH('2.2'!$A50,'2.2 Daten'!$B$9:$B$860,0))," ") -> 13 | C50: =IF($A50<>0,INDEX('2.2 Daten'!E$9:E$860,MATCH('2.2'!$A50,'2.2 Daten'!$B$9:$B$860,0))) -> 46141 | D50: =IF($A50<>0,INDEX('2.2 Daten'!F$9:F$860,MATCH('2.2'!$A50,'2.2 Daten'!$B$9:$B$860,0))) -> 8558 | E50: =IF($A50<>0,INDEX('2.2 Daten'!G$9:G$860,MATCH('2.2'!$A50,'2.2 Daten'!$B$9:$B$860,0))) -> 8647 | F50: =IF($A50<>0,INDEX('2.2 Daten'!H$9:H$860,MATCH('2.2'!$A50,'2.2 Daten'!$B$9:$B$860,0))) -> 23520 | G50: =IF($A50<>0,INDEX('2.2 Daten'!I$9:I$860,MATCH('2.2'!$A50,'2.2 Daten'!$B$9:$B$860,0))) -> 5416 | H50: =IF($A50<>0,INDEX('2.2 Daten'!K$9:K$860,MATCH('2.2'!$A50,'2.2 Daten'!$B$9:$B$860,0))) -> -3.954955142 | I50: =IF($A50<>0,INDEX('2.2 Daten'!L$9:L$860,MATCH('2.2'!$A50,'2.2 Daten'!$B$9:$B$860,0))) -> -3.211942999 | J50: =IF($A50<>0,INDEX('2.2 Daten'!M$9:M$860,MATCH('2.2'!$A50,'2.2 Daten'!$B$9:$B$860,0))) -> -4.22020381 | K50: =IF($A50<>0,INDEX('2.2 Daten'!N$9:N$860,MATCH('2.2'!$A50,'2.2 Daten'!$B$9:$B$860,0))) -> -3.551217912 | L50: =IF($A50<>0,INDEX('2.2 Daten'!O$9:O$860,MATCH('2.2'!$A50,'2.2 Daten'!$B$9:$B$860,0))) -> -6.378565255
A51: =CHOOSE('2.2 Daten'!$A$2,'2.2 Daten'!B473,'2.2 Daten'!B22,'2.2 Daten'!B39,'2.2 Daten'!B56,'2.2 Daten'!B59,'2.2 Daten'!B106,'2.2 Daten'!B110,'2.2 Daten'!B165,'2.2 Daten'!B193,'2.2 Daten'!B231,'2.2 Daten'!B277,'2.2 Daten'!B375,'2.2 Daten'!B383,'2.2 Daten'!B386,'2.2 Daten'!B406,'2.2 Daten'!B416,'2.2 Daten'!B431,'2.2 Daten'!B447,x) -> Sachsen | B51: =IF($A51<>0,INDEX('2.2 Daten'!C$9:C$860,MATCH('2.2'!$A51,'2.2 Daten'!$B$9:$B$860,0))," ") -> 14 | C51: =IF($A51<>0,INDEX('2.2 Daten'!E$9:E$860,MATCH('2.2'!$A51,'2.2 Daten'!$B$9:$B$860,0))) -> 92763 | D51: =IF($A51<>0,INDEX('2.2 Daten'!F$9:F$860,MATCH('2.2'!$A51,'2.2 Daten'!$B$9:$B$860,0))) -> 18048 | E51: =IF($A51<>0,INDEX('2.2 Daten'!G$9:G$860,MATCH('2.2'!$A51,'2.2 Daten'!$B$9:$B$860,0))) -> 17330 | F51: =IF($A51<>0,INDEX('2.2 Daten'!H$9:H$860,MATCH('2.2'!$A51,'2.2 Daten'!$B$9:$B$860,0))) -> 46175 | G51: =IF($A51<>0,INDEX('2.2 Daten'!I$9:I$860,MATCH('2.2'!$A51,'2.2 Daten'!$B$9:$B$860,0))) -> 11210 | H51: =IF($A51<>0,INDEX('2.2 Daten'!K$9:K$860,MATCH('2.2'!$A51,'2.2 Daten'!$B$9:$B$860,0))) -> -4.887726853 | I51: =IF($A51<>0,INDEX('2.2 Daten'!L$9:L$860,MATCH('2.2'!$A51,'2.2 Daten'!$B$9:$B$860,0))) -> -3.594893435 | J51: =IF($A51<>0,INDEX('2.2 Daten'!M$9:M$860,MATCH('2.2'!$A51,'2.2 Daten'!$B$9:$B$860,0))) -> -4.842960685 | K51: =IF($A51<>0,INDEX('2.2 Daten'!N$9:N$860,MATCH('2.2'!$A51,'2.2 Daten'!$B$9:$B$860,0))) -> -5.114663817 | L51: =IF($A51<>0,INDEX('2.2 Daten'!O$9:O$860,MATCH('2.2'!$A51,'2.2 Daten'!$B$9:$B$860,0))) -> -6.058828459
A52: =CHOOSE('2.2 Daten'!$A$2,'2.2 Daten'!B474,'2.2 Daten'!B23,'2.2 Daten'!B40,'2.2 Daten'!B57,'2.2 Daten'!B60,'2.2 Daten'!B107,'2.2 Daten'!B111,'2.2 Daten'!B166,'2.2 Daten'!B194,'2.2 Daten'!B232,'2.2 Daten'!B278,'2.2 Daten'!B376,'2.2 Daten'!B384,'2.2 Daten'!B387,'2.2 Daten'!B407,'2.2 Daten'!B417,'2.2 Daten'!B432,'2.2 Daten'!B448,x) -> Sachsen-Anhalt | B52: =IF($A52<>0,INDEX('2.2 Daten'!C$9:C$860,MATCH('2.2'!$A52,'2.2 Daten'!$B$9:$B$860,0))," ") -> 15 | C52: =IF($A52<>0,INDEX('2.2 Daten'!E$9:E$860,MATCH('2.2'!$A52,'2.2 Daten'!$B$9:$B$860,0))) -> 70344 | D52: =IF($A52<>0,INDEX('2.2 Daten'!F$9:F$860,MATCH('2.2'!$A52,'2.2 Daten'!$B$9:$B$860,0))) -> 13337 | E52: =IF($A52<>0,INDEX('2.2 Daten'!G$9:G$860,MATCH('2.2'!$A52,'2.2 Daten'!$B$9:$B$860,0))) -> 13154 | F52: =IF($A52<>0,INDEX('2.2 Daten'!H$9:H$860,MATCH('2.2'!$A52,'2.2 Daten'!$B$9:$B$860,0))) -> 35335 | G52: =IF($A52<>0,INDEX('2.2 Daten'!I$9:I$860,MATCH('2.2'!$A52,'2.2 Daten'!$B$9:$B$860,0))) -> 8518 | H52: =IF($A52<>0,INDEX('2.2 Daten'!K$9:K$860,MATCH('2.2'!$A52,'2.2 Daten'!$B$9:$B$860,0))) -> -3.626474497 | I52: =IF($A52<>0,INDEX('2.2 Daten'!L$9:L$860,MATCH('2.2'!$A52,'2.2 Daten'!$B$9:$B$860,0))) -> -1.811087389 | J52: =IF($A52<>0,INDEX('2.2 Daten'!M$9:M$860,MATCH('2.2'!$A52,'2.2 Daten'!$B$9:$B$860,0))) -> -3.739480424 | K52: =IF($A52<>0,INDEX('2.2 Daten'!N$9:N$860,MATCH('2.2'!$A52,'2.2 Daten'!$B$9:$B$860,0))) -> -3.677352524 | L52: =IF($A52<>0,INDEX('2.2 Daten'!O$9:O$860,MATCH('2.2'!$A52,'2.2 Daten'!$B$9:$B$860,0))) -> -5.971961585
A53: =CHOOSE('2.2 Daten'!$A$2,'2.2 Daten'!B475,'2.2 Daten'!B24,'2.2 Daten'!B41,'2.2 Daten'!B58,'2.2 Daten'!B61,'2.2 Daten'!B108,'2.2 Daten'!B112,'2.2 Daten'!B167,'2.2 Daten'!B195,'2.2 Daten'!B233,'2.2 Daten'!B279,'2.2 Daten'!B377,'2.2 Daten'!B385,'2.2 Daten'!B388,'2.2 Daten'!B408,'2.2 Daten'!B418,'2.2 Daten'!B433,'2.2 Daten'!B449,x) -> Thüringen | B53: =IF($A53<>0,INDEX('2.2 Daten'!C$9:C$860,MATCH('2.2'!$A53,'2.2 Daten'!$B$9:$B$860,0))," ") -> 16 | C53: =IF($A53<>0,INDEX('2.2 Daten'!E$9:E$860,MATCH('2.2'!$A53,'2.2 Daten'!$B$9:$B$860,0))) -> 48129 | D53: =IF($A53<>0,INDEX('2.2 Daten'!F$9:F$860,MATCH('2.2'!$A53,'2.2 Daten'!$B$9:$B$860,0))) -> 9687 | E53: =IF($A53<>0,INDEX('2.2 Daten'!G$9:G$860,MATCH('2.2'!$A53,'2.2 Daten'!$B$9:$B$860,0))) -> 8931 | F53: =IF($A53<>0,INDEX('2.2 Daten'!H$9:H$860,MATCH('2.2'!$A53,'2.2 Daten'!$B$9:$B$860,0))) -> 23836 | G53: =IF($A53<>0,INDEX('2.2 Daten'!I$9:I$860,MATCH('2.2'!$A53,'2.2 Daten'!$B$9:$B$860,0))) -> 5675 | H53: =IF($A53<>0,INDEX('2.2 Daten'!K$9:K$860,MATCH('2.2'!$A53,'2.2 Daten'!$B$9:$B$860,0))) -> -2.154953343 | I53: =IF($A53<>0,INDEX('2.2 Daten'!L$9:L$860,MATCH('2.2'!$A53,'2.2 Daten'!$B$9:$B$860,0))) -> 0.9798811633 | J53: =IF($A53<>0,INDEX('2.2 Daten'!M$9:M$860,MATCH('2.2'!$A53,'2.2 Daten'!$B$9:$B$860,0))) -> -4.552741263 | K53: =IF($A53<>0,INDEX('2.2 Daten'!N$9:N$860,MATCH('2.2'!$A53,'2.2 Daten'!$B$9:$B$860,0))) -> -1.925608953 | L53: =IF($A53<>0,INDEX('2.2 Daten'!O$9:O$860,MATCH('2.2'!$A53,'2.2 Daten'!$B$9:$B$860,0))) -> -4.380791912
A54: =CHOOSE('2.2 Daten'!$A$2,'2.2 Daten'!B476,'2.2 Daten'!B25,'2.2 Daten'!B42,'2.2 Daten'!B59,'2.2 Daten'!B62,'2.2 Daten'!B109,'2.2 Daten'!B113,'2.2 Daten'!B168,'2.2 Daten'!B196,'2.2 Daten'!B234,'2.2 Daten'!B280,'2.2 Daten'!B378,'2.2 Daten'!B386,'2.2 Daten'!B389,'2.2 Daten'!B409,'2.2 Daten'!B419,'2.2 Daten'!B434,'2.2 Daten'!B450,x) -> 0 | B54: =IF($A54<>0,INDEX('2.2 Daten'!C$9:C$860,MATCH('2.2'!$A54,'2.2 Daten'!$B$9:$B$860,0))," ") ->  | C54: =IF($A54<>0,INDEX('2.2 Daten'!E$9:E$860,MATCH('2.2'!$A54,'2.2 Daten'!$B$9:$B$860,0))) -> FALSE | D54: =IF($A54<>0,INDEX('2.2 Daten'!F$9:F$860,MATCH('2.2'!$A54,'2.2 Daten'!$B$9:$B$860,0))) -> FALSE | E54: =IF($A54<>0,INDEX('2.2 Daten'!G$9:G$860,MATCH('2.2'!$A54,'2.2 Daten'!$B$9:$B$860,0))) -> FALSE | F54: =IF($A54<>0,INDEX('2.2 Daten'!H$9:H$860,MATCH('2.2'!$A54,'2.2 Daten'!$B$9:$B$860,0))) -> FALSE | G54: =IF($A54<>0,INDEX('2.2 Daten'!I$9:I$860,MATCH('2.2'!$A54,'2.2 Daten'!$B$9:$B$860,0))) -> FALSE | H54: =IF($A54<>0,INDEX('2.2 Daten'!K$9:K$860,MATCH('2.2'!$A54,'2.2 Daten'!$B$9:$B$860,0))) -> FALSE | I54: =IF($A54<>0,INDEX('2.2 Daten'!L$9:L$860,MATCH('2.2'!$A54,'2.2 Daten'!$B$9:$B$860,0))) -> FALSE | J54: =IF($A54<>0,INDEX('2.2 Daten'!M$9:M$860,MATCH('2.2'!$A54,'2.2 Daten'!$B$9:$B$860,0))) -> FALSE | K54: =IF($A54<>0,INDEX('2.2 Daten'!N$9:N$860,MATCH('2.2'!$A54,'2.2 Daten'!$B$9:$B$860,0))) -> FALSE | L54: =IF($A54<>0,INDEX('2.2 Daten'!O$9:O$860,MATCH('2.2'!$A54,'2.2 Daten'!$B$9:$B$860,0))) -> FALSE
A55: =CHOOSE('2.2 Daten'!$A$2,'2.2 Daten'!B477,'2.2 Daten'!B26,'2.2 Daten'!B43,'2.2 Daten'!B60,'2.2 Daten'!B63,'2.2 Daten'!B110,'2.2 Daten'!B114,'2.2 Daten'!B169,'2.2 Daten'!B197,'2.2 Daten'!B235,'2.2 Daten'!B281,'2.2 Daten'!B379,'2.2 Daten'!B387,'2.2 Daten'!B390,'2.2 Daten'!B410,'2.2 Daten'!B420,'2.2 Daten'!B435,'2.2 Daten'!B451,x) -> Schleswig-Holstein | B55: =IF($A55<>0,INDEX('2.2 Daten'!C$9:C$860,MATCH('2.2'!$A55,'2.2 Daten'!$B$9:$B$860,0))," ") -> 01 | C55: =IF($A55<>0,INDEX('2.2 Daten'!E$9:E$860,MATCH('2.2'!$A55,'2.2 Daten'!$B$9:$B$860,0))) -> 76691 | D55: =IF($A55<>0,INDEX('2.2 Daten'!F$9:F$860,MATCH('2.2'!$A55,'2.2 Daten'!$B$9:$B$860,0))) -> 14582 | E55: =IF($A55<>0,INDEX('2.2 Daten'!G$9:G$860,MATCH('2.2'!$A55,'2.2 Daten'!$B$9:$B$860,0))) -> 14224 | F55: =IF($A55<>0,INDEX('2.2 Daten'!H$9:H$860,MATCH('2.2'!$A55,'2.2 Daten'!$B$9:$B$860,0))) -> 37852 | G55: =IF($A55<>0,INDEX('2.2 Daten'!I$9:I$860,MATCH('2.2'!$A55,'2.2 Daten'!$B$9:$B$860,0))) -> 10033 | H55: =IF($A55<>0,INDEX('2.2 Daten'!K$9:K$860,MATCH('2.2'!$A55,'2.2 Daten'!$B$9:$B$860,0))) -> 3.549728606 | I55: =IF($A55<>0,INDEX('2.2 Daten'!L$9:L$860,MATCH('2.2'!$A55,'2.2 Daten'!$B$9:$B$860,0))) -> 6.539051655 | J55: =IF($A55<>0,INDEX('2.2 Daten'!M$9:M$860,MATCH('2.2'!$A55,'2.2 Daten'!$B$9:$B$860,0))) -> 5.144884684 | K55: =IF($A55<>0,INDEX('2.2 Daten'!N$9:N$860,MATCH('2.2'!$A55,'2.2 Daten'!$B$9:$B$860,0))) -> 2.917425705 | L55: =IF($A55<>0,INDEX('2.2 Daten'!O$9:O$860,MATCH('2.2'!$A55,'2.2 Daten'!$B$9:$B$860,0))) -> -0.3476360747
A56: =CHOOSE('2.2 Daten'!$A$2,'2.2 Daten'!B478,'2.2 Daten'!B27,'2.2 Daten'!B44,'2.2 Daten'!B61,'2.2 Daten'!B64,'2.2 Daten'!B111,'2.2 Daten'!B115,'2.2 Daten'!B170,'2.2 Daten'!B198,'2.2 Daten'!B236,'2.2 Daten'!B282,'2.2 Daten'!B380,'2.2 Daten'!B388,'2.2 Daten'!B391,'2.2 Daten'!B411,'2.2 Daten'!B421,'2.2 Daten'!B436,'2.2 Daten'!B452,x) -> Flensburg, Stadt | B56: =IF($A56<>0,INDEX('2.2 Daten'!C$9:C$860,MATCH('2.2'!$A56,'2.2 Daten'!$B$9:$B$860,0))," ") -> 1001000 | C56: =IF($A56<>0,INDEX('2.2 Daten'!E$9:E$860,MATCH('2.2'!$A56,'2.2 Daten'!$B$9:$B$860,0))) -> 3747 | D56: =IF($A56<>0,INDEX('2.2 Daten'!F$9:F$860,MATCH('2.2'!$A56,'2.2 Daten'!$B$9:$B$860,0))) -> 798 | E56: =IF($A56<>0,INDEX('2.2 Daten'!G$9:G$860,MATCH('2.2'!$A56,'2.2 Daten'!$B$9:$B$860,0))) -> 693 | F56: =IF($A56<>0,INDEX('2.2 Daten'!H$9:H$860,MATCH('2.2'!$A56,'2.2 Daten'!$B$9:$B$860,0))) -> 1803 | G56: =IF($A56<>0,INDEX('2.2 Daten'!I$9:I$860,MATCH('2.2'!$A56,'2.2 Daten'!$B$9:$B$860,0))) -> 453 | H56: =IF($A56<>0,INDEX('2.2 Daten'!K$9:K$860,MATCH('2.2'!$A56,'2.2 Daten'!$B$9:$B$860,0))) -> 10.79243051 | I56: =IF($A56<>0,INDEX('2.2 Daten'!L$9:L$860,MATCH('2.2'!$A56,'2.2 Daten'!$B$9:$B$860,0))) -> 17.00879765 | J56: =IF($A56<>0,INDEX('2.2 Daten'!M$9:M$860,MATCH('2.2'!$A56,'2.2 Daten'!$B$9:$B$860,0))) -> 8.962264151 | K56: =IF($A56<>0,INDEX('2.2 Daten'!N$9:N$860,MATCH('2.2'!$A56,'2.2 Daten'!$B$9:$B$860,0))) -> 8.811104406 | L56: =IF($A56<>0,INDEX('2.2 Daten'!O$9:O$860,MATCH('2.2'!$A56,'2.2 Daten'!$B$9:$B$860,0))) -> 11.3022113
A57: =CHOOSE('2.2 Daten'!$A$2,'2.2 Daten'!B479,'2.2 Daten'!B28,'2.2 Daten'!B45,'2.2 Daten'!B62,'2.2 Daten'!B65,'2.2 Daten'!B112,'2.2 Daten'!B116,'2.2 Daten'!B171,'2.2 Daten'!B199,'2.2 Daten'!B237,'2.2 Daten'!B283,'2.2 Daten'!B381,'2.2 Daten'!B389,'2.2 Daten'!B392,'2.2 Daten'!B412,'2.2 Daten'!B422,'2.2 Daten'!B437,'2.2 Daten'!B453,x) -> Kiel, Landeshauptstadt | B57: =IF($A57<>0,INDEX('2.2 Daten'!C$9:C$860,MATCH('2.2'!$A57,'2.2 Daten'!$B$9:$B$860,0))," ") -> 1002000 | C57: =IF($A57<>0,INDEX('2.2 Daten'!E$9:E$860,MATCH('2.2'!$A57,'2.2 Daten'!$B$9:$B$860,0))) -> 11184 | D57: =IF($A57<>0,INDEX('2.2 Daten'!F$9:F$860,MATCH('2.2'!$A57,'2.2 Daten'!$B$9:$B$860,0))) -> 2129 | E57: =IF($A57<>0,INDEX('2.2 Daten'!G$9:G$860,MATCH('2.2'!$A57,'2.2 Daten'!$B$9:$B$860,0))) -> 2031 | F57: =IF($A57<>0,INDEX('2.2 Daten'!H$9:H$860,MATCH('2.2'!$A57,'2.2 Daten'!$B$9:$B$860,0))) -> 5559 | G57: =IF($A57<>0,INDEX('2.2 Daten'!I$9:I$860,MATCH('2.2'!$A57,'2.2 Daten'!$B$9:$B$860,0))) -> 1465 | H57: =IF($A57<>0,INDEX('2.2 Daten'!K$9:K$860,MATCH('2.2'!$A57,'2.2 Daten'!$B$9:$B$860,0))) -> 0.3409294814 | I57: =IF($A57<>0,INDEX('2.2 Daten'!L$9:L$860,MATCH('2.2'!$A57,'2.2 Daten'!$B$9:$B$860,0))) -> 1.866028708 | J57: =IF($A57<>0,INDEX('2.2 Daten'!M$9:M$860,MATCH('2.2'!$A57,'2.2 Daten'!$B$9:$B$860,0))) -> 1.145418327 | K57: =IF($A57<>0,INDEX('2.2 Daten'!N$9:N$860,MATCH('2.2'!$A57,'2.2 Daten'!$B$9:$B$860,0))) -> -0.5723484171 | L57: =IF($A57<>0,INDEX('2.2 Daten'!O$9:O$860,MATCH('2.2'!$A57,'2.2 Daten'!$B$9:$B$860,0))) -> 0.5490734386
A58: =CHOOSE('2.2 Daten'!$A$2,'2.2 Daten'!B480,'2.2 Daten'!B29,'2.2 Daten'!B46,'2.2 Daten'!B63,'2.2 Daten'!B66,'2.2 Daten'!B113,'2.2 Daten'!B117,'2.2 Daten'!B172,'2.2 Daten'!B200,'2.2 Daten'!B238,'2.2 Daten'!B284,'2.2 Daten'!B382,'2.2 Daten'!B390,'2.2 Daten'!B393,'2.2 Daten'!B413,'2.2 Daten'!B423,'2.2 Daten'!B438,'2.2 Daten'!B454,x) -> Lübeck, Hansestadt | B58: =IF($A58<>0,INDEX('2.2 Daten'!C$9:C$860,MATCH('2.2'!$A58,'2.2 Daten'!$B$9:$B$860,0))," ") -> 1003000 | C58: =IF($A58<>0,INDEX('2.2 Daten'!E$9:E$860,MATCH('2.2'!$A58,'2.2 Daten'!$B$9:$B$860,0))) -> 8693 | D58: =IF($A58<>0,INDEX('2.2 Daten'!F$9:F$860,MATCH('2.2'!$A58,'2.2 Daten'!$B$9:$B$860,0))) -> 1621 | E58: =IF($A58<>0,INDEX('2.2 Daten'!G$9:G$860,MATCH('2.2'!$A58,'2.2 Daten'!$B$9:$B$860,0))) -> 1630 | F58: =IF($A58<>0,INDEX('2.2 Daten'!H$9:H$860,MATCH('2.2'!$A58,'2.2 Daten'!$B$9:$B$860,0))) -> 4237 | G58: =IF($A58<>0,INDEX('2.2 Daten'!I$9:I$860,MATCH('2.2'!$A58,'2.2 Daten'!$B$9:$B$860,0))) -> 1205 | H58: =IF($A58<>0,INDEX('2.2 Daten'!K$9:K$860,MATCH('2.2'!$A58,'2.2 Daten'!$B$9:$B$860,0))) -> -1.70737223 | I58: =IF($A58<>0,INDEX('2.2 Daten'!L$9:L$860,MATCH('2.2'!$A58,'2.2 Daten'!$B$9:$B$860,0))) -> -0.9773976787 | J58: =IF($A58<>0,INDEX('2.2 Daten'!M$9:M$860,MATCH('2.2'!$A58,'2.2 Daten'!$B$9:$B$860,0))) -> 0.679431748 | K58: =IF($A58<>0,INDEX('2.2 Daten'!N$9:N$860,MATCH('2.2'!$A58,'2.2 Daten'!$B$9:$B$860,0))) -> -3.35310219 | L58: =IF($A58<>0,INDEX('2.2 Daten'!O$9:O$860,MATCH('2.2'!$A58,'2.2 Daten'!$B$9:$B$860,0))) -> 0.08305647841
A59: =CHOOSE('2.2 Daten'!$A$2,'2.2 Daten'!B481,'2.2 Daten'!B30,'2.2 Daten'!B47,'2.2 Daten'!B64,'2.2 Daten'!B67,'2.2 Daten'!B114,'2.2 Daten'!B118,'2.2 Daten'!B173,'2.2 Daten'!B201,'2.2 Daten'!B239,'2.2 Daten'!B285,'2.2 Daten'!B383,'2.2 Daten'!B391,'2.2 Daten'!B394,'2.2 Daten'!B414,'2.2 Daten'!B424,'2.2 Daten'!B439,'2.2 Daten'!B455,x) -> Neumünster, Stadt | B59: =IF($A59<>0,INDEX('2.2 Daten'!C$9:C$860,MATCH('2.2'!$A59,'2.2 Daten'!$B$9:$B$860,0))," ") -> 1004000 | C59: =IF($A59<>0,INDEX('2.2 Daten'!E$9:E$860,MATCH('2.2'!$A59,'2.2 Daten'!$B$9:$B$860,0))) -> 3476 | D59: =IF($A59<>0,INDEX('2.2 Daten'!F$9:F$860,MATCH('2.2'!$A59,'2.2 Daten'!$B$9:$B$860,0))) -> 624 | E59: =IF($A59<>0,INDEX('2.2 Daten'!G$9:G$860,MATCH('2.2'!$A59,'2.2 Daten'!$B$9:$B$860,0))) -> 680 | F59: =IF($A59<>0,INDEX('2.2 Daten'!H$9:H$860,MATCH('2.2'!$A59,'2.2 Daten'!$B$9:$B$860,0))) -> 1722 | G59: =IF($A59<>0,INDEX('2.2 Daten'!I$9:I$860,MATCH('2.2'!$A59,'2.2 Daten'!$B$9:$B$860,0))) -> 450 | H59: =IF($A59<>0,INDEX('2.2 Daten'!K$9:K$860,MATCH('2.2'!$A59,'2.2 Daten'!$B$9:$B$860,0))) -> -3.498056635 | I59: =IF($A59<>0,INDEX('2.2 Daten'!L$9:L$860,MATCH('2.2'!$A59,'2.2 Daten'!$B$9:$B$860,0))) -> 0.3215434084 | J59: =IF($A59<>0,INDEX('2.2 Daten'!M$9:M$860,MATCH('2.2'!$A59,'2.2 Daten'!$B$9:$B$860,0))) -> 5.263157895 | K59: =IF($A59<>0,INDEX('2.2 Daten'!N$9:N$860,MATCH('2.2'!$A59,'2.2 Daten'!$B$9:$B$860,0))) -> -4.914411927 | L59: =IF($A59<>0,INDEX('2.2 Daten'!O$9:O$860,MATCH('2.2'!$A59,'2.2 Daten'!$B$9:$B$860,0))) -> -13.95793499
A60: =CHOOSE('2.2 Daten'!$A$2,'2.2 Daten'!B482,'2.2 Daten'!B31,'2.2 Daten'!B48,'2.2 Daten'!B65,'2.2 Daten'!B68,'2.2 Daten'!B115,'2.2 Daten'!B119,'2.2 Daten'!B174,'2.2 Daten'!B202,'2.2 Daten'!B240,'2.2 Daten'!B286,'2.2 Daten'!B384,'2.2 Daten'!B392,'2.2 Daten'!B395,'2.2 Daten'!B415,'2.2 Daten'!B425,'2.2 Daten'!B440,'2.2 Daten'!B456,x) -> Dithmarschen | B60: =IF($A60<>0,INDEX('2.2 Daten'!C$9:C$860,MATCH('2.2'!$A60,'2.2 Daten'!$B$9:$B$860,0))," ") -> 1051000 | C60: =IF($A60<>0,INDEX('2.2 Daten'!E$9:E$860,MATCH('2.2'!$A60,'2.2 Daten'!$B$9:$B$860,0))) -> 4132 | D60: =IF($A60<>0,INDEX('2.2 Daten'!F$9:F$860,MATCH('2.2'!$A60,'2.2 Daten'!$B$9:$B$860,0))) -> 779 | E60: =IF($A60<>0,INDEX('2.2 Daten'!G$9:G$860,MATCH('2.2'!$A60,'2.2 Daten'!$B$9:$B$860,0))) -> 810 | F60: =IF($A60<>0,INDEX('2.2 Daten'!H$9:H$860,MATCH('2.2'!$A60,'2.2 Daten'!$B$9:$B$860,0))) -> 2035 | G60: =IF($A60<>0,INDEX('2.2 Daten'!I$9:I$860,MATCH('2.2'!$A60,'2.2 Daten'!$B$9:$B$860,0))) -> 508 | H60: =IF($A60<>0,INDEX('2.2 Daten'!K$9:K$860,MATCH('2.2'!$A60,'2.2 Daten'!$B$9:$B$860,0))) -> 3.171036205 | I60: =IF($A60<>0,INDEX('2.2 Daten'!L$9:L$860,MATCH('2.2'!$A60,'2.2 Daten'!$B$9:$B$860,0))) -> 3.178807947 | J60: =IF($A60<>0,INDEX('2.2 Daten'!M$9:M$860,MATCH('2.2'!$A60,'2.2 Daten'!$B$9:$B$860,0))) -> 7.142857143 | K60: =IF($A60<>0,INDEX('2.2 Daten'!N$9:N$860,MATCH('2.2'!$A60,'2.2 Daten'!$B$9:$B$860,0))) -> 3.509664293 | L60: =IF($A60<>0,INDEX('2.2 Daten'!O$9:O$860,MATCH('2.2'!$A60,'2.2 Daten'!$B$9:$B$860,0))) -> -3.787878788
A61: =CHOOSE('2.2 Daten'!$A$2,'2.2 Daten'!B483,'2.2 Daten'!B32,'2.2 Daten'!B49,'2.2 Daten'!B66,'2.2 Daten'!B69,'2.2 Daten'!B116,'2.2 Daten'!B120,'2.2 Daten'!B175,'2.2 Daten'!B203,'2.2 Daten'!B241,'2.2 Daten'!B287,'2.2 Daten'!B385,'2.2 Daten'!B393,'2.2 Daten'!B396,'2.2 Daten'!B416,'2.2 Daten'!B426,'2.2 Daten'!B441,'2.2 Daten'!B457,x) -> Herzogtum Lauenburg | B61: =IF($A61<>0,INDEX('2.2 Daten'!C$9:C$860,MATCH('2.2'!$A61,'2.2 Daten'!$B$9:$B$860,0))," ") -> 1053000 | C61: =IF($A61<>0,INDEX('2.2 Daten'!E$9:E$860,MATCH('2.2'!$A61,'2.2 Daten'!$B$9:$B$860,0))) -> 4667 | D61: =IF($A61<>0,INDEX('2.2 Daten'!F$9:F$860,MATCH('2.2'!$A61,'2.2 Daten'!$B$9:$B$860,0))) -> 918 | E61: =IF($A61<>0,INDEX('2.2 Daten'!G$9:G$860,MATCH('2.2'!$A61,'2.2 Daten'!$B$9:$B$860,0))) -> 845 | F61: =IF($A61<>0,INDEX('2.2 Daten'!H$9:H$860,MATCH('2.2'!$A61,'2.2 Daten'!$B$9:$B$860,0))) -> 2297 | G61: =IF($A61<>0,INDEX('2.2 Daten'!I$9:I$860,MATCH('2.2'!$A61,'2.2 Daten'!$B$9:$B$860,0))) -> 607 | H61: =IF($A61<>0,INDEX('2.2 Daten'!K$9:K$860,MATCH('2.2'!$A61,'2.2 Daten'!$B$9:$B$860,0))) -> 4.994375703 | I61: =IF($A61<>0,INDEX('2.2 Daten'!L$9:L$860,MATCH('2.2'!$A61,'2.2 Daten'!$B$9:$B$860,0))) -> 9.80861244 | J61: =IF($A61<>0,INDEX('2.2 Daten'!M$9:M$860,MATCH('2.2'!$A61,'2.2 Daten'!$B$9:$B$860,0))) -> 4.579207921 | K61: =IF($A61<>0,INDEX('2.2 Daten'!N$9:N$860,MATCH('2.2'!$A61,'2.2 Daten'!$B$9:$B$860,0))) -> 6.886924151 | L61: =IF($A61<>0,INDEX('2.2 Daten'!O$9:O$860,MATCH('2.2'!$A61,'2.2 Daten'!$B$9:$B$860,0))) -> -6.901840491
A62: =CHOOSE('2.2 Daten'!$A$2,'2.2 Daten'!B484,'2.2 Daten'!B33,'2.2 Daten'!B50,'2.2 Daten'!B67,'2.2 Daten'!B70,'2.2 Daten'!B117,'2.2 Daten'!B121,'2.2 Daten'!B176,'2.2 Daten'!B204,'2.2 Daten'!B242,'2.2 Daten'!B288,'2.2 Daten'!B386,'2.2 Daten'!B394,'2.2 Daten'!B397,'2.2 Daten'!B417,'2.2 Daten'!B427,'2.2 Daten'!B442,'2.2 Daten'!B458,x) -> Nordfriesland | B62: =IF($A62<>0,INDEX('2.2 Daten'!C$9:C$860,MATCH('2.2'!$A62,'2.2 Daten'!$B$9:$B$860,0))," ") -> 1054000 | C62: =IF($A62<>0,INDEX('2.2 Daten'!E$9:E$860,MATCH('2.2'!$A62,'2.2 Daten'!$B$9:$B$860,0))) -> 3438 | D62: =IF($A62<>0,INDEX('2.2 Daten'!F$9:F$860,MATCH('2.2'!$A62,'2.2 Daten'!$B$9:$B$860,0))) -> 646 | E62: =IF($A62<>0,INDEX('2.2 Daten'!G$9:G$860,MATCH('2.2'!$A62,'2.2 Daten'!$B$9:$B$860,0))) -> 665 | F62: =IF($A62<>0,INDEX('2.2 Daten'!H$9:H$860,MATCH('2.2'!$A62,'2.2 Daten'!$B$9:$B$860,0))) -> 1686 | G62: =IF($A62<>0,INDEX('2.2 Daten'!I$9:I$860,MATCH('2.2'!$A62,'2.2 Daten'!$B$9:$B$860,0))) -> 441 | H62: =IF($A62<>0,INDEX('2.2 Daten'!K$9:K$860,MATCH('2.2'!$A62,'2.2 Daten'!$B$9:$B$860,0))) -> 7.102803738 | I62: =IF($A62<>0,INDEX('2.2 Daten'!L$9:L$860,MATCH('2.2'!$A62,'2.2 Daten'!$B$9:$B$860,0))) -> 5.901639344 | J62: =IF($A62<>0,INDEX('2.2 Daten'!M$9:M$860,MATCH('2.2'!$A62,'2.2 Daten'!$B$9:$B$860,0))) -> 17.49116608 | K62: =IF($A62<>0,INDEX('2.2 Daten'!N$9:N$860,MATCH('2.2'!$A62,'2.2 Daten'!$B$9:$B$860,0))) -> 4.331683168 | L62: =IF($A62<>0,INDEX('2.2 Daten'!O$9:O$860,MATCH('2.2'!$A62,'2.2 Daten'!$B$9:$B$860,0))) -> 5.502392344
A63: =CHOOSE('2.2 Daten'!$A$2,'2.2 Daten'!B485,'2.2 Daten'!B34,'2.2 Daten'!B51,'2.2 Daten'!B68,'2.2 Daten'!B71,'2.2 Daten'!B118,'2.2 Daten'!B122,'2.2 Daten'!B177,'2.2 Daten'!B205,'2.2 Daten'!B243,'2.2 Daten'!B289,'2.2 Daten'!B387,'2.2 Daten'!B395,'2.2 Daten'!B398,'2.2 Daten'!B418,'2.2 Daten'!B428,'2.2 Daten'!B443,'2.2 Daten'!B459,x) -> Ostholstein | B63: =IF($A63<>0,INDEX('2.2 Daten'!C$9:C$860,MATCH('2.2'!$A63,'2.2 Daten'!$B$9:$B$860,0))," ") -> 1055000 | C63: =IF($A63<>0,INDEX('2.2 Daten'!E$9:E$860,MATCH('2.2'!$A63,'2.2 Daten'!$B$9:$B$860,0))) -> 3931 | D63: =IF($A63<>0,INDEX('2.2 Daten'!F$9:F$860,MATCH('2.2'!$A63,'2.2 Daten'!$B$9:$B$860,0))) -> 709 | E63: =IF($A63<>0,INDEX('2.2 Daten'!G$9:G$860,MATCH('2.2'!$A63,'2.2 Daten'!$B$9:$B$860,0))) -> 706 | F63: =IF($A63<>0,INDEX('2.2 Daten'!H$9:H$860,MATCH('2.2'!$A63,'2.2 Daten'!$B$9:$B$860,0))) -> 1955 | G63: =IF($A63<>0,INDEX('2.2 Daten'!I$9:I$860,MATCH('2.2'!$A63,'2.2 Daten'!$B$9:$B$860,0))) -> 561 | H63: =IF($A63<>0,INDEX('2.2 Daten'!K$9:K$860,MATCH('2.2'!$A63,'2.2 Daten'!$B$9:$B$860,0))) -> 1.681324366 | I63: =IF($A63<>0,INDEX('2.2 Daten'!L$9:L$860,MATCH('2.2'!$A63,'2.2 Daten'!$B$9:$B$860,0))) -> 8.079268293 | J63: =IF($A63<>0,INDEX('2.2 Daten'!M$9:M$860,MATCH('2.2'!$A63,'2.2 Daten'!$B$9:$B$860,0))) -> 1.291248207 | K63: =IF($A63<>0,INDEX('2.2 Daten'!N$9:N$860,MATCH('2.2'!$A63,'2.2 Daten'!$B$9:$B$860,0))) -> -0.2551020408 | L63: =IF($A63<>0,INDEX('2.2 Daten'!O$9:O$860,MATCH('2.2'!$A63,'2.2 Daten'!$B$9:$B$860,0))) -> 1.446654611
A64: =CHOOSE('2.2 Daten'!$A$2,'2.2 Daten'!B486,'2.2 Daten'!B35,'2.2 Daten'!B52,'2.2 Daten'!B69,'2.2 Daten'!B72,'2.2 Daten'!B119,'2.2 Daten'!B123,'2.2 Daten'!B178,'2.2 Daten'!B206,'2.2 Daten'!B244,'2.2 Daten'!B290,'2.2 Daten'!B388,'2.2 Daten'!B396,'2.2 Daten'!B399,'2.2 Daten'!B419,'2.2 Daten'!B429,'2.2 Daten'!B444,'2.2 Daten'!B460,x) -> Pinneberg | B64: =IF($A64<>0,INDEX('2.2 Daten'!C$9:C$860,MATCH('2.2'!$A64,'2.2 Daten'!$B$9:$B$860,0))," ") -> 1056000 | C64: =IF($A64<>0,INDEX('2.2 Daten'!E$9:E$860,MATCH('2.2'!$A64,'2.2 Daten'!$B$9:$B$860,0))) -> 7448 | D64: =IF($A64<>0,INDEX('2.2 Daten'!F$9:F$860,MATCH('2.2'!$A64,'2.2 Daten'!$B$9:$B$860,0))) -> 1490 | E64: =IF($A64<>0,INDEX('2.2 Daten'!G$9:G$860,MATCH('2.2'!$A64,'2.2 Daten'!$B$9:$B$860,0))) -> 1404 | F64: =IF($A64<>0,INDEX('2.2 Daten'!H$9:H$860,MATCH('2.2'!$A64,'2.2 Daten'!$B$9:$B$860,0))) -> 3641 | G64: =IF($A64<>0,INDEX('2.2 Daten'!I$9:I$860,MATCH('2.2'!$A64,'2.2 Daten'!$B$9:$B$860,0))) -> 913 | H64: =IF($A64<>0,INDEX('2.2 Daten'!K$9:K$860,MATCH('2.2'!$A64,'2.2 Daten'!$B$9:$B$860,0))) -> 8.857059339 | I64: =IF($A64<>0,INDEX('2.2 Daten'!L$9:L$860,MATCH('2.2'!$A64,'2.2 Daten'!$B$9:$B$860,0))) -> 9.157509158 | J64: =IF($A64<>0,INDEX('2.2 Daten'!M$9:M$860,MATCH('2.2'!$A64,'2.2 Daten'!$B$9:$B$860,0))) -> 12.5 | K64: =IF($A64<>0,INDEX('2.2 Daten'!N$9:N$860,MATCH('2.2'!$A64,'2.2 Daten'!$B$9:$B$860,0))) -> 8.492252682 | L64: =IF($A64<>0,INDEX('2.2 Daten'!O$9:O$860,MATCH('2.2'!$A64,'2.2 Daten'!$B$9:$B$860,0))) -> 4.581901489
A65: =CHOOSE('2.2 Daten'!$A$2,'2.2 Daten'!B487,'2.2 Daten'!B36,'2.2 Daten'!B53,'2.2 Daten'!B70,'2.2 Daten'!B73,'2.2 Daten'!B120,'2.2 Daten'!B124,'2.2 Daten'!B179,'2.2 Daten'!B207,'2.2 Daten'!B245,'2.2 Daten'!B291,'2.2 Daten'!B389,'2.2 Daten'!B397,'2.2 Daten'!B400,'2.2 Daten'!B420,'2.2 Daten'!B430,'2.2 Daten'!B445,'2.2 Daten'!B461,x) -> Plön | B65: =IF($A65<>0,INDEX('2.2 Daten'!C$9:C$860,MATCH('2.2'!$A65,'2.2 Daten'!$B$9:$B$860,0))," ") -> 1057000 | C65: =IF($A65<>0,INDEX('2.2 Daten'!E$9:E$860,MATCH('2.2'!$A65,'2.2 Daten'!$B$9:$B$860,0))) -> 2538 | D65: =IF($A65<>0,INDEX('2.2 Daten'!F$9:F$860,MATCH('2.2'!$A65,'2.2 Daten'!$B$9:$B$860,0))) -> 446 | E65: =IF($A65<>0,INDEX('2.2 Daten'!G$9:G$860,MATCH('2.2'!$A65,'2.2 Daten'!$B$9:$B$860,0))) -> 468 | F65: =IF($A65<>0,INDEX('2.2 Daten'!H$9:H$860,MATCH('2.2'!$A65,'2.2 Daten'!$B$9:$B$860,0))) -> 1257 | G65: =IF($A65<>0,INDEX('2.2 Daten'!I$9:I$860,MATCH('2.2'!$A65,'2.2 Daten'!$B$9:$B$860,0))) -> 367 | H65: =IF($A65<>0,INDEX('2.2 Daten'!K$9:K$860,MATCH('2.2'!$A65,'2.2 Daten'!$B$9:$B$860,0))) -> 4.876033058 | I65: =IF($A65<>0,INDEX('2.2 Daten'!L$9:L$860,MATCH('2.2'!$A65,'2.2 Daten'!$B$9:$B$860,0))) -> 8.515815085 | J65: =IF($A65<>0,INDEX('2.2 Daten'!M$9:M$860,MATCH('2.2'!$A65,'2.2 Daten'!$B$9:$B$860,0))) -> 10.90047393 | K65: =IF($A65<>0,INDEX('2.2 Daten'!N$9:N$860,MATCH('2.2'!$A65,'2.2 Daten'!$B$9:$B$860,0))) -> 4.315352697 | L65: =IF($A65<>0,INDEX('2.2 Daten'!O$9:O$860,MATCH('2.2'!$A65,'2.2 Daten'!$B$9:$B$860,0))) -> -3.926701571
A66: =CHOOSE('2.2 Daten'!$A$2,'2.2 Daten'!B488,'2.2 Daten'!B37,'2.2 Daten'!B54,'2.2 Daten'!B71,'2.2 Daten'!B74,'2.2 Daten'!B121,'2.2 Daten'!B125,'2.2 Daten'!B180,'2.2 Daten'!B208,'2.2 Daten'!B246,'2.2 Daten'!B292,'2.2 Daten'!B390,'2.2 Daten'!B398,'2.2 Daten'!B401,'2.2 Daten'!B421,'2.2 Daten'!B431,'2.2 Daten'!B446,'2.2 Daten'!B462,x) -> Rendsburg-Eckernförde | B66: =IF($A66<>0,INDEX('2.2 Daten'!C$9:C$860,MATCH('2.2'!$A66,'2.2 Daten'!$B$9:$B$860,0))," ") -> 1058000 | C66: =IF($A66<>0,INDEX('2.2 Daten'!E$9:E$860,MATCH('2.2'!$A66,'2.2 Daten'!$B$9:$B$860,0))) -> 5739 | D66: =IF($A66<>0,INDEX('2.2 Daten'!F$9:F$860,MATCH('2.2'!$A66,'2.2 Daten'!$B$9:$B$860,0))) -> 1047 | E66: =IF($A66<>0,INDEX('2.2 Daten'!G$9:G$860,MATCH('2.2'!$A66,'2.2 Daten'!$B$9:$B$860,0))) -> 1031 | F66: =IF($A66<>0,INDEX('2.2 Daten'!H$9:H$860,MATCH('2.2'!$A66,'2.2 Daten'!$B$9:$B$860,0))) -> 2896 | G66: =IF($A66<>0,INDEX('2.2 Daten'!I$9:I$860,MATCH('2.2'!$A66,'2.2 Daten'!$B$9:$B$860,0))) -> 765 | H66: =IF($A66<>0,INDEX('2.2 Daten'!K$9:K$860,MATCH('2.2'!$A66,'2.2 Daten'!$B$9:$B$860,0))) -> 5.963810931 | I66: =IF($A66<>0,INDEX('2.2 Daten'!L$9:L$860,MATCH('2.2'!$A66,'2.2 Daten'!$B$9:$B$860,0))) -> 11.50159744 | J66: =IF($A66<>0,INDEX('2.2 Daten'!M$9:M$860,MATCH('2.2'!$A66,'2.2 Daten'!$B$9:$B$860,0))) -> 6.728778468 | K66: =IF($A66<>0,INDEX('2.2 Daten'!N$9:N$860,MATCH('2.2'!$A66,'2.2 Daten'!$B$9:$B$860,0))) -> 5.539358601 | L66: =IF($A66<>0,INDEX('2.2 Daten'!O$9:O$860,MATCH('2.2'!$A66,'2.2 Daten'!$B$9:$B$860,0))) -> -0.260756193
A67: =CHOOSE('2.2 Daten'!$A$2,'2.2 Daten'!B489,'2.2 Daten'!B38,'2.2 Daten'!B55,'2.2 Daten'!B72,'2.2 Daten'!B75,'2.2 Daten'!B122,'2.2 Daten'!B126,'2.2 Daten'!B181,'2.2 Daten'!B209,'2.2 Daten'!B247,'2.2 Daten'!B293,'2.2 Daten'!B391,'2.2 Daten'!B399,'2.2 Daten'!B402,'2.2 Daten'!B422,'2.2 Daten'!B432,'2.2 Daten'!B447,'2.2 Daten'!B463,x) -> Schleswig-Flensburg | B67: =IF($A67<>0,INDEX('2.2 Daten'!C$9:C$860,MATCH('2.2'!$A67,'2.2 Daten'!$B$9:$B$860,0))," ") -> 1059000 | C67: =IF($A67<>0,INDEX('2.2 Daten'!E$9:E$860,MATCH('2.2'!$A67,'2.2 Daten'!$B$9:$B$860,0))) -> 4720 | D67: =IF($A67<>0,INDEX('2.2 Daten'!F$9:F$860,MATCH('2.2'!$A67,'2.2 Daten'!$B$9:$B$860,0))) -> 909 | E67: =IF($A67<>0,INDEX('2.2 Daten'!G$9:G$860,MATCH('2.2'!$A67,'2.2 Daten'!$B$9:$B$860,0))) -> 848 | F67: =IF($A67<>0,INDEX('2.2 Daten'!H$9:H$860,MATCH('2.2'!$A67,'2.2 Daten'!$B$9:$B$860,0))) -> 2389 | G67: =IF($A67<>0,INDEX('2.2 Daten'!I$9:I$860,MATCH('2.2'!$A67,'2.2 Daten'!$B$9:$B$860,0))) -> 574 | H67: =IF($A67<>0,INDEX('2.2 Daten'!K$9:K$860,MATCH('2.2'!$A67,'2.2 Daten'!$B$9:$B$860,0))) -> -0.2114164905 | I67: =IF($A67<>0,INDEX('2.2 Daten'!L$9:L$860,MATCH('2.2'!$A67,'2.2 Daten'!$B$9:$B$860,0))) -> 10.44957473 | J67: =IF($A67<>0,INDEX('2.2 Daten'!M$9:M$860,MATCH('2.2'!$A67,'2.2 Daten'!$B$9:$B$860,0))) -> -4.18079096 | K67: =IF($A67<>0,INDEX('2.2 Daten'!N$9:N$860,MATCH('2.2'!$A67,'2.2 Daten'!$B$9:$B$860,0))) -> -0.4583333333 | L67: =IF($A67<>0,INDEX('2.2 Daten'!O$9:O$860,MATCH('2.2'!$A67,'2.2 Daten'!$B$9:$B$860,0))) -> -7.717041801
A68: =CHOOSE('2.2 Daten'!$A$2,'2.2 Daten'!B490,'2.2 Daten'!B39,'2.2 Daten'!B56,'2.2 Daten'!B73,'2.2 Daten'!B76,'2.2 Daten'!B123,'2.2 Daten'!B127,'2.2 Daten'!B182,'2.2 Daten'!B210,'2.2 Daten'!B248,'2.2 Daten'!B294,'2.2 Daten'!B392,'2.2 Daten'!B400,'2.2 Daten'!B403,'2.2 Daten'!B423,'2.2 Daten'!B433,'2.2 Daten'!B448,'2.2 Daten'!B464,x) -> Segeberg | B68: =IF($A68<>0,INDEX('2.2 Daten'!C$9:C$860,MATCH('2.2'!$A68,'2.2 Daten'!$B$9:$B$860,0))," ") -> 1060000 | C68: =IF($A68<>0,INDEX('2.2 Daten'!E$9:E$860,MATCH('2.2'!$A68,'2.2 Daten'!$B$9:$B$860,0))) -> 5501 | D68: =IF($A68<>0,INDEX('2.2 Daten'!F$9:F$860,MATCH('2.2'!$A68,'2.2 Daten'!$B$9:$B$860,0))) -> 1035 | E68: =IF($A68<>0,INDEX('2.2 Daten'!G$9:G$860,MATCH('2.2'!$A68,'2.2 Daten'!$B$9:$B$860,0))) -> 1050 | F68: =IF($A68<>0,INDEX('2.2 Daten'!H$9:H$860,MATCH('2.2'!$A68,'2.2 Daten'!$B$9:$B$860,0))) -> 2677 | G68: =IF($A68<>0,INDEX('2.2 Daten'!I$9:I$860,MATCH('2.2'!$A68,'2.2 Daten'!$B$9:$B$860,0))) -> 739 | H68: =IF($A68<>0,INDEX('2.2 Daten'!K$9:K$860,MATCH('2.2'!$A68,'2.2 Daten'!$B$9:$B$860,0))) -> 7.757100881 | I68: =IF($A68<>0,INDEX('2.2 Daten'!L$9:L$860,MATCH('2.2'!$A68,'2.2 Daten'!$B$9:$B$860,0))) -> 8.150470219 | J68: =IF($A68<>0,INDEX('2.2 Daten'!M$9:M$860,MATCH('2.2'!$A68,'2.2 Daten'!$B$9:$B$860,0))) -> 12.41970021 | K68: =IF($A68<>0,INDEX('2.2 Daten'!N$9:N$860,MATCH('2.2'!$A68,'2.2 Daten'!$B$9:$B$860,0))) -> 7.20865038 | L68: =IF($A68<>0,INDEX('2.2 Daten'!O$9:O$860,MATCH('2.2'!$A68,'2.2 Daten'!$B$9:$B$860,0))) -> 3.068340307
A69: =CHOOSE('2.2 Daten'!$A$2,'2.2 Daten'!B491,'2.2 Daten'!B40,'2.2 Daten'!B57,'2.2 Daten'!B74,'2.2 Daten'!B77,'2.2 Daten'!B124,'2.2 Daten'!B128,'2.2 Daten'!B183,'2.2 Daten'!B211,'2.2 Daten'!B249,'2.2 Daten'!B295,'2.2 Daten'!B393,'2.2 Daten'!B401,'2.2 Daten'!B404,'2.2 Daten'!B424,'2.2 Daten'!B434,'2.2 Daten'!B449,'2.2 Daten'!B465,x) -> Steinburg | B69: =IF($A69<>0,INDEX('2.2 Daten'!C$9:C$860,MATCH('2.2'!$A69,'2.2 Daten'!$B$9:$B$860,0))," ") -> 1061000 | C69: =IF($A69<>0,INDEX('2.2 Daten'!E$9:E$860,MATCH('2.2'!$A69,'2.2 Daten'!$B$9:$B$860,0))) -> 3408 | D69: =IF($A69<>0,INDEX('2.2 Daten'!F$9:F$860,MATCH('2.2'!$A69,'2.2 Daten'!$B$9:$B$860,0))) -> 693 | E69: =IF($A69<>0,INDEX('2.2 Daten'!G$9:G$860,MATCH('2.2'!$A69,'2.2 Daten'!$B$9:$B$860,0))) -> 632 | F69: =IF($A69<>0,INDEX('2.2 Daten'!H$9:H$860,MATCH('2.2'!$A69,'2.2 Daten'!$B$9:$B$860,0))) -> 1647 | G69: =IF($A69<>0,INDEX('2.2 Daten'!I$9:I$860,MATCH('2.2'!$A69,'2.2 Daten'!$B$9:$B$860,0))) -> 436 | H69: =IF($A69<>0,INDEX('2.2 Daten'!K$9:K$860,MATCH('2.2'!$A69,'2.2 Daten'!$B$9:$B$860,0))) -> 4.926108374 | I69: =IF($A69<>0,INDEX('2.2 Daten'!L$9:L$860,MATCH('2.2'!$A69,'2.2 Daten'!$B$9:$B$860,0))) -> 5.801526718 | J69: =IF($A69<>0,INDEX('2.2 Daten'!M$9:M$860,MATCH('2.2'!$A69,'2.2 Daten'!$B$9:$B$860,0))) -> 4.635761589 | K69: =IF($A69<>0,INDEX('2.2 Daten'!N$9:N$860,MATCH('2.2'!$A69,'2.2 Daten'!$B$9:$B$860,0))) -> 5.509288917 | L69: =IF($A69<>0,INDEX('2.2 Daten'!O$9:O$860,MATCH('2.2'!$A69,'2.2 Daten'!$B$9:$B$860,0))) -> 1.869158879
A70: =CHOOSE('2.2 Daten'!$A$2,'2.2 Daten'!B492,'2.2 Daten'!B41,'2.2 Daten'!B58,'2.2 Daten'!B75,'2.2 Daten'!B78,'2.2 Daten'!B125,'2.2 Daten'!B129,'2.2 Daten'!B184,'2.2 Daten'!B212,'2.2 Daten'!B250,'2.2 Daten'!B296,'2.2 Daten'!B394,'2.2 Daten'!B402,'2.2 Daten'!B405,'2.2 Daten'!B425,'2.2 Daten'!B435,'2.2 Daten'!B450,'2.2 Daten'!B466,x) -> Stormarn | B70: =IF($A70<>0,INDEX('2.2 Daten'!C$9:C$860,MATCH('2.2'!$A70,'2.2 Daten'!$B$9:$B$860,0))," ") -> 1062000 | C70: =IF($A70<>0,INDEX('2.2 Daten'!E$9:E$860,MATCH('2.2'!$A70,'2.2 Daten'!$B$9:$B$860,0))) -> 4069 | D70: =IF($A70<>0,INDEX('2.2 Daten'!F$9:F$860,MATCH('2.2'!$A70,'2.2 Daten'!$B$9:$B$860,0))) -> 738 | E70: =IF($A70<>0,INDEX('2.2 Daten'!G$9:G$860,MATCH('2.2'!$A70,'2.2 Daten'!$B$9:$B$860,0))) -> 731 | F70: =IF($A70<>0,INDEX('2.2 Daten'!H$9:H$860,MATCH('2.2'!$A70,'2.2 Daten'!$B$9:$B$860,0))) -> 2051 | G70: =IF($A70<>0,INDEX('2.2 Daten'!I$9:I$860,MATCH('2.2'!$A70,'2.2 Daten'!$B$9:$B$860,0))) -> 549 | H70: =IF($A70<>0,INDEX('2.2 Daten'!K$9:K$860,MATCH('2.2'!$A70,'2.2 Daten'!$B$9:$B$860,0))) -> 7.050776112 | I70: =IF($A70<>0,INDEX('2.2 Daten'!L$9:L$860,MATCH('2.2'!$A70,'2.2 Daten'!$B$9:$B$860,0))) -> 13.71340524 | J70: =IF($A70<>0,INDEX('2.2 Daten'!M$9:M$860,MATCH('2.2'!$A70,'2.2 Daten'!$B$9:$B$860,0))) -> -0.272851296 | K70: =IF($A70<>0,INDEX('2.2 Daten'!N$9:N$860,MATCH('2.2'!$A70,'2.2 Daten'!$B$9:$B$860,0))) -> 8.979808714 | L70: =IF($A70<>0,INDEX('2.2 Daten'!O$9:O$860,MATCH('2.2'!$A70,'2.2 Daten'!$B$9:$B$860,0))) -> 2.234636872
A71: =CHOOSE('2.2 Daten'!$A$2,'2.2 Daten'!B493,'2.2 Daten'!B42,'2.2 Daten'!B59,'2.2 Daten'!B76,'2.2 Daten'!B79,'2.2 Daten'!B126,'2.2 Daten'!B130,'2.2 Daten'!B185,'2.2 Daten'!B213,'2.2 Daten'!B251,'2.2 Daten'!B297,'2.2 Daten'!B395,'2.2 Daten'!B403,'2.2 Daten'!B406,'2.2 Daten'!B426,'2.2 Daten'!B436,'2.2 Daten'!B451,'2.2 Daten'!B467,x) -> 0 | B71: =IF($A71<>0,INDEX('2.2 Daten'!C$9:C$860,MATCH('2.2'!$A71,'2.2 Daten'!$B$9:$B$860,0))," ") ->  | C71: =IF($A71<>0,INDEX('2.2 Daten'!E$9:E$860,MATCH('2.2'!$A71,'2.2 Daten'!$B$9:$B$860,0))) -> FALSE | D71: =IF($A71<>0,INDEX('2.2 Daten'!F$9:F$860,MATCH('2.2'!$A71,'2.2 Daten'!$B$9:$B$860,0))) -> FALSE | E71: =IF($A71<>0,INDEX('2.2 Daten'!G$9:G$860,MATCH('2.2'!$A71,'2.2 Daten'!$B$9:$B$860,0))) -> FALSE | F71: =IF($A71<>0,INDEX('2.2 Daten'!H$9:H$860,MATCH('2.2'!$A71,'2.2 Daten'!$B$9:$B$860,0))) -> FALSE | G71: =IF($A71<>0,INDEX('2.2 Daten'!I$9:I$860,MATCH('2.2'!$A71,'2.2 Daten'!$B$9:$B$860,0))) -> FALSE | H71: =IF($A71<>0,INDEX('2.2 Daten'!K$9:K$860,MATCH('2.2'!$A71,'2.2 Daten'!$B$9:$B$860,0))) -> FALSE | I71: =IF($A71<>0,INDEX('2.2 Daten'!L$9:L$860,MATCH('2.2'!$A71,'2.2 Daten'!$B$9:$B$860,0))) -> FALSE | J71: =IF($A71<>0,INDEX('2.2 Daten'!M$9:M$860,MATCH('2.2'!$A71,'2.2 Daten'!$B$9:$B$860,0))) -> FALSE | K71: =IF($A71<>0,INDEX('2.2 Daten'!N$9:N$860,MATCH('2.2'!$A71,'2.2 Daten'!$B$9:$B$860,0))) -> FALSE | L71: =IF($A71<>0,INDEX('2.2 Daten'!O$9:O$860,MATCH('2.2'!$A71,'2.2 Daten'!$B$9:$B$860,0))) -> FALSE
A72: =CHOOSE('2.2 Daten'!$A$2,'2.2 Daten'!B494,'2.2 Daten'!B43,'2.2 Daten'!B60,'2.2 Daten'!B77,'2.2 Daten'!B80,'2.2 Daten'!B127,'2.2 Daten'!B131,'2.2 Daten'!B186,'2.2 Daten'!B214,'2.2 Daten'!B252,'2.2 Daten'!B298,'2.2 Daten'!B396,'2.2 Daten'!B404,'2.2 Daten'!B407,'2.2 Daten'!B427,'2.2 Daten'!B437,'2.2 Daten'!B452,'2.2 Daten'!B468,x) -> Hamburg | B72: =IF($A72<>0,INDEX('2.2 Daten'!C$9:C$860,MATCH('2.2'!$A72,'2.2 Daten'!$B$9:$B$860,0))," ") -> 02 | C72: =IF($A72<>0,INDEX('2.2 Daten'!E$9:E$860,MATCH('2.2'!$A72,'2.2 Daten'!$B$9:$B$860,0))) -> 62248 | D72: =IF($A72<>0,INDEX('2.2 Daten'!F$9:F$860,MATCH('2.2'!$A72,'2.2 Daten'!$B$9:$B$860,0))) -> 11879 | E72: =IF($A72<>0,INDEX('2.2 Daten'!G$9:G$860,MATCH('2.2'!$A72,'2.2 Daten'!$B$9:$B$860,0))) -> 11283 | F72: =IF($A72<>0,INDEX('2.2 Daten'!H$9:H$860,MATCH('2.2'!$A72,'2.2 Daten'!$B$9:$B$860,0))) -> 30486 | G72: =IF($A72<>0,INDEX('2.2 Daten'!I$9:I$860,MATCH('2.2'!$A72,'2.2 Daten'!$B$9:$B$860,0))) -> 8600 | H72: =IF($A72<>0,INDEX('2.2 Daten'!K$9:K$860,MATCH('2.2'!$A72,'2.2 Daten'!$B$9:$B$860,0))) -> 3.529255231 | I72: =IF($A72<>0,INDEX('2.2 Daten'!L$9:L$860,MATCH('2.2'!$A72,'2.2 Daten'!$B$9:$B$860,0))) -> 5.581726069 | J72: =IF($A72<>0,INDEX('2.2 Daten'!M$9:M$860,MATCH('2.2'!$A72,'2.2 Daten'!$B$9:$B$860,0))) -> 6.483578709 | K72: =IF($A72<>0,INDEX('2.2 Daten'!N$9:N$860,MATCH('2.2'!$A72,'2.2 Daten'!$B$9:$B$860,0))) -> 2.31574708 | L72: =IF($A72<>0,INDEX('2.2 Daten'!O$9:O$860,MATCH('2.2'!$A72,'2.2 Daten'!$B$9:$B$860,0))) -> 1.379229046
A73: =CHOOSE('2.2 Daten'!$A$2,'2.2 Daten'!B495,'2.2 Daten'!B44,'2.2 Daten'!B61,'2.2 Daten'!B78,'2.2 Daten'!B81,'2.2 Daten'!B128,'2.2 Daten'!B132,'2.2 Daten'!B187,'2.2 Daten'!B215,'2.2 Daten'!B253,'2.2 Daten'!B299,'2.2 Daten'!B397,'2.2 Daten'!B405,'2.2 Daten'!B408,'2.2 Daten'!B428,'2.2 Daten'!B438,'2.2 Daten'!B453,'2.2 Daten'!B469,x) -> Hamburg, Freie und Hansestadt | B73: =IF($A73<>0,INDEX('2.2 Daten'!C$9:C$860,MATCH('2.2'!$A73,'2.2 Daten'!$B$9:$B$860,0))," ") -> 2000000 | C73: =IF($A73<>0,INDEX('2.2 Daten'!E$9:E$860,MATCH('2.2'!$A73,'2.2 Daten'!$B$9:$B$860,0))) -> 62248 | D73: =IF($A73<>0,INDEX('2.2 Daten'!F$9:F$860,MATCH('2.2'!$A73,'2.2 Daten'!$B$9:$B$860,0))) -> 11879 | E73: =IF($A73<>0,INDEX('2.2 Daten'!G$9:G$860,MATCH('2.2'!$A73,'2.2 Daten'!$B$9:$B$860,0))) -> 11283 | F73: =IF($A73<>0,INDEX('2.2 Daten'!H$9:H$860,MATCH('2.2'!$A73,'2.2 Daten'!$B$9:$B$860,0))) -> 30486 | G73: =IF($A73<>0,INDEX('2.2 Daten'!I$9:I$860,MATCH('2.2'!$A73,'2.2 Daten'!$B$9:$B$860,0))) -> 8600 | H73: =IF($A73<>0,INDEX('2.2 Daten'!K$9:K$860,MATCH('2.2'!$A73,'2.2 Daten'!$B$9:$B$860,0))) -> 3.529255231 | I73: =IF($A73<>0,INDEX('2.2 Daten'!L$9:L$860,MATCH('2.2'!$A73,'2.2 Daten'!$B$9:$B$860,0))) -> 5.581726069 | J73: =IF($A73<>0,INDEX('2.2 Daten'!M$9:M$860,MATCH('2.2'!$A73,'2.2 Daten'!$B$9:$B$860,0))) -> 6.483578709 | K73: =IF($A73<>0,INDEX('2.2 Daten'!N$9:N$860,MATCH('2.2'!$A73,'2.2 Daten'!$B$9:$B$860,0))) -> 2.31574708 | L73: =IF($A73<>0,INDEX('2.2 Daten'!O$9:O$860,MATCH('2.2'!$A73,'2.2 Daten'!$B$9:$B$860,0))) -> 1.379229046
A74: =CHOOSE('2.2 Daten'!$A$2,'2.2 Daten'!B496,'2.2 Daten'!B45,'2.2 Daten'!B62,'2.2 Daten'!B79,'2.2 Daten'!B82,'2.2 Daten'!B129,'2.2 Daten'!B133,'2.2 Daten'!B188,'2.2 Daten'!B216,'2.2 Daten'!B254,'2.2 Daten'!B300,'2.2 Daten'!B398,'2.2 Daten'!B406,'2.2 Daten'!B409,'2.2 Daten'!B429,'2.2 Daten'!B439,'2.2 Daten'!B454,'2.2 Daten'!B470,x) -> 0 | B74: =IF($A74<>0,INDEX('2.2 Daten'!C$9:C$860,MATCH('2.2'!$A74,'2.2 Daten'!$B$9:$B$860,0))," ") ->  | C74: =IF($A74<>0,INDEX('2.2 Daten'!E$9:E$860,MATCH('2.2'!$A74,'2.2 Daten'!$B$9:$B$860,0))) -> FALSE | D74: =IF($A74<>0,INDEX('2.2 Daten'!F$9:F$860,MATCH('2.2'!$A74,'2.2 Daten'!$B$9:$B$860,0))) -> FALSE | E74: =IF($A74<>0,INDEX('2.2 Daten'!G$9:G$860,MATCH('2.2'!$A74,'2.2 Daten'!$B$9:$B$860,0))) -> FALSE | F74: =IF($A74<>0,INDEX('2.2 Daten'!H$9:H$860,MATCH('2.2'!$A74,'2.2 Daten'!$B$9:$B$860,0))) -> FALSE | G74: =IF($A74<>0,INDEX('2.2 Daten'!I$9:I$860,MATCH('2.2'!$A74,'2.2 Daten'!$B$9:$B$860,0))) -> FALSE | H74: =IF($A74<>0,INDEX('2.2 Daten'!K$9:K$860,MATCH('2.2'!$A74,'2.2 Daten'!$B$9:$B$860,0))) -> FALSE | I74: =IF($A74<>0,INDEX('2.2 Daten'!L$9:L$860,MATCH('2.2'!$A74,'2.2 Daten'!$B$9:$B$860,0))) -> FALSE | J74: =IF($A74<>0,INDEX('2.2 Daten'!M$9:M$860,MATCH('2.2'!$A74,'2.2 Daten'!$B$9:$B$860,0))) -> FALSE | K74: =IF($A74<>0,INDEX('2.2 Daten'!N$9:N$860,MATCH('2.2'!$A74,'2.2 Daten'!$B$9:$B$860,0))) -> FALSE | L74: =IF($A74<>0,INDEX('2.2 Daten'!O$9:O$860,MATCH('2.2'!$A74,'2.2 Daten'!$B$9:$B$860,0))) -> FALSE
A75: =CHOOSE('2.2 Daten'!$A$2,'2.2 Daten'!B497,'2.2 Daten'!B46,'2.2 Daten'!B63,'2.2 Daten'!B80,'2.2 Daten'!B83,'2.2 Daten'!B130,'2.2 Daten'!B134,'2.2 Daten'!B189,'2.2 Daten'!B217,'2.2 Daten'!B255,'2.2 Daten'!B301,'2.2 Daten'!B399,'2.2 Daten'!B407,'2.2 Daten'!B410,'2.2 Daten'!B430,'2.2 Daten'!B440,'2.2 Daten'!B455,'2.2 Daten'!B471,x) -> Niedersachsen | B75: =IF($A75<>0,INDEX('2.2 Daten'!C$9:C$860,MATCH('2.2'!$A75,'2.2 Daten'!$B$9:$B$860,0))," ") -> 03 | C75: =IF($A75<>0,INDEX('2.2 Daten'!E$9:E$860,MATCH('2.2'!$A75,'2.2 Daten'!$B$9:$B$860,0))) -> 206310 | D75: =IF($A75<>0,INDEX('2.2 Daten'!F$9:F$860,MATCH('2.2'!$A75,'2.2 Daten'!$B$9:$B$860,0))) -> 38605 | E75: =IF($A75<>0,INDEX('2.2 Daten'!G$9:G$860,MATCH('2.2'!$A75,'2.2 Daten'!$B$9:$B$860,0))) -> 37705 | F75: =IF($A75<>0,INDEX('2.2 Daten'!H$9:H$860,MATCH('2.2'!$A75,'2.2 Daten'!$B$9:$B$860,0))) -> 101465 | G75: =IF($A75<>0,INDEX('2.2 Daten'!I$9:I$860,MATCH('2.2'!$A75,'2.2 Daten'!$B$9:$B$860,0))) -> 28535 | H75: =IF($A75<>0,INDEX('2.2 Daten'!K$9:K$860,MATCH('2.2'!$A75,'2.2 Daten'!$B$9:$B$860,0))) -> 2.980962174 | I75: =IF($A75<>0,INDEX('2.2 Daten'!L$9:L$860,MATCH('2.2'!$A75,'2.2 Daten'!$B$9:$B$860,0))) -> 4.674493642 | J75: =IF($A75<>0,INDEX('2.2 Daten'!M$9:M$860,MATCH('2.2'!$A75,'2.2 Daten'!$B$9:$B$860,0))) -> 5.019079186 | K75: =IF($A75<>0,INDEX('2.2 Daten'!N$9:N$860,MATCH('2.2'!$A75,'2.2 Daten'!$B$9:$B$860,0))) -> 2.469198142 | L75: =IF($A75<>0,INDEX('2.2 Daten'!O$9:O$860,MATCH('2.2'!$A75,'2.2 Daten'!$B$9:$B$860,0))) -> 0.003504591014
A76: =CHOOSE('2.2 Daten'!$A$2,'2.2 Daten'!B498,'2.2 Daten'!B47,'2.2 Daten'!B64,'2.2 Daten'!B81,'2.2 Daten'!B84,'2.2 Daten'!B131,'2.2 Daten'!B135,'2.2 Daten'!B190,'2.2 Daten'!B218,'2.2 Daten'!B256,'2.2 Daten'!B302,'2.2 Daten'!B400,'2.2 Daten'!B408,'2.2 Daten'!B411,'2.2 Daten'!B431,'2.2 Daten'!B441,'2.2 Daten'!B456,'2.2 Daten'!B472,x) -> Braunschweig, Stadt | B76: =IF($A76<>0,INDEX('2.2 Daten'!C$9:C$860,MATCH('2.2'!$A76,'2.2 Daten'!$B$9:$B$860,0))," ") -> 3101000 | C76: =IF($A76<>0,INDEX('2.2 Daten'!E$9:E$860,MATCH('2.2'!$A76,'2.2 Daten'!$B$9:$B$860,0))) -> 5414 | D76: =IF($A76<>0,INDEX('2.2 Daten'!F$9:F$860,MATCH('2.2'!$A76,'2.2 Daten'!$B$9:$B$860,0))) -> 976 | E76: =IF($A76<>0,INDEX('2.2 Daten'!G$9:G$860,MATCH('2.2'!$A76,'2.2 Daten'!$B$9:$B$860,0))) -> 944 | F76: =IF($A76<>0,INDEX('2.2 Daten'!H$9:H$860,MATCH('2.2'!$A76,'2.2 Daten'!$B$9:$B$860,0))) -> 2744 | G76: =IF($A76<>0,INDEX('2.2 Daten'!I$9:I$860,MATCH('2.2'!$A76,'2.2 Daten'!$B$9:$B$860,0))) -> 750 | H76: =IF($A76<>0,INDEX('2.2 Daten'!K$9:K$860,MATCH('2.2'!$A76,'2.2 Daten'!$B$9:$B$860,0))) -> -2.573330934 | I76: =IF($A76<>0,INDEX('2.2 Daten'!L$9:L$860,MATCH('2.2'!$A76,'2.2 Daten'!$B$9:$B$860,0))) -> 1.244813278 | J76: =IF($A76<>0,INDEX('2.2 Daten'!M$9:M$860,MATCH('2.2'!$A76,'2.2 Daten'!$B$9:$B$860,0))) -> -1.255230126 | K76: =IF($A76<>0,INDEX('2.2 Daten'!N$9:N$860,MATCH('2.2'!$A76,'2.2 Daten'!$B$9:$B$860,0))) -> -2.867256637 | L76: =IF($A76<>0,INDEX('2.2 Daten'!O$9:O$860,MATCH('2.2'!$A76,'2.2 Daten'!$B$9:$B$860,0))) -> -7.63546798
A77: =CHOOSE('2.2 Daten'!$A$2,'2.2 Daten'!B499,'2.2 Daten'!B48,'2.2 Daten'!B65,'2.2 Daten'!B82,'2.2 Daten'!B85,'2.2 Daten'!B132,'2.2 Daten'!B136,'2.2 Daten'!B191,'2.2 Daten'!B219,'2.2 Daten'!B257,'2.2 Daten'!B303,'2.2 Daten'!B401,'2.2 Daten'!B409,'2.2 Daten'!B412,'2.2 Daten'!B432,'2.2 Daten'!B442,'2.2 Daten'!B457,'2.2 Daten'!B473,x) -> Salzgitter, Stadt | B77: =IF($A77<>0,INDEX('2.2 Daten'!C$9:C$860,MATCH('2.2'!$A77,'2.2 Daten'!$B$9:$B$860,0))," ") -> 3102000 | C77: =IF($A77<>0,INDEX('2.2 Daten'!E$9:E$860,MATCH('2.2'!$A77,'2.2 Daten'!$B$9:$B$860,0))) -> 5353 | D77: =IF($A77<>0,INDEX('2.2 Daten'!F$9:F$860,MATCH('2.2'!$A77,'2.2 Daten'!$B$9:$B$860,0))) -> 1093 | E77: =IF($A77<>0,INDEX('2.2 Daten'!G$9:G$860,MATCH('2.2'!$A77,'2.2 Daten'!$B$9:$B$860,0))) -> 1017 | F77: =IF($A77<>0,INDEX('2.2 Daten'!H$9:H$860,MATCH('2.2'!$A77,'2.2 Daten'!$B$9:$B$860,0))) -> 2581 | G77: =IF($A77<>0,INDEX('2.2 Daten'!I$9:I$860,MATCH('2.2'!$A77,'2.2 Daten'!$B$9:$B$860,0))) -> 662 | H77: =IF($A77<>0,INDEX('2.2 Daten'!K$9:K$860,MATCH('2.2'!$A77,'2.2 Daten'!$B$9:$B$860,0))) -> 14.5026738 | I77: =IF($A77<>0,INDEX('2.2 Daten'!L$9:L$860,MATCH('2.2'!$A77,'2.2 Daten'!$B$9:$B$860,0))) -> 16.27659574 | J77: =IF($A77<>0,INDEX('2.2 Daten'!M$9:M$860,MATCH('2.2'!$A77,'2.2 Daten'!$B$9:$B$860,0))) -> 12.37569061 | K77: =IF($A77<>0,INDEX('2.2 Daten'!N$9:N$860,MATCH('2.2'!$A77,'2.2 Daten'!$B$9:$B$860,0))) -> 15.89582398 | L77: =IF($A77<>0,INDEX('2.2 Daten'!O$9:O$860,MATCH('2.2'!$A77,'2.2 Daten'!$B$9:$B$860,0))) -> 9.784411277
A78: =CHOOSE('2.2 Daten'!$A$2,'2.2 Daten'!B500,'2.2 Daten'!B49,'2.2 Daten'!B66,'2.2 Daten'!B83,'2.2 Daten'!B86,'2.2 Daten'!B133,'2.2 Daten'!B137,'2.2 Daten'!B192,'2.2 Daten'!B220,'2.2 Daten'!B258,'2.2 Daten'!B304,'2.2 Daten'!B402,'2.2 Daten'!B410,'2.2 Daten'!B413,'2.2 Daten'!B433,'2.2 Daten'!B443,'2.2 Daten'!B458,'2.2 Daten'!B474,x) -> Wolfsburg, Stadt | B78: =IF($A78<>0,INDEX('2.2 Daten'!C$9:C$860,MATCH('2.2'!$A78,'2.2 Daten'!$B$9:$B$860,0))," ") -> 3103000 | C78: =IF($A78<>0,INDEX('2.2 Daten'!E$9:E$860,MATCH('2.2'!$A78,'2.2 Daten'!$B$9:$B$860,0))) -> 2912 | D78: =IF($A78<>0,INDEX('2.2 Daten'!F$9:F$860,MATCH('2.2'!$A78,'2.2 Daten'!$B$9:$B$860,0))) -> 621 | E78: =IF($A78<>0,INDEX('2.2 Daten'!G$9:G$860,MATCH('2.2'!$A78,'2.2 Daten'!$B$9:$B$860,0))) -> 513 | F78: =IF($A78<>0,INDEX('2.2 Daten'!H$9:H$860,MATCH('2.2'!$A78,'2.2 Daten'!$B$9:$B$860,0))) -> 1409 | G78: =IF($A78<>0,INDEX('2.2 Daten'!I$9:I$860,MATCH('2.2'!$A78,'2.2 Daten'!$B$9:$B$860,0))) -> 369 | H78: =IF($A78<>0,INDEX('2.2 Daten'!K$9:K$860,MATCH('2.2'!$A78,'2.2 Daten'!$B$9:$B$860,0))) -> 12.86821705 | I78: =IF($A78<>0,INDEX('2.2 Daten'!L$9:L$860,MATCH('2.2'!$A78,'2.2 Daten'!$B$9:$B$860,0))) -> 20.58252427 | J78: =IF($A78<>0,INDEX('2.2 Daten'!M$9:M$860,MATCH('2.2'!$A78,'2.2 Daten'!$B$9:$B$860,0))) -> 6.875 | K78: =IF($A78<>0,INDEX('2.2 Daten'!N$9:N$860,MATCH('2.2'!$A78,'2.2 Daten'!$B$9:$B$860,0))) -> 12.27091633 | L78: =IF($A78<>0,INDEX('2.2 Daten'!O$9:O$860,MATCH('2.2'!$A78,'2.2 Daten'!$B$9:$B$860,0))) -> 11.81818182
A79: =CHOOSE('2.2 Daten'!$A$2,'2.2 Daten'!B501,'2.2 Daten'!B50,'2.2 Daten'!B67,'2.2 Daten'!B84,'2.2 Daten'!B87,'2.2 Daten'!B134,'2.2 Daten'!B138,'2.2 Daten'!B193,'2.2 Daten'!B221,'2.2 Daten'!B259,'2.2 Daten'!B305,'2.2 Daten'!B403,'2.2 Daten'!B411,'2.2 Daten'!B414,'2.2 Daten'!B434,'2.2 Daten'!B444,'2.2 Daten'!B459,'2.2 Daten'!B475,x) -> Gifhorn | B79: =IF($A79<>0,INDEX('2.2 Daten'!C$9:C$860,MATCH('2.2'!$A79,'2.2 Daten'!$B$9:$B$860,0))," ") -> 3151000 | C79: =IF($A79<>0,INDEX('2.2 Daten'!E$9:E$860,MATCH('2.2'!$A79,'2.2 Daten'!$B$9:$B$860,0))) -> 2913 | D79: =IF($A79<>0,INDEX('2.2 Daten'!F$9:F$860,MATCH('2.2'!$A79,'2.2 Daten'!$B$9:$B$860,0))) -> 511 | E79: =IF($A79<>0,INDEX('2.2 Daten'!G$9:G$860,MATCH('2.2'!$A79,'2.2 Daten'!$B$9:$B$860,0))) -> 543 | F79: =IF($A79<>0,INDEX('2.2 Daten'!H$9:H$860,MATCH('2.2'!$A79,'2.2 Daten'!$B$9:$B$860,0))) -> 1450 | G79: =IF($A79<>0,INDEX('2.2 Daten'!I$9:I$860,MATCH('2.2'!$A79,'2.2 Daten'!$B$9:$B$860,0))) -> 409 | H79: =IF($A79<>0,INDEX('2.2 Daten'!K$9:K$860,MATCH('2.2'!$A79,'2.2 Daten'!$B$9:$B$860,0))) -> 4.184549356 | I79: =IF($A79<>0,INDEX('2.2 Daten'!L$9:L$860,MATCH('2.2'!$A79,'2.2 Daten'!$B$9:$B$860,0))) -> 6.01659751 | J79: =IF($A79<>0,INDEX('2.2 Daten'!M$9:M$860,MATCH('2.2'!$A79,'2.2 Daten'!$B$9:$B$860,0))) -> 14.07563025 | K79: =IF($A79<>0,INDEX('2.2 Daten'!N$9:N$860,MATCH('2.2'!$A79,'2.2 Daten'!$B$9:$B$860,0))) -> 1.327742837 | L79: =IF($A79<>0,INDEX('2.2 Daten'!O$9:O$860,MATCH('2.2'!$A79,'2.2 Daten'!$B$9:$B$860,0))) -> 0.4914004914
A80: =CHOOSE('2.2 Daten'!$A$2,'2.2 Daten'!B502,'2.2 Daten'!B51,'2.2 Daten'!B68,'2.2 Daten'!B85,'2.2 Daten'!B88,'2.2 Daten'!B135,'2.2 Daten'!B139,'2.2 Daten'!B194,'2.2 Daten'!B222,'2.2 Daten'!B260,'2.2 Daten'!B306,'2.2 Daten'!B404,'2.2 Daten'!B412,'2.2 Daten'!B415,'2.2 Daten'!B435,'2.2 Daten'!B445,'2.2 Daten'!B460,'2.2 Daten'!B476,x) -> Goslar | B80: =IF($A80<>0,INDEX('2.2 Daten'!C$9:C$860,MATCH('2.2'!$A80,'2.2 Daten'!$B$9:$B$860,0))," ") -> 3153000 | C80: =IF($A80<>0,INDEX('2.2 Daten'!E$9:E$860,MATCH('2.2'!$A80,'2.2 Daten'!$B$9:$B$860,0))) -> 3857 | D80: =IF($A80<>0,INDEX('2.2 Daten'!F$9:F$860,MATCH('2.2'!$A80,'2.2 Daten'!$B$9:$B$860,0))) -> 723 | E80: =IF($A80<>0,INDEX('2.2 Daten'!G$9:G$860,MATCH('2.2'!$A80,'2.2 Daten'!$B$9:$B$860,0))) -> 702 | F80: =IF($A80<>0,INDEX('2.2 Daten'!H$9:H$860,MATCH('2.2'!$A80,'2.2 Daten'!$B$9:$B$860,0))) -> 1867 | G80: =IF($A80<>0,INDEX('2.2 Daten'!I$9:I$860,MATCH('2.2'!$A80,'2.2 Daten'!$B$9:$B$860,0))) -> 565 | H80: =IF($A80<>0,INDEX('2.2 Daten'!K$9:K$860,MATCH('2.2'!$A80,'2.2 Daten'!$B$9:$B$860,0))) -> 3.627082214 | I80: =IF($A80<>0,INDEX('2.2 Daten'!L$9:L$860,MATCH('2.2'!$A80,'2.2 Daten'!$B$9:$B$860,0))) -> 4.329004329 | J80: =IF($A80<>0,INDEX('2.2 Daten'!M$9:M$860,MATCH('2.2'!$A80,'2.2 Daten'!$B$9:$B$860,0))) -> 9.6875 | K80: =IF($A80<>0,INDEX('2.2 Daten'!N$9:N$860,MATCH('2.2'!$A80,'2.2 Daten'!$B$9:$B$860,0))) -> 2.301369863 | L80: =IF($A80<>0,INDEX('2.2 Daten'!O$9:O$860,MATCH('2.2'!$A80,'2.2 Daten'!$B$9:$B$860,0))) -> 0.1773049645
A81: =CHOOSE('2.2 Daten'!$A$2,'2.2 Daten'!B503,'2.2 Daten'!B52,'2.2 Daten'!B69,'2.2 Daten'!B86,'2.2 Daten'!B89,'2.2 Daten'!B136,'2.2 Daten'!B140,'2.2 Daten'!B195,'2.2 Daten'!B223,'2.2 Daten'!B261,'2.2 Daten'!B307,'2.2 Daten'!B405,'2.2 Daten'!B413,'2.2 Daten'!B416,'2.2 Daten'!B436,'2.2 Daten'!B446,'2.2 Daten'!B461,'2.2 Daten'!B477,x) -> Helmstedt | B81: =IF($A81<>0,INDEX('2.2 Daten'!C$9:C$860,MATCH('2.2'!$A81,'2.2 Daten'!$B$9:$B$860,0))," ") -> 3154000 | C81: =IF($A81<>0,INDEX('2.2 Daten'!E$9:E$860,MATCH('2.2'!$A81,'2.2 Daten'!$B$9:$B$860,0))) -> 2226 | D81: =IF($A81<>0,INDEX('2.2 Daten'!F$9:F$860,MATCH('2.2'!$A81,'2.2 Daten'!$B$9:$B$860,0))) -> 426 | E81: =IF($A81<>0,INDEX('2.2 Daten'!G$9:G$860,MATCH('2.2'!$A81,'2.2 Daten'!$B$9:$B$860,0))) -> 411 | F81: =IF($A81<>0,INDEX('2.2 Daten'!H$9:H$860,MATCH('2.2'!$A81,'2.2 Daten'!$B$9:$B$860,0))) -> 1099 | G81: =IF($A81<>0,INDEX('2.2 Daten'!I$9:I$860,MATCH('2.2'!$A81,'2.2 Daten'!$B$9:$B$860,0))) -> 290 | H81: =IF($A81<>0,INDEX('2.2 Daten'!K$9:K$860,MATCH('2.2'!$A81,'2.2 Daten'!$B$9:$B$860,0))) -> 12.14105793 | I81: =IF($A81<>0,INDEX('2.2 Daten'!L$9:L$860,MATCH('2.2'!$A81,'2.2 Daten'!$B$9:$B$860,0))) -> 12.40105541 | J81: =IF($A81<>0,INDEX('2.2 Daten'!M$9:M$860,MATCH('2.2'!$A81,'2.2 Daten'!$B$9:$B$860,0))) -> 14.48467967 | K81: =IF($A81<>0,INDEX('2.2 Daten'!N$9:N$860,MATCH('2.2'!$A81,'2.2 Daten'!$B$9:$B$860,0))) -> 13.88601036 | L81: =IF($A81<>0,INDEX('2.2 Daten'!O$9:O$860,MATCH('2.2'!$A81,'2.2 Daten'!$B$9:$B$860,0))) -> 2.836879433
A82: =CHOOSE('2.2 Daten'!$A$2,'2.2 Daten'!B504,'2.2 Daten'!B53,'2.2 Daten'!B70,'2.2 Daten'!B87,'2.2 Daten'!B90,'2.2 Daten'!B137,'2.2 Daten'!B141,'2.2 Daten'!B196,'2.2 Daten'!B224,'2.2 Daten'!B262,'2.2 Daten'!B308,'2.2 Daten'!B406,'2.2 Daten'!B414,'2.2 Daten'!B417,'2.2 Daten'!B437,'2.2 Daten'!B447,'2.2 Daten'!B462,'2.2 Daten'!B478,x) -> Northeim | B82: =IF($A82<>0,INDEX('2.2 Daten'!C$9:C$860,MATCH('2.2'!$A82,'2.2 Daten'!$B$9:$B$860,0))," ") -> 3155000 | C82: =IF($A82<>0,INDEX('2.2 Daten'!E$9:E$860,MATCH('2.2'!$A82,'2.2 Daten'!$B$9:$B$860,0))) -> 3052 | D82: =IF($A82<>0,INDEX('2.2 Daten'!F$9:F$860,MATCH('2.2'!$A82,'2.2 Daten'!$B$9:$B$860,0))) -> 603 | E82: =IF($A82<>0,INDEX('2.2 Daten'!G$9:G$860,MATCH('2.2'!$A82,'2.2 Daten'!$B$9:$B$860,0))) -> 543 | F82: =IF($A82<>0,INDEX('2.2 Daten'!H$9:H$860,MATCH('2.2'!$A82,'2.2 Daten'!$B$9:$B$860,0))) -> 1513 | G82: =IF($A82<>0,INDEX('2.2 Daten'!I$9:I$860,MATCH('2.2'!$A82,'2.2 Daten'!$B$9:$B$860,0))) -> 393 | H82: =IF($A82<>0,INDEX('2.2 Daten'!K$9:K$860,MATCH('2.2'!$A82,'2.2 Daten'!$B$9:$B$860,0))) -> 4.915778618 | I82: =IF($A82<>0,INDEX('2.2 Daten'!L$9:L$860,MATCH('2.2'!$A82,'2.2 Daten'!$B$9:$B$860,0))) -> 7.871198569 | J82: =IF($A82<>0,INDEX('2.2 Daten'!M$9:M$860,MATCH('2.2'!$A82,'2.2 Daten'!$B$9:$B$860,0))) -> 0.9293680297 | K82: =IF($A82<>0,INDEX('2.2 Daten'!N$9:N$860,MATCH('2.2'!$A82,'2.2 Daten'!$B$9:$B$860,0))) -> 7.610241821 | L82: =IF($A82<>0,INDEX('2.2 Daten'!O$9:O$860,MATCH('2.2'!$A82,'2.2 Daten'!$B$9:$B$860,0))) -> -3.201970443
A83: =CHOOSE('2.2 Daten'!$A$2,'2.2 Daten'!B505,'2.2 Daten'!B54,'2.2 Daten'!B71,'2.2 Daten'!B88,'2.2 Daten'!B91,'2.2 Daten'!B138,'2.2 Daten'!B142,'2.2 Daten'!B197,'2.2 Daten'!B225,'2.2 Daten'!B263,'2.2 Daten'!B309,'2.2 Daten'!B407,'2.2 Daten'!B415,'2.2 Daten'!B418,'2.2 Daten'!B438,'2.2 Daten'!B448,'2.2 Daten'!B463,'2.2 Daten'!B479,x) -> Peine | B83: =IF($A83<>0,INDEX('2.2 Daten'!C$9:C$860,MATCH('2.2'!$A83,'2.2 Daten'!$B$9:$B$860,0))," ") -> 3157000 | C83: =IF($A83<>0,INDEX('2.2 Daten'!E$9:E$860,MATCH('2.2'!$A83,'2.2 Daten'!$B$9:$B$860,0))) -> 3679 | D83: =IF($A83<>0,INDEX('2.2 Daten'!F$9:F$860,MATCH('2.2'!$A83,'2.2 Daten'!$B$9:$B$860,0))) -> 681 | E83: =IF($A83<>0,INDEX('2.2 Daten'!G$9:G$860,MATCH('2.2'!$A83,'2.2 Daten'!$B$9:$B$860,0))) -> 715 | F83: =IF($A83<>0,INDEX('2.2 Daten'!H$9:H$860,MATCH('2.2'!$A83,'2.2 Daten'!$B$9:$B$860,0))) -> 1803 | G83: =IF($A83<>0,INDEX('2.2 Daten'!I$9:I$860,MATCH('2.2'!$A83,'2.2 Daten'!$B$9:$B$860,0))) -> 480 | H83: =IF($A83<>0,INDEX('2.2 Daten'!K$9:K$860,MATCH('2.2'!$A83,'2.2 Daten'!$B$9:$B$860,0))) -> 2.707984366 | I83: =IF($A83<>0,INDEX('2.2 Daten'!L$9:L$860,MATCH('2.2'!$A83,'2.2 Daten'!$B$9:$B$860,0))) -> 9.838709677 | J83: =IF($A83<>0,INDEX('2.2 Daten'!M$9:M$860,MATCH('2.2'!$A83,'2.2 Daten'!$B$9:$B$860,0))) -> 6.398809524 | K83: =IF($A83<>0,INDEX('2.2 Daten'!N$9:N$860,MATCH('2.2'!$A83,'2.2 Daten'!$B$9:$B$860,0))) -> 1.292134831 | L83: =IF($A83<>0,INDEX('2.2 Daten'!O$9:O$860,MATCH('2.2'!$A83,'2.2 Daten'!$B$9:$B$860,0))) -> -5.882352941
A84: =CHOOSE('2.2 Daten'!$A$2,'2.2 Daten'!B506,'2.2 Daten'!B55,'2.2 Daten'!B72,'2.2 Daten'!B89,'2.2 Daten'!B92,'2.2 Daten'!B139,'2.2 Daten'!B143,'2.2 Daten'!B198,'2.2 Daten'!B226,'2.2 Daten'!B264,'2.2 Daten'!B310,'2.2 Daten'!B408,'2.2 Daten'!B416,'2.2 Daten'!B419,'2.2 Daten'!B439,'2.2 Daten'!B449,'2.2 Daten'!B464,'2.2 Daten'!B480,x) -> Wolfenbüttel | B84: =IF($A84<>0,INDEX('2.2 Daten'!C$9:C$860,MATCH('2.2'!$A84,'2.2 Daten'!$B$9:$B$860,0))," ") -> 3158000 | C84: =IF($A84<>0,INDEX('2.2 Daten'!E$9:E$860,MATCH('2.2'!$A84,'2.2 Daten'!$B$9:$B$860,0))) -> 2545 | D84: =IF($A84<>0,INDEX('2.2 Daten'!F$9:F$860,MATCH('2.2'!$A84,'2.2 Daten'!$B$9:$B$860,0))) -> 452 | E84: =IF($A84<>0,INDEX('2.2 Daten'!G$9:G$860,MATCH('2.2'!$A84,'2.2 Daten'!$B$9:$B$860,0))) -> 448 | F84: =IF($A84<>0,INDEX('2.2 Daten'!H$9:H$860,MATCH('2.2'!$A84,'2.2 Daten'!$B$9:$B$860,0))) -> 1274 | G84: =IF($A84<>0,INDEX('2.2 Daten'!I$9:I$860,MATCH('2.2'!$A84,'2.2 Daten'!$B$9:$B$860,0))) -> 371 | H84: =IF($A84<>0,INDEX('2.2 Daten'!K$9:K$860,MATCH('2.2'!$A84,'2.2 Daten'!$B$9:$B$860,0))) -> 2.828282828 | I84: =IF($A84<>0,INDEX('2.2 Daten'!L$9:L$860,MATCH('2.2'!$A84,'2.2 Daten'!$B$9:$B$860,0))) -> 4.387990762 | J84: =IF($A84<>0,INDEX('2.2 Daten'!M$9:M$860,MATCH('2.2'!$A84,'2.2 Daten'!$B$9:$B$860,0))) -> 6.666666667 | K84: =IF($A84<>0,INDEX('2.2 Daten'!N$9:N$860,MATCH('2.2'!$A84,'2.2 Daten'!$B$9:$B$860,0))) -> 4.597701149 | L84: =IF($A84<>0,INDEX('2.2 Daten'!O$9:O$860,MATCH('2.2'!$A84,'2.2 Daten'!$B$9:$B$860,0))) -> -8.168316832
A85: =CHOOSE('2.2 Daten'!$A$2,'2.2 Daten'!B507,'2.2 Daten'!B56,'2.2 Daten'!B73,'2.2 Daten'!B90,'2.2 Daten'!B93,'2.2 Daten'!B140,'2.2 Daten'!B144,'2.2 Daten'!B199,'2.2 Daten'!B227,'2.2 Daten'!B265,'2.2 Daten'!B311,'2.2 Daten'!B409,'2.2 Daten'!B417,'2.2 Daten'!B420,'2.2 Daten'!B440,'2.2 Daten'!B450,'2.2 Daten'!B465,'2.2 Daten'!B481,x) -> Göttingen | B85: =IF($A85<>0,INDEX('2.2 Daten'!C$9:C$860,MATCH('2.2'!$A85,'2.2 Daten'!$B$9:$B$860,0))," ") -> 3159000 | C85: =IF($A85<>0,INDEX('2.2 Daten'!E$9:E$860,MATCH('2.2'!$A85,'2.2 Daten'!$B$9:$B$860,0))) -> 6664 | D85: =IF($A85<>0,INDEX('2.2 Daten'!F$9:F$860,MATCH('2.2'!$A85,'2.2 Daten'!$B$9:$B$860,0))) -> 1273 | E85: =IF($A85<>0,INDEX('2.2 Daten'!G$9:G$860,MATCH('2.2'!$A85,'2.2 Daten'!$B$9:$B$860,0))) -> 1203 | F85: =IF($A85<>0,INDEX('2.2 Daten'!H$9:H$860,MATCH('2.2'!$A85,'2.2 Daten'!$B$9:$B$860,0))) -> 3285 | G85: =IF($A85<>0,INDEX('2.2 Daten'!I$9:I$860,MATCH('2.2'!$A85,'2.2 Daten'!$B$9:$B$860,0))) -> 903 | H85: =IF($A85<>0,INDEX('2.2 Daten'!K$9:K$860,MATCH('2.2'!$A85,'2.2 Daten'!$B$9:$B$860,0))) -> 5.077262693 | I85: =IF($A85<>0,INDEX('2.2 Daten'!L$9:L$860,MATCH('2.2'!$A85,'2.2 Daten'!$B$9:$B$860,0))) -> 12.05985915 | J85: =IF($A85<>0,INDEX('2.2 Daten'!M$9:M$860,MATCH('2.2'!$A85,'2.2 Daten'!$B$9:$B$860,0))) -> 9.863013699 | K85: =IF($A85<>0,INDEX('2.2 Daten'!N$9:N$860,MATCH('2.2'!$A85,'2.2 Daten'!$B$9:$B$860,0))) -> 3.301886792 | L85: =IF($A85<>0,INDEX('2.2 Daten'!O$9:O$860,MATCH('2.2'!$A85,'2.2 Daten'!$B$9:$B$860,0))) -> -3.007518797
A86: =CHOOSE('2.2 Daten'!$A$2,'2.2 Daten'!B508,'2.2 Daten'!B57,'2.2 Daten'!B74,'2.2 Daten'!B91,'2.2 Daten'!B94,'2.2 Daten'!B141,'2.2 Daten'!B145,'2.2 Daten'!B200,'2.2 Daten'!B228,'2.2 Daten'!B266,'2.2 Daten'!B312,'2.2 Daten'!B410,'2.2 Daten'!B418,'2.2 Daten'!B421,'2.2 Daten'!B441,'2.2 Daten'!B451,'2.2 Daten'!B466,'2.2 Daten'!B482,x) -> Region Hannover | B86: =IF($A86<>0,INDEX('2.2 Daten'!C$9:C$860,MATCH('2.2'!$A86,'2.2 Daten'!$B$9:$B$860,0))," ") -> 3241000 | C86: =IF($A86<>0,INDEX('2.2 Daten'!E$9:E$860,MATCH('2.2'!$A86,'2.2 Daten'!$B$9:$B$860,0))) -> 40867 | D86: =IF($A86<>0,INDEX('2.2 Daten'!F$9:F$860,MATCH('2.2'!$A86,'2.2 Daten'!$B$9:$B$860,0))) -> 7627 | E86: =IF($A86<>0,INDEX('2.2 Daten'!G$9:G$860,MATCH('2.2'!$A86,'2.2 Daten'!$B$9:$B$860,0))) -> 7450 | F86: =IF($A86<>0,INDEX('2.2 Daten'!H$9:H$860,MATCH('2.2'!$A86,'2.2 Daten'!$B$9:$B$860,0))) -> 20047 | G86: =IF($A86<>0,INDEX('2.2 Daten'!I$9:I$860,MATCH('2.2'!$A86,'2.2 Daten'!$B$9:$B$860,0))) -> 5743 | H86: =IF($A86<>0,INDEX('2.2 Daten'!K$9:K$860,MATCH('2.2'!$A86,'2.2 Daten'!$B$9:$B$860,0))) -> 0.7941793069 | I86: =IF($A86<>0,INDEX('2.2 Daten'!L$9:L$860,MATCH('2.2'!$A86,'2.2 Daten'!$B$9:$B$860,0))) -> 0.3816793893 | J86: =IF($A86<>0,INDEX('2.2 Daten'!M$9:M$860,MATCH('2.2'!$A86,'2.2 Daten'!$B$9:$B$860,0))) -> 1.553980371 | K86: =IF($A86<>0,INDEX('2.2 Daten'!N$9:N$860,MATCH('2.2'!$A86,'2.2 Daten'!$B$9:$B$860,0))) -> 0.6577626029 | L86: =IF($A86<>0,INDEX('2.2 Daten'!O$9:O$860,MATCH('2.2'!$A86,'2.2 Daten'!$B$9:$B$860,0))) -> 0.8428446005
A87: =CHOOSE('2.2 Daten'!$A$2,'2.2 Daten'!B509,'2.2 Daten'!B58,'2.2 Daten'!B75,'2.2 Daten'!B92,'2.2 Daten'!B95,'2.2 Daten'!B142,'2.2 Daten'!B146,'2.2 Daten'!B201,'2.2 Daten'!B229,'2.2 Daten'!B267,'2.2 Daten'!B313,'2.2 Daten'!B411,'2.2 Daten'!B419,'2.2 Daten'!B422,'2.2 Daten'!B442,'2.2 Daten'!B452,'2.2 Daten'!B467,'2.2 Daten'!B483,x) -> Diepholz | B87: =IF($A87<>0,INDEX('2.2 Daten'!C$9:C$860,MATCH('2.2'!$A87,'2.2 Daten'!$B$9:$B$860,0))," ") -> 3251000 | C87: =IF($A87<>0,INDEX('2.2 Daten'!E$9:E$860,MATCH('2.2'!$A87,'2.2 Daten'!$B$9:$B$860,0))) -> 4782 | D87: =IF($A87<>0,INDEX('2.2 Daten'!F$9:F$860,MATCH('2.2'!$A87,'2.2 Daten'!$B$9:$B$860,0))) -> 898 | E87: =IF($A87<>0,INDEX('2.2 Daten'!G$9:G$860,MATCH('2.2'!$A87,'2.2 Daten'!$B$9:$B$860,0))) -> 923 | F87: =IF($A87<>0,INDEX('2.2 Daten'!H$9:H$860,MATCH('2.2'!$A87,'2.2 Daten'!$B$9:$B$860,0))) -> 2310 | G87: =IF($A87<>0,INDEX('2.2 Daten'!I$9:I$860,MATCH('2.2'!$A87,'2.2 Daten'!$B$9:$B$860,0))) -> 651 | H87: =IF($A87<>0,INDEX('2.2 Daten'!K$9:K$860,MATCH('2.2'!$A87,'2.2 Daten'!$B$9:$B$860,0))) -> 2.706185567 | I87: =IF($A87<>0,INDEX('2.2 Daten'!L$9:L$860,MATCH('2.2'!$A87,'2.2 Daten'!$B$9:$B$860,0))) -> 4.05561993 | J87: =IF($A87<>0,INDEX('2.2 Daten'!M$9:M$860,MATCH('2.2'!$A87,'2.2 Daten'!$B$9:$B$860,0))) -> 7.953216374 | K87: =IF($A87<>0,INDEX('2.2 Daten'!N$9:N$860,MATCH('2.2'!$A87,'2.2 Daten'!$B$9:$B$860,0))) -> 1.941747573 | L87: =IF($A87<>0,INDEX('2.2 Daten'!O$9:O$860,MATCH('2.2'!$A87,'2.2 Daten'!$B$9:$B$860,0))) -> -3.125
A88: =CHOOSE('2.2 Daten'!$A$2,'2.2 Daten'!B510,'2.2 Daten'!B59,'2.2 Daten'!B76,'2.2 Daten'!B93,'2.2 Daten'!B96,'2.2 Daten'!B143,'2.2 Daten'!B147,'2.2 Daten'!B202,'2.2 Daten'!B230,'2.2 Daten'!B268,'2.2 Daten'!B314,'2.2 Daten'!B412,'2.2 Daten'!B420,'2.2 Daten'!B423,'2.2 Daten'!B443,'2.2 Daten'!B453,'2.2 Daten'!B468,'2.2 Daten'!B484,x) -> Hameln-Pyrmont | B88: =IF($A88<>0,INDEX('2.2 Daten'!C$9:C$860,MATCH('2.2'!$A88,'2.2 Daten'!$B$9:$B$860,0))," ") -> 3252000 | C88: =IF($A88<>0,INDEX('2.2 Daten'!E$9:E$860,MATCH('2.2'!$A88,'2.2 Daten'!$B$9:$B$860,0))) -> 4927 | D88: =IF($A88<>0,INDEX('2.2 Daten'!F$9:F$860,MATCH('2.2'!$A88,'2.2 Daten'!$B$9:$B$860,0))) -> 887 | E88: =IF($A88<>0,INDEX('2.2 Daten'!G$9:G$860,MATCH('2.2'!$A88,'2.2 Daten'!$B$9:$B$860,0))) -> 920 | F88: =IF($A88<>0,INDEX('2.2 Daten'!H$9:H$860,MATCH('2.2'!$A88,'2.2 Daten'!$B$9:$B$860,0))) -> 2425 | G88: =IF($A88<>0,INDEX('2.2 Daten'!I$9:I$860,MATCH('2.2'!$A88,'2.2 Daten'!$B$9:$B$860,0))) -> 695 | H88: =IF($A88<>0,INDEX('2.2 Daten'!K$9:K$860,MATCH('2.2'!$A88,'2.2 Daten'!$B$9:$B$860,0))) -> 6.322831247 | I88: =IF($A88<>0,INDEX('2.2 Daten'!L$9:L$860,MATCH('2.2'!$A88,'2.2 Daten'!$B$9:$B$860,0))) -> 8.968058968 | J88: =IF($A88<>0,INDEX('2.2 Daten'!M$9:M$860,MATCH('2.2'!$A88,'2.2 Daten'!$B$9:$B$860,0))) -> 8.875739645 | K88: =IF($A88<>0,INDEX('2.2 Daten'!N$9:N$860,MATCH('2.2'!$A88,'2.2 Daten'!$B$9:$B$860,0))) -> 4.256233878 | L88: =IF($A88<>0,INDEX('2.2 Daten'!O$9:O$860,MATCH('2.2'!$A88,'2.2 Daten'!$B$9:$B$860,0))) -> 7.087827427
A89: =CHOOSE('2.2 Daten'!$A$2,'2.2 Daten'!B511,'2.2 Daten'!B60,'2.2 Daten'!B77,'2.2 Daten'!B94,'2.2 Daten'!B97,'2.2 Daten'!B144,'2.2 Daten'!B148,'2.2 Daten'!B203,'2.2 Daten'!B231,'2.2 Daten'!B269,'2.2 Daten'!B315,'2.2 Daten'!B413,'2.2 Daten'!B421,'2.2 Daten'!B424,'2.2 Daten'!B444,'2.2 Daten'!B454,'2.2 Daten'!B469,'2.2 Daten'!B485,x) -> Hildesheim | B89: =IF($A89<>0,INDEX('2.2 Daten'!C$9:C$860,MATCH('2.2'!$A89,'2.2 Daten'!$B$9:$B$860,0))," ") -> 3254000 | C89: =IF($A89<>0,INDEX('2.2 Daten'!E$9:E$860,MATCH('2.2'!$A89,'2.2 Daten'!$B$9:$B$860,0))) -> 7224 | D89: =IF($A89<>0,INDEX('2.2 Daten'!F$9:F$860,MATCH('2.2'!$A89,'2.2 Daten'!$B$9:$B$860,0))) -> 1333 | E89: =IF($A89<>0,INDEX('2.2 Daten'!G$9:G$860,MATCH('2.2'!$A89,'2.2 Daten'!$B$9:$B$860,0))) -> 1381 | F89: =IF($A89<>0,INDEX('2.2 Daten'!H$9:H$860,MATCH('2.2'!$A89,'2.2 Daten'!$B$9:$B$860,0))) -> 3518 | G89: =IF($A89<>0,INDEX('2.2 Daten'!I$9:I$860,MATCH('2.2'!$A89,'2.2 Daten'!$B$9:$B$860,0))) -> 992 | H89: =IF($A89<>0,INDEX('2.2 Daten'!K$9:K$860,MATCH('2.2'!$A89,'2.2 Daten'!$B$9:$B$860,0))) -> 0.8797653959 | I89: =IF($A89<>0,INDEX('2.2 Daten'!L$9:L$860,MATCH('2.2'!$A89,'2.2 Daten'!$B$9:$B$860,0))) -> -1.112759644 | J89: =IF($A89<>0,INDEX('2.2 Daten'!M$9:M$860,MATCH('2.2'!$A89,'2.2 Daten'!$B$9:$B$860,0))) -> 7.387247278 | K89: =IF($A89<>0,INDEX('2.2 Daten'!N$9:N$860,MATCH('2.2'!$A89,'2.2 Daten'!$B$9:$B$860,0))) -> 0.2850627138 | L89: =IF($A89<>0,INDEX('2.2 Daten'!O$9:O$860,MATCH('2.2'!$A89,'2.2 Daten'!$B$9:$B$860,0))) -> -2.649656526
A90: =CHOOSE('2.2 Daten'!$A$2,'2.2 Daten'!B512,'2.2 Daten'!B61,'2.2 Daten'!B78,'2.2 Daten'!B95,'2.2 Daten'!B98,'2.2 Daten'!B145,'2.2 Daten'!B149,'2.2 Daten'!B204,'2.2 Daten'!B232,'2.2 Daten'!B270,'2.2 Daten'!B316,'2.2 Daten'!B414,'2.2 Daten'!B422,'2.2 Daten'!B425,'2.2 Daten'!B445,'2.2 Daten'!B455,'2.2 Daten'!B470,'2.2 Daten'!B486,x) -> Holzminden | B90: =IF($A90<>0,INDEX('2.2 Daten'!C$9:C$860,MATCH('2.2'!$A90,'2.2 Daten'!$B$9:$B$860,0))," ") -> 3255000 | C90: =IF($A90<>0,INDEX('2.2 Daten'!E$9:E$860,MATCH('2.2'!$A90,'2.2 Daten'!$B$9:$B$860,0))) -> 1907 | D90: =IF($A90<>0,INDEX('2.2 Daten'!F$9:F$860,MATCH('2.2'!$A90,'2.2 Daten'!$B$9:$B$860,0))) -> 362 | E90: =IF($A90<>0,INDEX('2.2 Daten'!G$9:G$860,MATCH('2.2'!$A90,'2.2 Daten'!$B$9:$B$860,0))) -> 359 | F90: =IF($A90<>0,INDEX('2.2 Daten'!H$9:H$860,MATCH('2.2'!$A90,'2.2 Daten'!$B$9:$B$860,0))) -> 902 | G90: =IF($A90<>0,INDEX('2.2 Daten'!I$9:I$860,MATCH('2.2'!$A90,'2.2 Daten'!$B$9:$B$860,0))) -> 284 | H90: =IF($A90<>0,INDEX('2.2 Daten'!K$9:K$860,MATCH('2.2'!$A90,'2.2 Daten'!$B$9:$B$860,0))) -> 6.29877369 | I90: =IF($A90<>0,INDEX('2.2 Daten'!L$9:L$860,MATCH('2.2'!$A90,'2.2 Daten'!$B$9:$B$860,0))) -> 15.65495208 | J90: =IF($A90<>0,INDEX('2.2 Daten'!M$9:M$860,MATCH('2.2'!$A90,'2.2 Daten'!$B$9:$B$860,0))) -> 7.807807808 | K90: =IF($A90<>0,INDEX('2.2 Daten'!N$9:N$860,MATCH('2.2'!$A90,'2.2 Daten'!$B$9:$B$860,0))) -> 1.234567901 | L90: =IF($A90<>0,INDEX('2.2 Daten'!O$9:O$860,MATCH('2.2'!$A90,'2.2 Daten'!$B$9:$B$860,0))) -> 10.50583658
A91: =CHOOSE('2.2 Daten'!$A$2,'2.2 Daten'!B513,'2.2 Daten'!B62,'2.2 Daten'!B79,'2.2 Daten'!B96,'2.2 Daten'!B99,'2.2 Daten'!B146,'2.2 Daten'!B150,'2.2 Daten'!B205,'2.2 Daten'!B233,'2.2 Daten'!B271,'2.2 Daten'!B317,'2.2 Daten'!B415,'2.2 Daten'!B423,'2.2 Daten'!B426,'2.2 Daten'!B446,'2.2 Daten'!B456,'2.2 Daten'!B471,'2.2 Daten'!B487,x) -> Nienburg (Weser) | B91: =IF($A91<>0,INDEX('2.2 Daten'!C$9:C$860,MATCH('2.2'!$A91,'2.2 Daten'!$B$9:$B$860,0))," ") -> 3256000 | C91: =IF($A91<>0,INDEX('2.2 Daten'!E$9:E$860,MATCH('2.2'!$A91,'2.2 Daten'!$B$9:$B$860,0))) -> 3691 | D91: =IF($A91<>0,INDEX('2.2 Daten'!F$9:F$860,MATCH('2.2'!$A91,'2.2 Daten'!$B$9:$B$860,0))) -> 644 | E91: =IF($A91<>0,INDEX('2.2 Daten'!G$9:G$860,MATCH('2.2'!$A91,'2.2 Daten'!$B$9:$B$860,0))) -> 702 | F91: =IF($A91<>0,INDEX('2.2 Daten'!H$9:H$860,MATCH('2.2'!$A91,'2.2 Daten'!$B$9:$B$860,0))) -> 1844 | G91: =IF($A91<>0,INDEX('2.2 Daten'!I$9:I$860,MATCH('2.2'!$A91,'2.2 Daten'!$B$9:$B$860,0))) -> 501 | H91: =IF($A91<>0,INDEX('2.2 Daten'!K$9:K$860,MATCH('2.2'!$A91,'2.2 Daten'!$B$9:$B$860,0))) -> 15.45198624 | I91: =IF($A91<>0,INDEX('2.2 Daten'!L$9:L$860,MATCH('2.2'!$A91,'2.2 Daten'!$B$9:$B$860,0))) -> 16.24548736 | J91: =IF($A91<>0,INDEX('2.2 Daten'!M$9:M$860,MATCH('2.2'!$A91,'2.2 Daten'!$B$9:$B$860,0))) -> 24.46808511 | K91: =IF($A91<>0,INDEX('2.2 Daten'!N$9:N$860,MATCH('2.2'!$A91,'2.2 Daten'!$B$9:$B$860,0))) -> 14.32114073 | L91: =IF($A91<>0,INDEX('2.2 Daten'!O$9:O$860,MATCH('2.2'!$A91,'2.2 Daten'!$B$9:$B$860,0))) -> 7.510729614
A92: =CHOOSE('2.2 Daten'!$A$2,'2.2 Daten'!B514,'2.2 Daten'!B63,'2.2 Daten'!B80,'2.2 Daten'!B97,'2.2 Daten'!B100,'2.2 Daten'!B147,'2.2 Daten'!B151,'2.2 Daten'!B206,'2.2 Daten'!B234,'2.2 Daten'!B272,'2.2 Daten'!B318,'2.2 Daten'!B416,'2.2 Daten'!B424,'2.2 Daten'!B427,'2.2 Daten'!B447,'2.2 Daten'!B457,'2.2 Daten'!B472,'2.2 Daten'!B488,x) -> Schaumburg | B92: =IF($A92<>0,INDEX('2.2 Daten'!C$9:C$860,MATCH('2.2'!$A92,'2.2 Daten'!$B$9:$B$860,0))," ") -> 3257000 | C92: =IF($A92<>0,INDEX('2.2 Daten'!E$9:E$860,MATCH('2.2'!$A92,'2.2 Daten'!$B$9:$B$860,0))) -> 4071 | D92: =IF($A92<>0,INDEX('2.2 Daten'!F$9:F$860,MATCH('2.2'!$A92,'2.2 Daten'!$B$9:$B$860,0))) -> 734 | E92: =IF($A92<>0,INDEX('2.2 Daten'!G$9:G$860,MATCH('2.2'!$A92,'2.2 Daten'!$B$9:$B$860,0))) -> 756 | F92: =IF($A92<>0,INDEX('2.2 Daten'!H$9:H$860,MATCH('2.2'!$A92,'2.2 Daten'!$B$9:$B$860,0))) -> 2007 | G92: =IF($A92<>0,INDEX('2.2 Daten'!I$9:I$860,MATCH('2.2'!$A92,'2.2 Daten'!$B$9:$B$860,0))) -> 574 | H92: =IF($A92<>0,INDEX('2.2 Daten'!K$9:K$860,MATCH('2.2'!$A92,'2.2 Daten'!$B$9:$B$860,0))) -> 11.65660998 | I92: =IF($A92<>0,INDEX('2.2 Daten'!L$9:L$860,MATCH('2.2'!$A92,'2.2 Daten'!$B$9:$B$860,0))) -> 14.33021807 | J92: =IF($A92<>0,INDEX('2.2 Daten'!M$9:M$860,MATCH('2.2'!$A92,'2.2 Daten'!$B$9:$B$860,0))) -> 19.80982567 | K92: =IF($A92<>0,INDEX('2.2 Daten'!N$9:N$860,MATCH('2.2'!$A92,'2.2 Daten'!$B$9:$B$860,0))) -> 11.68614357 | L92: =IF($A92<>0,INDEX('2.2 Daten'!O$9:O$860,MATCH('2.2'!$A92,'2.2 Daten'!$B$9:$B$860,0))) -> -0.3472222222
A93: =CHOOSE('2.2 Daten'!$A$2,'2.2 Daten'!B515,'2.2 Daten'!B64,'2.2 Daten'!B81,'2.2 Daten'!B98,'2.2 Daten'!B101,'2.2 Daten'!B148,'2.2 Daten'!B152,'2.2 Daten'!B207,'2.2 Daten'!B235,'2.2 Daten'!B273,'2.2 Daten'!B319,'2.2 Daten'!B417,'2.2 Daten'!B425,'2.2 Daten'!B428,'2.2 Daten'!B448,'2.2 Daten'!B458,'2.2 Daten'!B473,'2.2 Daten'!B489,x) -> Celle | B93: =IF($A93<>0,INDEX('2.2 Daten'!C$9:C$860,MATCH('2.2'!$A93,'2.2 Daten'!$B$9:$B$860,0))," ") -> 3351000 | C93: =IF($A93<>0,INDEX('2.2 Daten'!E$9:E$860,MATCH('2.2'!$A93,'2.2 Daten'!$B$9:$B$860,0))) -> 5512 | D93: =IF($A93<>0,INDEX('2.2 Daten'!F$9:F$860,MATCH('2.2'!$A93,'2.2 Daten'!$B$9:$B$860,0))) -> 1004 | E93: =IF($A93<>0,INDEX('2.2 Daten'!G$9:G$860,MATCH('2.2'!$A93,'2.2 Daten'!$B$9:$B$860,0))) -> 1014 | F93: =IF($A93<>0,INDEX('2.2 Daten'!H$9:H$860,MATCH('2.2'!$A93,'2.2 Daten'!$B$9:$B$860,0))) -> 2725 | G93: =IF($A93<>0,INDEX('2.2 Daten'!I$9:I$860,MATCH('2.2'!$A93,'2.2 Daten'!$B$9:$B$860,0))) -> 769 | H93: =IF($A93<>0,INDEX('2.2 Daten'!K$9:K$860,MATCH('2.2'!$A93,'2.2 Daten'!$B$9:$B$860,0))) -> 6.573859242 | I93: =IF($A93<>0,INDEX('2.2 Daten'!L$9:L$860,MATCH('2.2'!$A93,'2.2 Daten'!$B$9:$B$860,0))) -> 5.795574289 | J93: =IF($A93<>0,INDEX('2.2 Daten'!M$9:M$860,MATCH('2.2'!$A93,'2.2 Daten'!$B$9:$B$860,0))) -> 11.79713341 | K93: =IF($A93<>0,INDEX('2.2 Daten'!N$9:N$860,MATCH('2.2'!$A93,'2.2 Daten'!$B$9:$B$860,0))) -> 4.606525912 | L93: =IF($A93<>0,INDEX('2.2 Daten'!O$9:O$860,MATCH('2.2'!$A93,'2.2 Daten'!$B$9:$B$860,0))) -> 8.157524613
A94: =CHOOSE('2.2 Daten'!$A$2,'2.2 Daten'!B516,'2.2 Daten'!B65,'2.2 Daten'!B82,'2.2 Daten'!B99,'2.2 Daten'!B102,'2.2 Daten'!B149,'2.2 Daten'!B153,'2.2 Daten'!B208,'2.2 Daten'!B236,'2.2 Daten'!B274,'2.2 Daten'!B320,'2.2 Daten'!B418,'2.2 Daten'!B426,'2.2 Daten'!B429,'2.2 Daten'!B449,'2.2 Daten'!B459,'2.2 Daten'!B474,'2.2 Daten'!B490,x) -> Cuxhaven | B94: =IF($A94<>0,INDEX('2.2 Daten'!C$9:C$860,MATCH('2.2'!$A94,'2.2 Daten'!$B$9:$B$860,0))," ") -> 3352000 | C94: =IF($A94<>0,INDEX('2.2 Daten'!E$9:E$860,MATCH('2.2'!$A94,'2.2 Daten'!$B$9:$B$860,0))) -> 4926 | D94: =IF($A94<>0,INDEX('2.2 Daten'!F$9:F$860,MATCH('2.2'!$A94,'2.2 Daten'!$B$9:$B$860,0))) -> 949 | E94: =IF($A94<>0,INDEX('2.2 Daten'!G$9:G$860,MATCH('2.2'!$A94,'2.2 Daten'!$B$9:$B$860,0))) -> 867 | F94: =IF($A94<>0,INDEX('2.2 Daten'!H$9:H$860,MATCH('2.2'!$A94,'2.2 Daten'!$B$9:$B$860,0))) -> 2400 | G94: =IF($A94<>0,INDEX('2.2 Daten'!I$9:I$860,MATCH('2.2'!$A94,'2.2 Daten'!$B$9:$B$860,0))) -> 710 | H94: =IF($A94<>0,INDEX('2.2 Daten'!K$9:K$860,MATCH('2.2'!$A94,'2.2 Daten'!$B$9:$B$860,0))) -> 3.967918953 | I94: =IF($A94<>0,INDEX('2.2 Daten'!L$9:L$860,MATCH('2.2'!$A94,'2.2 Daten'!$B$9:$B$860,0))) -> 6.390134529 | J94: =IF($A94<>0,INDEX('2.2 Daten'!M$9:M$860,MATCH('2.2'!$A94,'2.2 Daten'!$B$9:$B$860,0))) -> 4.583835947 | K94: =IF($A94<>0,INDEX('2.2 Daten'!N$9:N$860,MATCH('2.2'!$A94,'2.2 Daten'!$B$9:$B$860,0))) -> 2.6957638 | L94: =IF($A94<>0,INDEX('2.2 Daten'!O$9:O$860,MATCH('2.2'!$A94,'2.2 Daten'!$B$9:$B$860,0))) -> 4.411764706
A95: =CHOOSE('2.2 Daten'!$A$2,'2.2 Daten'!B517,'2.2 Daten'!B66,'2.2 Daten'!B83,'2.2 Daten'!B100,'2.2 Daten'!B103,'2.2 Daten'!B150,'2.2 Daten'!B154,'2.2 Daten'!B209,'2.2 Daten'!B237,'2.2 Daten'!B275,'2.2 Daten'!B321,'2.2 Daten'!B419,'2.2 Daten'!B427,'2.2 Daten'!B430,'2.2 Daten'!B450,'2.2 Daten'!B460,'2.2 Daten'!B475,'2.2 Daten'!B491,x) -> Harburg | B95: =IF($A95<>0,INDEX('2.2 Daten'!C$9:C$860,MATCH('2.2'!$A95,'2.2 Daten'!$B$9:$B$860,0))," ") -> 3353000 | C95: =IF($A95<>0,INDEX('2.2 Daten'!E$9:E$860,MATCH('2.2'!$A95,'2.2 Daten'!$B$9:$B$860,0))) -> 4170 | D95: =IF($A95<>0,INDEX('2.2 Daten'!F$9:F$860,MATCH('2.2'!$A95,'2.2 Daten'!$B$9:$B$860,0))) -> 744 | E95: =IF($A95<>0,INDEX('2.2 Daten'!G$9:G$860,MATCH('2.2'!$A95,'2.2 Daten'!$B$9:$B$860,0))) -> 750 | F95: =IF($A95<>0,INDEX('2.2 Daten'!H$9:H$860,MATCH('2.2'!$A95,'2.2 Daten'!$B$9:$B$860,0))) -> 2095 | G95: =IF($A95<>0,INDEX('2.2 Daten'!I$9:I$860,MATCH('2.2'!$A95,'2.2 Daten'!$B$9:$B$860,0))) -> 581 | H95: =IF($A95<>0,INDEX('2.2 Daten'!K$9:K$860,MATCH('2.2'!$A95,'2.2 Daten'!$B$9:$B$860,0))) -> 0.07199424046 | I95: =IF($A95<>0,INDEX('2.2 Daten'!L$9:L$860,MATCH('2.2'!$A95,'2.2 Daten'!$B$9:$B$860,0))) -> 4.055944056 | J95: =IF($A95<>0,INDEX('2.2 Daten'!M$9:M$860,MATCH('2.2'!$A95,'2.2 Daten'!$B$9:$B$860,0))) -> 2.599179207 | K95: =IF($A95<>0,INDEX('2.2 Daten'!N$9:N$860,MATCH('2.2'!$A95,'2.2 Daten'!$B$9:$B$860,0))) -> -0.6638217165 | L95: =IF($A95<>0,INDEX('2.2 Daten'!O$9:O$860,MATCH('2.2'!$A95,'2.2 Daten'!$B$9:$B$860,0))) -> -5.065359477
A96: =CHOOSE('2.2 Daten'!$A$2,'2.2 Daten'!B518,'2.2 Daten'!B67,'2.2 Daten'!B84,'2.2 Daten'!B101,'2.2 Daten'!B104,'2.2 Daten'!B151,'2.2 Daten'!B155,'2.2 Daten'!B210,'2.2 Daten'!B238,'2.2 Daten'!B276,'2.2 Daten'!B322,'2.2 Daten'!B420,'2.2 Daten'!B428,'2.2 Daten'!B431,'2.2 Daten'!B451,'2.2 Daten'!B461,'2.2 Daten'!B476,'2.2 Daten'!B492,x) -> Lüchow-Dannenberg | B96: =IF($A96<>0,INDEX('2.2 Daten'!C$9:C$860,MATCH('2.2'!$A96,'2.2 Daten'!$B$9:$B$860,0))," ") -> 3354000 | C96: =IF($A96<>0,INDEX('2.2 Daten'!E$9:E$860,MATCH('2.2'!$A96,'2.2 Daten'!$B$9:$B$860,0))) -> 1204 | D96: =IF($A96<>0,INDEX('2.2 Daten'!F$9:F$860,MATCH('2.2'!$A96,'2.2 Daten'!$B$9:$B$860,0))) -> 213 | E96: =IF($A96<>0,INDEX('2.2 Daten'!G$9:G$860,MATCH('2.2'!$A96,'2.2 Daten'!$B$9:$B$860,0))) -> 219 | F96: =IF($A96<>0,INDEX('2.2 Daten'!H$9:H$860,MATCH('2.2'!$A96,'2.2 Daten'!$B$9:$B$860,0))) -> 593 | G96: =IF($A96<>0,INDEX('2.2 Daten'!I$9:I$860,MATCH('2.2'!$A96,'2.2 Daten'!$B$9:$B$860,0))) -> 179 | H96: =IF($A96<>0,INDEX('2.2 Daten'!K$9:K$860,MATCH('2.2'!$A96,'2.2 Daten'!$B$9:$B$860,0))) -> 1.432181971 | I96: =IF($A96<>0,INDEX('2.2 Daten'!L$9:L$860,MATCH('2.2'!$A96,'2.2 Daten'!$B$9:$B$860,0))) -> 11.51832461 | J96: =IF($A96<>0,INDEX('2.2 Daten'!M$9:M$860,MATCH('2.2'!$A96,'2.2 Daten'!$B$9:$B$860,0))) -> 6.310679612 | K96: =IF($A96<>0,INDEX('2.2 Daten'!N$9:N$860,MATCH('2.2'!$A96,'2.2 Daten'!$B$9:$B$860,0))) -> -3.889789303 | L96: =IF($A96<>0,INDEX('2.2 Daten'!O$9:O$860,MATCH('2.2'!$A96,'2.2 Daten'!$B$9:$B$860,0))) -> 3.468208092
A97: =CHOOSE('2.2 Daten'!$A$2,'2.2 Daten'!B519,'2.2 Daten'!B68,'2.2 Daten'!B85,'2.2 Daten'!B102,'2.2 Daten'!B105,'2.2 Daten'!B152,'2.2 Daten'!B156,'2.2 Daten'!B211,'2.2 Daten'!B239,'2.2 Daten'!B277,'2.2 Daten'!B323,'2.2 Daten'!B421,'2.2 Daten'!B429,'2.2 Daten'!B432,'2.2 Daten'!B452,'2.2 Daten'!B462,'2.2 Daten'!B477,'2.2 Daten'!B493,x) -> Lüneburg | B97: =IF($A97<>0,INDEX('2.2 Daten'!C$9:C$860,MATCH('2.2'!$A97,'2.2 Daten'!$B$9:$B$860,0))," ") -> 3355000 | C97: =IF($A97<>0,INDEX('2.2 Daten'!E$9:E$860,MATCH('2.2'!$A97,'2.2 Daten'!$B$9:$B$860,0))) -> 4470 | D97: =IF($A97<>0,INDEX('2.2 Daten'!F$9:F$860,MATCH('2.2'!$A97,'2.2 Daten'!$B$9:$B$860,0))) -> 790 | E97: =IF($A97<>0,INDEX('2.2 Daten'!G$9:G$860,MATCH('2.2'!$A97,'2.2 Daten'!$B$9:$B$860,0))) -> 799 | F97: =IF($A97<>0,INDEX('2.2 Daten'!H$9:H$860,MATCH('2.2'!$A97,'2.2 Daten'!$B$9:$B$860,0))) -> 2248 | G97: =IF($A97<>0,INDEX('2.2 Daten'!I$9:I$860,MATCH('2.2'!$A97,'2.2 Daten'!$B$9:$B$860,0))) -> 633 | H97: =IF($A97<>0,INDEX('2.2 Daten'!K$9:K$860,MATCH('2.2'!$A97,'2.2 Daten'!$B$9:$B$860,0))) -> 2.078100023 | I97: =IF($A97<>0,INDEX('2.2 Daten'!L$9:L$860,MATCH('2.2'!$A97,'2.2 Daten'!$B$9:$B$860,0))) -> 0.8939974457 | J97: =IF($A97<>0,INDEX('2.2 Daten'!M$9:M$860,MATCH('2.2'!$A97,'2.2 Daten'!$B$9:$B$860,0))) -> -0.8684863524 | K97: =IF($A97<>0,INDEX('2.2 Daten'!N$9:N$860,MATCH('2.2'!$A97,'2.2 Daten'!$B$9:$B$860,0))) -> 3.78578024 | L97: =IF($A97<>0,INDEX('2.2 Daten'!O$9:O$860,MATCH('2.2'!$A97,'2.2 Daten'!$B$9:$B$860,0))) -> 1.442307692
A98: =CHOOSE('2.2 Daten'!$A$2,'2.2 Daten'!B520,'2.2 Daten'!B69,'2.2 Daten'!B86,'2.2 Daten'!B103,'2.2 Daten'!B106,'2.2 Daten'!B153,'2.2 Daten'!B157,'2.2 Daten'!B212,'2.2 Daten'!B240,'2.2 Daten'!B278,'2.2 Daten'!B324,'2.2 Daten'!B422,'2.2 Daten'!B430,'2.2 Daten'!B433,'2.2 Daten'!B453,'2.2 Daten'!B463,'2.2 Daten'!B478,'2.2 Daten'!B494,x) -> Osterholz | B98: =IF($A98<>0,INDEX('2.2 Daten'!C$9:C$860,MATCH('2.2'!$A98,'2.2 Daten'!$B$9:$B$860,0))," ") -> 3356000 | C98: =IF($A98<>0,INDEX('2.2 Daten'!E$9:E$860,MATCH('2.2'!$A98,'2.2 Daten'!$B$9:$B$860,0))) -> 1899 | D98: =IF($A98<>0,INDEX('2.2 Daten'!F$9:F$860,MATCH('2.2'!$A98,'2.2 Daten'!$B$9:$B$860,0))) -> 395 | E98: =IF($A98<>0,INDEX('2.2 Daten'!G$9:G$860,MATCH('2.2'!$A98,'2.2 Daten'!$B$9:$B$860,0))) -> 355 | F98: =IF($A98<>0,INDEX('2.2 Daten'!H$9:H$860,MATCH('2.2'!$A98,'2.2 Daten'!$B$9:$B$860,0))) -> 890 | G98: =IF($A98<>0,INDEX('2.2 Daten'!I$9:I$860,MATCH('2.2'!$A98,'2.2 Daten'!$B$9:$B$860,0))) -> 259 | H98: =IF($A98<>0,INDEX('2.2 Daten'!K$9:K$860,MATCH('2.2'!$A98,'2.2 Daten'!$B$9:$B$860,0))) -> 8.081957883 | I98: =IF($A98<>0,INDEX('2.2 Daten'!L$9:L$860,MATCH('2.2'!$A98,'2.2 Daten'!$B$9:$B$860,0))) -> 8.516483516 | J98: =IF($A98<>0,INDEX('2.2 Daten'!M$9:M$860,MATCH('2.2'!$A98,'2.2 Daten'!$B$9:$B$860,0))) -> 11.9873817 | K98: =IF($A98<>0,INDEX('2.2 Daten'!N$9:N$860,MATCH('2.2'!$A98,'2.2 Daten'!$B$9:$B$860,0))) -> 7.228915663 | L98: =IF($A98<>0,INDEX('2.2 Daten'!O$9:O$860,MATCH('2.2'!$A98,'2.2 Daten'!$B$9:$B$860,0))) -> 5.284552846
A99: =CHOOSE('2.2 Daten'!$A$2,'2.2 Daten'!B521,'2.2 Daten'!B70,'2.2 Daten'!B87,'2.2 Daten'!B104,'2.2 Daten'!B107,'2.2 Daten'!B154,'2.2 Daten'!B158,'2.2 Daten'!B213,'2.2 Daten'!B241,'2.2 Daten'!B279,'2.2 Daten'!B325,'2.2 Daten'!B423,'2.2 Daten'!B431,'2.2 Daten'!B434,'2.2 Daten'!B454,'2.2 Daten'!B464,'2.2 Daten'!B479,'2.2 Daten'!B495,x) -> Rotenburg (Wümme) | B99: =IF($A99<>0,INDEX('2.2 Daten'!C$9:C$860,MATCH('2.2'!$A99,'2.2 Daten'!$B$9:$B$860,0))," ") -> 3357000 | C99: =IF($A99<>0,INDEX('2.2 Daten'!E$9:E$860,MATCH('2.2'!$A99,'2.2 Daten'!$B$9:$B$860,0))) -> 2817 | D99: =IF($A99<>0,INDEX('2.2 Daten'!F$9:F$860,MATCH('2.2'!$A99,'2.2 Daten'!$B$9:$B$860,0))) -> 583 | E99: =IF($A99<>0,INDEX('2.2 Daten'!G$9:G$860,MATCH('2.2'!$A99,'2.2 Daten'!$B$9:$B$860,0))) -> 533 | F99: =IF($A99<>0,INDEX('2.2 Daten'!H$9:H$860,MATCH('2.2'!$A99,'2.2 Daten'!$B$9:$B$860,0))) -> 1329 | G99: =IF($A99<>0,INDEX('2.2 Daten'!I$9:I$860,MATCH('2.2'!$A99,'2.2 Daten'!$B$9:$B$860,0))) -> 372 | H99: =IF($A99<>0,INDEX('2.2 Daten'!K$9:K$860,MATCH('2.2'!$A99,'2.2 Daten'!$B$9:$B$860,0))) -> 2.287581699 | I99: =IF($A99<>0,INDEX('2.2 Daten'!L$9:L$860,MATCH('2.2'!$A99,'2.2 Daten'!$B$9:$B$860,0))) -> 1.745200698 | J99: =IF($A99<>0,INDEX('2.2 Daten'!M$9:M$860,MATCH('2.2'!$A99,'2.2 Daten'!$B$9:$B$860,0))) -> 13.64605544 | K99: =IF($A99<>0,INDEX('2.2 Daten'!N$9:N$860,MATCH('2.2'!$A99,'2.2 Daten'!$B$9:$B$860,0))) -> -1.116071429 | L99: =IF($A99<>0,INDEX('2.2 Daten'!O$9:O$860,MATCH('2.2'!$A99,'2.2 Daten'!$B$9:$B$860,0))) -> 1.086956522
A100: =CHOOSE('2.2 Daten'!$A$2,'2.2 Daten'!B522,'2.2 Daten'!B71,'2.2 Daten'!B88,'2.2 Daten'!B105,'2.2 Daten'!B108,'2.2 Daten'!B155,'2.2 Daten'!B159,'2.2 Daten'!B214,'2.2 Daten'!B242,'2.2 Daten'!B280,'2.2 Daten'!B326,'2.2 Daten'!B424,'2.2 Daten'!B432,'2.2 Daten'!B435,'2.2 Daten'!B455,'2.2 Daten'!B465,'2.2 Daten'!B480,'2.2 Daten'!B496,x) -> Heidekreis | B100: =IF($A100<>0,INDEX('2.2 Daten'!C$9:C$860,MATCH('2.2'!$A100,'2.2 Daten'!$B$9:$B$860,0))," ") -> 3358000 | C100: =IF($A100<>0,INDEX('2.2 Daten'!E$9:E$860,MATCH('2.2'!$A100,'2.2 Daten'!$B$9:$B$860,0))) -> 3404 | D100: =IF($A100<>0,INDEX('2.2 Daten'!F$9:F$860,MATCH('2.2'!$A100,'2.2 Daten'!$B$9:$B$860,0))) -> 640 | E100: =IF($A100<>0,INDEX('2.2 Daten'!G$9:G$860,MATCH('2.2'!$A100,'2.2 Daten'!$B$9:$B$860,0))) -> 632 | F100: =IF($A100<>0,INDEX('2.2 Daten'!H$9:H$860,MATCH('2.2'!$A100,'2.2 Daten'!$B$9:$B$860,0))) -> 1645 | G100: =IF($A100<>0,INDEX('2.2 Daten'!I$9:I$860,MATCH('2.2'!$A100,'2.2 Daten'!$B$9:$B$860,0))) -> 487 | H100: =IF($A100<>0,INDEX('2.2 Daten'!K$9:K$860,MATCH('2.2'!$A100,'2.2 Daten'!$B$9:$B$860,0))) -> 2.191534074 | I100: =IF($A100<>0,INDEX('2.2 Daten'!L$9:L$860,MATCH('2.2'!$A100,'2.2 Daten'!$B$9:$B$860,0))) -> 5.090311987 | J100: =IF($A100<>0,INDEX('2.2 Daten'!M$9:M$860,MATCH('2.2'!$A100,'2.2 Daten'!$B$9:$B$860,0))) -> 10.29668412 | K100: =IF($A100<>0,INDEX('2.2 Daten'!N$9:N$860,MATCH('2.2'!$A100,'2.2 Daten'!$B$9:$B$860,0))) -> -0.6642512077 | L100: =IF($A100<>0,INDEX('2.2 Daten'!O$9:O$860,MATCH('2.2'!$A100,'2.2 Daten'!$B$9:$B$860,0))) -> -1.21703854
A101: =CHOOSE('2.2 Daten'!$A$2,'2.2 Daten'!B523,'2.2 Daten'!B72,'2.2 Daten'!B89,'2.2 Daten'!B106,'2.2 Daten'!B109,'2.2 Daten'!B156,'2.2 Daten'!B160,'2.2 Daten'!B215,'2.2 Daten'!B243,'2.2 Daten'!B281,'2.2 Daten'!B327,'2.2 Daten'!B425,'2.2 Daten'!B433,'2.2 Daten'!B436,'2.2 Daten'!B456,'2.2 Daten'!B466,'2.2 Daten'!B481,'2.2 Daten'!B497,x) -> Stade | B101: =IF($A101<>0,INDEX('2.2 Daten'!C$9:C$860,MATCH('2.2'!$A101,'2.2 Daten'!$B$9:$B$860,0))," ") -> 3359000 | C101: =IF($A101<>0,INDEX('2.2 Daten'!E$9:E$860,MATCH('2.2'!$A101,'2.2 Daten'!$B$9:$B$860,0))) -> 5612 | D101: =IF($A101<>0,INDEX('2.2 Daten'!F$9:F$860,MATCH('2.2'!$A101,'2.2 Daten'!$B$9:$B$860,0))) -> 1096 | E101: =IF($A101<>0,INDEX('2.2 Daten'!G$9:G$860,MATCH('2.2'!$A101,'2.2 Daten'!$B$9:$B$860,0))) -> 1060 | F101: =IF($A101<>0,INDEX('2.2 Daten'!H$9:H$860,MATCH('2.2'!$A101,'2.2 Daten'!$B$9:$B$860,0))) -> 2710 | G101: =IF($A101<>0,INDEX('2.2 Daten'!I$9:I$860,MATCH('2.2'!$A101,'2.2 Daten'!$B$9:$B$860,0))) -> 746 | H101: =IF($A101<>0,INDEX('2.2 Daten'!K$9:K$860,MATCH('2.2'!$A101,'2.2 Daten'!$B$9:$B$860,0))) -> 10.75587132 | I101: =IF($A101<>0,INDEX('2.2 Daten'!L$9:L$860,MATCH('2.2'!$A101,'2.2 Daten'!$B$9:$B$860,0))) -> 13.81100727 | J101: =IF($A101<>0,INDEX('2.2 Daten'!M$9:M$860,MATCH('2.2'!$A101,'2.2 Daten'!$B$9:$B$860,0))) -> 16.1007667 | K101: =IF($A101<>0,INDEX('2.2 Daten'!N$9:N$860,MATCH('2.2'!$A101,'2.2 Daten'!$B$9:$B$860,0))) -> 8.486789432 | L101: =IF($A101<>0,INDEX('2.2 Daten'!O$9:O$860,MATCH('2.2'!$A101,'2.2 Daten'!$B$9:$B$860,0))) -> 7.647907648
A102: =CHOOSE('2.2 Daten'!$A$2,'2.2 Daten'!B524,'2.2 Daten'!B73,'2.2 Daten'!B90,'2.2 Daten'!B107,'2.2 Daten'!B110,'2.2 Daten'!B157,'2.2 Daten'!B161,'2.2 Daten'!B216,'2.2 Daten'!B244,'2.2 Daten'!B282,'2.2 Daten'!B328,'2.2 Daten'!B426,'2.2 Daten'!B434,'2.2 Daten'!B437,'2.2 Daten'!B457,'2.2 Daten'!B467,'2.2 Daten'!B482,'2.2 Daten'!B498,x) -> Uelzen | B102: =IF($A102<>0,INDEX('2.2 Daten'!C$9:C$860,MATCH('2.2'!$A102,'2.2 Daten'!$B$9:$B$860,0))," ") -> 3360000 | C102: =IF($A102<>0,INDEX('2.2 Daten'!E$9:E$860,MATCH('2.2'!$A102,'2.2 Daten'!$B$9:$B$860,0))) -> 2029 | D102: =IF($A102<>0,INDEX('2.2 Daten'!F$9:F$860,MATCH('2.2'!$A102,'2.2 Daten'!$B$9:$B$860,0))) -> 380 | E102: =IF($A102<>0,INDEX('2.2 Daten'!G$9:G$860,MATCH('2.2'!$A102,'2.2 Daten'!$B$9:$B$860,0))) -> 410 | F102: =IF($A102<>0,INDEX('2.2 Daten'!H$9:H$860,MATCH('2.2'!$A102,'2.2 Daten'!$B$9:$B$860,0))) -> 976 | G102: =IF($A102<>0,INDEX('2.2 Daten'!I$9:I$860,MATCH('2.2'!$A102,'2.2 Daten'!$B$9:$B$860,0))) -> 263 | H102: =IF($A102<>0,INDEX('2.2 Daten'!K$9:K$860,MATCH('2.2'!$A102,'2.2 Daten'!$B$9:$B$860,0))) -> 6.958355298 | I102: =IF($A102<>0,INDEX('2.2 Daten'!L$9:L$860,MATCH('2.2'!$A102,'2.2 Daten'!$B$9:$B$860,0))) -> -2.313624679 | J102: =IF($A102<>0,INDEX('2.2 Daten'!M$9:M$860,MATCH('2.2'!$A102,'2.2 Daten'!$B$9:$B$860,0))) -> 12.32876712 | K102: =IF($A102<>0,INDEX('2.2 Daten'!N$9:N$860,MATCH('2.2'!$A102,'2.2 Daten'!$B$9:$B$860,0))) -> 9.172259508 | L102: =IF($A102<>0,INDEX('2.2 Daten'!O$9:O$860,MATCH('2.2'!$A102,'2.2 Daten'!$B$9:$B$860,0))) -> 5.62248996
A103: =CHOOSE('2.2 Daten'!$A$2,'2.2 Daten'!B525,'2.2 Daten'!B74,'2.2 Daten'!B91,'2.2 Daten'!B108,'2.2 Daten'!B111,'2.2 Daten'!B158,'2.2 Daten'!B162,'2.2 Daten'!B217,'2.2 Daten'!B245,'2.2 Daten'!B283,'2.2 Daten'!B329,'2.2 Daten'!B427,'2.2 Daten'!B435,'2.2 Daten'!B438,'2.2 Daten'!B458,'2.2 Daten'!B468,'2.2 Daten'!B483,'2.2 Daten'!B499,x) -> Verden | B103: =IF($A103<>0,INDEX('2.2 Daten'!C$9:C$860,MATCH('2.2'!$A103,'2.2 Daten'!$B$9:$B$860,0))," ") -> 3361000 | C103: =IF($A103<>0,INDEX('2.2 Daten'!E$9:E$860,MATCH('2.2'!$A103,'2.2 Daten'!$B$9:$B$860,0))) -> 3091 | D103: =IF($A103<>0,INDEX('2.2 Daten'!F$9:F$860,MATCH('2.2'!$A103,'2.2 Daten'!$B$9:$B$860,0))) -> 602 | E103: =IF($A103<>0,INDEX('2.2 Daten'!G$9:G$860,MATCH('2.2'!$A103,'2.2 Daten'!$B$9:$B$860,0))) -> 573 | F103: =IF($A103<>0,INDEX('2.2 Daten'!H$9:H$860,MATCH('2.2'!$A103,'2.2 Daten'!$B$9:$B$860,0))) -> 1471 | G103: =IF($A103<>0,INDEX('2.2 Daten'!I$9:I$860,MATCH('2.2'!$A103,'2.2 Daten'!$B$9:$B$860,0))) -> 445 | H103: =IF($A103<>0,INDEX('2.2 Daten'!K$9:K$860,MATCH('2.2'!$A103,'2.2 Daten'!$B$9:$B$860,0))) -> 2.588781945 | I103: =IF($A103<>0,INDEX('2.2 Daten'!L$9:L$860,MATCH('2.2'!$A103,'2.2 Daten'!$B$9:$B$860,0))) -> 2.380952381 | J103: =IF($A103<>0,INDEX('2.2 Daten'!M$9:M$860,MATCH('2.2'!$A103,'2.2 Daten'!$B$9:$B$860,0))) -> 5.137614679 | K103: =IF($A103<>0,INDEX('2.2 Daten'!N$9:N$860,MATCH('2.2'!$A103,'2.2 Daten'!$B$9:$B$860,0))) -> 1.94040194 | L103: =IF($A103<>0,INDEX('2.2 Daten'!O$9:O$860,MATCH('2.2'!$A103,'2.2 Daten'!$B$9:$B$860,0))) -> 1.830663616
A104: =CHOOSE('2.2 Daten'!$A$2,'2.2 Daten'!B526,'2.2 Daten'!B75,'2.2 Daten'!B92,'2.2 Daten'!B109,'2.2 Daten'!B112,'2.2 Daten'!B159,'2.2 Daten'!B163,'2.2 Daten'!B218,'2.2 Daten'!B246,'2.2 Daten'!B284,'2.2 Daten'!B330,'2.2 Daten'!B428,'2.2 Daten'!B436,'2.2 Daten'!B439,'2.2 Daten'!B459,'2.2 Daten'!B469,'2.2 Daten'!B484,'2.2 Daten'!B500,x) -> Delmenhorst, Stadt | B104: =IF($A104<>0,INDEX('2.2 Daten'!C$9:C$860,MATCH('2.2'!$A104,'2.2 Daten'!$B$9:$B$860,0))," ") -> 3401000 | C104: =IF($A104<>0,INDEX('2.2 Daten'!E$9:E$860,MATCH('2.2'!$A104,'2.2 Daten'!$B$9:$B$860,0))) -> 4159 | D104: =IF($A104<>0,INDEX('2.2 Daten'!F$9:F$860,MATCH('2.2'!$A104,'2.2 Daten'!$B$9:$B$860,0))) -> 811 | E104: =IF($A104<>0,INDEX('2.2 Daten'!G$9:G$860,MATCH('2.2'!$A104,'2.2 Daten'!$B$9:$B$860,0))) -> 759 | F104: =IF($A104<>0,INDEX('2.2 Daten'!H$9:H$860,MATCH('2.2'!$A104,'2.2 Daten'!$B$9:$B$860,0))) -> 2046 | G104: =IF($A104<>0,INDEX('2.2 Daten'!I$9:I$860,MATCH('2.2'!$A104,'2.2 Daten'!$B$9:$B$860,0))) -> 543 | H104: =IF($A104<>0,INDEX('2.2 Daten'!K$9:K$860,MATCH('2.2'!$A104,'2.2 Daten'!$B$9:$B$860,0))) -> 5.264490003 | I104: =IF($A104<>0,INDEX('2.2 Daten'!L$9:L$860,MATCH('2.2'!$A104,'2.2 Daten'!$B$9:$B$860,0))) -> 10.19021739 | J104: =IF($A104<>0,INDEX('2.2 Daten'!M$9:M$860,MATCH('2.2'!$A104,'2.2 Daten'!$B$9:$B$860,0))) -> 9.365994236 | K104: =IF($A104<>0,INDEX('2.2 Daten'!N$9:N$860,MATCH('2.2'!$A104,'2.2 Daten'!$B$9:$B$860,0))) -> 5.409582689 | L104: =IF($A104<>0,INDEX('2.2 Daten'!O$9:O$860,MATCH('2.2'!$A104,'2.2 Daten'!$B$9:$B$860,0))) -> -6.379310345
A105: =CHOOSE('2.2 Daten'!$A$2,'2.2 Daten'!B527,'2.2 Daten'!B76,'2.2 Daten'!B93,'2.2 Daten'!B110,'2.2 Daten'!B113,'2.2 Daten'!B160,'2.2 Daten'!B164,'2.2 Daten'!B219,'2.2 Daten'!B247,'2.2 Daten'!B285,'2.2 Daten'!B331,'2.2 Daten'!B429,'2.2 Daten'!B437,'2.2 Daten'!B440,'2.2 Daten'!B460,'2.2 Daten'!B470,'2.2 Daten'!B485,'2.2 Daten'!B501,x) -> Emden, Stadt | B105: =IF($A105<>0,INDEX('2.2 Daten'!C$9:C$860,MATCH('2.2'!$A105,'2.2 Daten'!$B$9:$B$860,0))," ") -> 3402000 | C105: =IF($A105<>0,INDEX('2.2 Daten'!E$9:E$860,MATCH('2.2'!$A105,'2.2 Daten'!$B$9:$B$860,0))) -> 1998 | D105: =IF($A105<>0,INDEX('2.2 Daten'!F$9:F$860,MATCH('2.2'!$A105,'2.2 Daten'!$B$9:$B$860,0))) -> 412 | E105: =IF($A105<>0,INDEX('2.2 Daten'!G$9:G$860,MATCH('2.2'!$A105,'2.2 Daten'!$B$9:$B$860,0))) -> 375 | F105: =IF($A105<>0,INDEX('2.2 Daten'!H$9:H$860,MATCH('2.2'!$A105,'2.2 Daten'!$B$9:$B$860,0))) -> 967 | G105: =IF($A105<>0,INDEX('2.2 Daten'!I$9:I$860,MATCH('2.2'!$A105,'2.2 Daten'!$B$9:$B$860,0))) -> 244 | H105: =IF($A105<>0,INDEX('2.2 Daten'!K$9:K$860,MATCH('2.2'!$A105,'2.2 Daten'!$B$9:$B$860,0))) -> 4.93697479 | I105: =IF($A105<>0,INDEX('2.2 Daten'!L$9:L$860,MATCH('2.2'!$A105,'2.2 Daten'!$B$9:$B$860,0))) -> 8.421052632 | J105: =IF($A105<>0,INDEX('2.2 Daten'!M$9:M$860,MATCH('2.2'!$A105,'2.2 Daten'!$B$9:$B$860,0))) -> 2.739726027 | K105: =IF($A105<>0,INDEX('2.2 Daten'!N$9:N$860,MATCH('2.2'!$A105,'2.2 Daten'!$B$9:$B$860,0))) -> 9.14221219 | L105: =IF($A105<>0,INDEX('2.2 Daten'!O$9:O$860,MATCH('2.2'!$A105,'2.2 Daten'!$B$9:$B$860,0))) -> -10.62271062
A106: =CHOOSE('2.2 Daten'!$A$2,'2.2 Daten'!B528,'2.2 Daten'!B77,'2.2 Daten'!B94,'2.2 Daten'!B111,'2.2 Daten'!B114,'2.2 Daten'!B161,'2.2 Daten'!B165,'2.2 Daten'!B220,'2.2 Daten'!B248,'2.2 Daten'!B286,'2.2 Daten'!B332,'2.2 Daten'!B430,'2.2 Daten'!B438,'2.2 Daten'!B441,'2.2 Daten'!B461,'2.2 Daten'!B471,'2.2 Daten'!B486,'2.2 Daten'!B502,x) -> Oldenburg (Oldenburg), Stadt | B106: =IF($A106<>0,INDEX('2.2 Daten'!C$9:C$860,MATCH('2.2'!$A106,'2.2 Daten'!$B$9:$B$860,0))," ") -> 3403000 | C106: =IF($A106<>0,INDEX('2.2 Daten'!E$9:E$860,MATCH('2.2'!$A106,'2.2 Daten'!$B$9:$B$860,0))) -> 5807 | D106: =IF($A106<>0,INDEX('2.2 Daten'!F$9:F$860,MATCH('2.2'!$A106,'2.2 Daten'!$B$9:$B$860,0))) -> 1052 | E106: =IF($A106<>0,INDEX('2.2 Daten'!G$9:G$860,MATCH('2.2'!$A106,'2.2 Daten'!$B$9:$B$860,0))) -> 1080 | F106: =IF($A106<>0,INDEX('2.2 Daten'!H$9:H$860,MATCH('2.2'!$A106,'2.2 Daten'!$B$9:$B$860,0))) -> 2862 | G106: =IF($A106<>0,INDEX('2.2 Daten'!I$9:I$860,MATCH('2.2'!$A106,'2.2 Daten'!$B$9:$B$860,0))) -> 813 | H106: =IF($A106<>0,INDEX('2.2 Daten'!K$9:K$860,MATCH('2.2'!$A106,'2.2 Daten'!$B$9:$B$860,0))) -> 3.38258857 | I106: =IF($A106<>0,INDEX('2.2 Daten'!L$9:L$860,MATCH('2.2'!$A106,'2.2 Daten'!$B$9:$B$860,0))) -> 0.5736137667 | J106: =IF($A106<>0,INDEX('2.2 Daten'!M$9:M$860,MATCH('2.2'!$A106,'2.2 Daten'!$B$9:$B$860,0))) -> 3.846153846 | K106: =IF($A106<>0,INDEX('2.2 Daten'!N$9:N$860,MATCH('2.2'!$A106,'2.2 Daten'!$B$9:$B$860,0))) -> 3.73323668 | L106: =IF($A106<>0,INDEX('2.2 Daten'!O$9:O$860,MATCH('2.2'!$A106,'2.2 Daten'!$B$9:$B$860,0))) -> 5.310880829
A107: =CHOOSE('2.2 Daten'!$A$2,'2.2 Daten'!B529,'2.2 Daten'!B78,'2.2 Daten'!B95,'2.2 Daten'!B112,'2.2 Daten'!B115,'2.2 Daten'!B162,'2.2 Daten'!B166,'2.2 Daten'!B221,'2.2 Daten'!B249,'2.2 Daten'!B287,'2.2 Daten'!B333,'2.2 Daten'!B431,'2.2 Daten'!B439,'2.2 Daten'!B442,'2.2 Daten'!B462,'2.2 Daten'!B472,'2.2 Daten'!B487,'2.2 Daten'!B503,x) -> Osnabrück, Stadt | B107: =IF($A107<>0,INDEX('2.2 Daten'!C$9:C$860,MATCH('2.2'!$A107,'2.2 Daten'!$B$9:$B$860,0))," ") -> 3404000 | C107: =IF($A107<>0,INDEX('2.2 Daten'!E$9:E$860,MATCH('2.2'!$A107,'2.2 Daten'!$B$9:$B$860,0))) -> 5694 | D107: =IF($A107<>0,INDEX('2.2 Daten'!F$9:F$860,MATCH('2.2'!$A107,'2.2 Daten'!$B$9:$B$860,0))) -> 1045 | E107: =IF($A107<>0,INDEX('2.2 Daten'!G$9:G$860,MATCH('2.2'!$A107,'2.2 Daten'!$B$9:$B$860,0))) -> 1029 | F107: =IF($A107<>0,INDEX('2.2 Daten'!H$9:H$860,MATCH('2.2'!$A107,'2.2 Daten'!$B$9:$B$860,0))) -> 2825 | G107: =IF($A107<>0,INDEX('2.2 Daten'!I$9:I$860,MATCH('2.2'!$A107,'2.2 Daten'!$B$9:$B$860,0))) -> 795 | H107: =IF($A107<>0,INDEX('2.2 Daten'!K$9:K$860,MATCH('2.2'!$A107,'2.2 Daten'!$B$9:$B$860,0))) -> -0.01755926251 | I107: =IF($A107<>0,INDEX('2.2 Daten'!L$9:L$860,MATCH('2.2'!$A107,'2.2 Daten'!$B$9:$B$860,0))) -> 0.3842459174 | J107: =IF($A107<>0,INDEX('2.2 Daten'!M$9:M$860,MATCH('2.2'!$A107,'2.2 Daten'!$B$9:$B$860,0))) -> -2 | K107: =IF($A107<>0,INDEX('2.2 Daten'!N$9:N$860,MATCH('2.2'!$A107,'2.2 Daten'!$B$9:$B$860,0))) -> -0.3527336861 | L107: =IF($A107<>0,INDEX('2.2 Daten'!O$9:O$860,MATCH('2.2'!$A107,'2.2 Daten'!$B$9:$B$860,0))) -> 3.381014304
A108: =CHOOSE('2.2 Daten'!$A$2,'2.2 Daten'!B530,'2.2 Daten'!B79,'2.2 Daten'!B96,'2.2 Daten'!B113,'2.2 Daten'!B116,'2.2 Daten'!B163,'2.2 Daten'!B167,'2.2 Daten'!B222,'2.2 Daten'!B250,'2.2 Daten'!B288,'2.2 Daten'!B334,'2.2 Daten'!B432,'2.2 Daten'!B440,'2.2 Daten'!B443,'2.2 Daten'!B463,'2.2 Daten'!B473,'2.2 Daten'!B488,'2.2 Daten'!B504,x) -> Wilhelmshaven, Stadt | B108: =IF($A108<>0,INDEX('2.2 Daten'!C$9:C$860,MATCH('2.2'!$A108,'2.2 Daten'!$B$9:$B$860,0))," ") -> 3405000 | C108: =IF($A108<>0,INDEX('2.2 Daten'!E$9:E$860,MATCH('2.2'!$A108,'2.2 Daten'!$B$9:$B$860,0))) -> 3878 | D108: =IF($A108<>0,INDEX('2.2 Daten'!F$9:F$860,MATCH('2.2'!$A108,'2.2 Daten'!$B$9:$B$860,0))) -> 803 | E108: =IF($A108<>0,INDEX('2.2 Daten'!G$9:G$860,MATCH('2.2'!$A108,'2.2 Daten'!$B$9:$B$860,0))) -> 711 | F108: =IF($A108<>0,INDEX('2.2 Daten'!H$9:H$860,MATCH('2.2'!$A108,'2.2 Daten'!$B$9:$B$860,0))) -> 1853 | G108: =IF($A108<>0,INDEX('2.2 Daten'!I$9:I$860,MATCH('2.2'!$A108,'2.2 Daten'!$B$9:$B$860,0))) -> 511 | H108: =IF($A108<>0,INDEX('2.2 Daten'!K$9:K$860,MATCH('2.2'!$A108,'2.2 Daten'!$B$9:$B$860,0))) -> 10.17045455 | I108: =IF($A108<>0,INDEX('2.2 Daten'!L$9:L$860,MATCH('2.2'!$A108,'2.2 Daten'!$B$9:$B$860,0))) -> 14.0625 | J108: =IF($A108<>0,INDEX('2.2 Daten'!M$9:M$860,MATCH('2.2'!$A108,'2.2 Daten'!$B$9:$B$860,0))) -> 9.216589862 | K108: =IF($A108<>0,INDEX('2.2 Daten'!N$9:N$860,MATCH('2.2'!$A108,'2.2 Daten'!$B$9:$B$860,0))) -> 9.064155386 | L108: =IF($A108<>0,INDEX('2.2 Daten'!O$9:O$860,MATCH('2.2'!$A108,'2.2 Daten'!$B$9:$B$860,0))) -> 9.656652361
A109: =CHOOSE('2.2 Daten'!$A$2,'2.2 Daten'!B531,'2.2 Daten'!B80,'2.2 Daten'!B97,'2.2 Daten'!B114,'2.2 Daten'!B117,'2.2 Daten'!B164,'2.2 Daten'!B168,'2.2 Daten'!B223,'2.2 Daten'!B251,'2.2 Daten'!B289,'2.2 Daten'!B335,'2.2 Daten'!B433,'2.2 Daten'!B441,'2.2 Daten'!B444,'2.2 Daten'!B464,'2.2 Daten'!B474,'2.2 Daten'!B489,'2.2 Daten'!B505,x) -> Ammerland | B109: =IF($A109<>0,INDEX('2.2 Daten'!C$9:C$860,MATCH('2.2'!$A109,'2.2 Daten'!$B$9:$B$860,0))," ") -> 3451000 | C109: =IF($A109<>0,INDEX('2.2 Daten'!E$9:E$860,MATCH('2.2'!$A109,'2.2 Daten'!$B$9:$B$860,0))) -> 2477 | D109: =IF($A109<>0,INDEX('2.2 Daten'!F$9:F$860,MATCH('2.2'!$A109,'2.2 Daten'!$B$9:$B$860,0))) -> 398 | E109: =IF($A109<>0,INDEX('2.2 Daten'!G$9:G$860,MATCH('2.2'!$A109,'2.2 Daten'!$B$9:$B$860,0))) -> 422 | F109: =IF($A109<>0,INDEX('2.2 Daten'!H$9:H$860,MATCH('2.2'!$A109,'2.2 Daten'!$B$9:$B$860,0))) -> 1276 | G109: =IF($A109<>0,INDEX('2.2 Daten'!I$9:I$860,MATCH('2.2'!$A109,'2.2 Daten'!$B$9:$B$860,0))) -> 381 | H109: =IF($A109<>0,INDEX('2.2 Daten'!K$9:K$860,MATCH('2.2'!$A109,'2.2 Daten'!$B$9:$B$860,0))) -> 7.229437229 | I109: =IF($A109<>0,INDEX('2.2 Daten'!L$9:L$860,MATCH('2.2'!$A109,'2.2 Daten'!$B$9:$B$860,0))) -> 9.641873278 | J109: =IF($A109<>0,INDEX('2.2 Daten'!M$9:M$860,MATCH('2.2'!$A109,'2.2 Daten'!$B$9:$B$860,0))) -> 0.956937799 | K109: =IF($A109<>0,INDEX('2.2 Daten'!N$9:N$860,MATCH('2.2'!$A109,'2.2 Daten'!$B$9:$B$860,0))) -> 7.8613694 | L109: =IF($A109<>0,INDEX('2.2 Daten'!O$9:O$860,MATCH('2.2'!$A109,'2.2 Daten'!$B$9:$B$860,0))) -> 10.11560694
A110: =CHOOSE('2.2 Daten'!$A$2,'2.2 Daten'!B532,'2.2 Daten'!B81,'2.2 Daten'!B98,'2.2 Daten'!B115,'2.2 Daten'!B118,'2.2 Daten'!B165,'2.2 Daten'!B169,'2.2 Daten'!B224,'2.2 Daten'!B252,'2.2 Daten'!B290,'2.2 Daten'!B336,'2.2 Daten'!B434,'2.2 Daten'!B442,'2.2 Daten'!B445,'2.2 Daten'!B465,'2.2 Daten'!B475,'2.2 Daten'!B490,'2.2 Daten'!B506,x) -> Aurich | B110: =IF($A110<>0,INDEX('2.2 Daten'!C$9:C$860,MATCH('2.2'!$A110,'2.2 Daten'!$B$9:$B$860,0))," ") -> 3452000 | C110: =IF($A110<>0,INDEX('2.2 Daten'!E$9:E$860,MATCH('2.2'!$A110,'2.2 Daten'!$B$9:$B$860,0))) -> 4834 | D110: =IF($A110<>0,INDEX('2.2 Daten'!F$9:F$860,MATCH('2.2'!$A110,'2.2 Daten'!$B$9:$B$860,0))) -> 916 | E110: =IF($A110<>0,INDEX('2.2 Daten'!G$9:G$860,MATCH('2.2'!$A110,'2.2 Daten'!$B$9:$B$860,0))) -> 814 | F110: =IF($A110<>0,INDEX('2.2 Daten'!H$9:H$860,MATCH('2.2'!$A110,'2.2 Daten'!$B$9:$B$860,0))) -> 2438 | G110: =IF($A110<>0,INDEX('2.2 Daten'!I$9:I$860,MATCH('2.2'!$A110,'2.2 Daten'!$B$9:$B$860,0))) -> 666 | H110: =IF($A110<>0,INDEX('2.2 Daten'!K$9:K$860,MATCH('2.2'!$A110,'2.2 Daten'!$B$9:$B$860,0))) -> -2.106115836 | I110: =IF($A110<>0,INDEX('2.2 Daten'!L$9:L$860,MATCH('2.2'!$A110,'2.2 Daten'!$B$9:$B$860,0))) -> 3.153153153 | J110: =IF($A110<>0,INDEX('2.2 Daten'!M$9:M$860,MATCH('2.2'!$A110,'2.2 Daten'!$B$9:$B$860,0))) -> -1.690821256 | K110: =IF($A110<>0,INDEX('2.2 Daten'!N$9:N$860,MATCH('2.2'!$A110,'2.2 Daten'!$B$9:$B$860,0))) -> -3.788476717 | L110: =IF($A110<>0,INDEX('2.2 Daten'!O$9:O$860,MATCH('2.2'!$A110,'2.2 Daten'!$B$9:$B$860,0))) -> -3.197674419
A111: =CHOOSE('2.2 Daten'!$A$2,'2.2 Daten'!B533,'2.2 Daten'!B82,'2.2 Daten'!B99,'2.2 Daten'!B116,'2.2 Daten'!B119,'2.2 Daten'!B166,'2.2 Daten'!B170,'2.2 Daten'!B225,'2.2 Daten'!B253,'2.2 Daten'!B291,'2.2 Daten'!B337,'2.2 Daten'!B435,'2.2 Daten'!B443,'2.2 Daten'!B446,'2.2 Daten'!B466,'2.2 Daten'!B476,'2.2 Daten'!B491,'2.2 Daten'!B507,x) -> Cloppenburg | B111: =IF($A111<>0,INDEX('2.2 Daten'!C$9:C$860,MATCH('2.2'!$A111,'2.2 Daten'!$B$9:$B$860,0))," ") -> 3453000 | C111: =IF($A111<>0,INDEX('2.2 Daten'!E$9:E$860,MATCH('2.2'!$A111,'2.2 Daten'!$B$9:$B$860,0))) -> 3892 | D111: =IF($A111<>0,INDEX('2.2 Daten'!F$9:F$860,MATCH('2.2'!$A111,'2.2 Daten'!$B$9:$B$860,0))) -> 702 | E111: =IF($A111<>0,INDEX('2.2 Daten'!G$9:G$860,MATCH('2.2'!$A111,'2.2 Daten'!$B$9:$B$860,0))) -> 684 | F111: =IF($A111<>0,INDEX('2.2 Daten'!H$9:H$860,MATCH('2.2'!$A111,'2.2 Daten'!$B$9:$B$860,0))) -> 1946 | G111: =IF($A111<>0,INDEX('2.2 Daten'!I$9:I$860,MATCH('2.2'!$A111,'2.2 Daten'!$B$9:$B$860,0))) -> 560 | H111: =IF($A111<>0,INDEX('2.2 Daten'!K$9:K$860,MATCH('2.2'!$A111,'2.2 Daten'!$B$9:$B$860,0))) -> -3.948667325 | I111: =IF($A111<>0,INDEX('2.2 Daten'!L$9:L$860,MATCH('2.2'!$A111,'2.2 Daten'!$B$9:$B$860,0))) -> 1.007194245 | J111: =IF($A111<>0,INDEX('2.2 Daten'!M$9:M$860,MATCH('2.2'!$A111,'2.2 Daten'!$B$9:$B$860,0))) -> -3.389830508 | K111: =IF($A111<>0,INDEX('2.2 Daten'!N$9:N$860,MATCH('2.2'!$A111,'2.2 Daten'!$B$9:$B$860,0))) -> -4.561059343 | L111: =IF($A111<>0,INDEX('2.2 Daten'!O$9:O$860,MATCH('2.2'!$A111,'2.2 Daten'!$B$9:$B$860,0))) -> -8.196721311
A112: =CHOOSE('2.2 Daten'!$A$2,'2.2 Daten'!B534,'2.2 Daten'!B83,'2.2 Daten'!B100,'2.2 Daten'!B117,'2.2 Daten'!B120,'2.2 Daten'!B167,'2.2 Daten'!B171,'2.2 Daten'!B226,'2.2 Daten'!B254,'2.2 Daten'!B292,'2.2 Daten'!B338,'2.2 Daten'!B436,'2.2 Daten'!B444,'2.2 Daten'!B447,'2.2 Daten'!B467,'2.2 Daten'!B477,'2.2 Daten'!B492,'2.2 Daten'!B508,x) -> Emsland | B112: =IF($A112<>0,INDEX('2.2 Daten'!C$9:C$860,MATCH('2.2'!$A112,'2.2 Daten'!$B$9:$B$860,0))," ") -> 3454000 | C112: =IF($A112<>0,INDEX('2.2 Daten'!E$9:E$860,MATCH('2.2'!$A112,'2.2 Daten'!$B$9:$B$860,0))) -> 5429 | D112: =IF($A112<>0,INDEX('2.2 Daten'!F$9:F$860,MATCH('2.2'!$A112,'2.2 Daten'!$B$9:$B$860,0))) -> 986 | E112: =IF($A112<>0,INDEX('2.2 Daten'!G$9:G$860,MATCH('2.2'!$A112,'2.2 Daten'!$B$9:$B$860,0))) -> 979 | F112: =IF($A112<>0,INDEX('2.2 Daten'!H$9:H$860,MATCH('2.2'!$A112,'2.2 Daten'!$B$9:$B$860,0))) -> 2696 | G112: =IF($A112<>0,INDEX('2.2 Daten'!I$9:I$860,MATCH('2.2'!$A112,'2.2 Daten'!$B$9:$B$860,0))) -> 768 | H112: =IF($A112<>0,INDEX('2.2 Daten'!K$9:K$860,MATCH('2.2'!$A112,'2.2 Daten'!$B$9:$B$860,0))) -> 2.608202608 | I112: =IF($A112<>0,INDEX('2.2 Daten'!L$9:L$860,MATCH('2.2'!$A112,'2.2 Daten'!$B$9:$B$860,0))) -> 7.995618839 | J112: =IF($A112<>0,INDEX('2.2 Daten'!M$9:M$860,MATCH('2.2'!$A112,'2.2 Daten'!$B$9:$B$860,0))) -> 1.661474559 | K112: =IF($A112<>0,INDEX('2.2 Daten'!N$9:N$860,MATCH('2.2'!$A112,'2.2 Daten'!$B$9:$B$860,0))) -> 1.774254436 | L112: =IF($A112<>0,INDEX('2.2 Daten'!O$9:O$860,MATCH('2.2'!$A112,'2.2 Daten'!$B$9:$B$860,0))) -> 0.2610966057
A113: =CHOOSE('2.2 Daten'!$A$2,'2.2 Daten'!B535,'2.2 Daten'!B84,'2.2 Daten'!B101,'2.2 Daten'!B118,'2.2 Daten'!B121,'2.2 Daten'!B168,'2.2 Daten'!B172,'2.2 Daten'!B227,'2.2 Daten'!B255,'2.2 Daten'!B293,'2.2 Daten'!B339,'2.2 Daten'!B437,'2.2 Daten'!B445,'2.2 Daten'!B448,'2.2 Daten'!B468,'2.2 Daten'!B478,'2.2 Daten'!B493,'2.2 Daten'!B509,x) -> Friesland | B113: =IF($A113<>0,INDEX('2.2 Daten'!C$9:C$860,MATCH('2.2'!$A113,'2.2 Daten'!$B$9:$B$860,0))," ") -> 3455000 | C113: =IF($A113<>0,INDEX('2.2 Daten'!E$9:E$860,MATCH('2.2'!$A113,'2.2 Daten'!$B$9:$B$860,0))) -> 2148 | D113: =IF($A113<>0,INDEX('2.2 Daten'!F$9:F$860,MATCH('2.2'!$A113,'2.2 Daten'!$B$9:$B$860,0))) -> 422 | E113: =IF($A113<>0,INDEX('2.2 Daten'!G$9:G$860,MATCH('2.2'!$A113,'2.2 Daten'!$B$9:$B$860,0))) -> 393 | F113: =IF($A113<>0,INDEX('2.2 Daten'!H$9:H$860,MATCH('2.2'!$A113,'2.2 Daten'!$B$9:$B$860,0))) -> 1055 | G113: =IF($A113<>0,INDEX('2.2 Daten'!I$9:I$860,MATCH('2.2'!$A113,'2.2 Daten'!$B$9:$B$860,0))) -> 278 | H113: =IF($A113<>0,INDEX('2.2 Daten'!K$9:K$860,MATCH('2.2'!$A113,'2.2 Daten'!$B$9:$B$860,0))) -> 6.972111554 | I113: =IF($A113<>0,INDEX('2.2 Daten'!L$9:L$860,MATCH('2.2'!$A113,'2.2 Daten'!$B$9:$B$860,0))) -> 14.67391304 | J113: =IF($A113<>0,INDEX('2.2 Daten'!M$9:M$860,MATCH('2.2'!$A113,'2.2 Daten'!$B$9:$B$860,0))) -> 8.563535912 | K113: =IF($A113<>0,INDEX('2.2 Daten'!N$9:N$860,MATCH('2.2'!$A113,'2.2 Daten'!$B$9:$B$860,0))) -> 8.205128205 | L113: =IF($A113<>0,INDEX('2.2 Daten'!O$9:O$860,MATCH('2.2'!$A113,'2.2 Daten'!$B$9:$B$860,0))) -> -8.250825083
A114: =CHOOSE('2.2 Daten'!$A$2,'2.2 Daten'!B536,'2.2 Daten'!B85,'2.2 Daten'!B102,'2.2 Daten'!B119,'2.2 Daten'!B122,'2.2 Daten'!B169,'2.2 Daten'!B173,'2.2 Daten'!B228,'2.2 Daten'!B256,'2.2 Daten'!B294,'2.2 Daten'!B340,'2.2 Daten'!B438,'2.2 Daten'!B446,'2.2 Daten'!B449,'2.2 Daten'!B469,'2.2 Daten'!B479,'2.2 Daten'!B494,'2.2 Daten'!B510,x) -> Grafschaft Bentheim | B114: =IF($A114<>0,INDEX('2.2 Daten'!C$9:C$860,MATCH('2.2'!$A114,'2.2 Daten'!$B$9:$B$860,0))," ") -> 3456000 | C114: =IF($A114<>0,INDEX('2.2 Daten'!E$9:E$860,MATCH('2.2'!$A114,'2.2 Daten'!$B$9:$B$860,0))) -> 2574 | D114: =IF($A114<>0,INDEX('2.2 Daten'!F$9:F$860,MATCH('2.2'!$A114,'2.2 Daten'!$B$9:$B$860,0))) -> 446 | E114: =IF($A114<>0,INDEX('2.2 Daten'!G$9:G$860,MATCH('2.2'!$A114,'2.2 Daten'!$B$9:$B$860,0))) -> 481 | F114: =IF($A114<>0,INDEX('2.2 Daten'!H$9:H$860,MATCH('2.2'!$A114,'2.2 Daten'!$B$9:$B$860,0))) -> 1244 | G114: =IF($A114<>0,INDEX('2.2 Daten'!I$9:I$860,MATCH('2.2'!$A114,'2.2 Daten'!$B$9:$B$860,0))) -> 403 | H114: =IF($A114<>0,INDEX('2.2 Daten'!K$9:K$860,MATCH('2.2'!$A114,'2.2 Daten'!$B$9:$B$860,0))) -> -4.73723168 | I114: =IF($A114<>0,INDEX('2.2 Daten'!L$9:L$860,MATCH('2.2'!$A114,'2.2 Daten'!$B$9:$B$860,0))) -> -2.620087336 | J114: =IF($A114<>0,INDEX('2.2 Daten'!M$9:M$860,MATCH('2.2'!$A114,'2.2 Daten'!$B$9:$B$860,0))) -> 2.997858672 | K114: =IF($A114<>0,INDEX('2.2 Daten'!N$9:N$860,MATCH('2.2'!$A114,'2.2 Daten'!$B$9:$B$860,0))) -> -5.828917487 | L114: =IF($A114<>0,INDEX('2.2 Daten'!O$9:O$860,MATCH('2.2'!$A114,'2.2 Daten'!$B$9:$B$860,0))) -> -11.62280702
A115: =CHOOSE('2.2 Daten'!$A$2,'2.2 Daten'!B537,'2.2 Daten'!B86,'2.2 Daten'!B103,'2.2 Daten'!B120,'2.2 Daten'!B123,'2.2 Daten'!B170,'2.2 Daten'!B174,'2.2 Daten'!B229,'2.2 Daten'!B257,'2.2 Daten'!B295,'2.2 Daten'!B341,'2.2 Daten'!B439,'2.2 Daten'!B447,'2.2 Daten'!B450,'2.2 Daten'!B470,'2.2 Daten'!B480,'2.2 Daten'!B495,'2.2 Daten'!B511,x) -> Leer | B115: =IF($A115<>0,INDEX('2.2 Daten'!C$9:C$860,MATCH('2.2'!$A115,'2.2 Daten'!$B$9:$B$860,0))," ") -> 3457000 | C115: =IF($A115<>0,INDEX('2.2 Daten'!E$9:E$860,MATCH('2.2'!$A115,'2.2 Daten'!$B$9:$B$860,0))) -> 3464 | D115: =IF($A115<>0,INDEX('2.2 Daten'!F$9:F$860,MATCH('2.2'!$A115,'2.2 Daten'!$B$9:$B$860,0))) -> 649 | E115: =IF($A115<>0,INDEX('2.2 Daten'!G$9:G$860,MATCH('2.2'!$A115,'2.2 Daten'!$B$9:$B$860,0))) -> 582 | F115: =IF($A115<>0,INDEX('2.2 Daten'!H$9:H$860,MATCH('2.2'!$A115,'2.2 Daten'!$B$9:$B$860,0))) -> 1769 | G115: =IF($A115<>0,INDEX('2.2 Daten'!I$9:I$860,MATCH('2.2'!$A115,'2.2 Daten'!$B$9:$B$860,0))) -> 464 | H115: =IF($A115<>0,INDEX('2.2 Daten'!K$9:K$860,MATCH('2.2'!$A115,'2.2 Daten'!$B$9:$B$860,0))) -> -1.590909091 | I115: =IF($A115<>0,INDEX('2.2 Daten'!L$9:L$860,MATCH('2.2'!$A115,'2.2 Daten'!$B$9:$B$860,0))) -> 8.528428094 | J115: =IF($A115<>0,INDEX('2.2 Daten'!M$9:M$860,MATCH('2.2'!$A115,'2.2 Daten'!$B$9:$B$860,0))) -> -5.365853659 | K115: =IF($A115<>0,INDEX('2.2 Daten'!N$9:N$860,MATCH('2.2'!$A115,'2.2 Daten'!$B$9:$B$860,0))) -> -1.612903226 | L115: =IF($A115<>0,INDEX('2.2 Daten'!O$9:O$860,MATCH('2.2'!$A115,'2.2 Daten'!$B$9:$B$860,0))) -> -8.84086444
A116: =CHOOSE('2.2 Daten'!$A$2,'2.2 Daten'!B538,'2.2 Daten'!B87,'2.2 Daten'!B104,'2.2 Daten'!B121,'2.2 Daten'!B124,'2.2 Daten'!B171,'2.2 Daten'!B175,'2.2 Daten'!B230,'2.2 Daten'!B258,'2.2 Daten'!B296,'2.2 Daten'!B342,'2.2 Daten'!B440,'2.2 Daten'!B448,'2.2 Daten'!B451,'2.2 Daten'!B471,'2.2 Daten'!B481,'2.2 Daten'!B496,'2.2 Daten'!B512,x) -> Oldenburg | B116: =IF($A116<>0,INDEX('2.2 Daten'!C$9:C$860,MATCH('2.2'!$A116,'2.2 Daten'!$B$9:$B$860,0))," ") -> 3458000 | C116: =IF($A116<>0,INDEX('2.2 Daten'!E$9:E$860,MATCH('2.2'!$A116,'2.2 Daten'!$B$9:$B$860,0))) -> 2532 | D116: =IF($A116<>0,INDEX('2.2 Daten'!F$9:F$860,MATCH('2.2'!$A116,'2.2 Daten'!$B$9:$B$860,0))) -> 428 | E116: =IF($A116<>0,INDEX('2.2 Daten'!G$9:G$860,MATCH('2.2'!$A116,'2.2 Daten'!$B$9:$B$860,0))) -> 427 | F116: =IF($A116<>0,INDEX('2.2 Daten'!H$9:H$860,MATCH('2.2'!$A116,'2.2 Daten'!$B$9:$B$860,0))) -> 1267 | G116: =IF($A116<>0,INDEX('2.2 Daten'!I$9:I$860,MATCH('2.2'!$A116,'2.2 Daten'!$B$9:$B$860,0))) -> 410 | H116: =IF($A116<>0,INDEX('2.2 Daten'!K$9:K$860,MATCH('2.2'!$A116,'2.2 Daten'!$B$9:$B$860,0))) -> -1.898488958 | I116: =IF($A116<>0,INDEX('2.2 Daten'!L$9:L$860,MATCH('2.2'!$A116,'2.2 Daten'!$B$9:$B$860,0))) -> 0.4694835681 | J116: =IF($A116<>0,INDEX('2.2 Daten'!M$9:M$860,MATCH('2.2'!$A116,'2.2 Daten'!$B$9:$B$860,0))) -> -5.321507761 | K116: =IF($A116<>0,INDEX('2.2 Daten'!N$9:N$860,MATCH('2.2'!$A116,'2.2 Daten'!$B$9:$B$860,0))) -> -2.46343341 | L116: =IF($A116<>0,INDEX('2.2 Daten'!O$9:O$860,MATCH('2.2'!$A116,'2.2 Daten'!$B$9:$B$860,0))) -> 1.234567901
A117: =CHOOSE('2.2 Daten'!$A$2,'2.2 Daten'!B539,'2.2 Daten'!B88,'2.2 Daten'!B105,'2.2 Daten'!B122,'2.2 Daten'!B125,'2.2 Daten'!B172,'2.2 Daten'!B176,'2.2 Daten'!B231,'2.2 Daten'!B259,'2.2 Daten'!B297,'2.2 Daten'!B343,'2.2 Daten'!B441,'2.2 Daten'!B449,'2.2 Daten'!B452,'2.2 Daten'!B472,'2.2 Daten'!B482,'2.2 Daten'!B497,'2.2 Daten'!B513,x) -> Osnabrück | B117: =IF($A117<>0,INDEX('2.2 Daten'!C$9:C$860,MATCH('2.2'!$A117,'2.2 Daten'!$B$9:$B$860,0))," ") -> 3459000 | C117: =IF($A117<>0,INDEX('2.2 Daten'!E$9:E$860,MATCH('2.2'!$A117,'2.2 Daten'!$B$9:$B$860,0))) -> 5403 | D117: =IF($A117<>0,INDEX('2.2 Daten'!F$9:F$860,MATCH('2.2'!$A117,'2.2 Daten'!$B$9:$B$860,0))) -> 1020 | E117: =IF($A117<>0,INDEX('2.2 Daten'!G$9:G$860,MATCH('2.2'!$A117,'2.2 Daten'!$B$9:$B$860,0))) -> 1038 | F117: =IF($A117<>0,INDEX('2.2 Daten'!H$9:H$860,MATCH('2.2'!$A117,'2.2 Daten'!$B$9:$B$860,0))) -> 2652 | G117: =IF($A117<>0,INDEX('2.2 Daten'!I$9:I$860,MATCH('2.2'!$A117,'2.2 Daten'!$B$9:$B$860,0))) -> 693 | H117: =IF($A117<>0,INDEX('2.2 Daten'!K$9:K$860,MATCH('2.2'!$A117,'2.2 Daten'!$B$9:$B$860,0))) -> -6.002087683 | I117: =IF($A117<>0,INDEX('2.2 Daten'!L$9:L$860,MATCH('2.2'!$A117,'2.2 Daten'!$B$9:$B$860,0))) -> -8.602150538 | J117: =IF($A117<>0,INDEX('2.2 Daten'!M$9:M$860,MATCH('2.2'!$A117,'2.2 Daten'!$B$9:$B$860,0))) -> -0.6698564593 | K117: =IF($A117<>0,INDEX('2.2 Daten'!N$9:N$860,MATCH('2.2'!$A117,'2.2 Daten'!$B$9:$B$860,0))) -> -5.488239487 | L117: =IF($A117<>0,INDEX('2.2 Daten'!O$9:O$860,MATCH('2.2'!$A117,'2.2 Daten'!$B$9:$B$860,0))) -> -11.26760563
A118: =CHOOSE('2.2 Daten'!$A$2,'2.2 Daten'!B540,'2.2 Daten'!B89,'2.2 Daten'!B106,'2.2 Daten'!B123,'2.2 Daten'!B126,'2.2 Daten'!B173,'2.2 Daten'!B177,'2.2 Daten'!B232,'2.2 Daten'!B260,'2.2 Daten'!B298,'2.2 Daten'!B344,'2.2 Daten'!B442,'2.2 Daten'!B450,'2.2 Daten'!B453,'2.2 Daten'!B473,'2.2 Daten'!B483,'2.2 Daten'!B498,'2.2 Daten'!B514,x) -> Vechta | B118: =IF($A118<>0,INDEX('2.2 Daten'!C$9:C$860,MATCH('2.2'!$A118,'2.2 Daten'!$B$9:$B$860,0))," ") -> 3460000 | C118: =IF($A118<>0,INDEX('2.2 Daten'!E$9:E$860,MATCH('2.2'!$A118,'2.2 Daten'!$B$9:$B$860,0))) -> 2990 | D118: =IF($A118<>0,INDEX('2.2 Daten'!F$9:F$860,MATCH('2.2'!$A118,'2.2 Daten'!$B$9:$B$860,0))) -> 552 | E118: =IF($A118<>0,INDEX('2.2 Daten'!G$9:G$860,MATCH('2.2'!$A118,'2.2 Daten'!$B$9:$B$860,0))) -> 503 | F118: =IF($A118<>0,INDEX('2.2 Daten'!H$9:H$860,MATCH('2.2'!$A118,'2.2 Daten'!$B$9:$B$860,0))) -> 1522 | G118: =IF($A118<>0,INDEX('2.2 Daten'!I$9:I$860,MATCH('2.2'!$A118,'2.2 Daten'!$B$9:$B$860,0))) -> 413 | H118: =IF($A118<>0,INDEX('2.2 Daten'!K$9:K$860,MATCH('2.2'!$A118,'2.2 Daten'!$B$9:$B$860,0))) -> 1.769911504 | I118: =IF($A118<>0,INDEX('2.2 Daten'!L$9:L$860,MATCH('2.2'!$A118,'2.2 Daten'!$B$9:$B$860,0))) -> 5.544933078 | J118: =IF($A118<>0,INDEX('2.2 Daten'!M$9:M$860,MATCH('2.2'!$A118,'2.2 Daten'!$B$9:$B$860,0))) -> -2.895752896 | K118: =IF($A118<>0,INDEX('2.2 Daten'!N$9:N$860,MATCH('2.2'!$A118,'2.2 Daten'!$B$9:$B$860,0))) -> 2.353732347 | L118: =IF($A118<>0,INDEX('2.2 Daten'!O$9:O$860,MATCH('2.2'!$A118,'2.2 Daten'!$B$9:$B$860,0))) -> 0.7317073171
A119: =CHOOSE('2.2 Daten'!$A$2,'2.2 Daten'!B541,'2.2 Daten'!B90,'2.2 Daten'!B107,'2.2 Daten'!B124,'2.2 Daten'!B127,'2.2 Daten'!B174,'2.2 Daten'!B178,'2.2 Daten'!B233,'2.2 Daten'!B261,'2.2 Daten'!B299,'2.2 Daten'!B345,'2.2 Daten'!B443,'2.2 Daten'!B451,'2.2 Daten'!B454,'2.2 Daten'!B474,'2.2 Daten'!B484,'2.2 Daten'!B499,'2.2 Daten'!B515,x) -> Wesermarsch | B119: =IF($A119<>0,INDEX('2.2 Daten'!C$9:C$860,MATCH('2.2'!$A119,'2.2 Daten'!$B$9:$B$860,0))," ") -> 3461000 | C119: =IF($A119<>0,INDEX('2.2 Daten'!E$9:E$860,MATCH('2.2'!$A119,'2.2 Daten'!$B$9:$B$860,0))) -> 2574 | D119: =IF($A119<>0,INDEX('2.2 Daten'!F$9:F$860,MATCH('2.2'!$A119,'2.2 Daten'!$B$9:$B$860,0))) -> 510 | E119: =IF($A119<>0,INDEX('2.2 Daten'!G$9:G$860,MATCH('2.2'!$A119,'2.2 Daten'!$B$9:$B$860,0))) -> 472 | F119: =IF($A119<>0,INDEX('2.2 Daten'!H$9:H$860,MATCH('2.2'!$A119,'2.2 Daten'!$B$9:$B$860,0))) -> 1257 | G119: =IF($A119<>0,INDEX('2.2 Daten'!I$9:I$860,MATCH('2.2'!$A119,'2.2 Daten'!$B$9:$B$860,0))) -> 335 | H119: =IF($A119<>0,INDEX('2.2 Daten'!K$9:K$860,MATCH('2.2'!$A119,'2.2 Daten'!$B$9:$B$860,0))) -> -0.155159038 | I119: =IF($A119<>0,INDEX('2.2 Daten'!L$9:L$860,MATCH('2.2'!$A119,'2.2 Daten'!$B$9:$B$860,0))) -> -2.485659656 | J119: =IF($A119<>0,INDEX('2.2 Daten'!M$9:M$860,MATCH('2.2'!$A119,'2.2 Daten'!$B$9:$B$860,0))) -> 3.736263736 | K119: =IF($A119<>0,INDEX('2.2 Daten'!N$9:N$860,MATCH('2.2'!$A119,'2.2 Daten'!$B$9:$B$860,0))) -> -0.07949125596 | L119: =IF($A119<>0,INDEX('2.2 Daten'!O$9:O$860,MATCH('2.2'!$A119,'2.2 Daten'!$B$9:$B$860,0))) -> -2.046783626
A120: =CHOOSE('2.2 Daten'!$A$2,'2.2 Daten'!B542,'2.2 Daten'!B91,'2.2 Daten'!B108,'2.2 Daten'!B125,'2.2 Daten'!B128,'2.2 Daten'!B175,'2.2 Daten'!B179,'2.2 Daten'!B234,'2.2 Daten'!B262,'2.2 Daten'!B300,'2.2 Daten'!B346,'2.2 Daten'!B444,'2.2 Daten'!B452,'2.2 Daten'!B455,'2.2 Daten'!B475,'2.2 Daten'!B485,'2.2 Daten'!B500,'2.2 Daten'!B516,x) -> Wittmund | B120: =IF($A120<>0,INDEX('2.2 Daten'!C$9:C$860,MATCH('2.2'!$A120,'2.2 Daten'!$B$9:$B$860,0))," ") -> 3462000 | C120: =IF($A120<>0,INDEX('2.2 Daten'!E$9:E$860,MATCH('2.2'!$A120,'2.2 Daten'!$B$9:$B$860,0))) -> 1239 | D120: =IF($A120<>0,INDEX('2.2 Daten'!F$9:F$860,MATCH('2.2'!$A120,'2.2 Daten'!$B$9:$B$860,0))) -> 213 | E120: =IF($A120<>0,INDEX('2.2 Daten'!G$9:G$860,MATCH('2.2'!$A120,'2.2 Daten'!$B$9:$B$860,0))) -> 214 | F120: =IF($A120<>0,INDEX('2.2 Daten'!H$9:H$860,MATCH('2.2'!$A120,'2.2 Daten'!$B$9:$B$860,0))) -> 630 | G120: =IF($A120<>0,INDEX('2.2 Daten'!I$9:I$860,MATCH('2.2'!$A120,'2.2 Daten'!$B$9:$B$860,0))) -> 182 | H120: =IF($A120<>0,INDEX('2.2 Daten'!K$9:K$860,MATCH('2.2'!$A120,'2.2 Daten'!$B$9:$B$860,0))) -> -2.209944751 | I120: =IF($A120<>0,INDEX('2.2 Daten'!L$9:L$860,MATCH('2.2'!$A120,'2.2 Daten'!$B$9:$B$860,0))) -> -8.974358974 | J120: =IF($A120<>0,INDEX('2.2 Daten'!M$9:M$860,MATCH('2.2'!$A120,'2.2 Daten'!$B$9:$B$860,0))) -> -3.167420814 | K120: =IF($A120<>0,INDEX('2.2 Daten'!N$9:N$860,MATCH('2.2'!$A120,'2.2 Daten'!$B$9:$B$860,0))) -> 1.123595506 | L120: =IF($A120<>0,INDEX('2.2 Daten'!O$9:O$860,MATCH('2.2'!$A120,'2.2 Daten'!$B$9:$B$860,0))) -> -3.703703704
A121: =CHOOSE('2.2 Daten'!$A$2,'2.2 Daten'!B543,'2.2 Daten'!B92,'2.2 Daten'!B109,'2.2 Daten'!B126,'2.2 Daten'!B129,'2.2 Daten'!B176,'2.2 Daten'!B180,'2.2 Daten'!B235,'2.2 Daten'!B263,'2.2 Daten'!B301,'2.2 Daten'!B347,'2.2 Daten'!B445,'2.2 Daten'!B453,'2.2 Daten'!B456,'2.2 Daten'!B476,'2.2 Daten'!B486,'2.2 Daten'!B501,'2.2 Daten'!B517,x) -> 0 | B121: =IF($A121<>0,INDEX('2.2 Daten'!C$9:C$860,MATCH('2.2'!$A121,'2.2 Daten'!$B$9:$B$860,0))," ") ->  | C121: =IF($A121<>0,INDEX('2.2 Daten'!E$9:E$860,MATCH('2.2'!$A121,'2.2 Daten'!$B$9:$B$860,0))) -> FALSE | D121: =IF($A121<>0,INDEX('2.2 Daten'!F$9:F$860,MATCH('2.2'!$A121,'2.2 Daten'!$B$9:$B$860,0))) -> FALSE | E121: =IF($A121<>0,INDEX('2.2 Daten'!G$9:G$860,MATCH('2.2'!$A121,'2.2 Daten'!$B$9:$B$860,0))) -> FALSE | F121: =IF($A121<>0,INDEX('2.2 Daten'!H$9:H$860,MATCH('2.2'!$A121,'2.2 Daten'!$B$9:$B$860,0))) -> FALSE | G121: =IF($A121<>0,INDEX('2.2 Daten'!I$9:I$860,MATCH('2.2'!$A121,'2.2 Daten'!$B$9:$B$860,0))) -> FALSE | H121: =IF($A121<>0,INDEX('2.2 Daten'!K$9:K$860,MATCH('2.2'!$A121,'2.2 Daten'!$B$9:$B$860,0))) -> FALSE | I121: =IF($A121<>0,INDEX('2.2 Daten'!L$9:L$860,MATCH('2.2'!$A121,'2.2 Daten'!$B$9:$B$860,0))) -> FALSE | J121: =IF($A121<>0,INDEX('2.2 Daten'!M$9:M$860,MATCH('2.2'!$A121,'2.2 Daten'!$B$9:$B$860,0))) -> FALSE | K121: =IF($A121<>0,INDEX('2.2 Daten'!N$9:N$860,MATCH('2.2'!$A121,'2.2 Daten'!$B$9:$B$860,0))) -> FALSE | L121: =IF($A121<>0,INDEX('2.2 Daten'!O$9:O$860,MATCH('2.2'!$A121,'2.2 Daten'!$B$9:$B$860,0))) -> FALSE
A122: =CHOOSE('2.2 Daten'!$A$2,'2.2 Daten'!B544,'2.2 Daten'!B93,'2.2 Daten'!B110,'2.2 Daten'!B127,'2.2 Daten'!B130,'2.2 Daten'!B177,'2.2 Daten'!B181,'2.2 Daten'!B236,'2.2 Daten'!B264,'2.2 Daten'!B302,'2.2 Daten'!B348,'2.2 Daten'!B446,'2.2 Daten'!B454,'2.2 Daten'!B457,'2.2 Daten'!B477,'2.2 Daten'!B487,'2.2 Daten'!B502,'2.2 Daten'!B518,x) -> Bremen | B122: =IF($A122<>0,INDEX('2.2 Daten'!C$9:C$860,MATCH('2.2'!$A122,'2.2 Daten'!$B$9:$B$860,0))," ") -> 04 | C122: =IF($A122<>0,INDEX('2.2 Daten'!E$9:E$860,MATCH('2.2'!$A122,'2.2 Daten'!$B$9:$B$860,0))) -> 35223 | D122: =IF($A122<>0,INDEX('2.2 Daten'!F$9:F$860,MATCH('2.2'!$A122,'2.2 Daten'!$B$9:$B$860,0))) -> 7141 | E122: =IF($A122<>0,INDEX('2.2 Daten'!G$9:G$860,MATCH('2.2'!$A122,'2.2 Daten'!$B$9:$B$860,0))) -> 6383 | F122: =IF($A122<>0,INDEX('2.2 Daten'!H$9:H$860,MATCH('2.2'!$A122,'2.2 Daten'!$B$9:$B$860,0))) -> 16939 | G122: =IF($A122<>0,INDEX('2.2 Daten'!I$9:I$860,MATCH('2.2'!$A122,'2.2 Daten'!$B$9:$B$860,0))) -> 4760 | H122: =IF($A122<>0,INDEX('2.2 Daten'!K$9:K$860,MATCH('2.2'!$A122,'2.2 Daten'!$B$9:$B$860,0))) -> 4.736842105 | I122: =IF($A122<>0,INDEX('2.2 Daten'!L$9:L$860,MATCH('2.2'!$A122,'2.2 Daten'!$B$9:$B$860,0))) -> 6.312341819 | J122: =IF($A122<>0,INDEX('2.2 Daten'!M$9:M$860,MATCH('2.2'!$A122,'2.2 Daten'!$B$9:$B$860,0))) -> 7.223248782 | K122: =IF($A122<>0,INDEX('2.2 Daten'!N$9:N$860,MATCH('2.2'!$A122,'2.2 Daten'!$B$9:$B$860,0))) -> 4.535917058 | L122: =IF($A122<>0,INDEX('2.2 Daten'!O$9:O$860,MATCH('2.2'!$A122,'2.2 Daten'!$B$9:$B$860,0))) -> 0.08410428932
A123: =CHOOSE('2.2 Daten'!$A$2,'2.2 Daten'!B545,'2.2 Daten'!B94,'2.2 Daten'!B111,'2.2 Daten'!B128,'2.2 Daten'!B131,'2.2 Daten'!B178,'2.2 Daten'!B182,'2.2 Daten'!B237,'2.2 Daten'!B265,'2.2 Daten'!B303,'2.2 Daten'!B349,'2.2 Daten'!B447,'2.2 Daten'!B455,'2.2 Daten'!B458,'2.2 Daten'!B478,'2.2 Daten'!B488,'2.2 Daten'!B503,'2.2 Daten'!B519,x) -> Bremen, Stadt | B123: =IF($A123<>0,INDEX('2.2 Daten'!C$9:C$860,MATCH('2.2'!$A123,'2.2 Daten'!$B$9:$B$860,0))," ") -> 4011000 | C123: =IF($A123<>0,INDEX('2.2 Daten'!E$9:E$860,MATCH('2.2'!$A123,'2.2 Daten'!$B$9:$B$860,0))) -> 27835 | D123: =IF($A123<>0,INDEX('2.2 Daten'!F$9:F$860,MATCH('2.2'!$A123,'2.2 Daten'!$B$9:$B$860,0))) -> 5636 | E123: =IF($A123<>0,INDEX('2.2 Daten'!G$9:G$860,MATCH('2.2'!$A123,'2.2 Daten'!$B$9:$B$860,0))) -> 5073 | F123: =IF($A123<>0,INDEX('2.2 Daten'!H$9:H$860,MATCH('2.2'!$A123,'2.2 Daten'!$B$9:$B$860,0))) -> 13381 | G123: =IF($A123<>0,INDEX('2.2 Daten'!I$9:I$860,MATCH('2.2'!$A123,'2.2 Daten'!$B$9:$B$860,0))) -> 3745 | H123: =IF($A123<>0,INDEX('2.2 Daten'!K$9:K$860,MATCH('2.2'!$A123,'2.2 Daten'!$B$9:$B$860,0))) -> 5.711898523 | I123: =IF($A123<>0,INDEX('2.2 Daten'!L$9:L$860,MATCH('2.2'!$A123,'2.2 Daten'!$B$9:$B$860,0))) -> 7.372832921 | J123: =IF($A123<>0,INDEX('2.2 Daten'!M$9:M$860,MATCH('2.2'!$A123,'2.2 Daten'!$B$9:$B$860,0))) -> 7.524374735 | K123: =IF($A123<>0,INDEX('2.2 Daten'!N$9:N$860,MATCH('2.2'!$A123,'2.2 Daten'!$B$9:$B$860,0))) -> 5.820482404 | L123: =IF($A123<>0,INDEX('2.2 Daten'!O$9:O$860,MATCH('2.2'!$A123,'2.2 Daten'!$B$9:$B$860,0))) -> 0.6991126647
A124: =CHOOSE('2.2 Daten'!$A$2,'2.2 Daten'!B546,'2.2 Daten'!B95,'2.2 Daten'!B112,'2.2 Daten'!B129,'2.2 Daten'!B132,'2.2 Daten'!B179,'2.2 Daten'!B183,'2.2 Daten'!B238,'2.2 Daten'!B266,'2.2 Daten'!B304,'2.2 Daten'!B350,'2.2 Daten'!B448,'2.2 Daten'!B456,'2.2 Daten'!B459,'2.2 Daten'!B479,'2.2 Daten'!B489,'2.2 Daten'!B504,'2.2 Daten'!B520,x) -> Bremerhaven, Stadt | B124: =IF($A124<>0,INDEX('2.2 Daten'!C$9:C$860,MATCH('2.2'!$A124,'2.2 Daten'!$B$9:$B$860,0))," ") -> 4012000 | C124: =IF($A124<>0,INDEX('2.2 Daten'!E$9:E$860,MATCH('2.2'!$A124,'2.2 Daten'!$B$9:$B$860,0))) -> 7388 | D124: =IF($A124<>0,INDEX('2.2 Daten'!F$9:F$860,MATCH('2.2'!$A124,'2.2 Daten'!$B$9:$B$860,0))) -> 1505 | E124: =IF($A124<>0,INDEX('2.2 Daten'!G$9:G$860,MATCH('2.2'!$A124,'2.2 Daten'!$B$9:$B$860,0))) -> 1310 | F124: =IF($A124<>0,INDEX('2.2 Daten'!H$9:H$860,MATCH('2.2'!$A124,'2.2 Daten'!$B$9:$B$860,0))) -> 3558 | G124: =IF($A124<>0,INDEX('2.2 Daten'!I$9:I$860,MATCH('2.2'!$A124,'2.2 Daten'!$B$9:$B$860,0))) -> 1015 | H124: =IF($A124<>0,INDEX('2.2 Daten'!K$9:K$860,MATCH('2.2'!$A124,'2.2 Daten'!$B$9:$B$860,0))) -> 1.219345116 | I124: =IF($A124<>0,INDEX('2.2 Daten'!L$9:L$860,MATCH('2.2'!$A124,'2.2 Daten'!$B$9:$B$860,0))) -> 2.520435967 | J124: =IF($A124<>0,INDEX('2.2 Daten'!M$9:M$860,MATCH('2.2'!$A124,'2.2 Daten'!$B$9:$B$860,0))) -> 6.072874494 | K124: =IF($A124<>0,INDEX('2.2 Daten'!N$9:N$860,MATCH('2.2'!$A124,'2.2 Daten'!$B$9:$B$860,0))) -> -0.02809778028 | L124: =IF($A124<>0,INDEX('2.2 Daten'!O$9:O$860,MATCH('2.2'!$A124,'2.2 Daten'!$B$9:$B$860,0))) -> -2.121504339
A125: =CHOOSE('2.2 Daten'!$A$2,'2.2 Daten'!B547,'2.2 Daten'!B96,'2.2 Daten'!B113,'2.2 Daten'!B130,'2.2 Daten'!B133,'2.2 Daten'!B180,'2.2 Daten'!B184,'2.2 Daten'!B239,'2.2 Daten'!B267,'2.2 Daten'!B305,'2.2 Daten'!B351,'2.2 Daten'!B449,'2.2 Daten'!B457,'2.2 Daten'!B460,'2.2 Daten'!B480,'2.2 Daten'!B490,'2.2 Daten'!B505,'2.2 Daten'!B521,x) -> 0 | B125: =IF($A125<>0,INDEX('2.2 Daten'!C$9:C$860,MATCH('2.2'!$A125,'2.2 Daten'!$B$9:$B$860,0))," ") ->  | C125: =IF($A125<>0,INDEX('2.2 Daten'!E$9:E$860,MATCH('2.2'!$A125,'2.2 Daten'!$B$9:$B$860,0))) -> FALSE | D125: =IF($A125<>0,INDEX('2.2 Daten'!F$9:F$860,MATCH('2.2'!$A125,'2.2 Daten'!$B$9:$B$860,0))) -> FALSE | E125: =IF($A125<>0,INDEX('2.2 Daten'!G$9:G$860,MATCH('2.2'!$A125,'2.2 Daten'!$B$9:$B$860,0))) -> FALSE | F125: =IF($A125<>0,INDEX('2.2 Daten'!H$9:H$860,MATCH('2.2'!$A125,'2.2 Daten'!$B$9:$B$860,0))) -> FALSE | G125: =IF($A125<>0,INDEX('2.2 Daten'!I$9:I$860,MATCH('2.2'!$A125,'2.2 Daten'!$B$9:$B$860,0))) -> FALSE | H125: =IF($A125<>0,INDEX('2.2 Daten'!K$9:K$860,MATCH('2.2'!$A125,'2.2 Daten'!$B$9:$B$860,0))) -> FALSE | I125: =IF($A125<>0,INDEX('2.2 Daten'!L$9:L$860,MATCH('2.2'!$A125,'2.2 Daten'!$B$9:$B$860,0))) -> FALSE | J125: =IF($A125<>0,INDEX('2.2 Daten'!M$9:M$860,MATCH('2.2'!$A125,'2.2 Daten'!$B$9:$B$860,0))) -> FALSE | K125: =IF($A125<>0,INDEX('2.2 Daten'!N$9:N$860,MATCH('2.2'!$A125,'2.2 Daten'!$B$9:$B$860,0))) -> FALSE | L125: =IF($A125<>0,INDEX('2.2 Daten'!O$9:O$860,MATCH('2.2'!$A125,'2.2 Daten'!$B$9:$B$860,0))) -> FALSE
A126: =CHOOSE('2.2 Daten'!$A$2,'2.2 Daten'!B548,'2.2 Daten'!B97,'2.2 Daten'!B114,'2.2 Daten'!B131,'2.2 Daten'!B134,'2.2 Daten'!B181,'2.2 Daten'!B185,'2.2 Daten'!B240,'2.2 Daten'!B268,'2.2 Daten'!B306,'2.2 Daten'!B352,'2.2 Daten'!B450,'2.2 Daten'!B458,'2.2 Daten'!B461,'2.2 Daten'!B481,'2.2 Daten'!B491,'2.2 Daten'!B506,'2.2 Daten'!B522,x) -> Nordrhein-Westfalen | B126: =IF($A126<>0,INDEX('2.2 Daten'!C$9:C$860,MATCH('2.2'!$A126,'2.2 Daten'!$B$9:$B$860,0))," ") -> 05 | C126: =IF($A126<>0,INDEX('2.2 Daten'!E$9:E$860,MATCH('2.2'!$A126,'2.2 Daten'!$B$9:$B$860,0))) -> 579078 | D126: =IF($A126<>0,INDEX('2.2 Daten'!F$9:F$860,MATCH('2.2'!$A126,'2.2 Daten'!$B$9:$B$860,0))) -> 107963 | E126: =IF($A126<>0,INDEX('2.2 Daten'!G$9:G$860,MATCH('2.2'!$A126,'2.2 Daten'!$B$9:$B$860,0))) -> 103603 | F126: =IF($A126<>0,INDEX('2.2 Daten'!H$9:H$860,MATCH('2.2'!$A126,'2.2 Daten'!$B$9:$B$860,0))) -> 286485 | G126: =IF($A126<>0,INDEX('2.2 Daten'!I$9:I$860,MATCH('2.2'!$A126,'2.2 Daten'!$B$9:$B$860,0))) -> 81027 | H126: =IF($A126<>0,INDEX('2.2 Daten'!K$9:K$860,MATCH('2.2'!$A126,'2.2 Daten'!$B$9:$B$860,0))) -> 3.00396663 | I126: =IF($A126<>0,INDEX('2.2 Daten'!L$9:L$860,MATCH('2.2'!$A126,'2.2 Daten'!$B$9:$B$860,0))) -> 5.49443033 | J126: =IF($A126<>0,INDEX('2.2 Daten'!M$9:M$860,MATCH('2.2'!$A126,'2.2 Daten'!$B$9:$B$860,0))) -> 4.209499286 | K126: =IF($A126<>0,INDEX('2.2 Daten'!N$9:N$860,MATCH('2.2'!$A126,'2.2 Daten'!$B$9:$B$860,0))) -> 2.410069242 | L126: =IF($A126<>0,INDEX('2.2 Daten'!O$9:O$860,MATCH('2.2'!$A126,'2.2 Daten'!$B$9:$B$860,0))) -> 0.4188922902
A127: =CHOOSE('2.2 Daten'!$A$2,'2.2 Daten'!B549,'2.2 Daten'!B98,'2.2 Daten'!B115,'2.2 Daten'!B132,'2.2 Daten'!B135,'2.2 Daten'!B182,'2.2 Daten'!B186,'2.2 Daten'!B241,'2.2 Daten'!B269,'2.2 Daten'!B307,'2.2 Daten'!B353,'2.2 Daten'!B451,'2.2 Daten'!B459,'2.2 Daten'!B462,'2.2 Daten'!B482,'2.2 Daten'!B492,'2.2 Daten'!B507,'2.2 Daten'!B523,x) -> Düsseldorf, Stadt | B127: =IF($A127<>0,INDEX('2.2 Daten'!C$9:C$860,MATCH('2.2'!$A127,'2.2 Daten'!$B$9:$B$860,0))," ") -> 5111000 | C127: =IF($A127<>0,INDEX('2.2 Daten'!E$9:E$860,MATCH('2.2'!$A127,'2.2 Daten'!$B$9:$B$860,0))) -> 20256 | D127: =IF($A127<>0,INDEX('2.2 Daten'!F$9:F$860,MATCH('2.2'!$A127,'2.2 Daten'!$B$9:$B$860,0))) -> 3567 | E127: =IF($A127<>0,INDEX('2.2 Daten'!G$9:G$860,MATCH('2.2'!$A127,'2.2 Daten'!$B$9:$B$860,0))) -> 3691 | F127: =IF($A127<>0,INDEX('2.2 Daten'!H$9:H$860,MATCH('2.2'!$A127,'2.2 Daten'!$B$9:$B$860,0))) -> 10218 | G127: =IF($A127<>0,INDEX('2.2 Daten'!I$9:I$860,MATCH('2.2'!$A127,'2.2 Daten'!$B$9:$B$860,0))) -> 2780 | H127: =IF($A127<>0,INDEX('2.2 Daten'!K$9:K$860,MATCH('2.2'!$A127,'2.2 Daten'!$B$9:$B$860,0))) -> 1.579659997 | I127: =IF($A127<>0,INDEX('2.2 Daten'!L$9:L$860,MATCH('2.2'!$A127,'2.2 Daten'!$B$9:$B$860,0))) -> 1.191489362 | J127: =IF($A127<>0,INDEX('2.2 Daten'!M$9:M$860,MATCH('2.2'!$A127,'2.2 Daten'!$B$9:$B$860,0))) -> 2.385575589 | K127: =IF($A127<>0,INDEX('2.2 Daten'!N$9:N$860,MATCH('2.2'!$A127,'2.2 Daten'!$B$9:$B$860,0))) -> 1.590773514 | L127: =IF($A127<>0,INDEX('2.2 Daten'!O$9:O$860,MATCH('2.2'!$A127,'2.2 Daten'!$B$9:$B$860,0))) -> 0.9807482746
A128: =CHOOSE('2.2 Daten'!$A$2,'2.2 Daten'!B550,'2.2 Daten'!B99,'2.2 Daten'!B116,'2.2 Daten'!B133,'2.2 Daten'!B136,'2.2 Daten'!B183,'2.2 Daten'!B187,'2.2 Daten'!B242,'2.2 Daten'!B270,'2.2 Daten'!B308,'2.2 Daten'!B354,'2.2 Daten'!B452,'2.2 Daten'!B460,'2.2 Daten'!B463,'2.2 Daten'!B483,'2.2 Daten'!B493,'2.2 Daten'!B508,'2.2 Daten'!B524,x) -> Duisburg, Stadt | B128: =IF($A128<>0,INDEX('2.2 Daten'!C$9:C$860,MATCH('2.2'!$A128,'2.2 Daten'!$B$9:$B$860,0))," ") -> 5112000 | C128: =IF($A128<>0,INDEX('2.2 Daten'!E$9:E$860,MATCH('2.2'!$A128,'2.2 Daten'!$B$9:$B$860,0))) -> 26398 | D128: =IF($A128<>0,INDEX('2.2 Daten'!F$9:F$860,MATCH('2.2'!$A128,'2.2 Daten'!$B$9:$B$860,0))) -> 5018 | E128: =IF($A128<>0,INDEX('2.2 Daten'!G$9:G$860,MATCH('2.2'!$A128,'2.2 Daten'!$B$9:$B$860,0))) -> 4615 | F128: =IF($A128<>0,INDEX('2.2 Daten'!H$9:H$860,MATCH('2.2'!$A128,'2.2 Daten'!$B$9:$B$860,0))) -> 13114 | G128: =IF($A128<>0,INDEX('2.2 Daten'!I$9:I$860,MATCH('2.2'!$A128,'2.2 Daten'!$B$9:$B$860,0))) -> 3651 | H128: =IF($A128<>0,INDEX('2.2 Daten'!K$9:K$860,MATCH('2.2'!$A128,'2.2 Daten'!$B$9:$B$860,0))) -> 2.017313341 | I128: =IF($A128<>0,INDEX('2.2 Daten'!L$9:L$860,MATCH('2.2'!$A128,'2.2 Daten'!$B$9:$B$860,0))) -> 5.575426047 | J128: =IF($A128<>0,INDEX('2.2 Daten'!M$9:M$860,MATCH('2.2'!$A128,'2.2 Daten'!$B$9:$B$860,0))) -> -0.624461671 | K128: =IF($A128<>0,INDEX('2.2 Daten'!N$9:N$860,MATCH('2.2'!$A128,'2.2 Daten'!$B$9:$B$860,0))) -> 2.613458529 | L128: =IF($A128<>0,INDEX('2.2 Daten'!O$9:O$860,MATCH('2.2'!$A128,'2.2 Daten'!$B$9:$B$860,0))) -> -1.297648013
A129: =CHOOSE('2.2 Daten'!$A$2,'2.2 Daten'!B551,'2.2 Daten'!B100,'2.2 Daten'!B117,'2.2 Daten'!B134,'2.2 Daten'!B137,'2.2 Daten'!B184,'2.2 Daten'!B188,'2.2 Daten'!B243,'2.2 Daten'!B271,'2.2 Daten'!B309,'2.2 Daten'!B355,'2.2 Daten'!B453,'2.2 Daten'!B461,'2.2 Daten'!B464,'2.2 Daten'!B484,'2.2 Daten'!B494,'2.2 Daten'!B509,'2.2 Daten'!B525,x) -> Essen, Stadt | B129: =IF($A129<>0,INDEX('2.2 Daten'!C$9:C$860,MATCH('2.2'!$A129,'2.2 Daten'!$B$9:$B$860,0))," ") -> 5113000 | C129: =IF($A129<>0,INDEX('2.2 Daten'!E$9:E$860,MATCH('2.2'!$A129,'2.2 Daten'!$B$9:$B$860,0))) -> 31522 | D129: =IF($A129<>0,INDEX('2.2 Daten'!F$9:F$860,MATCH('2.2'!$A129,'2.2 Daten'!$B$9:$B$860,0))) -> 5965 | E129: =IF($A129<>0,INDEX('2.2 Daten'!G$9:G$860,MATCH('2.2'!$A129,'2.2 Daten'!$B$9:$B$860,0))) -> 5774 | F129: =IF($A129<>0,INDEX('2.2 Daten'!H$9:H$860,MATCH('2.2'!$A129,'2.2 Daten'!$B$9:$B$860,0))) -> 15483 | G129: =IF($A129<>0,INDEX('2.2 Daten'!I$9:I$860,MATCH('2.2'!$A129,'2.2 Daten'!$B$9:$B$860,0))) -> 4300 | H129: =IF($A129<>0,INDEX('2.2 Daten'!K$9:K$860,MATCH('2.2'!$A129,'2.2 Daten'!$B$9:$B$860,0))) -> 5.146936189 | I129: =IF($A129<>0,INDEX('2.2 Daten'!L$9:L$860,MATCH('2.2'!$A129,'2.2 Daten'!$B$9:$B$860,0))) -> 7.110791884 | J129: =IF($A129<>0,INDEX('2.2 Daten'!M$9:M$860,MATCH('2.2'!$A129,'2.2 Daten'!$B$9:$B$860,0))) -> 7.144182594 | K129: =IF($A129<>0,INDEX('2.2 Daten'!N$9:N$860,MATCH('2.2'!$A129,'2.2 Daten'!$B$9:$B$860,0))) -> 4.185451854 | L129: =IF($A129<>0,INDEX('2.2 Daten'!O$9:O$860,MATCH('2.2'!$A129,'2.2 Daten'!$B$9:$B$860,0))) -> 3.365384615
A130: =CHOOSE('2.2 Daten'!$A$2,'2.2 Daten'!B552,'2.2 Daten'!B101,'2.2 Daten'!B118,'2.2 Daten'!B135,'2.2 Daten'!B138,'2.2 Daten'!B185,'2.2 Daten'!B189,'2.2 Daten'!B244,'2.2 Daten'!B272,'2.2 Daten'!B310,'2.2 Daten'!B356,'2.2 Daten'!B454,'2.2 Daten'!B462,'2.2 Daten'!B465,'2.2 Daten'!B485,'2.2 Daten'!B495,'2.2 Daten'!B510,'2.2 Daten'!B526,x) -> Krefeld, Stadt | B130: =IF($A130<>0,INDEX('2.2 Daten'!C$9:C$860,MATCH('2.2'!$A130,'2.2 Daten'!$B$9:$B$860,0))," ") -> 5114000 | C130: =IF($A130<>0,INDEX('2.2 Daten'!E$9:E$860,MATCH('2.2'!$A130,'2.2 Daten'!$B$9:$B$860,0))) -> 9152 | D130: =IF($A130<>0,INDEX('2.2 Daten'!F$9:F$860,MATCH('2.2'!$A130,'2.2 Daten'!$B$9:$B$860,0))) -> 1665 | E130: =IF($A130<>0,INDEX('2.2 Daten'!G$9:G$860,MATCH('2.2'!$A130,'2.2 Daten'!$B$9:$B$860,0))) -> 1626 | F130: =IF($A130<>0,INDEX('2.2 Daten'!H$9:H$860,MATCH('2.2'!$A130,'2.2 Daten'!$B$9:$B$860,0))) -> 4583 | G130: =IF($A130<>0,INDEX('2.2 Daten'!I$9:I$860,MATCH('2.2'!$A130,'2.2 Daten'!$B$9:$B$860,0))) -> 1278 | H130: =IF($A130<>0,INDEX('2.2 Daten'!K$9:K$860,MATCH('2.2'!$A130,'2.2 Daten'!$B$9:$B$860,0))) -> 2.359914998 | I130: =IF($A130<>0,INDEX('2.2 Daten'!L$9:L$860,MATCH('2.2'!$A130,'2.2 Daten'!$B$9:$B$860,0))) -> 4.914933837 | J130: =IF($A130<>0,INDEX('2.2 Daten'!M$9:M$860,MATCH('2.2'!$A130,'2.2 Daten'!$B$9:$B$860,0))) -> 2.457466919 | K130: =IF($A130<>0,INDEX('2.2 Daten'!N$9:N$860,MATCH('2.2'!$A130,'2.2 Daten'!$B$9:$B$860,0))) -> 2.919380193 | L130: =IF($A130<>0,INDEX('2.2 Daten'!O$9:O$860,MATCH('2.2'!$A130,'2.2 Daten'!$B$9:$B$860,0))) -> -2.739726027
A131: =CHOOSE('2.2 Daten'!$A$2,'2.2 Daten'!B553,'2.2 Daten'!B102,'2.2 Daten'!B119,'2.2 Daten'!B136,'2.2 Daten'!B139,'2.2 Daten'!B186,'2.2 Daten'!B190,'2.2 Daten'!B245,'2.2 Daten'!B273,'2.2 Daten'!B311,'2.2 Daten'!B357,'2.2 Daten'!B455,'2.2 Daten'!B463,'2.2 Daten'!B466,'2.2 Daten'!B486,'2.2 Daten'!B496,'2.2 Daten'!B511,'2.2 Daten'!B527,x) -> Mönchengladbach, Stadt | B131: =IF($A131<>0,INDEX('2.2 Daten'!C$9:C$860,MATCH('2.2'!$A131,'2.2 Daten'!$B$9:$B$860,0))," ") -> 5116000 | C131: =IF($A131<>0,INDEX('2.2 Daten'!E$9:E$860,MATCH('2.2'!$A131,'2.2 Daten'!$B$9:$B$860,0))) -> 13784 | D131: =IF($A131<>0,INDEX('2.2 Daten'!F$9:F$860,MATCH('2.2'!$A131,'2.2 Daten'!$B$9:$B$860,0))) -> 2613 | E131: =IF($A131<>0,INDEX('2.2 Daten'!G$9:G$860,MATCH('2.2'!$A131,'2.2 Daten'!$B$9:$B$860,0))) -> 2501 | F131: =IF($A131<>0,INDEX('2.2 Daten'!H$9:H$860,MATCH('2.2'!$A131,'2.2 Daten'!$B$9:$B$860,0))) -> 6690 | G131: =IF($A131<>0,INDEX('2.2 Daten'!I$9:I$860,MATCH('2.2'!$A131,'2.2 Daten'!$B$9:$B$860,0))) -> 1980 | H131: =IF($A131<>0,INDEX('2.2 Daten'!K$9:K$860,MATCH('2.2'!$A131,'2.2 Daten'!$B$9:$B$860,0))) -> 2.156673831 | I131: =IF($A131<>0,INDEX('2.2 Daten'!L$9:L$860,MATCH('2.2'!$A131,'2.2 Daten'!$B$9:$B$860,0))) -> 5.362903226 | J131: =IF($A131<>0,INDEX('2.2 Daten'!M$9:M$860,MATCH('2.2'!$A131,'2.2 Daten'!$B$9:$B$860,0))) -> 4.819782062 | K131: =IF($A131<>0,INDEX('2.2 Daten'!N$9:N$860,MATCH('2.2'!$A131,'2.2 Daten'!$B$9:$B$860,0))) -> -0.5204460967 | L131: =IF($A131<>0,INDEX('2.2 Daten'!O$9:O$860,MATCH('2.2'!$A131,'2.2 Daten'!$B$9:$B$860,0))) -> 4.100946372
A132: =CHOOSE('2.2 Daten'!$A$2,'2.2 Daten'!B554,'2.2 Daten'!B103,'2.2 Daten'!B120,'2.2 Daten'!B137,'2.2 Daten'!B140,'2.2 Daten'!B187,'2.2 Daten'!B191,'2.2 Daten'!B246,'2.2 Daten'!B274,'2.2 Daten'!B312,'2.2 Daten'!B358,'2.2 Daten'!B456,'2.2 Daten'!B464,'2.2 Daten'!B467,'2.2 Daten'!B487,'2.2 Daten'!B497,'2.2 Daten'!B512,'2.2 Daten'!B528,x) -> Mülheim an der Ruhr, Stadt | B132: =IF($A132<>0,INDEX('2.2 Daten'!C$9:C$860,MATCH('2.2'!$A132,'2.2 Daten'!$B$9:$B$860,0))," ") -> 5117000 | C132: =IF($A132<>0,INDEX('2.2 Daten'!E$9:E$860,MATCH('2.2'!$A132,'2.2 Daten'!$B$9:$B$860,0))) -> 7787 | D132: =IF($A132<>0,INDEX('2.2 Daten'!F$9:F$860,MATCH('2.2'!$A132,'2.2 Daten'!$B$9:$B$860,0))) -> 1476 | E132: =IF($A132<>0,INDEX('2.2 Daten'!G$9:G$860,MATCH('2.2'!$A132,'2.2 Daten'!$B$9:$B$860,0))) -> 1369 | F132: =IF($A132<>0,INDEX('2.2 Daten'!H$9:H$860,MATCH('2.2'!$A132,'2.2 Daten'!$B$9:$B$860,0))) -> 3862 | G132: =IF($A132<>0,INDEX('2.2 Daten'!I$9:I$860,MATCH('2.2'!$A132,'2.2 Daten'!$B$9:$B$860,0))) -> 1080 | H132: =IF($A132<>0,INDEX('2.2 Daten'!K$9:K$860,MATCH('2.2'!$A132,'2.2 Daten'!$B$9:$B$860,0))) -> 5.272407733 | I132: =IF($A132<>0,INDEX('2.2 Daten'!L$9:L$860,MATCH('2.2'!$A132,'2.2 Daten'!$B$9:$B$860,0))) -> 5.654974946 | J132: =IF($A132<>0,INDEX('2.2 Daten'!M$9:M$860,MATCH('2.2'!$A132,'2.2 Daten'!$B$9:$B$860,0))) -> 1.18255728 | K132: =IF($A132<>0,INDEX('2.2 Daten'!N$9:N$860,MATCH('2.2'!$A132,'2.2 Daten'!$B$9:$B$860,0))) -> 5.692391899 | L132: =IF($A132<>0,INDEX('2.2 Daten'!O$9:O$860,MATCH('2.2'!$A132,'2.2 Daten'!$B$9:$B$860,0))) -> 8.761329305
A133: =CHOOSE('2.2 Daten'!$A$2,'2.2 Daten'!B555,'2.2 Daten'!B104,'2.2 Daten'!B121,'2.2 Daten'!B138,'2.2 Daten'!B141,'2.2 Daten'!B188,'2.2 Daten'!B192,'2.2 Daten'!B247,'2.2 Daten'!B275,'2.2 Daten'!B313,'2.2 Daten'!B359,'2.2 Daten'!B457,'2.2 Daten'!B465,'2.2 Daten'!B468,'2.2 Daten'!B488,'2.2 Daten'!B498,'2.2 Daten'!B513,'2.2 Daten'!B529,x) -> Oberhausen, Stadt | B133: =IF($A133<>0,INDEX('2.2 Daten'!C$9:C$860,MATCH('2.2'!$A133,'2.2 Daten'!$B$9:$B$860,0))," ") -> 5119000 | C133: =IF($A133<>0,INDEX('2.2 Daten'!E$9:E$860,MATCH('2.2'!$A133,'2.2 Daten'!$B$9:$B$860,0))) -> 9590 | D133: =IF($A133<>0,INDEX('2.2 Daten'!F$9:F$860,MATCH('2.2'!$A133,'2.2 Daten'!$B$9:$B$860,0))) -> 1898 | E133: =IF($A133<>0,INDEX('2.2 Daten'!G$9:G$860,MATCH('2.2'!$A133,'2.2 Daten'!$B$9:$B$860,0))) -> 1709 | F133: =IF($A133<>0,INDEX('2.2 Daten'!H$9:H$860,MATCH('2.2'!$A133,'2.2 Daten'!$B$9:$B$860,0))) -> 4633 | G133: =IF($A133<>0,INDEX('2.2 Daten'!I$9:I$860,MATCH('2.2'!$A133,'2.2 Daten'!$B$9:$B$860,0))) -> 1350 | H133: =IF($A133<>0,INDEX('2.2 Daten'!K$9:K$860,MATCH('2.2'!$A133,'2.2 Daten'!$B$9:$B$860,0))) -> 4.261796043 | I133: =IF($A133<>0,INDEX('2.2 Daten'!L$9:L$860,MATCH('2.2'!$A133,'2.2 Daten'!$B$9:$B$860,0))) -> 10.60606061 | J133: =IF($A133<>0,INDEX('2.2 Daten'!M$9:M$860,MATCH('2.2'!$A133,'2.2 Daten'!$B$9:$B$860,0))) -> 4.334554335 | K133: =IF($A133<>0,INDEX('2.2 Daten'!N$9:N$860,MATCH('2.2'!$A133,'2.2 Daten'!$B$9:$B$860,0))) -> 3.322925959 | L133: =IF($A133<>0,INDEX('2.2 Daten'!O$9:O$860,MATCH('2.2'!$A133,'2.2 Daten'!$B$9:$B$860,0))) -> -0.7352941176
A134: =CHOOSE('2.2 Daten'!$A$2,'2.2 Daten'!B556,'2.2 Daten'!B105,'2.2 Daten'!B122,'2.2 Daten'!B139,'2.2 Daten'!B142,'2.2 Daten'!B189,'2.2 Daten'!B193,'2.2 Daten'!B248,'2.2 Daten'!B276,'2.2 Daten'!B314,'2.2 Daten'!B360,'2.2 Daten'!B458,'2.2 Daten'!B466,'2.2 Daten'!B469,'2.2 Daten'!B489,'2.2 Daten'!B499,'2.2 Daten'!B514,'2.2 Daten'!B530,x) -> Remscheid, Stadt | B134: =IF($A134<>0,INDEX('2.2 Daten'!C$9:C$860,MATCH('2.2'!$A134,'2.2 Daten'!$B$9:$B$860,0))," ") -> 5120000 | C134: =IF($A134<>0,INDEX('2.2 Daten'!E$9:E$860,MATCH('2.2'!$A134,'2.2 Daten'!$B$9:$B$860,0))) -> 4014 | D134: =IF($A134<>0,INDEX('2.2 Daten'!F$9:F$860,MATCH('2.2'!$A134,'2.2 Daten'!$B$9:$B$860,0))) -> 782 | E134: =IF($A134<>0,INDEX('2.2 Daten'!G$9:G$860,MATCH('2.2'!$A134,'2.2 Daten'!$B$9:$B$860,0))) -> 726 | F134: =IF($A134<>0,INDEX('2.2 Daten'!H$9:H$860,MATCH('2.2'!$A134,'2.2 Daten'!$B$9:$B$860,0))) -> 1994 | G134: =IF($A134<>0,INDEX('2.2 Daten'!I$9:I$860,MATCH('2.2'!$A134,'2.2 Daten'!$B$9:$B$860,0))) -> 512 | H134: =IF($A134<>0,INDEX('2.2 Daten'!K$9:K$860,MATCH('2.2'!$A134,'2.2 Daten'!$B$9:$B$860,0))) -> 2.607361963 | I134: =IF($A134<>0,INDEX('2.2 Daten'!L$9:L$860,MATCH('2.2'!$A134,'2.2 Daten'!$B$9:$B$860,0))) -> 5.675675676 | J134: =IF($A134<>0,INDEX('2.2 Daten'!M$9:M$860,MATCH('2.2'!$A134,'2.2 Daten'!$B$9:$B$860,0))) -> 6.921944035 | K134: =IF($A134<>0,INDEX('2.2 Daten'!N$9:N$860,MATCH('2.2'!$A134,'2.2 Daten'!$B$9:$B$860,0))) -> 3.049095607 | L134: =IF($A134<>0,INDEX('2.2 Daten'!O$9:O$860,MATCH('2.2'!$A134,'2.2 Daten'!$B$9:$B$860,0))) -> -8.243727599
A135: =CHOOSE('2.2 Daten'!$A$2,'2.2 Daten'!B557,'2.2 Daten'!B106,'2.2 Daten'!B123,'2.2 Daten'!B140,'2.2 Daten'!B143,'2.2 Daten'!B190,'2.2 Daten'!B194,'2.2 Daten'!B249,'2.2 Daten'!B277,'2.2 Daten'!B315,'2.2 Daten'!B361,'2.2 Daten'!B459,'2.2 Daten'!B467,'2.2 Daten'!B470,'2.2 Daten'!B490,'2.2 Daten'!B500,'2.2 Daten'!B515,'2.2 Daten'!B531,x) -> Solingen, Stadt | B135: =IF($A135<>0,INDEX('2.2 Daten'!C$9:C$860,MATCH('2.2'!$A135,'2.2 Daten'!$B$9:$B$860,0))," ") -> 5122000 | C135: =IF($A135<>0,INDEX('2.2 Daten'!E$9:E$860,MATCH('2.2'!$A135,'2.2 Daten'!$B$9:$B$860,0))) -> 5360 | D135: =IF($A135<>0,INDEX('2.2 Daten'!F$9:F$860,MATCH('2.2'!$A135,'2.2 Daten'!$B$9:$B$860,0))) -> 979 | E135: =IF($A135<>0,INDEX('2.2 Daten'!G$9:G$860,MATCH('2.2'!$A135,'2.2 Daten'!$B$9:$B$860,0))) -> 963 | F135: =IF($A135<>0,INDEX('2.2 Daten'!H$9:H$860,MATCH('2.2'!$A135,'2.2 Daten'!$B$9:$B$860,0))) -> 2643 | G135: =IF($A135<>0,INDEX('2.2 Daten'!I$9:I$860,MATCH('2.2'!$A135,'2.2 Daten'!$B$9:$B$860,0))) -> 775 | H135: =IF($A135<>0,INDEX('2.2 Daten'!K$9:K$860,MATCH('2.2'!$A135,'2.2 Daten'!$B$9:$B$860,0))) -> 0.770821583 | I135: =IF($A135<>0,INDEX('2.2 Daten'!L$9:L$860,MATCH('2.2'!$A135,'2.2 Daten'!$B$9:$B$860,0))) -> -2.780536246 | J135: =IF($A135<>0,INDEX('2.2 Daten'!M$9:M$860,MATCH('2.2'!$A135,'2.2 Daten'!$B$9:$B$860,0))) -> 2.774813234 | K135: =IF($A135<>0,INDEX('2.2 Daten'!N$9:N$860,MATCH('2.2'!$A135,'2.2 Daten'!$B$9:$B$860,0))) -> 0.7240853659 | L135: =IF($A135<>0,INDEX('2.2 Daten'!O$9:O$860,MATCH('2.2'!$A135,'2.2 Daten'!$B$9:$B$860,0))) -> 3.195739015
A136: =CHOOSE('2.2 Daten'!$A$2,'2.2 Daten'!B558,'2.2 Daten'!B107,'2.2 Daten'!B124,'2.2 Daten'!B141,'2.2 Daten'!B144,'2.2 Daten'!B191,'2.2 Daten'!B195,'2.2 Daten'!B250,'2.2 Daten'!B278,'2.2 Daten'!B316,'2.2 Daten'!B362,'2.2 Daten'!B460,'2.2 Daten'!B468,'2.2 Daten'!B471,'2.2 Daten'!B491,'2.2 Daten'!B501,'2.2 Daten'!B516,'2.2 Daten'!B532,x) -> Wuppertal, Stadt | B136: =IF($A136<>0,INDEX('2.2 Daten'!C$9:C$860,MATCH('2.2'!$A136,'2.2 Daten'!$B$9:$B$860,0))," ") -> 5124000 | C136: =IF($A136<>0,INDEX('2.2 Daten'!E$9:E$860,MATCH('2.2'!$A136,'2.2 Daten'!$B$9:$B$860,0))) -> 18042 | D136: =IF($A136<>0,INDEX('2.2 Daten'!F$9:F$860,MATCH('2.2'!$A136,'2.2 Daten'!$B$9:$B$860,0))) -> 3389 | E136: =IF($A136<>0,INDEX('2.2 Daten'!G$9:G$860,MATCH('2.2'!$A136,'2.2 Daten'!$B$9:$B$860,0))) -> 3275 | F136: =IF($A136<>0,INDEX('2.2 Daten'!H$9:H$860,MATCH('2.2'!$A136,'2.2 Daten'!$B$9:$B$860,0))) -> 8895 | G136: =IF($A136<>0,INDEX('2.2 Daten'!I$9:I$860,MATCH('2.2'!$A136,'2.2 Daten'!$B$9:$B$860,0))) -> 2483 | H136: =IF($A136<>0,INDEX('2.2 Daten'!K$9:K$860,MATCH('2.2'!$A136,'2.2 Daten'!$B$9:$B$860,0))) -> 4.712710389 | I136: =IF($A136<>0,INDEX('2.2 Daten'!L$9:L$860,MATCH('2.2'!$A136,'2.2 Daten'!$B$9:$B$860,0))) -> 7.689863362 | J136: =IF($A136<>0,INDEX('2.2 Daten'!M$9:M$860,MATCH('2.2'!$A136,'2.2 Daten'!$B$9:$B$860,0))) -> 5.237789203 | K136: =IF($A136<>0,INDEX('2.2 Daten'!N$9:N$860,MATCH('2.2'!$A136,'2.2 Daten'!$B$9:$B$860,0))) -> 4.010757717 | L136: =IF($A136<>0,INDEX('2.2 Daten'!O$9:O$860,MATCH('2.2'!$A136,'2.2 Daten'!$B$9:$B$860,0))) -> 2.645721372
A137: =CHOOSE('2.2 Daten'!$A$2,'2.2 Daten'!B559,'2.2 Daten'!B108,'2.2 Daten'!B125,'2.2 Daten'!B142,'2.2 Daten'!B145,'2.2 Daten'!B192,'2.2 Daten'!B196,'2.2 Daten'!B251,'2.2 Daten'!B279,'2.2 Daten'!B317,'2.2 Daten'!B363,'2.2 Daten'!B461,'2.2 Daten'!B469,'2.2 Daten'!B472,'2.2 Daten'!B492,'2.2 Daten'!B502,'2.2 Daten'!B517,'2.2 Daten'!B533,x) -> Kleve | B137: =IF($A137<>0,INDEX('2.2 Daten'!C$9:C$860,MATCH('2.2'!$A137,'2.2 Daten'!$B$9:$B$860,0))," ") -> 5154000 | C137: =IF($A137<>0,INDEX('2.2 Daten'!E$9:E$860,MATCH('2.2'!$A137,'2.2 Daten'!$B$9:$B$860,0))) -> 6624 | D137: =IF($A137<>0,INDEX('2.2 Daten'!F$9:F$860,MATCH('2.2'!$A137,'2.2 Daten'!$B$9:$B$860,0))) -> 1314 | E137: =IF($A137<>0,INDEX('2.2 Daten'!G$9:G$860,MATCH('2.2'!$A137,'2.2 Daten'!$B$9:$B$860,0))) -> 1192 | F137: =IF($A137<>0,INDEX('2.2 Daten'!H$9:H$860,MATCH('2.2'!$A137,'2.2 Daten'!$B$9:$B$860,0))) -> 3199 | G137: =IF($A137<>0,INDEX('2.2 Daten'!I$9:I$860,MATCH('2.2'!$A137,'2.2 Daten'!$B$9:$B$860,0))) -> 919 | H137: =IF($A137<>0,INDEX('2.2 Daten'!K$9:K$860,MATCH('2.2'!$A137,'2.2 Daten'!$B$9:$B$860,0))) -> 4.020100503 | I137: =IF($A137<>0,INDEX('2.2 Daten'!L$9:L$860,MATCH('2.2'!$A137,'2.2 Daten'!$B$9:$B$860,0))) -> 12.78969957 | J137: =IF($A137<>0,INDEX('2.2 Daten'!M$9:M$860,MATCH('2.2'!$A137,'2.2 Daten'!$B$9:$B$860,0))) -> 2.054794521 | K137: =IF($A137<>0,INDEX('2.2 Daten'!N$9:N$860,MATCH('2.2'!$A137,'2.2 Daten'!$B$9:$B$860,0))) -> 0.9785353535 | L137: =IF($A137<>0,INDEX('2.2 Daten'!O$9:O$860,MATCH('2.2'!$A137,'2.2 Daten'!$B$9:$B$860,0))) -> 5.997693195
A138: =CHOOSE('2.2 Daten'!$A$2,'2.2 Daten'!B560,'2.2 Daten'!B109,'2.2 Daten'!B126,'2.2 Daten'!B143,'2.2 Daten'!B146,'2.2 Daten'!B193,'2.2 Daten'!B197,'2.2 Daten'!B252,'2.2 Daten'!B280,'2.2 Daten'!B318,'2.2 Daten'!B364,'2.2 Daten'!B462,'2.2 Daten'!B470,'2.2 Daten'!B473,'2.2 Daten'!B493,'2.2 Daten'!B503,'2.2 Daten'!B518,'2.2 Daten'!B534,x) -> Mettmann | B138: =IF($A138<>0,INDEX('2.2 Daten'!C$9:C$860,MATCH('2.2'!$A138,'2.2 Daten'!$B$9:$B$860,0))," ") -> 5158000 | C138: =IF($A138<>0,INDEX('2.2 Daten'!E$9:E$860,MATCH('2.2'!$A138,'2.2 Daten'!$B$9:$B$860,0))) -> 13053 | D138: =IF($A138<>0,INDEX('2.2 Daten'!F$9:F$860,MATCH('2.2'!$A138,'2.2 Daten'!$B$9:$B$860,0))) -> 2466 | E138: =IF($A138<>0,INDEX('2.2 Daten'!G$9:G$860,MATCH('2.2'!$A138,'2.2 Daten'!$B$9:$B$860,0))) -> 2358 | F138: =IF($A138<>0,INDEX('2.2 Daten'!H$9:H$860,MATCH('2.2'!$A138,'2.2 Daten'!$B$9:$B$860,0))) -> 6368 | G138: =IF($A138<>0,INDEX('2.2 Daten'!I$9:I$860,MATCH('2.2'!$A138,'2.2 Daten'!$B$9:$B$860,0))) -> 1861 | H138: =IF($A138<>0,INDEX('2.2 Daten'!K$9:K$860,MATCH('2.2'!$A138,'2.2 Daten'!$B$9:$B$860,0))) -> 4.074310317 | I138: =IF($A138<>0,INDEX('2.2 Daten'!L$9:L$860,MATCH('2.2'!$A138,'2.2 Daten'!$B$9:$B$860,0))) -> 7.63858577 | J138: =IF($A138<>0,INDEX('2.2 Daten'!M$9:M$860,MATCH('2.2'!$A138,'2.2 Daten'!$B$9:$B$860,0))) -> 8.964879852 | K138: =IF($A138<>0,INDEX('2.2 Daten'!N$9:N$860,MATCH('2.2'!$A138,'2.2 Daten'!$B$9:$B$860,0))) -> 2.346512375 | L138: =IF($A138<>0,INDEX('2.2 Daten'!O$9:O$860,MATCH('2.2'!$A138,'2.2 Daten'!$B$9:$B$860,0))) -> -0.2144772118
A139: =CHOOSE('2.2 Daten'!$A$2,'2.2 Daten'!B561,'2.2 Daten'!B110,'2.2 Daten'!B127,'2.2 Daten'!B144,'2.2 Daten'!B147,'2.2 Daten'!B194,'2.2 Daten'!B198,'2.2 Daten'!B253,'2.2 Daten'!B281,'2.2 Daten'!B319,'2.2 Daten'!B365,'2.2 Daten'!B463,'2.2 Daten'!B471,'2.2 Daten'!B474,'2.2 Daten'!B494,'2.2 Daten'!B504,'2.2 Daten'!B519,'2.2 Daten'!B535,x) -> Rhein-Kreis Neuss | B139: =IF($A139<>0,INDEX('2.2 Daten'!C$9:C$860,MATCH('2.2'!$A139,'2.2 Daten'!$B$9:$B$860,0))," ") -> 5162000 | C139: =IF($A139<>0,INDEX('2.2 Daten'!E$9:E$860,MATCH('2.2'!$A139,'2.2 Daten'!$B$9:$B$860,0))) -> 11138 | D139: =IF($A139<>0,INDEX('2.2 Daten'!F$9:F$860,MATCH('2.2'!$A139,'2.2 Daten'!$B$9:$B$860,0))) -> 2151 | E139: =IF($A139<>0,INDEX('2.2 Daten'!G$9:G$860,MATCH('2.2'!$A139,'2.2 Daten'!$B$9:$B$860,0))) -> 2042 | F139: =IF($A139<>0,INDEX('2.2 Daten'!H$9:H$860,MATCH('2.2'!$A139,'2.2 Daten'!$B$9:$B$860,0))) -> 5471 | G139: =IF($A139<>0,INDEX('2.2 Daten'!I$9:I$860,MATCH('2.2'!$A139,'2.2 Daten'!$B$9:$B$860,0))) -> 1474 | H139: =IF($A139<>0,INDEX('2.2 Daten'!K$9:K$860,MATCH('2.2'!$A139,'2.2 Daten'!$B$9:$B$860,0))) -> 3.69611768 | I139: =IF($A139<>0,INDEX('2.2 Daten'!L$9:L$860,MATCH('2.2'!$A139,'2.2 Daten'!$B$9:$B$860,0))) -> 8.856275304 | J139: =IF($A139<>0,INDEX('2.2 Daten'!M$9:M$860,MATCH('2.2'!$A139,'2.2 Daten'!$B$9:$B$860,0))) -> 5.475206612 | K139: =IF($A139<>0,INDEX('2.2 Daten'!N$9:N$860,MATCH('2.2'!$A139,'2.2 Daten'!$B$9:$B$860,0))) -> 2.453183521 | L139: =IF($A139<>0,INDEX('2.2 Daten'!O$9:O$860,MATCH('2.2'!$A139,'2.2 Daten'!$B$9:$B$860,0))) -> -1.007387508
A140: =CHOOSE('2.2 Daten'!$A$2,'2.2 Daten'!B562,'2.2 Daten'!B111,'2.2 Daten'!B128,'2.2 Daten'!B145,'2.2 Daten'!B148,'2.2 Daten'!B195,'2.2 Daten'!B199,'2.2 Daten'!B254,'2.2 Daten'!B282,'2.2 Daten'!B320,'2.2 Daten'!B366,'2.2 Daten'!B464,'2.2 Daten'!B472,'2.2 Daten'!B475,'2.2 Daten'!B495,'2.2 Daten'!B505,'2.2 Daten'!B520,'2.2 Daten'!B536,x) -> Viersen | B140: =IF($A140<>0,INDEX('2.2 Daten'!C$9:C$860,MATCH('2.2'!$A140,'2.2 Daten'!$B$9:$B$860,0))," ") -> 5166000 | C140: =IF($A140<>0,INDEX('2.2 Daten'!E$9:E$860,MATCH('2.2'!$A140,'2.2 Daten'!$B$9:$B$860,0))) -> 6707 | D140: =IF($A140<>0,INDEX('2.2 Daten'!F$9:F$860,MATCH('2.2'!$A140,'2.2 Daten'!$B$9:$B$860,0))) -> 1173 | E140: =IF($A140<>0,INDEX('2.2 Daten'!G$9:G$860,MATCH('2.2'!$A140,'2.2 Daten'!$B$9:$B$860,0))) -> 1201 | F140: =IF($A140<>0,INDEX('2.2 Daten'!H$9:H$860,MATCH('2.2'!$A140,'2.2 Daten'!$B$9:$B$860,0))) -> 3374 | G140: =IF($A140<>0,INDEX('2.2 Daten'!I$9:I$860,MATCH('2.2'!$A140,'2.2 Daten'!$B$9:$B$860,0))) -> 959 | H140: =IF($A140<>0,INDEX('2.2 Daten'!K$9:K$860,MATCH('2.2'!$A140,'2.2 Daten'!$B$9:$B$860,0))) -> -1.120448179 | I140: =IF($A140<>0,INDEX('2.2 Daten'!L$9:L$860,MATCH('2.2'!$A140,'2.2 Daten'!$B$9:$B$860,0))) -> -3.931203931 | J140: =IF($A140<>0,INDEX('2.2 Daten'!M$9:M$860,MATCH('2.2'!$A140,'2.2 Daten'!$B$9:$B$860,0))) -> -0.9075907591 | K140: =IF($A140<>0,INDEX('2.2 Daten'!N$9:N$860,MATCH('2.2'!$A140,'2.2 Daten'!$B$9:$B$860,0))) -> -0.8813160987 | L140: =IF($A140<>0,INDEX('2.2 Daten'!O$9:O$860,MATCH('2.2'!$A140,'2.2 Daten'!$B$9:$B$860,0))) -> 1.374207188
A141: =CHOOSE('2.2 Daten'!$A$2,'2.2 Daten'!B563,'2.2 Daten'!B112,'2.2 Daten'!B129,'2.2 Daten'!B146,'2.2 Daten'!B149,'2.2 Daten'!B196,'2.2 Daten'!B200,'2.2 Daten'!B255,'2.2 Daten'!B283,'2.2 Daten'!B321,'2.2 Daten'!B367,'2.2 Daten'!B465,'2.2 Daten'!B473,'2.2 Daten'!B476,'2.2 Daten'!B496,'2.2 Daten'!B506,'2.2 Daten'!B521,'2.2 Daten'!B537,x) -> Wesel | B141: =IF($A141<>0,INDEX('2.2 Daten'!C$9:C$860,MATCH('2.2'!$A141,'2.2 Daten'!$B$9:$B$860,0))," ") -> 5170000 | C141: =IF($A141<>0,INDEX('2.2 Daten'!E$9:E$860,MATCH('2.2'!$A141,'2.2 Daten'!$B$9:$B$860,0))) -> 11968 | D141: =IF($A141<>0,INDEX('2.2 Daten'!F$9:F$860,MATCH('2.2'!$A141,'2.2 Daten'!$B$9:$B$860,0))) -> 2198 | E141: =IF($A141<>0,INDEX('2.2 Daten'!G$9:G$860,MATCH('2.2'!$A141,'2.2 Daten'!$B$9:$B$860,0))) -> 2203 | F141: =IF($A141<>0,INDEX('2.2 Daten'!H$9:H$860,MATCH('2.2'!$A141,'2.2 Daten'!$B$9:$B$860,0))) -> 5883 | G141: =IF($A141<>0,INDEX('2.2 Daten'!I$9:I$860,MATCH('2.2'!$A141,'2.2 Daten'!$B$9:$B$860,0))) -> 1684 | H141: =IF($A141<>0,INDEX('2.2 Daten'!K$9:K$860,MATCH('2.2'!$A141,'2.2 Daten'!$B$9:$B$860,0))) -> 3.136849362 | I141: =IF($A141<>0,INDEX('2.2 Daten'!L$9:L$860,MATCH('2.2'!$A141,'2.2 Daten'!$B$9:$B$860,0))) -> 6.183574879 | J141: =IF($A141<>0,INDEX('2.2 Daten'!M$9:M$860,MATCH('2.2'!$A141,'2.2 Daten'!$B$9:$B$860,0))) -> 5.155131265 | K141: =IF($A141<>0,INDEX('2.2 Daten'!N$9:N$860,MATCH('2.2'!$A141,'2.2 Daten'!$B$9:$B$860,0))) -> 1.799619311 | L141: =IF($A141<>0,INDEX('2.2 Daten'!O$9:O$860,MATCH('2.2'!$A141,'2.2 Daten'!$B$9:$B$860,0))) -> 1.445783133
A142: =CHOOSE('2.2 Daten'!$A$2,'2.2 Daten'!B564,'2.2 Daten'!B113,'2.2 Daten'!B130,'2.2 Daten'!B147,'2.2 Daten'!B150,'2.2 Daten'!B197,'2.2 Daten'!B201,'2.2 Daten'!B256,'2.2 Daten'!B284,'2.2 Daten'!B322,'2.2 Daten'!B368,'2.2 Daten'!B466,'2.2 Daten'!B474,'2.2 Daten'!B477,'2.2 Daten'!B497,'2.2 Daten'!B507,'2.2 Daten'!B522,'2.2 Daten'!B538,x) -> Bonn, Stadt | B142: =IF($A142<>0,INDEX('2.2 Daten'!C$9:C$860,MATCH('2.2'!$A142,'2.2 Daten'!$B$9:$B$860,0))," ") -> 5314000 | C142: =IF($A142<>0,INDEX('2.2 Daten'!E$9:E$860,MATCH('2.2'!$A142,'2.2 Daten'!$B$9:$B$860,0))) -> 11637 | D142: =IF($A142<>0,INDEX('2.2 Daten'!F$9:F$860,MATCH('2.2'!$A142,'2.2 Daten'!$B$9:$B$860,0))) -> 2064 | E142: =IF($A142<>0,INDEX('2.2 Daten'!G$9:G$860,MATCH('2.2'!$A142,'2.2 Daten'!$B$9:$B$860,0))) -> 2014 | F142: =IF($A142<>0,INDEX('2.2 Daten'!H$9:H$860,MATCH('2.2'!$A142,'2.2 Daten'!$B$9:$B$860,0))) -> 5934 | G142: =IF($A142<>0,INDEX('2.2 Daten'!I$9:I$860,MATCH('2.2'!$A142,'2.2 Daten'!$B$9:$B$860,0))) -> 1625 | H142: =IF($A142<>0,INDEX('2.2 Daten'!K$9:K$860,MATCH('2.2'!$A142,'2.2 Daten'!$B$9:$B$860,0))) -> 3.476791748 | I142: =IF($A142<>0,INDEX('2.2 Daten'!L$9:L$860,MATCH('2.2'!$A142,'2.2 Daten'!$B$9:$B$860,0))) -> 5.252422234 | J142: =IF($A142<>0,INDEX('2.2 Daten'!M$9:M$860,MATCH('2.2'!$A142,'2.2 Daten'!$B$9:$B$860,0))) -> -0.3956478734 | K142: =IF($A142<>0,INDEX('2.2 Daten'!N$9:N$860,MATCH('2.2'!$A142,'2.2 Daten'!$B$9:$B$860,0))) -> 4.032258065 | L142: =IF($A142<>0,INDEX('2.2 Daten'!O$9:O$860,MATCH('2.2'!$A142,'2.2 Daten'!$B$9:$B$860,0))) -> 4.233483002
A143: =CHOOSE('2.2 Daten'!$A$2,'2.2 Daten'!B565,'2.2 Daten'!B114,'2.2 Daten'!B131,'2.2 Daten'!B148,'2.2 Daten'!B151,'2.2 Daten'!B198,'2.2 Daten'!B202,'2.2 Daten'!B257,'2.2 Daten'!B285,'2.2 Daten'!B323,'2.2 Daten'!B369,'2.2 Daten'!B467,'2.2 Daten'!B475,'2.2 Daten'!B478,'2.2 Daten'!B498,'2.2 Daten'!B508,'2.2 Daten'!B523,'2.2 Daten'!B539,x) -> Köln, Stadt | B143: =IF($A143<>0,INDEX('2.2 Daten'!C$9:C$860,MATCH('2.2'!$A143,'2.2 Daten'!$B$9:$B$860,0))," ") -> 5315000 | C143: =IF($A143<>0,INDEX('2.2 Daten'!E$9:E$860,MATCH('2.2'!$A143,'2.2 Daten'!$B$9:$B$860,0))) -> 38719 | D143: =IF($A143<>0,INDEX('2.2 Daten'!F$9:F$860,MATCH('2.2'!$A143,'2.2 Daten'!$B$9:$B$860,0))) -> 7016 | E143: =IF($A143<>0,INDEX('2.2 Daten'!G$9:G$860,MATCH('2.2'!$A143,'2.2 Daten'!$B$9:$B$860,0))) -> 6929 | F143: =IF($A143<>0,INDEX('2.2 Daten'!H$9:H$860,MATCH('2.2'!$A143,'2.2 Daten'!$B$9:$B$860,0))) -> 19339 | G143: =IF($A143<>0,INDEX('2.2 Daten'!I$9:I$860,MATCH('2.2'!$A143,'2.2 Daten'!$B$9:$B$860,0))) -> 5435 | H143: =IF($A143<>0,INDEX('2.2 Daten'!K$9:K$860,MATCH('2.2'!$A143,'2.2 Daten'!$B$9:$B$860,0))) -> 1.648683416 | I143: =IF($A143<>0,INDEX('2.2 Daten'!L$9:L$860,MATCH('2.2'!$A143,'2.2 Daten'!$B$9:$B$860,0))) -> 2.438312162 | J143: =IF($A143<>0,INDEX('2.2 Daten'!M$9:M$860,MATCH('2.2'!$A143,'2.2 Daten'!$B$9:$B$860,0))) -> 3.15617091 | K143: =IF($A143<>0,INDEX('2.2 Daten'!N$9:N$860,MATCH('2.2'!$A143,'2.2 Daten'!$B$9:$B$860,0))) -> 1.853900037 | L143: =IF($A143<>0,INDEX('2.2 Daten'!O$9:O$860,MATCH('2.2'!$A143,'2.2 Daten'!$B$9:$B$860,0))) -> -1.859877212
A144: =CHOOSE('2.2 Daten'!$A$2,'2.2 Daten'!B566,'2.2 Daten'!B115,'2.2 Daten'!B132,'2.2 Daten'!B149,'2.2 Daten'!B152,'2.2 Daten'!B199,'2.2 Daten'!B203,'2.2 Daten'!B258,'2.2 Daten'!B286,'2.2 Daten'!B324,'2.2 Daten'!B370,'2.2 Daten'!B468,'2.2 Daten'!B476,'2.2 Daten'!B479,'2.2 Daten'!B499,'2.2 Daten'!B509,'2.2 Daten'!B524,'2.2 Daten'!B540,x) -> Leverkusen, Stadt | B144: =IF($A144<>0,INDEX('2.2 Daten'!C$9:C$860,MATCH('2.2'!$A144,'2.2 Daten'!$B$9:$B$860,0))," ") -> 5316000 | C144: =IF($A144<>0,INDEX('2.2 Daten'!E$9:E$860,MATCH('2.2'!$A144,'2.2 Daten'!$B$9:$B$860,0))) -> 6226 | D144: =IF($A144<>0,INDEX('2.2 Daten'!F$9:F$860,MATCH('2.2'!$A144,'2.2 Daten'!$B$9:$B$860,0))) -> 1158 | E144: =IF($A144<>0,INDEX('2.2 Daten'!G$9:G$860,MATCH('2.2'!$A144,'2.2 Daten'!$B$9:$B$860,0))) -> 1192 | F144: =IF($A144<>0,INDEX('2.2 Daten'!H$9:H$860,MATCH('2.2'!$A144,'2.2 Daten'!$B$9:$B$860,0))) -> 3033 | G144: =IF($A144<>0,INDEX('2.2 Daten'!I$9:I$860,MATCH('2.2'!$A144,'2.2 Daten'!$B$9:$B$860,0))) -> 843 | H144: =IF($A144<>0,INDEX('2.2 Daten'!K$9:K$860,MATCH('2.2'!$A144,'2.2 Daten'!$B$9:$B$860,0))) -> 1.153533712 | I144: =IF($A144<>0,INDEX('2.2 Daten'!L$9:L$860,MATCH('2.2'!$A144,'2.2 Daten'!$B$9:$B$860,0))) -> -2.443133951 | J144: =IF($A144<>0,INDEX('2.2 Daten'!M$9:M$860,MATCH('2.2'!$A144,'2.2 Daten'!$B$9:$B$860,0))) -> 6.333630687 | K144: =IF($A144<>0,INDEX('2.2 Daten'!N$9:N$860,MATCH('2.2'!$A144,'2.2 Daten'!$B$9:$B$860,0))) -> 1.540006696 | L144: =IF($A144<>0,INDEX('2.2 Daten'!O$9:O$860,MATCH('2.2'!$A144,'2.2 Daten'!$B$9:$B$860,0))) -> -1.976744186
A145: =CHOOSE('2.2 Daten'!$A$2,'2.2 Daten'!B567,'2.2 Daten'!B116,'2.2 Daten'!B133,'2.2 Daten'!B150,'2.2 Daten'!B153,'2.2 Daten'!B200,'2.2 Daten'!B204,'2.2 Daten'!B259,'2.2 Daten'!B287,'2.2 Daten'!B325,'2.2 Daten'!B371,'2.2 Daten'!B469,'2.2 Daten'!B477,'2.2 Daten'!B480,'2.2 Daten'!B500,'2.2 Daten'!B510,'2.2 Daten'!B525,'2.2 Daten'!B541,x) -> Städteregion Aachen | B145: =IF($A145<>0,INDEX('2.2 Daten'!C$9:C$860,MATCH('2.2'!$A145,'2.2 Daten'!$B$9:$B$860,0))," ") -> 5334000 | C145: =IF($A145<>0,INDEX('2.2 Daten'!E$9:E$860,MATCH('2.2'!$A145,'2.2 Daten'!$B$9:$B$860,0))) -> 17236 | D145: =IF($A145<>0,INDEX('2.2 Daten'!F$9:F$860,MATCH('2.2'!$A145,'2.2 Daten'!$B$9:$B$860,0))) -> 3319 | E145: =IF($A145<>0,INDEX('2.2 Daten'!G$9:G$860,MATCH('2.2'!$A145,'2.2 Daten'!$B$9:$B$860,0))) -> 3064 | F145: =IF($A145<>0,INDEX('2.2 Daten'!H$9:H$860,MATCH('2.2'!$A145,'2.2 Daten'!$B$9:$B$860,0))) -> 8479 | G145: =IF($A145<>0,INDEX('2.2 Daten'!I$9:I$860,MATCH('2.2'!$A145,'2.2 Daten'!$B$9:$B$860,0))) -> 2374 | H145: =IF($A145<>0,INDEX('2.2 Daten'!K$9:K$860,MATCH('2.2'!$A145,'2.2 Daten'!$B$9:$B$860,0))) -> 1.424032011 | I145: =IF($A145<>0,INDEX('2.2 Daten'!L$9:L$860,MATCH('2.2'!$A145,'2.2 Daten'!$B$9:$B$860,0))) -> 5.231452124 | J145: =IF($A145<>0,INDEX('2.2 Daten'!M$9:M$860,MATCH('2.2'!$A145,'2.2 Daten'!$B$9:$B$860,0))) -> 0.4919645786 | K145: =IF($A145<>0,INDEX('2.2 Daten'!N$9:N$860,MATCH('2.2'!$A145,'2.2 Daten'!$B$9:$B$860,0))) -> 1.935561433 | L145: =IF($A145<>0,INDEX('2.2 Daten'!O$9:O$860,MATCH('2.2'!$A145,'2.2 Daten'!$B$9:$B$860,0))) -> -4.003234937
A146: =CHOOSE('2.2 Daten'!$A$2,'2.2 Daten'!B568,'2.2 Daten'!B117,'2.2 Daten'!B134,'2.2 Daten'!B151,'2.2 Daten'!B154,'2.2 Daten'!B201,'2.2 Daten'!B205,'2.2 Daten'!B260,'2.2 Daten'!B288,'2.2 Daten'!B326,'2.2 Daten'!B372,'2.2 Daten'!B470,'2.2 Daten'!B478,'2.2 Daten'!B481,'2.2 Daten'!B501,'2.2 Daten'!B511,'2.2 Daten'!B526,'2.2 Daten'!B542,x) -> Düren | B146: =IF($A146<>0,INDEX('2.2 Daten'!C$9:C$860,MATCH('2.2'!$A146,'2.2 Daten'!$B$9:$B$860,0))," ") -> 5358000 | C146: =IF($A146<>0,INDEX('2.2 Daten'!E$9:E$860,MATCH('2.2'!$A146,'2.2 Daten'!$B$9:$B$860,0))) -> 7808 | D146: =IF($A146<>0,INDEX('2.2 Daten'!F$9:F$860,MATCH('2.2'!$A146,'2.2 Daten'!$B$9:$B$860,0))) -> 1463 | E146: =IF($A146<>0,INDEX('2.2 Daten'!G$9:G$860,MATCH('2.2'!$A146,'2.2 Daten'!$B$9:$B$860,0))) -> 1398 | F146: =IF($A146<>0,INDEX('2.2 Daten'!H$9:H$860,MATCH('2.2'!$A146,'2.2 Daten'!$B$9:$B$860,0))) -> 3872 | G146: =IF($A146<>0,INDEX('2.2 Daten'!I$9:I$860,MATCH('2.2'!$A146,'2.2 Daten'!$B$9:$B$860,0))) -> 1075 | H146: =IF($A146<>0,INDEX('2.2 Daten'!K$9:K$860,MATCH('2.2'!$A146,'2.2 Daten'!$B$9:$B$860,0))) -> 4.176117412 | I146: =IF($A146<>0,INDEX('2.2 Daten'!L$9:L$860,MATCH('2.2'!$A146,'2.2 Daten'!$B$9:$B$860,0))) -> 7.970479705 | J146: =IF($A146<>0,INDEX('2.2 Daten'!M$9:M$860,MATCH('2.2'!$A146,'2.2 Daten'!$B$9:$B$860,0))) -> 8.204334365 | K146: =IF($A146<>0,INDEX('2.2 Daten'!N$9:N$860,MATCH('2.2'!$A146,'2.2 Daten'!$B$9:$B$860,0))) -> 2.651113468 | L146: =IF($A146<>0,INDEX('2.2 Daten'!O$9:O$860,MATCH('2.2'!$A146,'2.2 Daten'!$B$9:$B$860,0))) -> -0.09293680297
A147: =CHOOSE('2.2 Daten'!$A$2,'2.2 Daten'!B569,'2.2 Daten'!B118,'2.2 Daten'!B135,'2.2 Daten'!B152,'2.2 Daten'!B155,'2.2 Daten'!B202,'2.2 Daten'!B206,'2.2 Daten'!B261,'2.2 Daten'!B289,'2.2 Daten'!B327,'2.2 Daten'!B373,'2.2 Daten'!B471,'2.2 Daten'!B479,'2.2 Daten'!B482,'2.2 Daten'!B502,'2.2 Daten'!B512,'2.2 Daten'!B527,'2.2 Daten'!B543,x) -> Rhein-Erft-Kreis | B147: =IF($A147<>0,INDEX('2.2 Daten'!C$9:C$860,MATCH('2.2'!$A147,'2.2 Daten'!$B$9:$B$860,0))," ") -> 5362000 | C147: =IF($A147<>0,INDEX('2.2 Daten'!E$9:E$860,MATCH('2.2'!$A147,'2.2 Daten'!$B$9:$B$860,0))) -> 13006 | D147: =IF($A147<>0,INDEX('2.2 Daten'!F$9:F$860,MATCH('2.2'!$A147,'2.2 Daten'!$B$9:$B$860,0))) -> 2394 | E147: =IF($A147<>0,INDEX('2.2 Daten'!G$9:G$860,MATCH('2.2'!$A147,'2.2 Daten'!$B$9:$B$860,0))) -> 2295 | F147: =IF($A147<>0,INDEX('2.2 Daten'!H$9:H$860,MATCH('2.2'!$A147,'2.2 Daten'!$B$9:$B$860,0))) -> 6527 | G147: =IF($A147<>0,INDEX('2.2 Daten'!I$9:I$860,MATCH('2.2'!$A147,'2.2 Daten'!$B$9:$B$860,0))) -> 1790 | H147: =IF($A147<>0,INDEX('2.2 Daten'!K$9:K$860,MATCH('2.2'!$A147,'2.2 Daten'!$B$9:$B$860,0))) -> 0.9390764455 | I147: =IF($A147<>0,INDEX('2.2 Daten'!L$9:L$860,MATCH('2.2'!$A147,'2.2 Daten'!$B$9:$B$860,0))) -> 5.92920354 | J147: =IF($A147<>0,INDEX('2.2 Daten'!M$9:M$860,MATCH('2.2'!$A147,'2.2 Daten'!$B$9:$B$860,0))) -> -1.586620926 | K147: =IF($A147<>0,INDEX('2.2 Daten'!N$9:N$860,MATCH('2.2'!$A147,'2.2 Daten'!$B$9:$B$860,0))) -> 0.6942301759 | L147: =IF($A147<>0,INDEX('2.2 Daten'!O$9:O$860,MATCH('2.2'!$A147,'2.2 Daten'!$B$9:$B$860,0))) -> -1.159580342
A148: =CHOOSE('2.2 Daten'!$A$2,'2.2 Daten'!B570,'2.2 Daten'!B119,'2.2 Daten'!B136,'2.2 Daten'!B153,'2.2 Daten'!B156,'2.2 Daten'!B203,'2.2 Daten'!B207,'2.2 Daten'!B262,'2.2 Daten'!B290,'2.2 Daten'!B328,'2.2 Daten'!B374,'2.2 Daten'!B472,'2.2 Daten'!B480,'2.2 Daten'!B483,'2.2 Daten'!B503,'2.2 Daten'!B513,'2.2 Daten'!B528,'2.2 Daten'!B544,x) -> Euskirchen | B148: =IF($A148<>0,INDEX('2.2 Daten'!C$9:C$860,MATCH('2.2'!$A148,'2.2 Daten'!$B$9:$B$860,0))," ") -> 5366000 | C148: =IF($A148<>0,INDEX('2.2 Daten'!E$9:E$860,MATCH('2.2'!$A148,'2.2 Daten'!$B$9:$B$860,0))) -> 4191 | D148: =IF($A148<>0,INDEX('2.2 Daten'!F$9:F$860,MATCH('2.2'!$A148,'2.2 Daten'!$B$9:$B$860,0))) -> 834 | E148: =IF($A148<>0,INDEX('2.2 Daten'!G$9:G$860,MATCH('2.2'!$A148,'2.2 Daten'!$B$9:$B$860,0))) -> 799 | F148: =IF($A148<>0,INDEX('2.2 Daten'!H$9:H$860,MATCH('2.2'!$A148,'2.2 Daten'!$B$9:$B$860,0))) -> 2001 | G148: =IF($A148<>0,INDEX('2.2 Daten'!I$9:I$860,MATCH('2.2'!$A148,'2.2 Daten'!$B$9:$B$860,0))) -> 557 | H148: =IF($A148<>0,INDEX('2.2 Daten'!K$9:K$860,MATCH('2.2'!$A148,'2.2 Daten'!$B$9:$B$860,0))) -> 6.940546058 | I148: =IF($A148<>0,INDEX('2.2 Daten'!L$9:L$860,MATCH('2.2'!$A148,'2.2 Daten'!$B$9:$B$860,0))) -> 10.31746032 | J148: =IF($A148<>0,INDEX('2.2 Daten'!M$9:M$860,MATCH('2.2'!$A148,'2.2 Daten'!$B$9:$B$860,0))) -> 13.98002853 | K148: =IF($A148<>0,INDEX('2.2 Daten'!N$9:N$860,MATCH('2.2'!$A148,'2.2 Daten'!$B$9:$B$860,0))) -> 5.985169492 | L148: =IF($A148<>0,INDEX('2.2 Daten'!O$9:O$860,MATCH('2.2'!$A148,'2.2 Daten'!$B$9:$B$860,0))) -> -2.961672474
A149: =CHOOSE('2.2 Daten'!$A$2,'2.2 Daten'!B571,'2.2 Daten'!B120,'2.2 Daten'!B137,'2.2 Daten'!B154,'2.2 Daten'!B157,'2.2 Daten'!B204,'2.2 Daten'!B208,'2.2 Daten'!B263,'2.2 Daten'!B291,'2.2 Daten'!B329,'2.2 Daten'!B375,'2.2 Daten'!B473,'2.2 Daten'!B481,'2.2 Daten'!B484,'2.2 Daten'!B504,'2.2 Daten'!B514,'2.2 Daten'!B529,'2.2 Daten'!B545,x) -> Heinsberg | B149: =IF($A149<>0,INDEX('2.2 Daten'!C$9:C$860,MATCH('2.2'!$A149,'2.2 Daten'!$B$9:$B$860,0))," ") -> 5370000 | C149: =IF($A149<>0,INDEX('2.2 Daten'!E$9:E$860,MATCH('2.2'!$A149,'2.2 Daten'!$B$9:$B$860,0))) -> 6040 | D149: =IF($A149<>0,INDEX('2.2 Daten'!F$9:F$860,MATCH('2.2'!$A149,'2.2 Daten'!$B$9:$B$860,0))) -> 1089 | E149: =IF($A149<>0,INDEX('2.2 Daten'!G$9:G$860,MATCH('2.2'!$A149,'2.2 Daten'!$B$9:$B$860,0))) -> 1108 | F149: =IF($A149<>0,INDEX('2.2 Daten'!H$9:H$860,MATCH('2.2'!$A149,'2.2 Daten'!$B$9:$B$860,0))) -> 3042 | G149: =IF($A149<>0,INDEX('2.2 Daten'!I$9:I$860,MATCH('2.2'!$A149,'2.2 Daten'!$B$9:$B$860,0))) -> 801 | H149: =IF($A149<>0,INDEX('2.2 Daten'!K$9:K$860,MATCH('2.2'!$A149,'2.2 Daten'!$B$9:$B$860,0))) -> -0.8698506483 | I149: =IF($A149<>0,INDEX('2.2 Daten'!L$9:L$860,MATCH('2.2'!$A149,'2.2 Daten'!$B$9:$B$860,0))) -> -0.4570383912 | J149: =IF($A149<>0,INDEX('2.2 Daten'!M$9:M$860,MATCH('2.2'!$A149,'2.2 Daten'!$B$9:$B$860,0))) -> 0.4533091568 | K149: =IF($A149<>0,INDEX('2.2 Daten'!N$9:N$860,MATCH('2.2'!$A149,'2.2 Daten'!$B$9:$B$860,0))) -> -0.3276539974 | L149: =IF($A149<>0,INDEX('2.2 Daten'!O$9:O$860,MATCH('2.2'!$A149,'2.2 Daten'!$B$9:$B$860,0))) -> -5.09478673
A150: =CHOOSE('2.2 Daten'!$A$2,'2.2 Daten'!B572,'2.2 Daten'!B121,'2.2 Daten'!B138,'2.2 Daten'!B155,'2.2 Daten'!B158,'2.2 Daten'!B205,'2.2 Daten'!B209,'2.2 Daten'!B264,'2.2 Daten'!B292,'2.2 Daten'!B330,'2.2 Daten'!B376,'2.2 Daten'!B474,'2.2 Daten'!B482,'2.2 Daten'!B485,'2.2 Daten'!B505,'2.2 Daten'!B515,'2.2 Daten'!B530,'2.2 Daten'!B546,x) -> Oberbergischer Kreis | B150: =IF($A150<>0,INDEX('2.2 Daten'!C$9:C$860,MATCH('2.2'!$A150,'2.2 Daten'!$B$9:$B$860,0))," ") -> 5374000 | C150: =IF($A150<>0,INDEX('2.2 Daten'!E$9:E$860,MATCH('2.2'!$A150,'2.2 Daten'!$B$9:$B$860,0))) -> 5141 | D150: =IF($A150<>0,INDEX('2.2 Daten'!F$9:F$860,MATCH('2.2'!$A150,'2.2 Daten'!$B$9:$B$860,0))) -> 1056 | E150: =IF($A150<>0,INDEX('2.2 Daten'!G$9:G$860,MATCH('2.2'!$A150,'2.2 Daten'!$B$9:$B$860,0))) -> 897 | F150: =IF($A150<>0,INDEX('2.2 Daten'!H$9:H$860,MATCH('2.2'!$A150,'2.2 Daten'!$B$9:$B$860,0))) -> 2476 | G150: =IF($A150<>0,INDEX('2.2 Daten'!I$9:I$860,MATCH('2.2'!$A150,'2.2 Daten'!$B$9:$B$860,0))) -> 712 | H150: =IF($A150<>0,INDEX('2.2 Daten'!K$9:K$860,MATCH('2.2'!$A150,'2.2 Daten'!$B$9:$B$860,0))) -> 0.7446600039 | I150: =IF($A150<>0,INDEX('2.2 Daten'!L$9:L$860,MATCH('2.2'!$A150,'2.2 Daten'!$B$9:$B$860,0))) -> 11.51003168 | J150: =IF($A150<>0,INDEX('2.2 Daten'!M$9:M$860,MATCH('2.2'!$A150,'2.2 Daten'!$B$9:$B$860,0))) -> 1.241534989 | K150: =IF($A150<>0,INDEX('2.2 Daten'!N$9:N$860,MATCH('2.2'!$A150,'2.2 Daten'!$B$9:$B$860,0))) -> -0.1210165389 | L150: =IF($A150<>0,INDEX('2.2 Daten'!O$9:O$860,MATCH('2.2'!$A150,'2.2 Daten'!$B$9:$B$860,0))) -> -9.987357775
A151: =CHOOSE('2.2 Daten'!$A$2,'2.2 Daten'!B573,'2.2 Daten'!B122,'2.2 Daten'!B139,'2.2 Daten'!B156,'2.2 Daten'!B159,'2.2 Daten'!B206,'2.2 Daten'!B210,'2.2 Daten'!B265,'2.2 Daten'!B293,'2.2 Daten'!B331,'2.2 Daten'!B377,'2.2 Daten'!B475,'2.2 Daten'!B483,'2.2 Daten'!B486,'2.2 Daten'!B506,'2.2 Daten'!B516,'2.2 Daten'!B531,'2.2 Daten'!B547,x) -> Rheinisch-Bergischer Kreis | B151: =IF($A151<>0,INDEX('2.2 Daten'!C$9:C$860,MATCH('2.2'!$A151,'2.2 Daten'!$B$9:$B$860,0))," ") -> 5378000 | C151: =IF($A151<>0,INDEX('2.2 Daten'!E$9:E$860,MATCH('2.2'!$A151,'2.2 Daten'!$B$9:$B$860,0))) -> 5788 | D151: =IF($A151<>0,INDEX('2.2 Daten'!F$9:F$860,MATCH('2.2'!$A151,'2.2 Daten'!$B$9:$B$860,0))) -> 1105 | E151: =IF($A151<>0,INDEX('2.2 Daten'!G$9:G$860,MATCH('2.2'!$A151,'2.2 Daten'!$B$9:$B$860,0))) -> 1034 | F151: =IF($A151<>0,INDEX('2.2 Daten'!H$9:H$860,MATCH('2.2'!$A151,'2.2 Daten'!$B$9:$B$860,0))) -> 2829 | G151: =IF($A151<>0,INDEX('2.2 Daten'!I$9:I$860,MATCH('2.2'!$A151,'2.2 Daten'!$B$9:$B$860,0))) -> 820 | H151: =IF($A151<>0,INDEX('2.2 Daten'!K$9:K$860,MATCH('2.2'!$A151,'2.2 Daten'!$B$9:$B$860,0))) -> 4.988209686 | I151: =IF($A151<>0,INDEX('2.2 Daten'!L$9:L$860,MATCH('2.2'!$A151,'2.2 Daten'!$B$9:$B$860,0))) -> 8.652900688 | J151: =IF($A151<>0,INDEX('2.2 Daten'!M$9:M$860,MATCH('2.2'!$A151,'2.2 Daten'!$B$9:$B$860,0))) -> 5.081300813 | K151: =IF($A151<>0,INDEX('2.2 Daten'!N$9:N$860,MATCH('2.2'!$A151,'2.2 Daten'!$B$9:$B$860,0))) -> 4.622781065 | L151: =IF($A151<>0,INDEX('2.2 Daten'!O$9:O$860,MATCH('2.2'!$A151,'2.2 Daten'!$B$9:$B$860,0))) -> 1.485148515
A152: =CHOOSE('2.2 Daten'!$A$2,'2.2 Daten'!B574,'2.2 Daten'!B123,'2.2 Daten'!B140,'2.2 Daten'!B157,'2.2 Daten'!B160,'2.2 Daten'!B207,'2.2 Daten'!B211,'2.2 Daten'!B266,'2.2 Daten'!B294,'2.2 Daten'!B332,'2.2 Daten'!B378,'2.2 Daten'!B476,'2.2 Daten'!B484,'2.2 Daten'!B487,'2.2 Daten'!B507,'2.2 Daten'!B517,'2.2 Daten'!B532,'2.2 Daten'!B548,x) -> Rhein-Sieg-Kreis | B152: =IF($A152<>0,INDEX('2.2 Daten'!C$9:C$860,MATCH('2.2'!$A152,'2.2 Daten'!$B$9:$B$860,0))," ") -> 5382000 | C152: =IF($A152<>0,INDEX('2.2 Daten'!E$9:E$860,MATCH('2.2'!$A152,'2.2 Daten'!$B$9:$B$860,0))) -> 13328 | D152: =IF($A152<>0,INDEX('2.2 Daten'!F$9:F$860,MATCH('2.2'!$A152,'2.2 Daten'!$B$9:$B$860,0))) -> 2406 | E152: =IF($A152<>0,INDEX('2.2 Daten'!G$9:G$860,MATCH('2.2'!$A152,'2.2 Daten'!$B$9:$B$860,0))) -> 2435 | F152: =IF($A152<>0,INDEX('2.2 Daten'!H$9:H$860,MATCH('2.2'!$A152,'2.2 Daten'!$B$9:$B$860,0))) -> 6627 | G152: =IF($A152<>0,INDEX('2.2 Daten'!I$9:I$860,MATCH('2.2'!$A152,'2.2 Daten'!$B$9:$B$860,0))) -> 1860 | H152: =IF($A152<>0,INDEX('2.2 Daten'!K$9:K$860,MATCH('2.2'!$A152,'2.2 Daten'!$B$9:$B$860,0))) -> 2.71270037 | I152: =IF($A152<>0,INDEX('2.2 Daten'!L$9:L$860,MATCH('2.2'!$A152,'2.2 Daten'!$B$9:$B$860,0))) -> 1.64765526 | J152: =IF($A152<>0,INDEX('2.2 Daten'!M$9:M$860,MATCH('2.2'!$A152,'2.2 Daten'!$B$9:$B$860,0))) -> 4.416809605 | K152: =IF($A152<>0,INDEX('2.2 Daten'!N$9:N$860,MATCH('2.2'!$A152,'2.2 Daten'!$B$9:$B$860,0))) -> 4.050871408 | L152: =IF($A152<>0,INDEX('2.2 Daten'!O$9:O$860,MATCH('2.2'!$A152,'2.2 Daten'!$B$9:$B$860,0))) -> -2.51572327
A153: =CHOOSE('2.2 Daten'!$A$2,'2.2 Daten'!B575,'2.2 Daten'!B124,'2.2 Daten'!B141,'2.2 Daten'!B158,'2.2 Daten'!B161,'2.2 Daten'!B208,'2.2 Daten'!B212,'2.2 Daten'!B267,'2.2 Daten'!B295,'2.2 Daten'!B333,'2.2 Daten'!B379,'2.2 Daten'!B477,'2.2 Daten'!B485,'2.2 Daten'!B488,'2.2 Daten'!B508,'2.2 Daten'!B518,'2.2 Daten'!B533,'2.2 Daten'!B549,x) -> Bottrop, Stadt | B153: =IF($A153<>0,INDEX('2.2 Daten'!C$9:C$860,MATCH('2.2'!$A153,'2.2 Daten'!$B$9:$B$860,0))," ") -> 5512000 | C153: =IF($A153<>0,INDEX('2.2 Daten'!E$9:E$860,MATCH('2.2'!$A153,'2.2 Daten'!$B$9:$B$860,0))) -> 4040 | D153: =IF($A153<>0,INDEX('2.2 Daten'!F$9:F$860,MATCH('2.2'!$A153,'2.2 Daten'!$B$9:$B$860,0))) -> 730 | E153: =IF($A153<>0,INDEX('2.2 Daten'!G$9:G$860,MATCH('2.2'!$A153,'2.2 Daten'!$B$9:$B$860,0))) -> 679 | F153: =IF($A153<>0,INDEX('2.2 Daten'!H$9:H$860,MATCH('2.2'!$A153,'2.2 Daten'!$B$9:$B$860,0))) -> 2010 | G153: =IF($A153<>0,INDEX('2.2 Daten'!I$9:I$860,MATCH('2.2'!$A153,'2.2 Daten'!$B$9:$B$860,0))) -> 621 | H153: =IF($A153<>0,INDEX('2.2 Daten'!K$9:K$860,MATCH('2.2'!$A153,'2.2 Daten'!$B$9:$B$860,0))) -> 4.204281661 | I153: =IF($A153<>0,INDEX('2.2 Daten'!L$9:L$860,MATCH('2.2'!$A153,'2.2 Daten'!$B$9:$B$860,0))) -> 2.384291725 | J153: =IF($A153<>0,INDEX('2.2 Daten'!M$9:M$860,MATCH('2.2'!$A153,'2.2 Daten'!$B$9:$B$860,0))) -> 4.783950617 | K153: =IF($A153<>0,INDEX('2.2 Daten'!N$9:N$860,MATCH('2.2'!$A153,'2.2 Daten'!$B$9:$B$860,0))) -> 5.34591195 | L153: =IF($A153<>0,INDEX('2.2 Daten'!O$9:O$860,MATCH('2.2'!$A153,'2.2 Daten'!$B$9:$B$860,0))) -> 2.138157895
A154: =CHOOSE('2.2 Daten'!$A$2,'2.2 Daten'!B576,'2.2 Daten'!B125,'2.2 Daten'!B142,'2.2 Daten'!B159,'2.2 Daten'!B162,'2.2 Daten'!B209,'2.2 Daten'!B213,'2.2 Daten'!B268,'2.2 Daten'!B296,'2.2 Daten'!B334,'2.2 Daten'!B380,'2.2 Daten'!B478,'2.2 Daten'!B486,'2.2 Daten'!B489,'2.2 Daten'!B509,'2.2 Daten'!B519,'2.2 Daten'!B534,'2.2 Daten'!B550,x) -> Gelsenkirchen, Stadt | B154: =IF($A154<>0,INDEX('2.2 Daten'!C$9:C$860,MATCH('2.2'!$A154,'2.2 Daten'!$B$9:$B$860,0))," ") -> 5513000 | C154: =IF($A154<>0,INDEX('2.2 Daten'!E$9:E$860,MATCH('2.2'!$A154,'2.2 Daten'!$B$9:$B$860,0))) -> 18701 | D154: =IF($A154<>0,INDEX('2.2 Daten'!F$9:F$860,MATCH('2.2'!$A154,'2.2 Daten'!$B$9:$B$860,0))) -> 3434 | E154: =IF($A154<>0,INDEX('2.2 Daten'!G$9:G$860,MATCH('2.2'!$A154,'2.2 Daten'!$B$9:$B$860,0))) -> 3283 | F154: =IF($A154<>0,INDEX('2.2 Daten'!H$9:H$860,MATCH('2.2'!$A154,'2.2 Daten'!$B$9:$B$860,0))) -> 9277 | G154: =IF($A154<>0,INDEX('2.2 Daten'!I$9:I$860,MATCH('2.2'!$A154,'2.2 Daten'!$B$9:$B$860,0))) -> 2707 | H154: =IF($A154<>0,INDEX('2.2 Daten'!K$9:K$860,MATCH('2.2'!$A154,'2.2 Daten'!$B$9:$B$860,0))) -> 4.422357474 | I154: =IF($A154<>0,INDEX('2.2 Daten'!L$9:L$860,MATCH('2.2'!$A154,'2.2 Daten'!$B$9:$B$860,0))) -> 5.272838749 | J154: =IF($A154<>0,INDEX('2.2 Daten'!M$9:M$860,MATCH('2.2'!$A154,'2.2 Daten'!$B$9:$B$860,0))) -> 6.833712984 | K154: =IF($A154<>0,INDEX('2.2 Daten'!N$9:N$860,MATCH('2.2'!$A154,'2.2 Daten'!$B$9:$B$860,0))) -> 3.410990971 | L154: =IF($A154<>0,INDEX('2.2 Daten'!O$9:O$860,MATCH('2.2'!$A154,'2.2 Daten'!$B$9:$B$860,0))) -> 3.995389935
A155: =CHOOSE('2.2 Daten'!$A$2,'2.2 Daten'!B577,'2.2 Daten'!B126,'2.2 Daten'!B143,'2.2 Daten'!B160,'2.2 Daten'!B163,'2.2 Daten'!B210,'2.2 Daten'!B214,'2.2 Daten'!B269,'2.2 Daten'!B297,'2.2 Daten'!B335,'2.2 Daten'!B381,'2.2 Daten'!B479,'2.2 Daten'!B487,'2.2 Daten'!B490,'2.2 Daten'!B510,'2.2 Daten'!B520,'2.2 Daten'!B535,'2.2 Daten'!B551,x) -> Münster, Stadt | B155: =IF($A155<>0,INDEX('2.2 Daten'!C$9:C$860,MATCH('2.2'!$A155,'2.2 Daten'!$B$9:$B$860,0))," ") -> 5515000 | C155: =IF($A155<>0,INDEX('2.2 Daten'!E$9:E$860,MATCH('2.2'!$A155,'2.2 Daten'!$B$9:$B$860,0))) -> 7798 | D155: =IF($A155<>0,INDEX('2.2 Daten'!F$9:F$860,MATCH('2.2'!$A155,'2.2 Daten'!$B$9:$B$860,0))) -> 1546 | E155: =IF($A155<>0,INDEX('2.2 Daten'!G$9:G$860,MATCH('2.2'!$A155,'2.2 Daten'!$B$9:$B$860,0))) -> 1415 | F155: =IF($A155<>0,INDEX('2.2 Daten'!H$9:H$860,MATCH('2.2'!$A155,'2.2 Daten'!$B$9:$B$860,0))) -> 3816 | G155: =IF($A155<>0,INDEX('2.2 Daten'!I$9:I$860,MATCH('2.2'!$A155,'2.2 Daten'!$B$9:$B$860,0))) -> 1021 | H155: =IF($A155<>0,INDEX('2.2 Daten'!K$9:K$860,MATCH('2.2'!$A155,'2.2 Daten'!$B$9:$B$860,0))) -> 0.05132152938 | I155: =IF($A155<>0,INDEX('2.2 Daten'!L$9:L$860,MATCH('2.2'!$A155,'2.2 Daten'!$B$9:$B$860,0))) -> 2.248677249 | J155: =IF($A155<>0,INDEX('2.2 Daten'!M$9:M$860,MATCH('2.2'!$A155,'2.2 Daten'!$B$9:$B$860,0))) -> 4.892512973 | K155: =IF($A155<>0,INDEX('2.2 Daten'!N$9:N$860,MATCH('2.2'!$A155,'2.2 Daten'!$B$9:$B$860,0))) -> -1.088646967 | L155: =IF($A155<>0,INDEX('2.2 Daten'!O$9:O$860,MATCH('2.2'!$A155,'2.2 Daten'!$B$9:$B$860,0))) -> -5.023255814
A156: =CHOOSE('2.2 Daten'!$A$2,'2.2 Daten'!B578,'2.2 Daten'!B127,'2.2 Daten'!B144,'2.2 Daten'!B161,'2.2 Daten'!B164,'2.2 Daten'!B211,'2.2 Daten'!B215,'2.2 Daten'!B270,'2.2 Daten'!B298,'2.2 Daten'!B336,'2.2 Daten'!B382,'2.2 Daten'!B480,'2.2 Daten'!B488,'2.2 Daten'!B491,'2.2 Daten'!B511,'2.2 Daten'!B521,'2.2 Daten'!B536,'2.2 Daten'!B552,x) -> Borken | B156: =IF($A156<>0,INDEX('2.2 Daten'!C$9:C$860,MATCH('2.2'!$A156,'2.2 Daten'!$B$9:$B$860,0))," ") -> 5554000 | C156: =IF($A156<>0,INDEX('2.2 Daten'!E$9:E$860,MATCH('2.2'!$A156,'2.2 Daten'!$B$9:$B$860,0))) -> 6303 | D156: =IF($A156<>0,INDEX('2.2 Daten'!F$9:F$860,MATCH('2.2'!$A156,'2.2 Daten'!$B$9:$B$860,0))) -> 1162 | E156: =IF($A156<>0,INDEX('2.2 Daten'!G$9:G$860,MATCH('2.2'!$A156,'2.2 Daten'!$B$9:$B$860,0))) -> 1124 | F156: =IF($A156<>0,INDEX('2.2 Daten'!H$9:H$860,MATCH('2.2'!$A156,'2.2 Daten'!$B$9:$B$860,0))) -> 3137 | G156: =IF($A156<>0,INDEX('2.2 Daten'!I$9:I$860,MATCH('2.2'!$A156,'2.2 Daten'!$B$9:$B$860,0))) -> 880 | H156: =IF($A156<>0,INDEX('2.2 Daten'!K$9:K$860,MATCH('2.2'!$A156,'2.2 Daten'!$B$9:$B$860,0))) -> 0.5423512522 | I156: =IF($A156<>0,INDEX('2.2 Daten'!L$9:L$860,MATCH('2.2'!$A156,'2.2 Daten'!$B$9:$B$860,0))) -> 1.307759372 | J156: =IF($A156<>0,INDEX('2.2 Daten'!M$9:M$860,MATCH('2.2'!$A156,'2.2 Daten'!$B$9:$B$860,0))) -> -0.2661934339 | K156: =IF($A156<>0,INDEX('2.2 Daten'!N$9:N$860,MATCH('2.2'!$A156,'2.2 Daten'!$B$9:$B$860,0))) -> 0.384 | L156: =IF($A156<>0,INDEX('2.2 Daten'!O$9:O$860,MATCH('2.2'!$A156,'2.2 Daten'!$B$9:$B$860,0))) -> 1.149425287
A157: =CHOOSE('2.2 Daten'!$A$2,'2.2 Daten'!B579,'2.2 Daten'!B128,'2.2 Daten'!B145,'2.2 Daten'!B162,'2.2 Daten'!B165,'2.2 Daten'!B212,'2.2 Daten'!B216,'2.2 Daten'!B271,'2.2 Daten'!B299,'2.2 Daten'!B337,'2.2 Daten'!B383,'2.2 Daten'!B481,'2.2 Daten'!B489,'2.2 Daten'!B492,'2.2 Daten'!B512,'2.2 Daten'!B522,'2.2 Daten'!B537,'2.2 Daten'!B553,x) -> Coesfeld | B157: =IF($A157<>0,INDEX('2.2 Daten'!C$9:C$860,MATCH('2.2'!$A157,'2.2 Daten'!$B$9:$B$860,0))," ") -> 5558000 | C157: =IF($A157<>0,INDEX('2.2 Daten'!E$9:E$860,MATCH('2.2'!$A157,'2.2 Daten'!$B$9:$B$860,0))) -> 3187 | D157: =IF($A157<>0,INDEX('2.2 Daten'!F$9:F$860,MATCH('2.2'!$A157,'2.2 Daten'!$B$9:$B$860,0))) -> 607 | E157: =IF($A157<>0,INDEX('2.2 Daten'!G$9:G$860,MATCH('2.2'!$A157,'2.2 Daten'!$B$9:$B$860,0))) -> 581 | F157: =IF($A157<>0,INDEX('2.2 Daten'!H$9:H$860,MATCH('2.2'!$A157,'2.2 Daten'!$B$9:$B$860,0))) -> 1561 | G157: =IF($A157<>0,INDEX('2.2 Daten'!I$9:I$860,MATCH('2.2'!$A157,'2.2 Daten'!$B$9:$B$860,0))) -> 438 | H157: =IF($A157<>0,INDEX('2.2 Daten'!K$9:K$860,MATCH('2.2'!$A157,'2.2 Daten'!$B$9:$B$860,0))) -> 5.112137203 | I157: =IF($A157<>0,INDEX('2.2 Daten'!L$9:L$860,MATCH('2.2'!$A157,'2.2 Daten'!$B$9:$B$860,0))) -> 7.624113475 | J157: =IF($A157<>0,INDEX('2.2 Daten'!M$9:M$860,MATCH('2.2'!$A157,'2.2 Daten'!$B$9:$B$860,0))) -> 15.04950495 | K157: =IF($A157<>0,INDEX('2.2 Daten'!N$9:N$860,MATCH('2.2'!$A157,'2.2 Daten'!$B$9:$B$860,0))) -> 3.377483444 | L157: =IF($A157<>0,INDEX('2.2 Daten'!O$9:O$860,MATCH('2.2'!$A157,'2.2 Daten'!$B$9:$B$860,0))) -> -3.311258278
A158: =CHOOSE('2.2 Daten'!$A$2,'2.2 Daten'!B580,'2.2 Daten'!B129,'2.2 Daten'!B146,'2.2 Daten'!B163,'2.2 Daten'!B166,'2.2 Daten'!B213,'2.2 Daten'!B217,'2.2 Daten'!B272,'2.2 Daten'!B300,'2.2 Daten'!B338,'2.2 Daten'!B384,'2.2 Daten'!B482,'2.2 Daten'!B490,'2.2 Daten'!B493,'2.2 Daten'!B513,'2.2 Daten'!B523,'2.2 Daten'!B538,'2.2 Daten'!B554,x) -> Recklinghausen | B158: =IF($A158<>0,INDEX('2.2 Daten'!C$9:C$860,MATCH('2.2'!$A158,'2.2 Daten'!$B$9:$B$860,0))," ") -> 5562000 | C158: =IF($A158<>0,INDEX('2.2 Daten'!E$9:E$860,MATCH('2.2'!$A158,'2.2 Daten'!$B$9:$B$860,0))) -> 24943 | D158: =IF($A158<>0,INDEX('2.2 Daten'!F$9:F$860,MATCH('2.2'!$A158,'2.2 Daten'!$B$9:$B$860,0))) -> 4590 | E158: =IF($A158<>0,INDEX('2.2 Daten'!G$9:G$860,MATCH('2.2'!$A158,'2.2 Daten'!$B$9:$B$860,0))) -> 4326 | F158: =IF($A158<>0,INDEX('2.2 Daten'!H$9:H$860,MATCH('2.2'!$A158,'2.2 Daten'!$B$9:$B$860,0))) -> 12410 | G158: =IF($A158<>0,INDEX('2.2 Daten'!I$9:I$860,MATCH('2.2'!$A158,'2.2 Daten'!$B$9:$B$860,0))) -> 3617 | H158: =IF($A158<>0,INDEX('2.2 Daten'!K$9:K$860,MATCH('2.2'!$A158,'2.2 Daten'!$B$9:$B$860,0))) -> 3.829663239 | I158: =IF($A158<>0,INDEX('2.2 Daten'!L$9:L$860,MATCH('2.2'!$A158,'2.2 Daten'!$B$9:$B$860,0))) -> 10.49590756 | J158: =IF($A158<>0,INDEX('2.2 Daten'!M$9:M$860,MATCH('2.2'!$A158,'2.2 Daten'!$B$9:$B$860,0))) -> 4.065431802 | K158: =IF($A158<>0,INDEX('2.2 Daten'!N$9:N$860,MATCH('2.2'!$A158,'2.2 Daten'!$B$9:$B$860,0))) -> 2.842462915 | L158: =IF($A158<>0,INDEX('2.2 Daten'!O$9:O$860,MATCH('2.2'!$A158,'2.2 Daten'!$B$9:$B$860,0))) -> -0.768175583
A159: =CHOOSE('2.2 Daten'!$A$2,'2.2 Daten'!B581,'2.2 Daten'!B130,'2.2 Daten'!B147,'2.2 Daten'!B164,'2.2 Daten'!B167,'2.2 Daten'!B214,'2.2 Daten'!B218,'2.2 Daten'!B273,'2.2 Daten'!B301,'2.2 Daten'!B339,'2.2 Daten'!B385,'2.2 Daten'!B483,'2.2 Daten'!B491,'2.2 Daten'!B494,'2.2 Daten'!B514,'2.2 Daten'!B524,'2.2 Daten'!B539,'2.2 Daten'!B555,x) -> Steinfurt | B159: =IF($A159<>0,INDEX('2.2 Daten'!C$9:C$860,MATCH('2.2'!$A159,'2.2 Daten'!$B$9:$B$860,0))," ") -> 5566000 | C159: =IF($A159<>0,INDEX('2.2 Daten'!E$9:E$860,MATCH('2.2'!$A159,'2.2 Daten'!$B$9:$B$860,0))) -> 9125 | D159: =IF($A159<>0,INDEX('2.2 Daten'!F$9:F$860,MATCH('2.2'!$A159,'2.2 Daten'!$B$9:$B$860,0))) -> 1841 | E159: =IF($A159<>0,INDEX('2.2 Daten'!G$9:G$860,MATCH('2.2'!$A159,'2.2 Daten'!$B$9:$B$860,0))) -> 1739 | F159: =IF($A159<>0,INDEX('2.2 Daten'!H$9:H$860,MATCH('2.2'!$A159,'2.2 Daten'!$B$9:$B$860,0))) -> 4361 | G159: =IF($A159<>0,INDEX('2.2 Daten'!I$9:I$860,MATCH('2.2'!$A159,'2.2 Daten'!$B$9:$B$860,0))) -> 1184 | H159: =IF($A159<>0,INDEX('2.2 Daten'!K$9:K$860,MATCH('2.2'!$A159,'2.2 Daten'!$B$9:$B$860,0))) -> 2.666516652 | I159: =IF($A159<>0,INDEX('2.2 Daten'!L$9:L$860,MATCH('2.2'!$A159,'2.2 Daten'!$B$9:$B$860,0))) -> 3.252944476 | J159: =IF($A159<>0,INDEX('2.2 Daten'!M$9:M$860,MATCH('2.2'!$A159,'2.2 Daten'!$B$9:$B$860,0))) -> 5.714285714 | K159: =IF($A159<>0,INDEX('2.2 Daten'!N$9:N$860,MATCH('2.2'!$A159,'2.2 Daten'!$B$9:$B$860,0))) -> 2.853773585 | L159: =IF($A159<>0,INDEX('2.2 Daten'!O$9:O$860,MATCH('2.2'!$A159,'2.2 Daten'!$B$9:$B$860,0))) -> -2.950819672
A160: =CHOOSE('2.2 Daten'!$A$2,'2.2 Daten'!B582,'2.2 Daten'!B131,'2.2 Daten'!B148,'2.2 Daten'!B165,'2.2 Daten'!B168,'2.2 Daten'!B215,'2.2 Daten'!B219,'2.2 Daten'!B274,'2.2 Daten'!B302,'2.2 Daten'!B340,'2.2 Daten'!B386,'2.2 Daten'!B484,'2.2 Daten'!B492,'2.2 Daten'!B495,'2.2 Daten'!B515,'2.2 Daten'!B525,'2.2 Daten'!B540,'2.2 Daten'!B556,x) -> Warendorf | B160: =IF($A160<>0,INDEX('2.2 Daten'!C$9:C$860,MATCH('2.2'!$A160,'2.2 Daten'!$B$9:$B$860,0))," ") -> 5570000 | C160: =IF($A160<>0,INDEX('2.2 Daten'!E$9:E$860,MATCH('2.2'!$A160,'2.2 Daten'!$B$9:$B$860,0))) -> 5972 | D160: =IF($A160<>0,INDEX('2.2 Daten'!F$9:F$860,MATCH('2.2'!$A160,'2.2 Daten'!$B$9:$B$860,0))) -> 1012 | E160: =IF($A160<>0,INDEX('2.2 Daten'!G$9:G$860,MATCH('2.2'!$A160,'2.2 Daten'!$B$9:$B$860,0))) -> 1038 | F160: =IF($A160<>0,INDEX('2.2 Daten'!H$9:H$860,MATCH('2.2'!$A160,'2.2 Daten'!$B$9:$B$860,0))) -> 3031 | G160: =IF($A160<>0,INDEX('2.2 Daten'!I$9:I$860,MATCH('2.2'!$A160,'2.2 Daten'!$B$9:$B$860,0))) -> 891 | H160: =IF($A160<>0,INDEX('2.2 Daten'!K$9:K$860,MATCH('2.2'!$A160,'2.2 Daten'!$B$9:$B$860,0))) -> 3.698558778 | I160: =IF($A160<>0,INDEX('2.2 Daten'!L$9:L$860,MATCH('2.2'!$A160,'2.2 Daten'!$B$9:$B$860,0))) -> 8.934337998 | J160: =IF($A160<>0,INDEX('2.2 Daten'!M$9:M$860,MATCH('2.2'!$A160,'2.2 Daten'!$B$9:$B$860,0))) -> 4.008016032 | K160: =IF($A160<>0,INDEX('2.2 Daten'!N$9:N$860,MATCH('2.2'!$A160,'2.2 Daten'!$B$9:$B$860,0))) -> 2.537212449 | L160: =IF($A160<>0,INDEX('2.2 Daten'!O$9:O$860,MATCH('2.2'!$A160,'2.2 Daten'!$B$9:$B$860,0))) -> 1.712328767
A161: =CHOOSE('2.2 Daten'!$A$2,'2.2 Daten'!B583,'2.2 Daten'!B132,'2.2 Daten'!B149,'2.2 Daten'!B166,'2.2 Daten'!B169,'2.2 Daten'!B216,'2.2 Daten'!B220,'2.2 Daten'!B275,'2.2 Daten'!B303,'2.2 Daten'!B341,'2.2 Daten'!B387,'2.2 Daten'!B485,'2.2 Daten'!B493,'2.2 Daten'!B496,'2.2 Daten'!B516,'2.2 Daten'!B526,'2.2 Daten'!B541,'2.2 Daten'!B557,x) -> Bielefeld, Stadt | B161: =IF($A161<>0,INDEX('2.2 Daten'!C$9:C$860,MATCH('2.2'!$A161,'2.2 Daten'!$B$9:$B$860,0))," ") -> 5711000 | C161: =IF($A161<>0,INDEX('2.2 Daten'!E$9:E$860,MATCH('2.2'!$A161,'2.2 Daten'!$B$9:$B$860,0))) -> 13261 | D161: =IF($A161<>0,INDEX('2.2 Daten'!F$9:F$860,MATCH('2.2'!$A161,'2.2 Daten'!$B$9:$B$860,0))) -> 2292 | E161: =IF($A161<>0,INDEX('2.2 Daten'!G$9:G$860,MATCH('2.2'!$A161,'2.2 Daten'!$B$9:$B$860,0))) -> 2314 | F161: =IF($A161<>0,INDEX('2.2 Daten'!H$9:H$860,MATCH('2.2'!$A161,'2.2 Daten'!$B$9:$B$860,0))) -> 6630 | G161: =IF($A161<>0,INDEX('2.2 Daten'!I$9:I$860,MATCH('2.2'!$A161,'2.2 Daten'!$B$9:$B$860,0))) -> 2025 | H161: =IF($A161<>0,INDEX('2.2 Daten'!K$9:K$860,MATCH('2.2'!$A161,'2.2 Daten'!$B$9:$B$860,0))) -> 1.267659412 | I161: =IF($A161<>0,INDEX('2.2 Daten'!L$9:L$860,MATCH('2.2'!$A161,'2.2 Daten'!$B$9:$B$860,0))) -> -2.134927412 | J161: =IF($A161<>0,INDEX('2.2 Daten'!M$9:M$860,MATCH('2.2'!$A161,'2.2 Daten'!$B$9:$B$860,0))) -> 2.570921986 | K161: =IF($A161<>0,INDEX('2.2 Daten'!N$9:N$860,MATCH('2.2'!$A161,'2.2 Daten'!$B$9:$B$860,0))) -> 1.484769631 | L161: =IF($A161<>0,INDEX('2.2 Daten'!O$9:O$860,MATCH('2.2'!$A161,'2.2 Daten'!$B$9:$B$860,0))) -> 3.105906314
A162: =CHOOSE('2.2 Daten'!$A$2,'2.2 Daten'!B584,'2.2 Daten'!B133,'2.2 Daten'!B150,'2.2 Daten'!B167,'2.2 Daten'!B170,'2.2 Daten'!B217,'2.2 Daten'!B221,'2.2 Daten'!B276,'2.2 Daten'!B304,'2.2 Daten'!B342,'2.2 Daten'!B388,'2.2 Daten'!B486,'2.2 Daten'!B494,'2.2 Daten'!B497,'2.2 Daten'!B517,'2.2 Daten'!B527,'2.2 Daten'!B542,'2.2 Daten'!B558,x) -> Gütersloh | B162: =IF($A162<>0,INDEX('2.2 Daten'!C$9:C$860,MATCH('2.2'!$A162,'2.2 Daten'!$B$9:$B$860,0))," ") -> 5754000 | C162: =IF($A162<>0,INDEX('2.2 Daten'!E$9:E$860,MATCH('2.2'!$A162,'2.2 Daten'!$B$9:$B$860,0))) -> 7006 | D162: =IF($A162<>0,INDEX('2.2 Daten'!F$9:F$860,MATCH('2.2'!$A162,'2.2 Daten'!$B$9:$B$860,0))) -> 1291 | E162: =IF($A162<>0,INDEX('2.2 Daten'!G$9:G$860,MATCH('2.2'!$A162,'2.2 Daten'!$B$9:$B$860,0))) -> 1249 | F162: =IF($A162<>0,INDEX('2.2 Daten'!H$9:H$860,MATCH('2.2'!$A162,'2.2 Daten'!$B$9:$B$860,0))) -> 3489 | G162: =IF($A162<>0,INDEX('2.2 Daten'!I$9:I$860,MATCH('2.2'!$A162,'2.2 Daten'!$B$9:$B$860,0))) -> 977 | H162: =IF($A162<>0,INDEX('2.2 Daten'!K$9:K$860,MATCH('2.2'!$A162,'2.2 Daten'!$B$9:$B$860,0))) -> 5.607476636 | I162: =IF($A162<>0,INDEX('2.2 Daten'!L$9:L$860,MATCH('2.2'!$A162,'2.2 Daten'!$B$9:$B$860,0))) -> 8.305369128 | J162: =IF($A162<>0,INDEX('2.2 Daten'!M$9:M$860,MATCH('2.2'!$A162,'2.2 Daten'!$B$9:$B$860,0))) -> 5.400843882 | K162: =IF($A162<>0,INDEX('2.2 Daten'!N$9:N$860,MATCH('2.2'!$A162,'2.2 Daten'!$B$9:$B$860,0))) -> 4.242605318 | L162: =IF($A162<>0,INDEX('2.2 Daten'!O$9:O$860,MATCH('2.2'!$A162,'2.2 Daten'!$B$9:$B$860,0))) -> 7.362637363
A163: =CHOOSE('2.2 Daten'!$A$2,'2.2 Daten'!B585,'2.2 Daten'!B134,'2.2 Daten'!B151,'2.2 Daten'!B168,'2.2 Daten'!B171,'2.2 Daten'!B218,'2.2 Daten'!B222,'2.2 Daten'!B277,'2.2 Daten'!B305,'2.2 Daten'!B343,'2.2 Daten'!B389,'2.2 Daten'!B487,'2.2 Daten'!B495,'2.2 Daten'!B498,'2.2 Daten'!B518,'2.2 Daten'!B528,'2.2 Daten'!B543,'2.2 Daten'!B559,x) -> Herford | B163: =IF($A163<>0,INDEX('2.2 Daten'!C$9:C$860,MATCH('2.2'!$A163,'2.2 Daten'!$B$9:$B$860,0))," ") -> 5758000 | C163: =IF($A163<>0,INDEX('2.2 Daten'!E$9:E$860,MATCH('2.2'!$A163,'2.2 Daten'!$B$9:$B$860,0))) -> 6163 | D163: =IF($A163<>0,INDEX('2.2 Daten'!F$9:F$860,MATCH('2.2'!$A163,'2.2 Daten'!$B$9:$B$860,0))) -> 1168 | E163: =IF($A163<>0,INDEX('2.2 Daten'!G$9:G$860,MATCH('2.2'!$A163,'2.2 Daten'!$B$9:$B$860,0))) -> 1133 | F163: =IF($A163<>0,INDEX('2.2 Daten'!H$9:H$860,MATCH('2.2'!$A163,'2.2 Daten'!$B$9:$B$860,0))) -> 3034 | G163: =IF($A163<>0,INDEX('2.2 Daten'!I$9:I$860,MATCH('2.2'!$A163,'2.2 Daten'!$B$9:$B$860,0))) -> 828 | H163: =IF($A163<>0,INDEX('2.2 Daten'!K$9:K$860,MATCH('2.2'!$A163,'2.2 Daten'!$B$9:$B$860,0))) -> 2.819486153 | I163: =IF($A163<>0,INDEX('2.2 Daten'!L$9:L$860,MATCH('2.2'!$A163,'2.2 Daten'!$B$9:$B$860,0))) -> -1.683501684 | J163: =IF($A163<>0,INDEX('2.2 Daten'!M$9:M$860,MATCH('2.2'!$A163,'2.2 Daten'!$B$9:$B$860,0))) -> 7.904761905 | K163: =IF($A163<>0,INDEX('2.2 Daten'!N$9:N$860,MATCH('2.2'!$A163,'2.2 Daten'!$B$9:$B$860,0))) -> 3.584841243 | L163: =IF($A163<>0,INDEX('2.2 Daten'!O$9:O$860,MATCH('2.2'!$A163,'2.2 Daten'!$B$9:$B$860,0))) -> 0.1209189843
A164: =CHOOSE('2.2 Daten'!$A$2,'2.2 Daten'!B586,'2.2 Daten'!B135,'2.2 Daten'!B152,'2.2 Daten'!B169,'2.2 Daten'!B172,'2.2 Daten'!B219,'2.2 Daten'!B223,'2.2 Daten'!B278,'2.2 Daten'!B306,'2.2 Daten'!B344,'2.2 Daten'!B390,'2.2 Daten'!B488,'2.2 Daten'!B496,'2.2 Daten'!B499,'2.2 Daten'!B519,'2.2 Daten'!B529,'2.2 Daten'!B544,'2.2 Daten'!B560,x) -> Höxter | B164: =IF($A164<>0,INDEX('2.2 Daten'!C$9:C$860,MATCH('2.2'!$A164,'2.2 Daten'!$B$9:$B$860,0))," ") -> 5762000 | C164: =IF($A164<>0,INDEX('2.2 Daten'!E$9:E$860,MATCH('2.2'!$A164,'2.2 Daten'!$B$9:$B$860,0))) -> 2299 | D164: =IF($A164<>0,INDEX('2.2 Daten'!F$9:F$860,MATCH('2.2'!$A164,'2.2 Daten'!$B$9:$B$860,0))) -> 503 | E164: =IF($A164<>0,INDEX('2.2 Daten'!G$9:G$860,MATCH('2.2'!$A164,'2.2 Daten'!$B$9:$B$860,0))) -> 413 | F164: =IF($A164<>0,INDEX('2.2 Daten'!H$9:H$860,MATCH('2.2'!$A164,'2.2 Daten'!$B$9:$B$860,0))) -> 1106 | G164: =IF($A164<>0,INDEX('2.2 Daten'!I$9:I$860,MATCH('2.2'!$A164,'2.2 Daten'!$B$9:$B$860,0))) -> 277 | H164: =IF($A164<>0,INDEX('2.2 Daten'!K$9:K$860,MATCH('2.2'!$A164,'2.2 Daten'!$B$9:$B$860,0))) -> 3.140421714 | I164: =IF($A164<>0,INDEX('2.2 Daten'!L$9:L$860,MATCH('2.2'!$A164,'2.2 Daten'!$B$9:$B$860,0))) -> 15.10297483 | J164: =IF($A164<>0,INDEX('2.2 Daten'!M$9:M$860,MATCH('2.2'!$A164,'2.2 Daten'!$B$9:$B$860,0))) -> 6.994818653 | K164: =IF($A164<>0,INDEX('2.2 Daten'!N$9:N$860,MATCH('2.2'!$A164,'2.2 Daten'!$B$9:$B$860,0))) -> -0.9847806625 | L164: =IF($A164<>0,INDEX('2.2 Daten'!O$9:O$860,MATCH('2.2'!$A164,'2.2 Daten'!$B$9:$B$860,0))) -> -4.152249135
A165: =CHOOSE('2.2 Daten'!$A$2,'2.2 Daten'!B587,'2.2 Daten'!B136,'2.2 Daten'!B153,'2.2 Daten'!B170,'2.2 Daten'!B173,'2.2 Daten'!B220,'2.2 Daten'!B224,'2.2 Daten'!B279,'2.2 Daten'!B307,'2.2 Daten'!B345,'2.2 Daten'!B391,'2.2 Daten'!B489,'2.2 Daten'!B497,'2.2 Daten'!B500,'2.2 Daten'!B520,'2.2 Daten'!B530,'2.2 Daten'!B545,'2.2 Daten'!B561,x) -> Lippe | B165: =IF($A165<>0,INDEX('2.2 Daten'!C$9:C$860,MATCH('2.2'!$A165,'2.2 Daten'!$B$9:$B$860,0))," ") -> 5766000 | C165: =IF($A165<>0,INDEX('2.2 Daten'!E$9:E$860,MATCH('2.2'!$A165,'2.2 Daten'!$B$9:$B$860,0))) -> 9582 | D165: =IF($A165<>0,INDEX('2.2 Daten'!F$9:F$860,MATCH('2.2'!$A165,'2.2 Daten'!$B$9:$B$860,0))) -> 1751 | E165: =IF($A165<>0,INDEX('2.2 Daten'!G$9:G$860,MATCH('2.2'!$A165,'2.2 Daten'!$B$9:$B$860,0))) -> 1695 | F165: =IF($A165<>0,INDEX('2.2 Daten'!H$9:H$860,MATCH('2.2'!$A165,'2.2 Daten'!$B$9:$B$860,0))) -> 4782 | G165: =IF($A165<>0,INDEX('2.2 Daten'!I$9:I$860,MATCH('2.2'!$A165,'2.2 Daten'!$B$9:$B$860,0))) -> 1354 | H165: =IF($A165<>0,INDEX('2.2 Daten'!K$9:K$860,MATCH('2.2'!$A165,'2.2 Daten'!$B$9:$B$860,0))) -> 4.322264562 | I165: =IF($A165<>0,INDEX('2.2 Daten'!L$9:L$860,MATCH('2.2'!$A165,'2.2 Daten'!$B$9:$B$860,0))) -> 6.833435021 | J165: =IF($A165<>0,INDEX('2.2 Daten'!M$9:M$860,MATCH('2.2'!$A165,'2.2 Daten'!$B$9:$B$860,0))) -> 5.083694978 | K165: =IF($A165<>0,INDEX('2.2 Daten'!N$9:N$860,MATCH('2.2'!$A165,'2.2 Daten'!$B$9:$B$860,0))) -> 3.888768195 | L165: =IF($A165<>0,INDEX('2.2 Daten'!O$9:O$860,MATCH('2.2'!$A165,'2.2 Daten'!$B$9:$B$860,0))) -> 1.804511278
A166: =CHOOSE('2.2 Daten'!$A$2,'2.2 Daten'!B588,'2.2 Daten'!B137,'2.2 Daten'!B154,'2.2 Daten'!B171,'2.2 Daten'!B174,'2.2 Daten'!B221,'2.2 Daten'!B225,'2.2 Daten'!B280,'2.2 Daten'!B308,'2.2 Daten'!B346,'2.2 Daten'!B392,'2.2 Daten'!B490,'2.2 Daten'!B498,'2.2 Daten'!B501,'2.2 Daten'!B521,'2.2 Daten'!B531,'2.2 Daten'!B546,'2.2 Daten'!B562,x) -> Minden-Lübbecke | B166: =IF($A166<>0,INDEX('2.2 Daten'!C$9:C$860,MATCH('2.2'!$A166,'2.2 Daten'!$B$9:$B$860,0))," ") -> 5770000 | C166: =IF($A166<>0,INDEX('2.2 Daten'!E$9:E$860,MATCH('2.2'!$A166,'2.2 Daten'!$B$9:$B$860,0))) -> 8252 | D166: =IF($A166<>0,INDEX('2.2 Daten'!F$9:F$860,MATCH('2.2'!$A166,'2.2 Daten'!$B$9:$B$860,0))) -> 1555 | E166: =IF($A166<>0,INDEX('2.2 Daten'!G$9:G$860,MATCH('2.2'!$A166,'2.2 Daten'!$B$9:$B$860,0))) -> 1450 | F166: =IF($A166<>0,INDEX('2.2 Daten'!H$9:H$860,MATCH('2.2'!$A166,'2.2 Daten'!$B$9:$B$860,0))) -> 4114 | G166: =IF($A166<>0,INDEX('2.2 Daten'!I$9:I$860,MATCH('2.2'!$A166,'2.2 Daten'!$B$9:$B$860,0))) -> 1133 | H166: =IF($A166<>0,INDEX('2.2 Daten'!K$9:K$860,MATCH('2.2'!$A166,'2.2 Daten'!$B$9:$B$860,0))) -> 4.205076399 | I166: =IF($A166<>0,INDEX('2.2 Daten'!L$9:L$860,MATCH('2.2'!$A166,'2.2 Daten'!$B$9:$B$860,0))) -> 6.652949246 | J166: =IF($A166<>0,INDEX('2.2 Daten'!M$9:M$860,MATCH('2.2'!$A166,'2.2 Daten'!$B$9:$B$860,0))) -> 1.969057665 | K166: =IF($A166<>0,INDEX('2.2 Daten'!N$9:N$860,MATCH('2.2'!$A166,'2.2 Daten'!$B$9:$B$860,0))) -> 3.915130083 | L166: =IF($A166<>0,INDEX('2.2 Daten'!O$9:O$860,MATCH('2.2'!$A166,'2.2 Daten'!$B$9:$B$860,0))) -> 4.907407407
A167: =CHOOSE('2.2 Daten'!$A$2,'2.2 Daten'!B589,'2.2 Daten'!B138,'2.2 Daten'!B155,'2.2 Daten'!B172,'2.2 Daten'!B175,'2.2 Daten'!B222,'2.2 Daten'!B226,'2.2 Daten'!B281,'2.2 Daten'!B309,'2.2 Daten'!B347,'2.2 Daten'!B393,'2.2 Daten'!B491,'2.2 Daten'!B499,'2.2 Daten'!B502,'2.2 Daten'!B522,'2.2 Daten'!B532,'2.2 Daten'!B547,'2.2 Daten'!B563,x) -> Paderborn | B167: =IF($A167<>0,INDEX('2.2 Daten'!C$9:C$860,MATCH('2.2'!$A167,'2.2 Daten'!$B$9:$B$860,0))," ") -> 5774000 | C167: =IF($A167<>0,INDEX('2.2 Daten'!E$9:E$860,MATCH('2.2'!$A167,'2.2 Daten'!$B$9:$B$860,0))) -> 7257 | D167: =IF($A167<>0,INDEX('2.2 Daten'!F$9:F$860,MATCH('2.2'!$A167,'2.2 Daten'!$B$9:$B$860,0))) -> 1397 | E167: =IF($A167<>0,INDEX('2.2 Daten'!G$9:G$860,MATCH('2.2'!$A167,'2.2 Daten'!$B$9:$B$860,0))) -> 1271 | F167: =IF($A167<>0,INDEX('2.2 Daten'!H$9:H$860,MATCH('2.2'!$A167,'2.2 Daten'!$B$9:$B$860,0))) -> 3535 | G167: =IF($A167<>0,INDEX('2.2 Daten'!I$9:I$860,MATCH('2.2'!$A167,'2.2 Daten'!$B$9:$B$860,0))) -> 1054 | H167: =IF($A167<>0,INDEX('2.2 Daten'!K$9:K$860,MATCH('2.2'!$A167,'2.2 Daten'!$B$9:$B$860,0))) -> 5.448997384 | I167: =IF($A167<>0,INDEX('2.2 Daten'!L$9:L$860,MATCH('2.2'!$A167,'2.2 Daten'!$B$9:$B$860,0))) -> 7.793209877 | J167: =IF($A167<>0,INDEX('2.2 Daten'!M$9:M$860,MATCH('2.2'!$A167,'2.2 Daten'!$B$9:$B$860,0))) -> 6.896551724 | K167: =IF($A167<>0,INDEX('2.2 Daten'!N$9:N$860,MATCH('2.2'!$A167,'2.2 Daten'!$B$9:$B$860,0))) -> 5.427974948 | L167: =IF($A167<>0,INDEX('2.2 Daten'!O$9:O$860,MATCH('2.2'!$A167,'2.2 Daten'!$B$9:$B$860,0))) -> 0.9578544061
A168: =CHOOSE('2.2 Daten'!$A$2,'2.2 Daten'!B590,'2.2 Daten'!B139,'2.2 Daten'!B156,'2.2 Daten'!B173,'2.2 Daten'!B176,'2.2 Daten'!B223,'2.2 Daten'!B227,'2.2 Daten'!B282,'2.2 Daten'!B310,'2.2 Daten'!B348,'2.2 Daten'!B394,'2.2 Daten'!B492,'2.2 Daten'!B500,'2.2 Daten'!B503,'2.2 Daten'!B523,'2.2 Daten'!B533,'2.2 Daten'!B548,'2.2 Daten'!B564,x) -> Bochum, Stadt | B168: =IF($A168<>0,INDEX('2.2 Daten'!C$9:C$860,MATCH('2.2'!$A168,'2.2 Daten'!$B$9:$B$860,0))," ") -> 5911000 | C168: =IF($A168<>0,INDEX('2.2 Daten'!E$9:E$860,MATCH('2.2'!$A168,'2.2 Daten'!$B$9:$B$860,0))) -> 14528 | D168: =IF($A168<>0,INDEX('2.2 Daten'!F$9:F$860,MATCH('2.2'!$A168,'2.2 Daten'!$B$9:$B$860,0))) -> 2759 | E168: =IF($A168<>0,INDEX('2.2 Daten'!G$9:G$860,MATCH('2.2'!$A168,'2.2 Daten'!$B$9:$B$860,0))) -> 2545 | F168: =IF($A168<>0,INDEX('2.2 Daten'!H$9:H$860,MATCH('2.2'!$A168,'2.2 Daten'!$B$9:$B$860,0))) -> 7185 | G168: =IF($A168<>0,INDEX('2.2 Daten'!I$9:I$860,MATCH('2.2'!$A168,'2.2 Daten'!$B$9:$B$860,0))) -> 2039 | H168: =IF($A168<>0,INDEX('2.2 Daten'!K$9:K$860,MATCH('2.2'!$A168,'2.2 Daten'!$B$9:$B$860,0))) -> 4.570647088 | I168: =IF($A168<>0,INDEX('2.2 Daten'!L$9:L$860,MATCH('2.2'!$A168,'2.2 Daten'!$B$9:$B$860,0))) -> 9.658187599 | J168: =IF($A168<>0,INDEX('2.2 Daten'!M$9:M$860,MATCH('2.2'!$A168,'2.2 Daten'!$B$9:$B$860,0))) -> 7.157894737 | K168: =IF($A168<>0,INDEX('2.2 Daten'!N$9:N$860,MATCH('2.2'!$A168,'2.2 Daten'!$B$9:$B$860,0))) -> 3.35155351 | L168: =IF($A168<>0,INDEX('2.2 Daten'!O$9:O$860,MATCH('2.2'!$A168,'2.2 Daten'!$B$9:$B$860,0))) -> -0.5365853659
A169: =CHOOSE('2.2 Daten'!$A$2,'2.2 Daten'!B591,'2.2 Daten'!B140,'2.2 Daten'!B157,'2.2 Daten'!B174,'2.2 Daten'!B177,'2.2 Daten'!B224,'2.2 Daten'!B228,'2.2 Daten'!B283,'2.2 Daten'!B311,'2.2 Daten'!B349,'2.2 Daten'!B395,'2.2 Daten'!B493,'2.2 Daten'!B501,'2.2 Daten'!B504,'2.2 Daten'!B524,'2.2 Daten'!B534,'2.2 Daten'!B549,'2.2 Daten'!B565,x) -> Dortmund, Stadt | B169: =IF($A169<>0,INDEX('2.2 Daten'!C$9:C$860,MATCH('2.2'!$A169,'2.2 Daten'!$B$9:$B$860,0))," ") -> 5913000 | C169: =IF($A169<>0,INDEX('2.2 Daten'!E$9:E$860,MATCH('2.2'!$A169,'2.2 Daten'!$B$9:$B$860,0))) -> 29206 | D169: =IF($A169<>0,INDEX('2.2 Daten'!F$9:F$860,MATCH('2.2'!$A169,'2.2 Daten'!$B$9:$B$860,0))) -> 5387 | E169: =IF($A169<>0,INDEX('2.2 Daten'!G$9:G$860,MATCH('2.2'!$A169,'2.2 Daten'!$B$9:$B$860,0))) -> 5151 | F169: =IF($A169<>0,INDEX('2.2 Daten'!H$9:H$860,MATCH('2.2'!$A169,'2.2 Daten'!$B$9:$B$860,0))) -> 14559 | G169: =IF($A169<>0,INDEX('2.2 Daten'!I$9:I$860,MATCH('2.2'!$A169,'2.2 Daten'!$B$9:$B$860,0))) -> 4109 | H169: =IF($A169<>0,INDEX('2.2 Daten'!K$9:K$860,MATCH('2.2'!$A169,'2.2 Daten'!$B$9:$B$860,0))) -> 1.745340533 | I169: =IF($A169<>0,INDEX('2.2 Daten'!L$9:L$860,MATCH('2.2'!$A169,'2.2 Daten'!$B$9:$B$860,0))) -> 3.179467535 | J169: =IF($A169<>0,INDEX('2.2 Daten'!M$9:M$860,MATCH('2.2'!$A169,'2.2 Daten'!$B$9:$B$860,0))) -> 2 | K169: =IF($A169<>0,INDEX('2.2 Daten'!N$9:N$860,MATCH('2.2'!$A169,'2.2 Daten'!$B$9:$B$860,0))) -> 1.569694433 | L169: =IF($A169<>0,INDEX('2.2 Daten'!O$9:O$860,MATCH('2.2'!$A169,'2.2 Daten'!$B$9:$B$860,0))) -> 0.2195121951
A170: =CHOOSE('2.2 Daten'!$A$2,'2.2 Daten'!B592,'2.2 Daten'!B141,'2.2 Daten'!B158,'2.2 Daten'!B175,'2.2 Daten'!B178,'2.2 Daten'!B225,'2.2 Daten'!B229,'2.2 Daten'!B284,'2.2 Daten'!B312,'2.2 Daten'!B350,'2.2 Daten'!B396,'2.2 Daten'!B494,'2.2 Daten'!B502,'2.2 Daten'!B505,'2.2 Daten'!B525,'2.2 Daten'!B535,'2.2 Daten'!B550,'2.2 Daten'!B566,x) -> Hagen, Stadt | B170: =IF($A170<>0,INDEX('2.2 Daten'!C$9:C$860,MATCH('2.2'!$A170,'2.2 Daten'!$B$9:$B$860,0))," ") -> 5914000 | C170: =IF($A170<>0,INDEX('2.2 Daten'!E$9:E$860,MATCH('2.2'!$A170,'2.2 Daten'!$B$9:$B$860,0))) -> 9995 | D170: =IF($A170<>0,INDEX('2.2 Daten'!F$9:F$860,MATCH('2.2'!$A170,'2.2 Daten'!$B$9:$B$860,0))) -> 1813 | E170: =IF($A170<>0,INDEX('2.2 Daten'!G$9:G$860,MATCH('2.2'!$A170,'2.2 Daten'!$B$9:$B$860,0))) -> 1809 | F170: =IF($A170<>0,INDEX('2.2 Daten'!H$9:H$860,MATCH('2.2'!$A170,'2.2 Daten'!$B$9:$B$860,0))) -> 4952 | G170: =IF($A170<>0,INDEX('2.2 Daten'!I$9:I$860,MATCH('2.2'!$A170,'2.2 Daten'!$B$9:$B$860,0))) -> 1421 | H170: =IF($A170<>0,INDEX('2.2 Daten'!K$9:K$860,MATCH('2.2'!$A170,'2.2 Daten'!$B$9:$B$860,0))) -> 5.177312428 | I170: =IF($A170<>0,INDEX('2.2 Daten'!L$9:L$860,MATCH('2.2'!$A170,'2.2 Daten'!$B$9:$B$860,0))) -> 4.495677233 | J170: =IF($A170<>0,INDEX('2.2 Daten'!M$9:M$860,MATCH('2.2'!$A170,'2.2 Daten'!$B$9:$B$860,0))) -> 6.725663717 | K170: =IF($A170<>0,INDEX('2.2 Daten'!N$9:N$860,MATCH('2.2'!$A170,'2.2 Daten'!$B$9:$B$860,0))) -> 4.47257384 | L170: =IF($A170<>0,INDEX('2.2 Daten'!O$9:O$860,MATCH('2.2'!$A170,'2.2 Daten'!$B$9:$B$860,0))) -> 6.601650413
A171: =CHOOSE('2.2 Daten'!$A$2,'2.2 Daten'!B593,'2.2 Daten'!B142,'2.2 Daten'!B159,'2.2 Daten'!B176,'2.2 Daten'!B179,'2.2 Daten'!B226,'2.2 Daten'!B230,'2.2 Daten'!B285,'2.2 Daten'!B313,'2.2 Daten'!B351,'2.2 Daten'!B397,'2.2 Daten'!B495,'2.2 Daten'!B503,'2.2 Daten'!B506,'2.2 Daten'!B526,'2.2 Daten'!B536,'2.2 Daten'!B551,'2.2 Daten'!B567,x) -> Hamm, Stadt | B171: =IF($A171<>0,INDEX('2.2 Daten'!C$9:C$860,MATCH('2.2'!$A171,'2.2 Daten'!$B$9:$B$860,0))," ") -> 5915000 | C171: =IF($A171<>0,INDEX('2.2 Daten'!E$9:E$860,MATCH('2.2'!$A171,'2.2 Daten'!$B$9:$B$860,0))) -> 6950 | D171: =IF($A171<>0,INDEX('2.2 Daten'!F$9:F$860,MATCH('2.2'!$A171,'2.2 Daten'!$B$9:$B$860,0))) -> 1267 | E171: =IF($A171<>0,INDEX('2.2 Daten'!G$9:G$860,MATCH('2.2'!$A171,'2.2 Daten'!$B$9:$B$860,0))) -> 1225 | F171: =IF($A171<>0,INDEX('2.2 Daten'!H$9:H$860,MATCH('2.2'!$A171,'2.2 Daten'!$B$9:$B$860,0))) -> 3390 | G171: =IF($A171<>0,INDEX('2.2 Daten'!I$9:I$860,MATCH('2.2'!$A171,'2.2 Daten'!$B$9:$B$860,0))) -> 1068 | H171: =IF($A171<>0,INDEX('2.2 Daten'!K$9:K$860,MATCH('2.2'!$A171,'2.2 Daten'!$B$9:$B$860,0))) -> -3.819540548 | I171: =IF($A171<>0,INDEX('2.2 Daten'!L$9:L$860,MATCH('2.2'!$A171,'2.2 Daten'!$B$9:$B$860,0))) -> -6.078576723 | J171: =IF($A171<>0,INDEX('2.2 Daten'!M$9:M$860,MATCH('2.2'!$A171,'2.2 Daten'!$B$9:$B$860,0))) -> 1.407284768 | K171: =IF($A171<>0,INDEX('2.2 Daten'!N$9:N$860,MATCH('2.2'!$A171,'2.2 Daten'!$B$9:$B$860,0))) -> -5.676126878 | L171: =IF($A171<>0,INDEX('2.2 Daten'!O$9:O$860,MATCH('2.2'!$A171,'2.2 Daten'!$B$9:$B$860,0))) -> -0.6511627907
A172: =CHOOSE('2.2 Daten'!$A$2,'2.2 Daten'!B594,'2.2 Daten'!B143,'2.2 Daten'!B160,'2.2 Daten'!B177,'2.2 Daten'!B180,'2.2 Daten'!B227,'2.2 Daten'!B231,'2.2 Daten'!B286,'2.2 Daten'!B314,'2.2 Daten'!B352,'2.2 Daten'!B398,'2.2 Daten'!B496,'2.2 Daten'!B504,'2.2 Daten'!B507,'2.2 Daten'!B527,'2.2 Daten'!B537,'2.2 Daten'!B552,'2.2 Daten'!B568,x) -> Herne, Stadt | B172: =IF($A172<>0,INDEX('2.2 Daten'!C$9:C$860,MATCH('2.2'!$A172,'2.2 Daten'!$B$9:$B$860,0))," ") -> 5916000 | C172: =IF($A172<>0,INDEX('2.2 Daten'!E$9:E$860,MATCH('2.2'!$A172,'2.2 Daten'!$B$9:$B$860,0))) -> 7851 | D172: =IF($A172<>0,INDEX('2.2 Daten'!F$9:F$860,MATCH('2.2'!$A172,'2.2 Daten'!$B$9:$B$860,0))) -> 1414 | E172: =IF($A172<>0,INDEX('2.2 Daten'!G$9:G$860,MATCH('2.2'!$A172,'2.2 Daten'!$B$9:$B$860,0))) -> 1322 | F172: =IF($A172<>0,INDEX('2.2 Daten'!H$9:H$860,MATCH('2.2'!$A172,'2.2 Daten'!$B$9:$B$860,0))) -> 3853 | G172: =IF($A172<>0,INDEX('2.2 Daten'!I$9:I$860,MATCH('2.2'!$A172,'2.2 Daten'!$B$9:$B$860,0))) -> 1262 | H172: =IF($A172<>0,INDEX('2.2 Daten'!K$9:K$860,MATCH('2.2'!$A172,'2.2 Daten'!$B$9:$B$860,0))) -> 2.520240272 | I172: =IF($A172<>0,INDEX('2.2 Daten'!L$9:L$860,MATCH('2.2'!$A172,'2.2 Daten'!$B$9:$B$860,0))) -> 4.663212435 | J172: =IF($A172<>0,INDEX('2.2 Daten'!M$9:M$860,MATCH('2.2'!$A172,'2.2 Daten'!$B$9:$B$860,0))) -> 0.762195122 | K172: =IF($A172<>0,INDEX('2.2 Daten'!N$9:N$860,MATCH('2.2'!$A172,'2.2 Daten'!$B$9:$B$860,0))) -> 1.314751512 | L172: =IF($A172<>0,INDEX('2.2 Daten'!O$9:O$860,MATCH('2.2'!$A172,'2.2 Daten'!$B$9:$B$860,0))) -> 5.872483221
A173: =CHOOSE('2.2 Daten'!$A$2,'2.2 Daten'!B595,'2.2 Daten'!B144,'2.2 Daten'!B161,'2.2 Daten'!B178,'2.2 Daten'!B181,'2.2 Daten'!B228,'2.2 Daten'!B232,'2.2 Daten'!B287,'2.2 Daten'!B315,'2.2 Daten'!B353,'2.2 Daten'!B399,'2.2 Daten'!B497,'2.2 Daten'!B505,'2.2 Daten'!B508,'2.2 Daten'!B528,'2.2 Daten'!B538,'2.2 Daten'!B553,'2.2 Daten'!B569,x) -> Ennepe-Ruhr-Kreis | B173: =IF($A173<>0,INDEX('2.2 Daten'!C$9:C$860,MATCH('2.2'!$A173,'2.2 Daten'!$B$9:$B$860,0))," ") -> 5954000 | C173: =IF($A173<>0,INDEX('2.2 Daten'!E$9:E$860,MATCH('2.2'!$A173,'2.2 Daten'!$B$9:$B$860,0))) -> 8792 | D173: =IF($A173<>0,INDEX('2.2 Daten'!F$9:F$860,MATCH('2.2'!$A173,'2.2 Daten'!$B$9:$B$860,0))) -> 1721 | E173: =IF($A173<>0,INDEX('2.2 Daten'!G$9:G$860,MATCH('2.2'!$A173,'2.2 Daten'!$B$9:$B$860,0))) -> 1636 | F173: =IF($A173<>0,INDEX('2.2 Daten'!H$9:H$860,MATCH('2.2'!$A173,'2.2 Daten'!$B$9:$B$860,0))) -> 4292 | G173: =IF($A173<>0,INDEX('2.2 Daten'!I$9:I$860,MATCH('2.2'!$A173,'2.2 Daten'!$B$9:$B$860,0))) -> 1143 | H173: =IF($A173<>0,INDEX('2.2 Daten'!K$9:K$860,MATCH('2.2'!$A173,'2.2 Daten'!$B$9:$B$860,0))) -> 8.062930187 | I173: =IF($A173<>0,INDEX('2.2 Daten'!L$9:L$860,MATCH('2.2'!$A173,'2.2 Daten'!$B$9:$B$860,0))) -> 18.03840878 | J173: =IF($A173<>0,INDEX('2.2 Daten'!M$9:M$860,MATCH('2.2'!$A173,'2.2 Daten'!$B$9:$B$860,0))) -> 9.725016767 | K173: =IF($A173<>0,INDEX('2.2 Daten'!N$9:N$860,MATCH('2.2'!$A173,'2.2 Daten'!$B$9:$B$860,0))) -> 6.925759841 | L173: =IF($A173<>0,INDEX('2.2 Daten'!O$9:O$860,MATCH('2.2'!$A173,'2.2 Daten'!$B$9:$B$860,0))) -> -2.557544757
A174: =CHOOSE('2.2 Daten'!$A$2,'2.2 Daten'!B596,'2.2 Daten'!B145,'2.2 Daten'!B162,'2.2 Daten'!B179,'2.2 Daten'!B182,'2.2 Daten'!B229,'2.2 Daten'!B233,'2.2 Daten'!B288,'2.2 Daten'!B316,'2.2 Daten'!B354,'2.2 Daten'!B400,'2.2 Daten'!B498,'2.2 Daten'!B506,'2.2 Daten'!B509,'2.2 Daten'!B529,'2.2 Daten'!B539,'2.2 Daten'!B554,'2.2 Daten'!B570,x) -> Hochsauerlandkreis | B174: =IF($A174<>0,INDEX('2.2 Daten'!C$9:C$860,MATCH('2.2'!$A174,'2.2 Daten'!$B$9:$B$860,0))," ") -> 5958000 | C174: =IF($A174<>0,INDEX('2.2 Daten'!E$9:E$860,MATCH('2.2'!$A174,'2.2 Daten'!$B$9:$B$860,0))) -> 4729 | D174: =IF($A174<>0,INDEX('2.2 Daten'!F$9:F$860,MATCH('2.2'!$A174,'2.2 Daten'!$B$9:$B$860,0))) -> 912 | E174: =IF($A174<>0,INDEX('2.2 Daten'!G$9:G$860,MATCH('2.2'!$A174,'2.2 Daten'!$B$9:$B$860,0))) -> 892 | F174: =IF($A174<>0,INDEX('2.2 Daten'!H$9:H$860,MATCH('2.2'!$A174,'2.2 Daten'!$B$9:$B$860,0))) -> 2310 | G174: =IF($A174<>0,INDEX('2.2 Daten'!I$9:I$860,MATCH('2.2'!$A174,'2.2 Daten'!$B$9:$B$860,0))) -> 615 | H174: =IF($A174<>0,INDEX('2.2 Daten'!K$9:K$860,MATCH('2.2'!$A174,'2.2 Daten'!$B$9:$B$860,0))) -> 4.647045807 | I174: =IF($A174<>0,INDEX('2.2 Daten'!L$9:L$860,MATCH('2.2'!$A174,'2.2 Daten'!$B$9:$B$860,0))) -> 7.4204947 | J174: =IF($A174<>0,INDEX('2.2 Daten'!M$9:M$860,MATCH('2.2'!$A174,'2.2 Daten'!$B$9:$B$860,0))) -> 11.5 | K174: =IF($A174<>0,INDEX('2.2 Daten'!N$9:N$860,MATCH('2.2'!$A174,'2.2 Daten'!$B$9:$B$860,0))) -> 3.587443946 | L174: =IF($A174<>0,INDEX('2.2 Daten'!O$9:O$860,MATCH('2.2'!$A174,'2.2 Daten'!$B$9:$B$860,0))) -> -3.90625
A175: =CHOOSE('2.2 Daten'!$A$2,'2.2 Daten'!B597,'2.2 Daten'!B146,'2.2 Daten'!B163,'2.2 Daten'!B180,'2.2 Daten'!B183,'2.2 Daten'!B230,'2.2 Daten'!B234,'2.2 Daten'!B289,'2.2 Daten'!B317,'2.2 Daten'!B355,'2.2 Daten'!B401,'2.2 Daten'!B499,'2.2 Daten'!B507,'2.2 Daten'!B510,'2.2 Daten'!B530,'2.2 Daten'!B540,'2.2 Daten'!B555,'2.2 Daten'!B571,x) -> Märkischer Kreis | B175: =IF($A175<>0,INDEX('2.2 Daten'!C$9:C$860,MATCH('2.2'!$A175,'2.2 Daten'!$B$9:$B$860,0))," ") -> 5962000 | C175: =IF($A175<>0,INDEX('2.2 Daten'!E$9:E$860,MATCH('2.2'!$A175,'2.2 Daten'!$B$9:$B$860,0))) -> 11179 | D175: =IF($A175<>0,INDEX('2.2 Daten'!F$9:F$860,MATCH('2.2'!$A175,'2.2 Daten'!$B$9:$B$860,0))) -> 2090 | E175: =IF($A175<>0,INDEX('2.2 Daten'!G$9:G$860,MATCH('2.2'!$A175,'2.2 Daten'!$B$9:$B$860,0))) -> 1947 | F175: =IF($A175<>0,INDEX('2.2 Daten'!H$9:H$860,MATCH('2.2'!$A175,'2.2 Daten'!$B$9:$B$860,0))) -> 5600 | G175: =IF($A175<>0,INDEX('2.2 Daten'!I$9:I$860,MATCH('2.2'!$A175,'2.2 Daten'!$B$9:$B$860,0))) -> 1542 | H175: =IF($A175<>0,INDEX('2.2 Daten'!K$9:K$860,MATCH('2.2'!$A175,'2.2 Daten'!$B$9:$B$860,0))) -> 0.7661799171 | I175: =IF($A175<>0,INDEX('2.2 Daten'!L$9:L$860,MATCH('2.2'!$A175,'2.2 Daten'!$B$9:$B$860,0))) -> 6.850715746 | J175: =IF($A175<>0,INDEX('2.2 Daten'!M$9:M$860,MATCH('2.2'!$A175,'2.2 Daten'!$B$9:$B$860,0))) -> 1.777313121 | K175: =IF($A175<>0,INDEX('2.2 Daten'!N$9:N$860,MATCH('2.2'!$A175,'2.2 Daten'!$B$9:$B$860,0))) -> -0.7444168734 | L175: =IF($A175<>0,INDEX('2.2 Daten'!O$9:O$860,MATCH('2.2'!$A175,'2.2 Daten'!$B$9:$B$860,0))) -> -2.590018951
A176: =CHOOSE('2.2 Daten'!$A$2,'2.2 Daten'!B598,'2.2 Daten'!B147,'2.2 Daten'!B164,'2.2 Daten'!B181,'2.2 Daten'!B184,'2.2 Daten'!B231,'2.2 Daten'!B235,'2.2 Daten'!B290,'2.2 Daten'!B318,'2.2 Daten'!B356,'2.2 Daten'!B402,'2.2 Daten'!B500,'2.2 Daten'!B508,'2.2 Daten'!B511,'2.2 Daten'!B531,'2.2 Daten'!B541,'2.2 Daten'!B556,'2.2 Daten'!B572,x) -> Olpe | B176: =IF($A176<>0,INDEX('2.2 Daten'!C$9:C$860,MATCH('2.2'!$A176,'2.2 Daten'!$B$9:$B$860,0))," ") -> 5966000 | C176: =IF($A176<>0,INDEX('2.2 Daten'!E$9:E$860,MATCH('2.2'!$A176,'2.2 Daten'!$B$9:$B$860,0))) -> 2203 | D176: =IF($A176<>0,INDEX('2.2 Daten'!F$9:F$860,MATCH('2.2'!$A176,'2.2 Daten'!$B$9:$B$860,0))) -> 416 | E176: =IF($A176<>0,INDEX('2.2 Daten'!G$9:G$860,MATCH('2.2'!$A176,'2.2 Daten'!$B$9:$B$860,0))) -> 427 | F176: =IF($A176<>0,INDEX('2.2 Daten'!H$9:H$860,MATCH('2.2'!$A176,'2.2 Daten'!$B$9:$B$860,0))) -> 1074 | G176: =IF($A176<>0,INDEX('2.2 Daten'!I$9:I$860,MATCH('2.2'!$A176,'2.2 Daten'!$B$9:$B$860,0))) -> 286 | H176: =IF($A176<>0,INDEX('2.2 Daten'!K$9:K$860,MATCH('2.2'!$A176,'2.2 Daten'!$B$9:$B$860,0))) -> 9.438648783 | I176: =IF($A176<>0,INDEX('2.2 Daten'!L$9:L$860,MATCH('2.2'!$A176,'2.2 Daten'!$B$9:$B$860,0))) -> 19.88472622 | J176: =IF($A176<>0,INDEX('2.2 Daten'!M$9:M$860,MATCH('2.2'!$A176,'2.2 Daten'!$B$9:$B$860,0))) -> 23.76811594 | K176: =IF($A176<>0,INDEX('2.2 Daten'!N$9:N$860,MATCH('2.2'!$A176,'2.2 Daten'!$B$9:$B$860,0))) -> 1.416430595 | L176: =IF($A176<>0,INDEX('2.2 Daten'!O$9:O$860,MATCH('2.2'!$A176,'2.2 Daten'!$B$9:$B$860,0))) -> 9.160305344
A177: =CHOOSE('2.2 Daten'!$A$2,'2.2 Daten'!B599,'2.2 Daten'!B148,'2.2 Daten'!B165,'2.2 Daten'!B182,'2.2 Daten'!B185,'2.2 Daten'!B232,'2.2 Daten'!B236,'2.2 Daten'!B291,'2.2 Daten'!B319,'2.2 Daten'!B357,'2.2 Daten'!B403,'2.2 Daten'!B501,'2.2 Daten'!B509,'2.2 Daten'!B512,'2.2 Daten'!B532,'2.2 Daten'!B542,'2.2 Daten'!B557,'2.2 Daten'!B573,x) -> Siegen-Wittgenstein | B177: =IF($A177<>0,INDEX('2.2 Daten'!C$9:C$860,MATCH('2.2'!$A177,'2.2 Daten'!$B$9:$B$860,0))," ") -> 5970000 | C177: =IF($A177<>0,INDEX('2.2 Daten'!E$9:E$860,MATCH('2.2'!$A177,'2.2 Daten'!$B$9:$B$860,0))) -> 5984 | D177: =IF($A177<>0,INDEX('2.2 Daten'!F$9:F$860,MATCH('2.2'!$A177,'2.2 Daten'!$B$9:$B$860,0))) -> 1178 | E177: =IF($A177<>0,INDEX('2.2 Daten'!G$9:G$860,MATCH('2.2'!$A177,'2.2 Daten'!$B$9:$B$860,0))) -> 1087 | F177: =IF($A177<>0,INDEX('2.2 Daten'!H$9:H$860,MATCH('2.2'!$A177,'2.2 Daten'!$B$9:$B$860,0))) -> 2921 | G177: =IF($A177<>0,INDEX('2.2 Daten'!I$9:I$860,MATCH('2.2'!$A177,'2.2 Daten'!$B$9:$B$860,0))) -> 798 | H177: =IF($A177<>0,INDEX('2.2 Daten'!K$9:K$860,MATCH('2.2'!$A177,'2.2 Daten'!$B$9:$B$860,0))) -> 7.684002159 | I177: =IF($A177<>0,INDEX('2.2 Daten'!L$9:L$860,MATCH('2.2'!$A177,'2.2 Daten'!$B$9:$B$860,0))) -> 11.65876777 | J177: =IF($A177<>0,INDEX('2.2 Daten'!M$9:M$860,MATCH('2.2'!$A177,'2.2 Daten'!$B$9:$B$860,0))) -> 7.411067194 | K177: =IF($A177<>0,INDEX('2.2 Daten'!N$9:N$860,MATCH('2.2'!$A177,'2.2 Daten'!$B$9:$B$860,0))) -> 5.986937591 | L177: =IF($A177<>0,INDEX('2.2 Daten'!O$9:O$860,MATCH('2.2'!$A177,'2.2 Daten'!$B$9:$B$860,0))) -> 8.719346049
A178: =CHOOSE('2.2 Daten'!$A$2,'2.2 Daten'!B600,'2.2 Daten'!B149,'2.2 Daten'!B166,'2.2 Daten'!B183,'2.2 Daten'!B186,'2.2 Daten'!B233,'2.2 Daten'!B237,'2.2 Daten'!B292,'2.2 Daten'!B320,'2.2 Daten'!B358,'2.2 Daten'!B404,'2.2 Daten'!B502,'2.2 Daten'!B510,'2.2 Daten'!B513,'2.2 Daten'!B533,'2.2 Daten'!B543,'2.2 Daten'!B558,'2.2 Daten'!B574,x) -> Soest | B178: =IF($A178<>0,INDEX('2.2 Daten'!C$9:C$860,MATCH('2.2'!$A178,'2.2 Daten'!$B$9:$B$860,0))," ") -> 5974000 | C178: =IF($A178<>0,INDEX('2.2 Daten'!E$9:E$860,MATCH('2.2'!$A178,'2.2 Daten'!$B$9:$B$860,0))) -> 6378 | D178: =IF($A178<>0,INDEX('2.2 Daten'!F$9:F$860,MATCH('2.2'!$A178,'2.2 Daten'!$B$9:$B$860,0))) -> 1208 | E178: =IF($A178<>0,INDEX('2.2 Daten'!G$9:G$860,MATCH('2.2'!$A178,'2.2 Daten'!$B$9:$B$860,0))) -> 1172 | F178: =IF($A178<>0,INDEX('2.2 Daten'!H$9:H$860,MATCH('2.2'!$A178,'2.2 Daten'!$B$9:$B$860,0))) -> 3135 | G178: =IF($A178<>0,INDEX('2.2 Daten'!I$9:I$860,MATCH('2.2'!$A178,'2.2 Daten'!$B$9:$B$860,0))) -> 863 | H178: =IF($A178<>0,INDEX('2.2 Daten'!K$9:K$860,MATCH('2.2'!$A178,'2.2 Daten'!$B$9:$B$860,0))) -> 7.700101317 | I178: =IF($A178<>0,INDEX('2.2 Daten'!L$9:L$860,MATCH('2.2'!$A178,'2.2 Daten'!$B$9:$B$860,0))) -> 10.82568807 | J178: =IF($A178<>0,INDEX('2.2 Daten'!M$9:M$860,MATCH('2.2'!$A178,'2.2 Daten'!$B$9:$B$860,0))) -> 14.0077821 | K178: =IF($A178<>0,INDEX('2.2 Daten'!N$9:N$860,MATCH('2.2'!$A178,'2.2 Daten'!$B$9:$B$860,0))) -> 5.840648211 | L178: =IF($A178<>0,INDEX('2.2 Daten'!O$9:O$860,MATCH('2.2'!$A178,'2.2 Daten'!$B$9:$B$860,0))) -> 2.494061758
A179: =CHOOSE('2.2 Daten'!$A$2,'2.2 Daten'!B601,'2.2 Daten'!B150,'2.2 Daten'!B167,'2.2 Daten'!B184,'2.2 Daten'!B187,'2.2 Daten'!B234,'2.2 Daten'!B238,'2.2 Daten'!B293,'2.2 Daten'!B321,'2.2 Daten'!B359,'2.2 Daten'!B405,'2.2 Daten'!B503,'2.2 Daten'!B511,'2.2 Daten'!B514,'2.2 Daten'!B534,'2.2 Daten'!B544,'2.2 Daten'!B559,'2.2 Daten'!B575,x) -> Unna | B179: =IF($A179<>0,INDEX('2.2 Daten'!C$9:C$860,MATCH('2.2'!$A179,'2.2 Daten'!$B$9:$B$860,0))," ") -> 5978000 | C179: =IF($A179<>0,INDEX('2.2 Daten'!E$9:E$860,MATCH('2.2'!$A179,'2.2 Daten'!$B$9:$B$860,0))) -> 12879 | D179: =IF($A179<>0,INDEX('2.2 Daten'!F$9:F$860,MATCH('2.2'!$A179,'2.2 Daten'!$B$9:$B$860,0))) -> 2361 | E179: =IF($A179<>0,INDEX('2.2 Daten'!G$9:G$860,MATCH('2.2'!$A179,'2.2 Daten'!$B$9:$B$860,0))) -> 2270 | F179: =IF($A179<>0,INDEX('2.2 Daten'!H$9:H$860,MATCH('2.2'!$A179,'2.2 Daten'!$B$9:$B$860,0))) -> 6352 | G179: =IF($A179<>0,INDEX('2.2 Daten'!I$9:I$860,MATCH('2.2'!$A179,'2.2 Daten'!$B$9:$B$860,0))) -> 1896 | H179: =IF($A179<>0,INDEX('2.2 Daten'!K$9:K$860,MATCH('2.2'!$A179,'2.2 Daten'!$B$9:$B$860,0))) -> 1.561391057 | I179: =IF($A179<>0,INDEX('2.2 Daten'!L$9:L$860,MATCH('2.2'!$A179,'2.2 Daten'!$B$9:$B$860,0))) -> 7.026291931 | J179: =IF($A179<>0,INDEX('2.2 Daten'!M$9:M$860,MATCH('2.2'!$A179,'2.2 Daten'!$B$9:$B$860,0))) -> 5.975723623 | K179: =IF($A179<>0,INDEX('2.2 Daten'!N$9:N$860,MATCH('2.2'!$A179,'2.2 Daten'!$B$9:$B$860,0))) -> -0.75 | L179: =IF($A179<>0,INDEX('2.2 Daten'!O$9:O$860,MATCH('2.2'!$A179,'2.2 Daten'!$B$9:$B$860,0))) -> -1.914123125
A180: =CHOOSE('2.2 Daten'!$A$2,'2.2 Daten'!B602,'2.2 Daten'!B151,'2.2 Daten'!B168,'2.2 Daten'!B185,'2.2 Daten'!B188,'2.2 Daten'!B235,'2.2 Daten'!B239,'2.2 Daten'!B294,'2.2 Daten'!B322,'2.2 Daten'!B360,'2.2 Daten'!B406,'2.2 Daten'!B504,'2.2 Daten'!B512,'2.2 Daten'!B515,'2.2 Daten'!B535,'2.2 Daten'!B545,'2.2 Daten'!B560,'2.2 Daten'!B576,x) -> 0 | B180: =IF($A180<>0,INDEX('2.2 Daten'!C$9:C$860,MATCH('2.2'!$A180,'2.2 Daten'!$B$9:$B$860,0))," ") ->  | C180: =IF($A180<>0,INDEX('2.2 Daten'!E$9:E$860,MATCH('2.2'!$A180,'2.2 Daten'!$B$9:$B$860,0))) -> FALSE | D180: =IF($A180<>0,INDEX('2.2 Daten'!F$9:F$860,MATCH('2.2'!$A180,'2.2 Daten'!$B$9:$B$860,0))) -> FALSE | E180: =IF($A180<>0,INDEX('2.2 Daten'!G$9:G$860,MATCH('2.2'!$A180,'2.2 Daten'!$B$9:$B$860,0))) -> FALSE | F180: =IF($A180<>0,INDEX('2.2 Daten'!H$9:H$860,MATCH('2.2'!$A180,'2.2 Daten'!$B$9:$B$860,0))) -> FALSE | G180: =IF($A180<>0,INDEX('2.2 Daten'!I$9:I$860,MATCH('2.2'!$A180,'2.2 Daten'!$B$9:$B$860,0))) -> FALSE | H180: =IF($A180<>0,INDEX('2.2 Daten'!K$9:K$860,MATCH('2.2'!$A180,'2.2 Daten'!$B$9:$B$860,0))) -> FALSE | I180: =IF($A180<>0,INDEX('2.2 Daten'!L$9:L$860,MATCH('2.2'!$A180,'2.2 Daten'!$B$9:$B$860,0))) -> FALSE | J180: =IF($A180<>0,INDEX('2.2 Daten'!M$9:M$860,MATCH('2.2'!$A180,'2.2 Daten'!$B$9:$B$860,0))) -> FALSE | K180: =IF($A180<>0,INDEX('2.2 Daten'!N$9:N$860,MATCH('2.2'!$A180,'2.2 Daten'!$B$9:$B$860,0))) -> FALSE | L180: =IF($A180<>0,INDEX('2.2 Daten'!O$9:O$860,MATCH('2.2'!$A180,'2.2 Daten'!$B$9:$B$860,0))) -> FALSE
A181: =CHOOSE('2.2 Daten'!$A$2,'2.2 Daten'!B603,'2.2 Daten'!B152,'2.2 Daten'!B169,'2.2 Daten'!B186,'2.2 Daten'!B189,'2.2 Daten'!B236,'2.2 Daten'!B240,'2.2 Daten'!B295,'2.2 Daten'!B323,'2.2 Daten'!B361,'2.2 Daten'!B407,'2.2 Daten'!B505,'2.2 Daten'!B513,'2.2 Daten'!B516,'2.2 Daten'!B536,'2.2 Daten'!B546,'2.2 Daten'!B561,'2.2 Daten'!B577,x) -> Hessen | B181: =IF($A181<>0,INDEX('2.2 Daten'!C$9:C$860,MATCH('2.2'!$A181,'2.2 Daten'!$B$9:$B$860,0))," ") -> 06 | C181: =IF($A181<>0,INDEX('2.2 Daten'!E$9:E$860,MATCH('2.2'!$A181,'2.2 Daten'!$B$9:$B$860,0))) -> 154329 | D181: =IF($A181<>0,INDEX('2.2 Daten'!F$9:F$860,MATCH('2.2'!$A181,'2.2 Daten'!$B$9:$B$860,0))) -> 30297 | E181: =IF($A181<>0,INDEX('2.2 Daten'!G$9:G$860,MATCH('2.2'!$A181,'2.2 Daten'!$B$9:$B$860,0))) -> 27971 | F181: =IF($A181<>0,INDEX('2.2 Daten'!H$9:H$860,MATCH('2.2'!$A181,'2.2 Daten'!$B$9:$B$860,0))) -> 75690 | G181: =IF($A181<>0,INDEX('2.2 Daten'!I$9:I$860,MATCH('2.2'!$A181,'2.2 Daten'!$B$9:$B$860,0))) -> 20371 | H181: =IF($A181<>0,INDEX('2.2 Daten'!K$9:K$860,MATCH('2.2'!$A181,'2.2 Daten'!$B$9:$B$860,0))) -> 5.180333679 | I181: =IF($A181<>0,INDEX('2.2 Daten'!L$9:L$860,MATCH('2.2'!$A181,'2.2 Daten'!$B$9:$B$860,0))) -> 10.34746503 | J181: =IF($A181<>0,INDEX('2.2 Daten'!M$9:M$860,MATCH('2.2'!$A181,'2.2 Daten'!$B$9:$B$860,0))) -> 5.150182324 | K181: =IF($A181<>0,INDEX('2.2 Daten'!N$9:N$860,MATCH('2.2'!$A181,'2.2 Daten'!$B$9:$B$860,0))) -> 4.177276168 | L181: =IF($A181<>0,INDEX('2.2 Daten'!O$9:O$860,MATCH('2.2'!$A181,'2.2 Daten'!$B$9:$B$860,0))) -> 1.768496778
A182: =CHOOSE('2.2 Daten'!$A$2,'2.2 Daten'!B604,'2.2 Daten'!B153,'2.2 Daten'!B170,'2.2 Daten'!B187,'2.2 Daten'!B190,'2.2 Daten'!B237,'2.2 Daten'!B241,'2.2 Daten'!B296,'2.2 Daten'!B324,'2.2 Daten'!B362,'2.2 Daten'!B408,'2.2 Daten'!B506,'2.2 Daten'!B514,'2.2 Daten'!B517,'2.2 Daten'!B537,'2.2 Daten'!B547,'2.2 Daten'!B562,'2.2 Daten'!B578,x) -> Darmstadt, Wissenschaftsstadt | B182: =IF($A182<>0,INDEX('2.2 Daten'!C$9:C$860,MATCH('2.2'!$A182,'2.2 Daten'!$B$9:$B$860,0))," ") -> 6411000 | C182: =IF($A182<>0,INDEX('2.2 Daten'!E$9:E$860,MATCH('2.2'!$A182,'2.2 Daten'!$B$9:$B$860,0))) -> 5320 | D182: =IF($A182<>0,INDEX('2.2 Daten'!F$9:F$860,MATCH('2.2'!$A182,'2.2 Daten'!$B$9:$B$860,0))) -> 1033 | E182: =IF($A182<>0,INDEX('2.2 Daten'!G$9:G$860,MATCH('2.2'!$A182,'2.2 Daten'!$B$9:$B$860,0))) -> 978 | F182: =IF($A182<>0,INDEX('2.2 Daten'!H$9:H$860,MATCH('2.2'!$A182,'2.2 Daten'!$B$9:$B$860,0))) -> 2616 | G182: =IF($A182<>0,INDEX('2.2 Daten'!I$9:I$860,MATCH('2.2'!$A182,'2.2 Daten'!$B$9:$B$860,0))) -> 693 | H182: =IF($A182<>0,INDEX('2.2 Daten'!K$9:K$860,MATCH('2.2'!$A182,'2.2 Daten'!$B$9:$B$860,0))) -> 4.662600826 | I182: =IF($A182<>0,INDEX('2.2 Daten'!L$9:L$860,MATCH('2.2'!$A182,'2.2 Daten'!$B$9:$B$860,0))) -> 9.312169312 | J182: =IF($A182<>0,INDEX('2.2 Daten'!M$9:M$860,MATCH('2.2'!$A182,'2.2 Daten'!$B$9:$B$860,0))) -> -1.212121212 | K182: =IF($A182<>0,INDEX('2.2 Daten'!N$9:N$860,MATCH('2.2'!$A182,'2.2 Daten'!$B$9:$B$860,0))) -> 6.341463415 | L182: =IF($A182<>0,INDEX('2.2 Daten'!O$9:O$860,MATCH('2.2'!$A182,'2.2 Daten'!$B$9:$B$860,0))) -> 0.726744186
A183: =CHOOSE('2.2 Daten'!$A$2,'2.2 Daten'!B605,'2.2 Daten'!B154,'2.2 Daten'!B171,'2.2 Daten'!B188,'2.2 Daten'!B191,'2.2 Daten'!B238,'2.2 Daten'!B242,'2.2 Daten'!B297,'2.2 Daten'!B325,'2.2 Daten'!B363,'2.2 Daten'!B409,'2.2 Daten'!B507,'2.2 Daten'!B515,'2.2 Daten'!B518,'2.2 Daten'!B538,'2.2 Daten'!B548,'2.2 Daten'!B563,'2.2 Daten'!B579,x) -> Frankfurt am Main, Stadt | B183: =IF($A183<>0,INDEX('2.2 Daten'!C$9:C$860,MATCH('2.2'!$A183,'2.2 Daten'!$B$9:$B$860,0))," ") -> 6412000 | C183: =IF($A183<>0,INDEX('2.2 Daten'!E$9:E$860,MATCH('2.2'!$A183,'2.2 Daten'!$B$9:$B$860,0))) -> 25282 | D183: =IF($A183<>0,INDEX('2.2 Daten'!F$9:F$860,MATCH('2.2'!$A183,'2.2 Daten'!$B$9:$B$860,0))) -> 4999 | E183: =IF($A183<>0,INDEX('2.2 Daten'!G$9:G$860,MATCH('2.2'!$A183,'2.2 Daten'!$B$9:$B$860,0))) -> 4586 | F183: =IF($A183<>0,INDEX('2.2 Daten'!H$9:H$860,MATCH('2.2'!$A183,'2.2 Daten'!$B$9:$B$860,0))) -> 12476 | G183: =IF($A183<>0,INDEX('2.2 Daten'!I$9:I$860,MATCH('2.2'!$A183,'2.2 Daten'!$B$9:$B$860,0))) -> 3221 | H183: =IF($A183<>0,INDEX('2.2 Daten'!K$9:K$860,MATCH('2.2'!$A183,'2.2 Daten'!$B$9:$B$860,0))) -> -0.323292856 | I183: =IF($A183<>0,INDEX('2.2 Daten'!L$9:L$860,MATCH('2.2'!$A183,'2.2 Daten'!$B$9:$B$860,0))) -> 2.459520394 | J183: =IF($A183<>0,INDEX('2.2 Daten'!M$9:M$860,MATCH('2.2'!$A183,'2.2 Daten'!$B$9:$B$860,0))) -> -3.554153523 | K183: =IF($A183<>0,INDEX('2.2 Daten'!N$9:N$860,MATCH('2.2'!$A183,'2.2 Daten'!$B$9:$B$860,0))) -> -0.3753094306 | L183: =IF($A183<>0,INDEX('2.2 Daten'!O$9:O$860,MATCH('2.2'!$A183,'2.2 Daten'!$B$9:$B$860,0))) -> 0.4365450577
A184: =CHOOSE('2.2 Daten'!$A$2,'2.2 Daten'!B606,'2.2 Daten'!B155,'2.2 Daten'!B172,'2.2 Daten'!B189,'2.2 Daten'!B192,'2.2 Daten'!B239,'2.2 Daten'!B243,'2.2 Daten'!B298,'2.2 Daten'!B326,'2.2 Daten'!B364,'2.2 Daten'!B410,'2.2 Daten'!B508,'2.2 Daten'!B516,'2.2 Daten'!B519,'2.2 Daten'!B539,'2.2 Daten'!B549,'2.2 Daten'!B564,'2.2 Daten'!B580,x) -> Offenbach am Main, Stadt | B184: =IF($A184<>0,INDEX('2.2 Daten'!C$9:C$860,MATCH('2.2'!$A184,'2.2 Daten'!$B$9:$B$860,0))," ") -> 6413000 | C184: =IF($A184<>0,INDEX('2.2 Daten'!E$9:E$860,MATCH('2.2'!$A184,'2.2 Daten'!$B$9:$B$860,0))) -> 6640 | D184: =IF($A184<>0,INDEX('2.2 Daten'!F$9:F$860,MATCH('2.2'!$A184,'2.2 Daten'!$B$9:$B$860,0))) -> 1104 | E184: =IF($A184<>0,INDEX('2.2 Daten'!G$9:G$860,MATCH('2.2'!$A184,'2.2 Daten'!$B$9:$B$860,0))) -> 1207 | F184: =IF($A184<>0,INDEX('2.2 Daten'!H$9:H$860,MATCH('2.2'!$A184,'2.2 Daten'!$B$9:$B$860,0))) -> 3432 | G184: =IF($A184<>0,INDEX('2.2 Daten'!I$9:I$860,MATCH('2.2'!$A184,'2.2 Daten'!$B$9:$B$860,0))) -> 897 | H184: =IF($A184<>0,INDEX('2.2 Daten'!K$9:K$860,MATCH('2.2'!$A184,'2.2 Daten'!$B$9:$B$860,0))) -> -5.855664256 | I184: =IF($A184<>0,INDEX('2.2 Daten'!L$9:L$860,MATCH('2.2'!$A184,'2.2 Daten'!$B$9:$B$860,0))) -> -6.361323155 | J184: =IF($A184<>0,INDEX('2.2 Daten'!M$9:M$860,MATCH('2.2'!$A184,'2.2 Daten'!$B$9:$B$860,0))) -> -6.867283951 | K184: =IF($A184<>0,INDEX('2.2 Daten'!N$9:N$860,MATCH('2.2'!$A184,'2.2 Daten'!$B$9:$B$860,0))) -> -5.869445968 | L184: =IF($A184<>0,INDEX('2.2 Daten'!O$9:O$860,MATCH('2.2'!$A184,'2.2 Daten'!$B$9:$B$860,0))) -> -3.755364807
A185: =CHOOSE('2.2 Daten'!$A$2,'2.2 Daten'!B607,'2.2 Daten'!B156,'2.2 Daten'!B173,'2.2 Daten'!B190,'2.2 Daten'!B193,'2.2 Daten'!B240,'2.2 Daten'!B244,'2.2 Daten'!B299,'2.2 Daten'!B327,'2.2 Daten'!B365,'2.2 Daten'!B411,'2.2 Daten'!B509,'2.2 Daten'!B517,'2.2 Daten'!B520,'2.2 Daten'!B540,'2.2 Daten'!B550,'2.2 Daten'!B565,'2.2 Daten'!B581,x) -> Wiesbaden, Landeshauptstadt | B185: =IF($A185<>0,INDEX('2.2 Daten'!C$9:C$860,MATCH('2.2'!$A185,'2.2 Daten'!$B$9:$B$860,0))," ") -> 6414000 | C185: =IF($A185<>0,INDEX('2.2 Daten'!E$9:E$860,MATCH('2.2'!$A185,'2.2 Daten'!$B$9:$B$860,0))) -> 11516 | D185: =IF($A185<>0,INDEX('2.2 Daten'!F$9:F$860,MATCH('2.2'!$A185,'2.2 Daten'!$B$9:$B$860,0))) -> 2145 | E185: =IF($A185<>0,INDEX('2.2 Daten'!G$9:G$860,MATCH('2.2'!$A185,'2.2 Daten'!$B$9:$B$860,0))) -> 2059 | F185: =IF($A185<>0,INDEX('2.2 Daten'!H$9:H$860,MATCH('2.2'!$A185,'2.2 Daten'!$B$9:$B$860,0))) -> 5778 | G185: =IF($A185<>0,INDEX('2.2 Daten'!I$9:I$860,MATCH('2.2'!$A185,'2.2 Daten'!$B$9:$B$860,0))) -> 1534 | H185: =IF($A185<>0,INDEX('2.2 Daten'!K$9:K$860,MATCH('2.2'!$A185,'2.2 Daten'!$B$9:$B$860,0))) -> 2.092198582 | I185: =IF($A185<>0,INDEX('2.2 Daten'!L$9:L$860,MATCH('2.2'!$A185,'2.2 Daten'!$B$9:$B$860,0))) -> 2.191519771 | J185: =IF($A185<>0,INDEX('2.2 Daten'!M$9:M$860,MATCH('2.2'!$A185,'2.2 Daten'!$B$9:$B$860,0))) -> 5.58974359 | K185: =IF($A185<>0,INDEX('2.2 Daten'!N$9:N$860,MATCH('2.2'!$A185,'2.2 Daten'!$B$9:$B$860,0))) -> 2.647006573 | L185: =IF($A185<>0,INDEX('2.2 Daten'!O$9:O$860,MATCH('2.2'!$A185,'2.2 Daten'!$B$9:$B$860,0))) -> -4.244694132
A186: =CHOOSE('2.2 Daten'!$A$2,'2.2 Daten'!B608,'2.2 Daten'!B157,'2.2 Daten'!B174,'2.2 Daten'!B191,'2.2 Daten'!B194,'2.2 Daten'!B241,'2.2 Daten'!B245,'2.2 Daten'!B300,'2.2 Daten'!B328,'2.2 Daten'!B366,'2.2 Daten'!B412,'2.2 Daten'!B510,'2.2 Daten'!B518,'2.2 Daten'!B521,'2.2 Daten'!B541,'2.2 Daten'!B551,'2.2 Daten'!B566,'2.2 Daten'!B582,x) -> Bergstraße | B186: =IF($A186<>0,INDEX('2.2 Daten'!C$9:C$860,MATCH('2.2'!$A186,'2.2 Daten'!$B$9:$B$860,0))," ") -> 6431000 | C186: =IF($A186<>0,INDEX('2.2 Daten'!E$9:E$860,MATCH('2.2'!$A186,'2.2 Daten'!$B$9:$B$860,0))) -> 4903 | D186: =IF($A186<>0,INDEX('2.2 Daten'!F$9:F$860,MATCH('2.2'!$A186,'2.2 Daten'!$B$9:$B$860,0))) -> 938 | E186: =IF($A186<>0,INDEX('2.2 Daten'!G$9:G$860,MATCH('2.2'!$A186,'2.2 Daten'!$B$9:$B$860,0))) -> 914 | F186: =IF($A186<>0,INDEX('2.2 Daten'!H$9:H$860,MATCH('2.2'!$A186,'2.2 Daten'!$B$9:$B$860,0))) -> 2401 | G186: =IF($A186<>0,INDEX('2.2 Daten'!I$9:I$860,MATCH('2.2'!$A186,'2.2 Daten'!$B$9:$B$860,0))) -> 650 | H186: =IF($A186<>0,INDEX('2.2 Daten'!K$9:K$860,MATCH('2.2'!$A186,'2.2 Daten'!$B$9:$B$860,0))) -> 10.57735679 | I186: =IF($A186<>0,INDEX('2.2 Daten'!L$9:L$860,MATCH('2.2'!$A186,'2.2 Daten'!$B$9:$B$860,0))) -> 15.37515375 | J186: =IF($A186<>0,INDEX('2.2 Daten'!M$9:M$860,MATCH('2.2'!$A186,'2.2 Daten'!$B$9:$B$860,0))) -> 15.54993679 | K186: =IF($A186<>0,INDEX('2.2 Daten'!N$9:N$860,MATCH('2.2'!$A186,'2.2 Daten'!$B$9:$B$860,0))) -> 10.59419622 | L186: =IF($A186<>0,INDEX('2.2 Daten'!O$9:O$860,MATCH('2.2'!$A186,'2.2 Daten'!$B$9:$B$860,0))) -> -1.365705615
A187: =CHOOSE('2.2 Daten'!$A$2,'2.2 Daten'!B609,'2.2 Daten'!B158,'2.2 Daten'!B175,'2.2 Daten'!B192,'2.2 Daten'!B195,'2.2 Daten'!B242,'2.2 Daten'!B246,'2.2 Daten'!B301,'2.2 Daten'!B329,'2.2 Daten'!B367,'2.2 Daten'!B413,'2.2 Daten'!B511,'2.2 Daten'!B519,'2.2 Daten'!B522,'2.2 Daten'!B542,'2.2 Daten'!B552,'2.2 Daten'!B567,'2.2 Daten'!B583,x) -> Darmstadt-Dieburg | B187: =IF($A187<>0,INDEX('2.2 Daten'!C$9:C$860,MATCH('2.2'!$A187,'2.2 Daten'!$B$9:$B$860,0))," ") -> 6432000 | C187: =IF($A187<>0,INDEX('2.2 Daten'!E$9:E$860,MATCH('2.2'!$A187,'2.2 Daten'!$B$9:$B$860,0))) -> 5806 | D187: =IF($A187<>0,INDEX('2.2 Daten'!F$9:F$860,MATCH('2.2'!$A187,'2.2 Daten'!$B$9:$B$860,0))) -> 1175 | E187: =IF($A187<>0,INDEX('2.2 Daten'!G$9:G$860,MATCH('2.2'!$A187,'2.2 Daten'!$B$9:$B$860,0))) -> 1017 | F187: =IF($A187<>0,INDEX('2.2 Daten'!H$9:H$860,MATCH('2.2'!$A187,'2.2 Daten'!$B$9:$B$860,0))) -> 2780 | G187: =IF($A187<>0,INDEX('2.2 Daten'!I$9:I$860,MATCH('2.2'!$A187,'2.2 Daten'!$B$9:$B$860,0))) -> 834 | H187: =IF($A187<>0,INDEX('2.2 Daten'!K$9:K$860,MATCH('2.2'!$A187,'2.2 Daten'!$B$9:$B$860,0))) -> 7.102010699 | I187: =IF($A187<>0,INDEX('2.2 Daten'!L$9:L$860,MATCH('2.2'!$A187,'2.2 Daten'!$B$9:$B$860,0))) -> 14.52241715 | J187: =IF($A187<>0,INDEX('2.2 Daten'!M$9:M$860,MATCH('2.2'!$A187,'2.2 Daten'!$B$9:$B$860,0))) -> 6.603773585 | K187: =IF($A187<>0,INDEX('2.2 Daten'!N$9:N$860,MATCH('2.2'!$A187,'2.2 Daten'!$B$9:$B$860,0))) -> 4.708097928 | L187: =IF($A187<>0,INDEX('2.2 Daten'!O$9:O$860,MATCH('2.2'!$A187,'2.2 Daten'!$B$9:$B$860,0))) -> 6.106870229
A188: =CHOOSE('2.2 Daten'!$A$2,'2.2 Daten'!B610,'2.2 Daten'!B159,'2.2 Daten'!B176,'2.2 Daten'!B193,'2.2 Daten'!B196,'2.2 Daten'!B243,'2.2 Daten'!B247,'2.2 Daten'!B302,'2.2 Daten'!B330,'2.2 Daten'!B368,'2.2 Daten'!B414,'2.2 Daten'!B512,'2.2 Daten'!B520,'2.2 Daten'!B523,'2.2 Daten'!B543,'2.2 Daten'!B553,'2.2 Daten'!B568,'2.2 Daten'!B584,x) -> Groß-Gerau | B188: =IF($A188<>0,INDEX('2.2 Daten'!C$9:C$860,MATCH('2.2'!$A188,'2.2 Daten'!$B$9:$B$860,0))," ") -> 6433000 | C188: =IF($A188<>0,INDEX('2.2 Daten'!E$9:E$860,MATCH('2.2'!$A188,'2.2 Daten'!$B$9:$B$860,0))) -> 8047 | D188: =IF($A188<>0,INDEX('2.2 Daten'!F$9:F$860,MATCH('2.2'!$A188,'2.2 Daten'!$B$9:$B$860,0))) -> 1558 | E188: =IF($A188<>0,INDEX('2.2 Daten'!G$9:G$860,MATCH('2.2'!$A188,'2.2 Daten'!$B$9:$B$860,0))) -> 1403 | F188: =IF($A188<>0,INDEX('2.2 Daten'!H$9:H$860,MATCH('2.2'!$A188,'2.2 Daten'!$B$9:$B$860,0))) -> 3954 | G188: =IF($A188<>0,INDEX('2.2 Daten'!I$9:I$860,MATCH('2.2'!$A188,'2.2 Daten'!$B$9:$B$860,0))) -> 1132 | H188: =IF($A188<>0,INDEX('2.2 Daten'!K$9:K$860,MATCH('2.2'!$A188,'2.2 Daten'!$B$9:$B$860,0))) -> 1.11837145 | I188: =IF($A188<>0,INDEX('2.2 Daten'!L$9:L$860,MATCH('2.2'!$A188,'2.2 Daten'!$B$9:$B$860,0))) -> 4.704301075 | J188: =IF($A188<>0,INDEX('2.2 Daten'!M$9:M$860,MATCH('2.2'!$A188,'2.2 Daten'!$B$9:$B$860,0))) -> 2.184996358 | K188: =IF($A188<>0,INDEX('2.2 Daten'!N$9:N$860,MATCH('2.2'!$A188,'2.2 Daten'!$B$9:$B$860,0))) -> -0.6532663317 | L188: =IF($A188<>0,INDEX('2.2 Daten'!O$9:O$860,MATCH('2.2'!$A188,'2.2 Daten'!$B$9:$B$860,0))) -> 1.342882722
A189: =CHOOSE('2.2 Daten'!$A$2,'2.2 Daten'!B611,'2.2 Daten'!B160,'2.2 Daten'!B177,'2.2 Daten'!B194,'2.2 Daten'!B197,'2.2 Daten'!B244,'2.2 Daten'!B248,'2.2 Daten'!B303,'2.2 Daten'!B331,'2.2 Daten'!B369,'2.2 Daten'!B415,'2.2 Daten'!B513,'2.2 Daten'!B521,'2.2 Daten'!B524,'2.2 Daten'!B544,'2.2 Daten'!B554,'2.2 Daten'!B569,'2.2 Daten'!B585,x) -> Hochtaunuskreis | B189: =IF($A189<>0,INDEX('2.2 Daten'!C$9:C$860,MATCH('2.2'!$A189,'2.2 Daten'!$B$9:$B$860,0))," ") -> 6434000 | C189: =IF($A189<>0,INDEX('2.2 Daten'!E$9:E$860,MATCH('2.2'!$A189,'2.2 Daten'!$B$9:$B$860,0))) -> 3954 | D189: =IF($A189<>0,INDEX('2.2 Daten'!F$9:F$860,MATCH('2.2'!$A189,'2.2 Daten'!$B$9:$B$860,0))) -> 709 | E189: =IF($A189<>0,INDEX('2.2 Daten'!G$9:G$860,MATCH('2.2'!$A189,'2.2 Daten'!$B$9:$B$860,0))) -> 746 | F189: =IF($A189<>0,INDEX('2.2 Daten'!H$9:H$860,MATCH('2.2'!$A189,'2.2 Daten'!$B$9:$B$860,0))) -> 1980 | G189: =IF($A189<>0,INDEX('2.2 Daten'!I$9:I$860,MATCH('2.2'!$A189,'2.2 Daten'!$B$9:$B$860,0))) -> 519 | H189: =IF($A189<>0,INDEX('2.2 Daten'!K$9:K$860,MATCH('2.2'!$A189,'2.2 Daten'!$B$9:$B$860,0))) -> 11.85289958 | I189: =IF($A189<>0,INDEX('2.2 Daten'!L$9:L$860,MATCH('2.2'!$A189,'2.2 Daten'!$B$9:$B$860,0))) -> 19.15966387 | J189: =IF($A189<>0,INDEX('2.2 Daten'!M$9:M$860,MATCH('2.2'!$A189,'2.2 Daten'!$B$9:$B$860,0))) -> 15.47987616 | K189: =IF($A189<>0,INDEX('2.2 Daten'!N$9:N$860,MATCH('2.2'!$A189,'2.2 Daten'!$B$9:$B$860,0))) -> 9.151047409 | L189: =IF($A189<>0,INDEX('2.2 Daten'!O$9:O$860,MATCH('2.2'!$A189,'2.2 Daten'!$B$9:$B$860,0))) -> 8.125
A190: =CHOOSE('2.2 Daten'!$A$2,'2.2 Daten'!B612,'2.2 Daten'!B161,'2.2 Daten'!B178,'2.2 Daten'!B195,'2.2 Daten'!B198,'2.2 Daten'!B245,'2.2 Daten'!B249,'2.2 Daten'!B304,'2.2 Daten'!B332,'2.2 Daten'!B370,'2.2 Daten'!B416,'2.2 Daten'!B514,'2.2 Daten'!B522,'2.2 Daten'!B525,'2.2 Daten'!B545,'2.2 Daten'!B555,'2.2 Daten'!B570,'2.2 Daten'!B586,x) -> Main-Kinzig-Kreis | B190: =IF($A190<>0,INDEX('2.2 Daten'!C$9:C$860,MATCH('2.2'!$A190,'2.2 Daten'!$B$9:$B$860,0))," ") -> 6435000 | C190: =IF($A190<>0,INDEX('2.2 Daten'!E$9:E$860,MATCH('2.2'!$A190,'2.2 Daten'!$B$9:$B$860,0))) -> 9519 | D190: =IF($A190<>0,INDEX('2.2 Daten'!F$9:F$860,MATCH('2.2'!$A190,'2.2 Daten'!$B$9:$B$860,0))) -> 1827 | E190: =IF($A190<>0,INDEX('2.2 Daten'!G$9:G$860,MATCH('2.2'!$A190,'2.2 Daten'!$B$9:$B$860,0))) -> 1720 | F190: =IF($A190<>0,INDEX('2.2 Daten'!H$9:H$860,MATCH('2.2'!$A190,'2.2 Daten'!$B$9:$B$860,0))) -> 4667 | G190: =IF($A190<>0,INDEX('2.2 Daten'!I$9:I$860,MATCH('2.2'!$A190,'2.2 Daten'!$B$9:$B$860,0))) -> 1305 | H190: =IF($A190<>0,INDEX('2.2 Daten'!K$9:K$860,MATCH('2.2'!$A190,'2.2 Daten'!$B$9:$B$860,0))) -> 7.974137931 | I190: =IF($A190<>0,INDEX('2.2 Daten'!L$9:L$860,MATCH('2.2'!$A190,'2.2 Daten'!$B$9:$B$860,0))) -> 13.97379913 | J190: =IF($A190<>0,INDEX('2.2 Daten'!M$9:M$860,MATCH('2.2'!$A190,'2.2 Daten'!$B$9:$B$860,0))) -> 11.47116008 | K190: =IF($A190<>0,INDEX('2.2 Daten'!N$9:N$860,MATCH('2.2'!$A190,'2.2 Daten'!$B$9:$B$860,0))) -> 6.406748746 | L190: =IF($A190<>0,INDEX('2.2 Daten'!O$9:O$860,MATCH('2.2'!$A190,'2.2 Daten'!$B$9:$B$860,0))) -> 1.635514019
A191: =CHOOSE('2.2 Daten'!$A$2,'2.2 Daten'!B613,'2.2 Daten'!B162,'2.2 Daten'!B179,'2.2 Daten'!B196,'2.2 Daten'!B199,'2.2 Daten'!B246,'2.2 Daten'!B250,'2.2 Daten'!B305,'2.2 Daten'!B333,'2.2 Daten'!B371,'2.2 Daten'!B417,'2.2 Daten'!B515,'2.2 Daten'!B523,'2.2 Daten'!B526,'2.2 Daten'!B546,'2.2 Daten'!B556,'2.2 Daten'!B571,'2.2 Daten'!B587,x) -> Main-Taunus-Kreis | B191: =IF($A191<>0,INDEX('2.2 Daten'!C$9:C$860,MATCH('2.2'!$A191,'2.2 Daten'!$B$9:$B$860,0))," ") -> 6436000 | C191: =IF($A191<>0,INDEX('2.2 Daten'!E$9:E$860,MATCH('2.2'!$A191,'2.2 Daten'!$B$9:$B$860,0))) -> 4101 | D191: =IF($A191<>0,INDEX('2.2 Daten'!F$9:F$860,MATCH('2.2'!$A191,'2.2 Daten'!$B$9:$B$860,0))) -> 769 | E191: =IF($A191<>0,INDEX('2.2 Daten'!G$9:G$860,MATCH('2.2'!$A191,'2.2 Daten'!$B$9:$B$860,0))) -> 743 | F191: =IF($A191<>0,INDEX('2.2 Daten'!H$9:H$860,MATCH('2.2'!$A191,'2.2 Daten'!$B$9:$B$860,0))) -> 2044 | G191: =IF($A191<>0,INDEX('2.2 Daten'!I$9:I$860,MATCH('2.2'!$A191,'2.2 Daten'!$B$9:$B$860,0))) -> 545 | H191: =IF($A191<>0,INDEX('2.2 Daten'!K$9:K$860,MATCH('2.2'!$A191,'2.2 Daten'!$B$9:$B$860,0))) -> 8.177261936 | I191: =IF($A191<>0,INDEX('2.2 Daten'!L$9:L$860,MATCH('2.2'!$A191,'2.2 Daten'!$B$9:$B$860,0))) -> 13.42182891 | J191: =IF($A191<>0,INDEX('2.2 Daten'!M$9:M$860,MATCH('2.2'!$A191,'2.2 Daten'!$B$9:$B$860,0))) -> 9.264705882 | K191: =IF($A191<>0,INDEX('2.2 Daten'!N$9:N$860,MATCH('2.2'!$A191,'2.2 Daten'!$B$9:$B$860,0))) -> 6.792058516 | L191: =IF($A191<>0,INDEX('2.2 Daten'!O$9:O$860,MATCH('2.2'!$A191,'2.2 Daten'!$B$9:$B$860,0))) -> 5.009633911
A192: =CHOOSE('2.2 Daten'!$A$2,'2.2 Daten'!B614,'2.2 Daten'!B163,'2.2 Daten'!B180,'2.2 Daten'!B197,'2.2 Daten'!B200,'2.2 Daten'!B247,'2.2 Daten'!B251,'2.2 Daten'!B306,'2.2 Daten'!B334,'2.2 Daten'!B372,'2.2 Daten'!B418,'2.2 Daten'!B516,'2.2 Daten'!B524,'2.2 Daten'!B527,'2.2 Daten'!B547,'2.2 Daten'!B557,'2.2 Daten'!B572,'2.2 Daten'!B588,x) -> Odenwaldkreis | B192: =IF($A192<>0,INDEX('2.2 Daten'!C$9:C$860,MATCH('2.2'!$A192,'2.2 Daten'!$B$9:$B$860,0))," ") -> 6437000 | C192: =IF($A192<>0,INDEX('2.2 Daten'!E$9:E$860,MATCH('2.2'!$A192,'2.2 Daten'!$B$9:$B$860,0))) -> 1929 | D192: =IF($A192<>0,INDEX('2.2 Daten'!F$9:F$860,MATCH('2.2'!$A192,'2.2 Daten'!$B$9:$B$860,0))) -> 344 | E192: =IF($A192<>0,INDEX('2.2 Daten'!G$9:G$860,MATCH('2.2'!$A192,'2.2 Daten'!$B$9:$B$860,0))) -> 333 | F192: =IF($A192<>0,INDEX('2.2 Daten'!H$9:H$860,MATCH('2.2'!$A192,'2.2 Daten'!$B$9:$B$860,0))) -> 962 | G192: =IF($A192<>0,INDEX('2.2 Daten'!I$9:I$860,MATCH('2.2'!$A192,'2.2 Daten'!$B$9:$B$860,0))) -> 290 | H192: =IF($A192<>0,INDEX('2.2 Daten'!K$9:K$860,MATCH('2.2'!$A192,'2.2 Daten'!$B$9:$B$860,0))) -> -0.0518134715 | I192: =IF($A192<>0,INDEX('2.2 Daten'!L$9:L$860,MATCH('2.2'!$A192,'2.2 Daten'!$B$9:$B$860,0))) -> 7.5 | J192: =IF($A192<>0,INDEX('2.2 Daten'!M$9:M$860,MATCH('2.2'!$A192,'2.2 Daten'!$B$9:$B$860,0))) -> 2.461538462 | K192: =IF($A192<>0,INDEX('2.2 Daten'!N$9:N$860,MATCH('2.2'!$A192,'2.2 Daten'!$B$9:$B$860,0))) -> -1.63599182 | L192: =IF($A192<>0,INDEX('2.2 Daten'!O$9:O$860,MATCH('2.2'!$A192,'2.2 Daten'!$B$9:$B$860,0))) -> -5.537459283
A193: =CHOOSE('2.2 Daten'!$A$2,'2.2 Daten'!B615,'2.2 Daten'!B164,'2.2 Daten'!B181,'2.2 Daten'!B198,'2.2 Daten'!B201,'2.2 Daten'!B248,'2.2 Daten'!B252,'2.2 Daten'!B307,'2.2 Daten'!B335,'2.2 Daten'!B373,'2.2 Daten'!B419,'2.2 Daten'!B517,'2.2 Daten'!B525,'2.2 Daten'!B528,'2.2 Daten'!B548,'2.2 Daten'!B558,'2.2 Daten'!B573,'2.2 Daten'!B589,x) -> Offenbach | B193: =IF($A193<>0,INDEX('2.2 Daten'!C$9:C$860,MATCH('2.2'!$A193,'2.2 Daten'!$B$9:$B$860,0))," ") -> 6438000 | C193: =IF($A193<>0,INDEX('2.2 Daten'!E$9:E$860,MATCH('2.2'!$A193,'2.2 Daten'!$B$9:$B$860,0))) -> 8573 | D193: =IF($A193<>0,INDEX('2.2 Daten'!F$9:F$860,MATCH('2.2'!$A193,'2.2 Daten'!$B$9:$B$860,0))) -> 1652 | E193: =IF($A193<>0,INDEX('2.2 Daten'!G$9:G$860,MATCH('2.2'!$A193,'2.2 Daten'!$B$9:$B$860,0))) -> 1465 | F193: =IF($A193<>0,INDEX('2.2 Daten'!H$9:H$860,MATCH('2.2'!$A193,'2.2 Daten'!$B$9:$B$860,0))) -> 4264 | G193: =IF($A193<>0,INDEX('2.2 Daten'!I$9:I$860,MATCH('2.2'!$A193,'2.2 Daten'!$B$9:$B$860,0))) -> 1192 | H193: =IF($A193<>0,INDEX('2.2 Daten'!K$9:K$860,MATCH('2.2'!$A193,'2.2 Daten'!$B$9:$B$860,0))) -> 1.192162417 | I193: =IF($A193<>0,INDEX('2.2 Daten'!L$9:L$860,MATCH('2.2'!$A193,'2.2 Daten'!$B$9:$B$860,0))) -> 7.412223667 | J193: =IF($A193<>0,INDEX('2.2 Daten'!M$9:M$860,MATCH('2.2'!$A193,'2.2 Daten'!$B$9:$B$860,0))) -> -0.2722940776 | K193: =IF($A193<>0,INDEX('2.2 Daten'!N$9:N$860,MATCH('2.2'!$A193,'2.2 Daten'!$B$9:$B$860,0))) -> -0.5828864537 | L193: =IF($A193<>0,INDEX('2.2 Daten'!O$9:O$860,MATCH('2.2'!$A193,'2.2 Daten'!$B$9:$B$860,0))) -> 1.360544218
A194: =CHOOSE('2.2 Daten'!$A$2,'2.2 Daten'!B616,'2.2 Daten'!B165,'2.2 Daten'!B182,'2.2 Daten'!B199,'2.2 Daten'!B202,'2.2 Daten'!B249,'2.2 Daten'!B253,'2.2 Daten'!B308,'2.2 Daten'!B336,'2.2 Daten'!B374,'2.2 Daten'!B420,'2.2 Daten'!B518,'2.2 Daten'!B526,'2.2 Daten'!B529,'2.2 Daten'!B549,'2.2 Daten'!B559,'2.2 Daten'!B574,'2.2 Daten'!B590,x) -> Rheingau-Taunus-Kreis | B194: =IF($A194<>0,INDEX('2.2 Daten'!C$9:C$860,MATCH('2.2'!$A194,'2.2 Daten'!$B$9:$B$860,0))," ") -> 6439000 | C194: =IF($A194<>0,INDEX('2.2 Daten'!E$9:E$860,MATCH('2.2'!$A194,'2.2 Daten'!$B$9:$B$860,0))) -> 3299 | D194: =IF($A194<>0,INDEX('2.2 Daten'!F$9:F$860,MATCH('2.2'!$A194,'2.2 Daten'!$B$9:$B$860,0))) -> 642 | E194: =IF($A194<>0,INDEX('2.2 Daten'!G$9:G$860,MATCH('2.2'!$A194,'2.2 Daten'!$B$9:$B$860,0))) -> 595 | F194: =IF($A194<>0,INDEX('2.2 Daten'!H$9:H$860,MATCH('2.2'!$A194,'2.2 Daten'!$B$9:$B$860,0))) -> 1651 | G194: =IF($A194<>0,INDEX('2.2 Daten'!I$9:I$860,MATCH('2.2'!$A194,'2.2 Daten'!$B$9:$B$860,0))) -> 411 | H194: =IF($A194<>0,INDEX('2.2 Daten'!K$9:K$860,MATCH('2.2'!$A194,'2.2 Daten'!$B$9:$B$860,0))) -> 12.17273036 | I194: =IF($A194<>0,INDEX('2.2 Daten'!L$9:L$860,MATCH('2.2'!$A194,'2.2 Daten'!$B$9:$B$860,0))) -> 22.28571429 | J194: =IF($A194<>0,INDEX('2.2 Daten'!M$9:M$860,MATCH('2.2'!$A194,'2.2 Daten'!$B$9:$B$860,0))) -> 6.440071556 | K194: =IF($A194<>0,INDEX('2.2 Daten'!N$9:N$860,MATCH('2.2'!$A194,'2.2 Daten'!$B$9:$B$860,0))) -> 13.00479124 | L194: =IF($A194<>0,INDEX('2.2 Daten'!O$9:O$860,MATCH('2.2'!$A194,'2.2 Daten'!$B$9:$B$860,0))) -> 3.787878788
A195: =CHOOSE('2.2 Daten'!$A$2,'2.2 Daten'!B617,'2.2 Daten'!B166,'2.2 Daten'!B183,'2.2 Daten'!B200,'2.2 Daten'!B203,'2.2 Daten'!B250,'2.2 Daten'!B254,'2.2 Daten'!B309,'2.2 Daten'!B337,'2.2 Daten'!B375,'2.2 Daten'!B421,'2.2 Daten'!B519,'2.2 Daten'!B527,'2.2 Daten'!B530,'2.2 Daten'!B550,'2.2 Daten'!B560,'2.2 Daten'!B575,'2.2 Daten'!B591,x) -> Wetteraukreis | B195: =IF($A195<>0,INDEX('2.2 Daten'!C$9:C$860,MATCH('2.2'!$A195,'2.2 Daten'!$B$9:$B$860,0))," ") -> 6440000 | C195: =IF($A195<>0,INDEX('2.2 Daten'!E$9:E$860,MATCH('2.2'!$A195,'2.2 Daten'!$B$9:$B$860,0))) -> 5514 | D195: =IF($A195<>0,INDEX('2.2 Daten'!F$9:F$860,MATCH('2.2'!$A195,'2.2 Daten'!$B$9:$B$860,0))) -> 1095 | E195: =IF($A195<>0,INDEX('2.2 Daten'!G$9:G$860,MATCH('2.2'!$A195,'2.2 Daten'!$B$9:$B$860,0))) -> 997 | F195: =IF($A195<>0,INDEX('2.2 Daten'!H$9:H$860,MATCH('2.2'!$A195,'2.2 Daten'!$B$9:$B$860,0))) -> 2634 | G195: =IF($A195<>0,INDEX('2.2 Daten'!I$9:I$860,MATCH('2.2'!$A195,'2.2 Daten'!$B$9:$B$860,0))) -> 788 | H195: =IF($A195<>0,INDEX('2.2 Daten'!K$9:K$860,MATCH('2.2'!$A195,'2.2 Daten'!$B$9:$B$860,0))) -> 5.774026472 | I195: =IF($A195<>0,INDEX('2.2 Daten'!L$9:L$860,MATCH('2.2'!$A195,'2.2 Daten'!$B$9:$B$860,0))) -> 8.523290387 | J195: =IF($A195<>0,INDEX('2.2 Daten'!M$9:M$860,MATCH('2.2'!$A195,'2.2 Daten'!$B$9:$B$860,0))) -> 7.551240561 | K195: =IF($A195<>0,INDEX('2.2 Daten'!N$9:N$860,MATCH('2.2'!$A195,'2.2 Daten'!$B$9:$B$860,0))) -> 5.402160864 | L195: =IF($A195<>0,INDEX('2.2 Daten'!O$9:O$860,MATCH('2.2'!$A195,'2.2 Daten'!$B$9:$B$860,0))) -> 1.285347044
A196: =CHOOSE('2.2 Daten'!$A$2,'2.2 Daten'!B618,'2.2 Daten'!B167,'2.2 Daten'!B184,'2.2 Daten'!B201,'2.2 Daten'!B204,'2.2 Daten'!B251,'2.2 Daten'!B255,'2.2 Daten'!B310,'2.2 Daten'!B338,'2.2 Daten'!B376,'2.2 Daten'!B422,'2.2 Daten'!B520,'2.2 Daten'!B528,'2.2 Daten'!B531,'2.2 Daten'!B551,'2.2 Daten'!B561,'2.2 Daten'!B576,'2.2 Daten'!B592,x) -> Gießen | B196: =IF($A196<>0,INDEX('2.2 Daten'!C$9:C$860,MATCH('2.2'!$A196,'2.2 Daten'!$B$9:$B$860,0))," ") -> 6531000 | C196: =IF($A196<>0,INDEX('2.2 Daten'!E$9:E$860,MATCH('2.2'!$A196,'2.2 Daten'!$B$9:$B$860,0))) -> 6611 | D196: =IF($A196<>0,INDEX('2.2 Daten'!F$9:F$860,MATCH('2.2'!$A196,'2.2 Daten'!$B$9:$B$860,0))) -> 1366 | E196: =IF($A196<>0,INDEX('2.2 Daten'!G$9:G$860,MATCH('2.2'!$A196,'2.2 Daten'!$B$9:$B$860,0))) -> 1194 | F196: =IF($A196<>0,INDEX('2.2 Daten'!H$9:H$860,MATCH('2.2'!$A196,'2.2 Daten'!$B$9:$B$860,0))) -> 3177 | G196: =IF($A196<>0,INDEX('2.2 Daten'!I$9:I$860,MATCH('2.2'!$A196,'2.2 Daten'!$B$9:$B$860,0))) -> 874 | H196: =IF($A196<>0,INDEX('2.2 Daten'!K$9:K$860,MATCH('2.2'!$A196,'2.2 Daten'!$B$9:$B$860,0))) -> 11.20269134 | I196: =IF($A196<>0,INDEX('2.2 Daten'!L$9:L$860,MATCH('2.2'!$A196,'2.2 Daten'!$B$9:$B$860,0))) -> 16.65243382 | J196: =IF($A196<>0,INDEX('2.2 Daten'!M$9:M$860,MATCH('2.2'!$A196,'2.2 Daten'!$B$9:$B$860,0))) -> 8.054298643 | K196: =IF($A196<>0,INDEX('2.2 Daten'!N$9:N$860,MATCH('2.2'!$A196,'2.2 Daten'!$B$9:$B$860,0))) -> 10.3125 | L196: =IF($A196<>0,INDEX('2.2 Daten'!O$9:O$860,MATCH('2.2'!$A196,'2.2 Daten'!$B$9:$B$860,0))) -> 10.77313054
A197: =CHOOSE('2.2 Daten'!$A$2,'2.2 Daten'!B619,'2.2 Daten'!B168,'2.2 Daten'!B185,'2.2 Daten'!B202,'2.2 Daten'!B205,'2.2 Daten'!B252,'2.2 Daten'!B256,'2.2 Daten'!B311,'2.2 Daten'!B339,'2.2 Daten'!B377,'2.2 Daten'!B423,'2.2 Daten'!B521,'2.2 Daten'!B529,'2.2 Daten'!B532,'2.2 Daten'!B552,'2.2 Daten'!B562,'2.2 Daten'!B577,'2.2 Daten'!B593,x) -> Lahn-Dill-Kreis | B197: =IF($A197<>0,INDEX('2.2 Daten'!C$9:C$860,MATCH('2.2'!$A197,'2.2 Daten'!$B$9:$B$860,0))," ") -> 6532000 | C197: =IF($A197<>0,INDEX('2.2 Daten'!E$9:E$860,MATCH('2.2'!$A197,'2.2 Daten'!$B$9:$B$860,0))) -> . | D197: =IF($A197<>0,INDEX('2.2 Daten'!F$9:F$860,MATCH('2.2'!$A197,'2.2 Daten'!$B$9:$B$860,0))) -> . | E197: =IF($A197<>0,INDEX('2.2 Daten'!G$9:G$860,MATCH('2.2'!$A197,'2.2 Daten'!$B$9:$B$860,0))) -> . | F197: =IF($A197<>0,INDEX('2.2 Daten'!H$9:H$860,MATCH('2.2'!$A197,'2.2 Daten'!$B$9:$B$860,0))) -> . | G197: =IF($A197<>0,INDEX('2.2 Daten'!I$9:I$860,MATCH('2.2'!$A197,'2.2 Daten'!$B$9:$B$860,0))) -> . | H197: =IF($A197<>0,INDEX('2.2 Daten'!K$9:K$860,MATCH('2.2'!$A197,'2.2 Daten'!$B$9:$B$860,0))) -> . | I197: =IF($A197<>0,INDEX('2.2 Daten'!L$9:L$860,MATCH('2.2'!$A197,'2.2 Daten'!$B$9:$B$860,0))) -> . | J197: =IF($A197<>0,INDEX('2.2 Daten'!M$9:M$860,MATCH('2.2'!$A197,'2.2 Daten'!$B$9:$B$860,0))) -> . | K197: =IF($A197<>0,INDEX('2.2 Daten'!N$9:N$860,MATCH('2.2'!$A197,'2.2 Daten'!$B$9:$B$860,0))) -> . | L197: =IF($A197<>0,INDEX('2.2 Daten'!O$9:O$860,MATCH('2.2'!$A197,'2.2 Daten'!$B$9:$B$860,0))) -> .
A198: =CHOOSE('2.2 Daten'!$A$2,'2.2 Daten'!B620,'2.2 Daten'!B169,'2.2 Daten'!B186,'2.2 Daten'!B203,'2.2 Daten'!B206,'2.2 Daten'!B253,'2.2 Daten'!B257,'2.2 Daten'!B312,'2.2 Daten'!B340,'2.2 Daten'!B378,'2.2 Daten'!B424,'2.2 Daten'!B522,'2.2 Daten'!B530,'2.2 Daten'!B533,'2.2 Daten'!B553,'2.2 Daten'!B563,'2.2 Daten'!B578,'2.2 Daten'!B594,x) -> Limburg-Weilburg | B198: =IF($A198<>0,INDEX('2.2 Daten'!C$9:C$860,MATCH('2.2'!$A198,'2.2 Daten'!$B$9:$B$860,0))," ") -> 6533000 | C198: =IF($A198<>0,INDEX('2.2 Daten'!E$9:E$860,MATCH('2.2'!$A198,'2.2 Daten'!$B$9:$B$860,0))) -> 4263 | D198: =IF($A198<>0,INDEX('2.2 Daten'!F$9:F$860,MATCH('2.2'!$A198,'2.2 Daten'!$B$9:$B$860,0))) -> 820 | E198: =IF($A198<>0,INDEX('2.2 Daten'!G$9:G$860,MATCH('2.2'!$A198,'2.2 Daten'!$B$9:$B$860,0))) -> 763 | F198: =IF($A198<>0,INDEX('2.2 Daten'!H$9:H$860,MATCH('2.2'!$A198,'2.2 Daten'!$B$9:$B$860,0))) -> 2105 | G198: =IF($A198<>0,INDEX('2.2 Daten'!I$9:I$860,MATCH('2.2'!$A198,'2.2 Daten'!$B$9:$B$860,0))) -> 575 | H198: =IF($A198<>0,INDEX('2.2 Daten'!K$9:K$860,MATCH('2.2'!$A198,'2.2 Daten'!$B$9:$B$860,0))) -> 9.33572711 | I198: =IF($A198<>0,INDEX('2.2 Daten'!L$9:L$860,MATCH('2.2'!$A198,'2.2 Daten'!$B$9:$B$860,0))) -> 19.01306241 | J198: =IF($A198<>0,INDEX('2.2 Daten'!M$9:M$860,MATCH('2.2'!$A198,'2.2 Daten'!$B$9:$B$860,0))) -> 9.469153515 | K198: =IF($A198<>0,INDEX('2.2 Daten'!N$9:N$860,MATCH('2.2'!$A198,'2.2 Daten'!$B$9:$B$860,0))) -> 6.313131313 | L198: =IF($A198<>0,INDEX('2.2 Daten'!O$9:O$860,MATCH('2.2'!$A198,'2.2 Daten'!$B$9:$B$860,0))) -> 7.879924953
A199: =CHOOSE('2.2 Daten'!$A$2,'2.2 Daten'!B621,'2.2 Daten'!B170,'2.2 Daten'!B187,'2.2 Daten'!B204,'2.2 Daten'!B207,'2.2 Daten'!B254,'2.2 Daten'!B258,'2.2 Daten'!B313,'2.2 Daten'!B341,'2.2 Daten'!B379,'2.2 Daten'!B425,'2.2 Daten'!B523,'2.2 Daten'!B531,'2.2 Daten'!B534,'2.2 Daten'!B554,'2.2 Daten'!B564,'2.2 Daten'!B579,'2.2 Daten'!B595,x) -> Marburg-Biedenkopf | B199: =IF($A199<>0,INDEX('2.2 Daten'!C$9:C$860,MATCH('2.2'!$A199,'2.2 Daten'!$B$9:$B$860,0))," ") -> 6534000 | C199: =IF($A199<>0,INDEX('2.2 Daten'!E$9:E$860,MATCH('2.2'!$A199,'2.2 Daten'!$B$9:$B$860,0))) -> 4736 | D199: =IF($A199<>0,INDEX('2.2 Daten'!F$9:F$860,MATCH('2.2'!$A199,'2.2 Daten'!$B$9:$B$860,0))) -> 964 | E199: =IF($A199<>0,INDEX('2.2 Daten'!G$9:G$860,MATCH('2.2'!$A199,'2.2 Daten'!$B$9:$B$860,0))) -> 865 | F199: =IF($A199<>0,INDEX('2.2 Daten'!H$9:H$860,MATCH('2.2'!$A199,'2.2 Daten'!$B$9:$B$860,0))) -> 2362 | G199: =IF($A199<>0,INDEX('2.2 Daten'!I$9:I$860,MATCH('2.2'!$A199,'2.2 Daten'!$B$9:$B$860,0))) -> 545 | H199: =IF($A199<>0,INDEX('2.2 Daten'!K$9:K$860,MATCH('2.2'!$A199,'2.2 Daten'!$B$9:$B$860,0))) -> 11.27819549 | I199: =IF($A199<>0,INDEX('2.2 Daten'!L$9:L$860,MATCH('2.2'!$A199,'2.2 Daten'!$B$9:$B$860,0))) -> 16.42512077 | J199: =IF($A199<>0,INDEX('2.2 Daten'!M$9:M$860,MATCH('2.2'!$A199,'2.2 Daten'!$B$9:$B$860,0))) -> 10.1910828 | K199: =IF($A199<>0,INDEX('2.2 Daten'!N$9:N$860,MATCH('2.2'!$A199,'2.2 Daten'!$B$9:$B$860,0))) -> 11.15294118 | L199: =IF($A199<>0,INDEX('2.2 Daten'!O$9:O$860,MATCH('2.2'!$A199,'2.2 Daten'!$B$9:$B$860,0))) -> 5.212355212
A200: =CHOOSE('2.2 Daten'!$A$2,'2.2 Daten'!B622,'2.2 Daten'!B171,'2.2 Daten'!B188,'2.2 Daten'!B205,'2.2 Daten'!B208,'2.2 Daten'!B255,'2.2 Daten'!B259,'2.2 Daten'!B314,'2.2 Daten'!B342,'2.2 Daten'!B380,'2.2 Daten'!B426,'2.2 Daten'!B524,'2.2 Daten'!B532,'2.2 Daten'!B535,'2.2 Daten'!B555,'2.2 Daten'!B565,'2.2 Daten'!B580,'2.2 Daten'!B596,x) -> Vogelsbergkreis | B200: =IF($A200<>0,INDEX('2.2 Daten'!C$9:C$860,MATCH('2.2'!$A200,'2.2 Daten'!$B$9:$B$860,0))," ") -> 6535000 | C200: =IF($A200<>0,INDEX('2.2 Daten'!E$9:E$860,MATCH('2.2'!$A200,'2.2 Daten'!$B$9:$B$860,0))) -> 1674 | D200: =IF($A200<>0,INDEX('2.2 Daten'!F$9:F$860,MATCH('2.2'!$A200,'2.2 Daten'!$B$9:$B$860,0))) -> 372 | E200: =IF($A200<>0,INDEX('2.2 Daten'!G$9:G$860,MATCH('2.2'!$A200,'2.2 Daten'!$B$9:$B$860,0))) -> 309 | F200: =IF($A200<>0,INDEX('2.2 Daten'!H$9:H$860,MATCH('2.2'!$A200,'2.2 Daten'!$B$9:$B$860,0))) -> 785 | G200: =IF($A200<>0,INDEX('2.2 Daten'!I$9:I$860,MATCH('2.2'!$A200,'2.2 Daten'!$B$9:$B$860,0))) -> 208 | H200: =IF($A200<>0,INDEX('2.2 Daten'!K$9:K$860,MATCH('2.2'!$A200,'2.2 Daten'!$B$9:$B$860,0))) -> 8.560311284 | I200: =IF($A200<>0,INDEX('2.2 Daten'!L$9:L$860,MATCH('2.2'!$A200,'2.2 Daten'!$B$9:$B$860,0))) -> 21.17263844 | J200: =IF($A200<>0,INDEX('2.2 Daten'!M$9:M$860,MATCH('2.2'!$A200,'2.2 Daten'!$B$9:$B$860,0))) -> 4.04040404 | K200: =IF($A200<>0,INDEX('2.2 Daten'!N$9:N$860,MATCH('2.2'!$A200,'2.2 Daten'!$B$9:$B$860,0))) -> 8.126721763 | L200: =IF($A200<>0,INDEX('2.2 Daten'!O$9:O$860,MATCH('2.2'!$A200,'2.2 Daten'!$B$9:$B$860,0))) -> -1.886792453
A201: =CHOOSE('2.2 Daten'!$A$2,'2.2 Daten'!B623,'2.2 Daten'!B172,'2.2 Daten'!B189,'2.2 Daten'!B206,'2.2 Daten'!B209,'2.2 Daten'!B256,'2.2 Daten'!B260,'2.2 Daten'!B315,'2.2 Daten'!B343,'2.2 Daten'!B381,'2.2 Daten'!B427,'2.2 Daten'!B525,'2.2 Daten'!B533,'2.2 Daten'!B536,'2.2 Daten'!B556,'2.2 Daten'!B566,'2.2 Daten'!B581,'2.2 Daten'!B597,x) -> Kassel, documenta-Stadt | B201: =IF($A201<>0,INDEX('2.2 Daten'!C$9:C$860,MATCH('2.2'!$A201,'2.2 Daten'!$B$9:$B$860,0))," ") -> 6611000 | C201: =IF($A201<>0,INDEX('2.2 Daten'!E$9:E$860,MATCH('2.2'!$A201,'2.2 Daten'!$B$9:$B$860,0))) -> 8232 | D201: =IF($A201<>0,INDEX('2.2 Daten'!F$9:F$860,MATCH('2.2'!$A201,'2.2 Daten'!$B$9:$B$860,0))) -> 1754 | E201: =IF($A201<>0,INDEX('2.2 Daten'!G$9:G$860,MATCH('2.2'!$A201,'2.2 Daten'!$B$9:$B$860,0))) -> 1589 | F201: =IF($A201<>0,INDEX('2.2 Daten'!H$9:H$860,MATCH('2.2'!$A201,'2.2 Daten'!$B$9:$B$860,0))) -> 3861 | G201: =IF($A201<>0,INDEX('2.2 Daten'!I$9:I$860,MATCH('2.2'!$A201,'2.2 Daten'!$B$9:$B$860,0))) -> 1028 | H201: =IF($A201<>0,INDEX('2.2 Daten'!K$9:K$860,MATCH('2.2'!$A201,'2.2 Daten'!$B$9:$B$860,0))) -> 6.687402799 | I201: =IF($A201<>0,INDEX('2.2 Daten'!L$9:L$860,MATCH('2.2'!$A201,'2.2 Daten'!$B$9:$B$860,0))) -> 11.93363114 | J201: =IF($A201<>0,INDEX('2.2 Daten'!M$9:M$860,MATCH('2.2'!$A201,'2.2 Daten'!$B$9:$B$860,0))) -> 11.11888112 | K201: =IF($A201<>0,INDEX('2.2 Daten'!N$9:N$860,MATCH('2.2'!$A201,'2.2 Daten'!$B$9:$B$860,0))) -> 3.957996769 | L201: =IF($A201<>0,INDEX('2.2 Daten'!O$9:O$860,MATCH('2.2'!$A201,'2.2 Daten'!$B$9:$B$860,0))) -> 2.288557214
A202: =CHOOSE('2.2 Daten'!$A$2,'2.2 Daten'!B624,'2.2 Daten'!B173,'2.2 Daten'!B190,'2.2 Daten'!B207,'2.2 Daten'!B210,'2.2 Daten'!B257,'2.2 Daten'!B261,'2.2 Daten'!B316,'2.2 Daten'!B344,'2.2 Daten'!B382,'2.2 Daten'!B428,'2.2 Daten'!B526,'2.2 Daten'!B534,'2.2 Daten'!B537,'2.2 Daten'!B557,'2.2 Daten'!B567,'2.2 Daten'!B582,'2.2 Daten'!B598,x) -> Fulda | B202: =IF($A202<>0,INDEX('2.2 Daten'!C$9:C$860,MATCH('2.2'!$A202,'2.2 Daten'!$B$9:$B$860,0))," ") -> 6631000 | C202: =IF($A202<>0,INDEX('2.2 Daten'!E$9:E$860,MATCH('2.2'!$A202,'2.2 Daten'!$B$9:$B$860,0))) -> 3476 | D202: =IF($A202<>0,INDEX('2.2 Daten'!F$9:F$860,MATCH('2.2'!$A202,'2.2 Daten'!$B$9:$B$860,0))) -> 733 | E202: =IF($A202<>0,INDEX('2.2 Daten'!G$9:G$860,MATCH('2.2'!$A202,'2.2 Daten'!$B$9:$B$860,0))) -> 610 | F202: =IF($A202<>0,INDEX('2.2 Daten'!H$9:H$860,MATCH('2.2'!$A202,'2.2 Daten'!$B$9:$B$860,0))) -> 1691 | G202: =IF($A202<>0,INDEX('2.2 Daten'!I$9:I$860,MATCH('2.2'!$A202,'2.2 Daten'!$B$9:$B$860,0))) -> 442 | H202: =IF($A202<>0,INDEX('2.2 Daten'!K$9:K$860,MATCH('2.2'!$A202,'2.2 Daten'!$B$9:$B$860,0))) -> 9.411394397 | I202: =IF($A202<>0,INDEX('2.2 Daten'!L$9:L$860,MATCH('2.2'!$A202,'2.2 Daten'!$B$9:$B$860,0))) -> 27.47826087 | J202: =IF($A202<>0,INDEX('2.2 Daten'!M$9:M$860,MATCH('2.2'!$A202,'2.2 Daten'!$B$9:$B$860,0))) -> 13.17254174 | K202: =IF($A202<>0,INDEX('2.2 Daten'!N$9:N$860,MATCH('2.2'!$A202,'2.2 Daten'!$B$9:$B$860,0))) -> 5.031055901 | L202: =IF($A202<>0,INDEX('2.2 Daten'!O$9:O$860,MATCH('2.2'!$A202,'2.2 Daten'!$B$9:$B$860,0))) -> -2.428256071
A203: =CHOOSE('2.2 Daten'!$A$2,'2.2 Daten'!B625,'2.2 Daten'!B174,'2.2 Daten'!B191,'2.2 Daten'!B208,'2.2 Daten'!B211,'2.2 Daten'!B258,'2.2 Daten'!B262,'2.2 Daten'!B317,'2.2 Daten'!B345,'2.2 Daten'!B383,'2.2 Daten'!B429,'2.2 Daten'!B527,'2.2 Daten'!B535,'2.2 Daten'!B538,'2.2 Daten'!B558,'2.2 Daten'!B568,'2.2 Daten'!B583,'2.2 Daten'!B599,x) -> Hersfeld-Rotenburg | B203: =IF($A203<>0,INDEX('2.2 Daten'!C$9:C$860,MATCH('2.2'!$A203,'2.2 Daten'!$B$9:$B$860,0))," ") -> 6632000 | C203: =IF($A203<>0,INDEX('2.2 Daten'!E$9:E$860,MATCH('2.2'!$A203,'2.2 Daten'!$B$9:$B$860,0))) -> 2268 | D203: =IF($A203<>0,INDEX('2.2 Daten'!F$9:F$860,MATCH('2.2'!$A203,'2.2 Daten'!$B$9:$B$860,0))) -> 463 | E203: =IF($A203<>0,INDEX('2.2 Daten'!G$9:G$860,MATCH('2.2'!$A203,'2.2 Daten'!$B$9:$B$860,0))) -> 431 | F203: =IF($A203<>0,INDEX('2.2 Daten'!H$9:H$860,MATCH('2.2'!$A203,'2.2 Daten'!$B$9:$B$860,0))) -> 1114 | G203: =IF($A203<>0,INDEX('2.2 Daten'!I$9:I$860,MATCH('2.2'!$A203,'2.2 Daten'!$B$9:$B$860,0))) -> 260 | H203: =IF($A203<>0,INDEX('2.2 Daten'!K$9:K$860,MATCH('2.2'!$A203,'2.2 Daten'!$B$9:$B$860,0))) -> 7.692307692 | I203: =IF($A203<>0,INDEX('2.2 Daten'!L$9:L$860,MATCH('2.2'!$A203,'2.2 Daten'!$B$9:$B$860,0))) -> 15.46134663 | J203: =IF($A203<>0,INDEX('2.2 Daten'!M$9:M$860,MATCH('2.2'!$A203,'2.2 Daten'!$B$9:$B$860,0))) -> 8.291457286 | K203: =IF($A203<>0,INDEX('2.2 Daten'!N$9:N$860,MATCH('2.2'!$A203,'2.2 Daten'!$B$9:$B$860,0))) -> 10.18793274 | L203: =IF($A203<>0,INDEX('2.2 Daten'!O$9:O$860,MATCH('2.2'!$A203,'2.2 Daten'!$B$9:$B$860,0))) -> -12.16216216
A204: =CHOOSE('2.2 Daten'!$A$2,'2.2 Daten'!B626,'2.2 Daten'!B175,'2.2 Daten'!B192,'2.2 Daten'!B209,'2.2 Daten'!B212,'2.2 Daten'!B259,'2.2 Daten'!B263,'2.2 Daten'!B318,'2.2 Daten'!B346,'2.2 Daten'!B384,'2.2 Daten'!B430,'2.2 Daten'!B528,'2.2 Daten'!B536,'2.2 Daten'!B539,'2.2 Daten'!B559,'2.2 Daten'!B569,'2.2 Daten'!B584,'2.2 Daten'!B600,x) -> Kassel | B204: =IF($A204<>0,INDEX('2.2 Daten'!C$9:C$860,MATCH('2.2'!$A204,'2.2 Daten'!$B$9:$B$860,0))," ") -> 6633000 | C204: =IF($A204<>0,INDEX('2.2 Daten'!E$9:E$860,MATCH('2.2'!$A204,'2.2 Daten'!$B$9:$B$860,0))) -> 4124 | D204: =IF($A204<>0,INDEX('2.2 Daten'!F$9:F$860,MATCH('2.2'!$A204,'2.2 Daten'!$B$9:$B$860,0))) -> 846 | E204: =IF($A204<>0,INDEX('2.2 Daten'!G$9:G$860,MATCH('2.2'!$A204,'2.2 Daten'!$B$9:$B$860,0))) -> 749 | F204: =IF($A204<>0,INDEX('2.2 Daten'!H$9:H$860,MATCH('2.2'!$A204,'2.2 Daten'!$B$9:$B$860,0))) -> 2004 | G204: =IF($A204<>0,INDEX('2.2 Daten'!I$9:I$860,MATCH('2.2'!$A204,'2.2 Daten'!$B$9:$B$860,0))) -> 525 | H204: =IF($A204<>0,INDEX('2.2 Daten'!K$9:K$860,MATCH('2.2'!$A204,'2.2 Daten'!$B$9:$B$860,0))) -> 11.15902965 | I204: =IF($A204<>0,INDEX('2.2 Daten'!L$9:L$860,MATCH('2.2'!$A204,'2.2 Daten'!$B$9:$B$860,0))) -> 21.72661871 | J204: =IF($A204<>0,INDEX('2.2 Daten'!M$9:M$860,MATCH('2.2'!$A204,'2.2 Daten'!$B$9:$B$860,0))) -> 11.12759644 | K204: =IF($A204<>0,INDEX('2.2 Daten'!N$9:N$860,MATCH('2.2'!$A204,'2.2 Daten'!$B$9:$B$860,0))) -> 9.090909091 | L204: =IF($A204<>0,INDEX('2.2 Daten'!O$9:O$860,MATCH('2.2'!$A204,'2.2 Daten'!$B$9:$B$860,0))) -> 4.166666667
A205: =CHOOSE('2.2 Daten'!$A$2,'2.2 Daten'!B627,'2.2 Daten'!B176,'2.2 Daten'!B193,'2.2 Daten'!B210,'2.2 Daten'!B213,'2.2 Daten'!B260,'2.2 Daten'!B264,'2.2 Daten'!B319,'2.2 Daten'!B347,'2.2 Daten'!B385,'2.2 Daten'!B431,'2.2 Daten'!B529,'2.2 Daten'!B537,'2.2 Daten'!B540,'2.2 Daten'!B560,'2.2 Daten'!B570,'2.2 Daten'!B585,'2.2 Daten'!B601,x) -> Schwalm-Eder-Kreis | B205: =IF($A205<>0,INDEX('2.2 Daten'!C$9:C$860,MATCH('2.2'!$A205,'2.2 Daten'!$B$9:$B$860,0))," ") -> 6634000 | C205: =IF($A205<>0,INDEX('2.2 Daten'!E$9:E$860,MATCH('2.2'!$A205,'2.2 Daten'!$B$9:$B$860,0))) -> 3110 | D205: =IF($A205<>0,INDEX('2.2 Daten'!F$9:F$860,MATCH('2.2'!$A205,'2.2 Daten'!$B$9:$B$860,0))) -> 643 | E205: =IF($A205<>0,INDEX('2.2 Daten'!G$9:G$860,MATCH('2.2'!$A205,'2.2 Daten'!$B$9:$B$860,0))) -> 593 | F205: =IF($A205<>0,INDEX('2.2 Daten'!H$9:H$860,MATCH('2.2'!$A205,'2.2 Daten'!$B$9:$B$860,0))) -> 1472 | G205: =IF($A205<>0,INDEX('2.2 Daten'!I$9:I$860,MATCH('2.2'!$A205,'2.2 Daten'!$B$9:$B$860,0))) -> 402 | H205: =IF($A205<>0,INDEX('2.2 Daten'!K$9:K$860,MATCH('2.2'!$A205,'2.2 Daten'!$B$9:$B$860,0))) -> 8.249216847 | I205: =IF($A205<>0,INDEX('2.2 Daten'!L$9:L$860,MATCH('2.2'!$A205,'2.2 Daten'!$B$9:$B$860,0))) -> 14.61675579 | J205: =IF($A205<>0,INDEX('2.2 Daten'!M$9:M$860,MATCH('2.2'!$A205,'2.2 Daten'!$B$9:$B$860,0))) -> 4.955752212 | K205: =IF($A205<>0,INDEX('2.2 Daten'!N$9:N$860,MATCH('2.2'!$A205,'2.2 Daten'!$B$9:$B$860,0))) -> 5.595408895 | L205: =IF($A205<>0,INDEX('2.2 Daten'!O$9:O$860,MATCH('2.2'!$A205,'2.2 Daten'!$B$9:$B$860,0))) -> 13.88101983
A206: =CHOOSE('2.2 Daten'!$A$2,'2.2 Daten'!B628,'2.2 Daten'!B177,'2.2 Daten'!B194,'2.2 Daten'!B211,'2.2 Daten'!B214,'2.2 Daten'!B261,'2.2 Daten'!B265,'2.2 Daten'!B320,'2.2 Daten'!B348,'2.2 Daten'!B386,'2.2 Daten'!B432,'2.2 Daten'!B530,'2.2 Daten'!B538,'2.2 Daten'!B541,'2.2 Daten'!B561,'2.2 Daten'!B571,'2.2 Daten'!B586,'2.2 Daten'!B602,x) -> Waldeck-Frankenberg | B206: =IF($A206<>0,INDEX('2.2 Daten'!C$9:C$860,MATCH('2.2'!$A206,'2.2 Daten'!$B$9:$B$860,0))," ") -> 6635000 | C206: =IF($A206<>0,INDEX('2.2 Daten'!E$9:E$860,MATCH('2.2'!$A206,'2.2 Daten'!$B$9:$B$860,0))) -> 2856 | D206: =IF($A206<>0,INDEX('2.2 Daten'!F$9:F$860,MATCH('2.2'!$A206,'2.2 Daten'!$B$9:$B$860,0))) -> 609 | E206: =IF($A206<>0,INDEX('2.2 Daten'!G$9:G$860,MATCH('2.2'!$A206,'2.2 Daten'!$B$9:$B$860,0))) -> 538 | F206: =IF($A206<>0,INDEX('2.2 Daten'!H$9:H$860,MATCH('2.2'!$A206,'2.2 Daten'!$B$9:$B$860,0))) -> 1358 | G206: =IF($A206<>0,INDEX('2.2 Daten'!I$9:I$860,MATCH('2.2'!$A206,'2.2 Daten'!$B$9:$B$860,0))) -> 351 | H206: =IF($A206<>0,INDEX('2.2 Daten'!K$9:K$860,MATCH('2.2'!$A206,'2.2 Daten'!$B$9:$B$860,0))) -> 19.547928 | I206: =IF($A206<>0,INDEX('2.2 Daten'!L$9:L$860,MATCH('2.2'!$A206,'2.2 Daten'!$B$9:$B$860,0))) -> 28.48101266 | J206: =IF($A206<>0,INDEX('2.2 Daten'!M$9:M$860,MATCH('2.2'!$A206,'2.2 Daten'!$B$9:$B$860,0))) -> 24.82598608 | K206: =IF($A206<>0,INDEX('2.2 Daten'!N$9:N$860,MATCH('2.2'!$A206,'2.2 Daten'!$B$9:$B$860,0))) -> 17.98436142 | L206: =IF($A206<>0,INDEX('2.2 Daten'!O$9:O$860,MATCH('2.2'!$A206,'2.2 Daten'!$B$9:$B$860,0))) -> 5.405405405
A207: =CHOOSE('2.2 Daten'!$A$2,'2.2 Daten'!B629,'2.2 Daten'!B178,'2.2 Daten'!B195,'2.2 Daten'!B212,'2.2 Daten'!B215,'2.2 Daten'!B262,'2.2 Daten'!B266,'2.2 Daten'!B321,'2.2 Daten'!B349,'2.2 Daten'!B387,'2.2 Daten'!B433,'2.2 Daten'!B531,'2.2 Daten'!B539,'2.2 Daten'!B542,'2.2 Daten'!B562,'2.2 Daten'!B572,'2.2 Daten'!B587,'2.2 Daten'!B603,x) -> Werra-Meißner-Kreis | B207: =IF($A207<>0,INDEX('2.2 Daten'!C$9:C$860,MATCH('2.2'!$A207,'2.2 Daten'!$B$9:$B$860,0))," ") -> 6636000 | C207: =IF($A207<>0,INDEX('2.2 Daten'!E$9:E$860,MATCH('2.2'!$A207,'2.2 Daten'!$B$9:$B$860,0))) -> 2410 | D207: =IF($A207<>0,INDEX('2.2 Daten'!F$9:F$860,MATCH('2.2'!$A207,'2.2 Daten'!$B$9:$B$860,0))) -> 537 | E207: =IF($A207<>0,INDEX('2.2 Daten'!G$9:G$860,MATCH('2.2'!$A207,'2.2 Daten'!$B$9:$B$860,0))) -> 454 | F207: =IF($A207<>0,INDEX('2.2 Daten'!H$9:H$860,MATCH('2.2'!$A207,'2.2 Daten'!$B$9:$B$860,0))) -> 1120 | G207: =IF($A207<>0,INDEX('2.2 Daten'!I$9:I$860,MATCH('2.2'!$A207,'2.2 Daten'!$B$9:$B$860,0))) -> 299 | H207: =IF($A207<>0,INDEX('2.2 Daten'!K$9:K$860,MATCH('2.2'!$A207,'2.2 Daten'!$B$9:$B$860,0))) -> 12.72217025 | I207: =IF($A207<>0,INDEX('2.2 Daten'!L$9:L$860,MATCH('2.2'!$A207,'2.2 Daten'!$B$9:$B$860,0))) -> 23.16513761 | J207: =IF($A207<>0,INDEX('2.2 Daten'!M$9:M$860,MATCH('2.2'!$A207,'2.2 Daten'!$B$9:$B$860,0))) -> 14.07035176 | K207: =IF($A207<>0,INDEX('2.2 Daten'!N$9:N$860,MATCH('2.2'!$A207,'2.2 Daten'!$B$9:$B$860,0))) -> 8.632395732 | L207: =IF($A207<>0,INDEX('2.2 Daten'!O$9:O$860,MATCH('2.2'!$A207,'2.2 Daten'!$B$9:$B$860,0))) -> 9.523809524
A208: =CHOOSE('2.2 Daten'!$A$2,'2.2 Daten'!B630,'2.2 Daten'!B179,'2.2 Daten'!B196,'2.2 Daten'!B213,'2.2 Daten'!B216,'2.2 Daten'!B263,'2.2 Daten'!B267,'2.2 Daten'!B322,'2.2 Daten'!B350,'2.2 Daten'!B388,'2.2 Daten'!B434,'2.2 Daten'!B532,'2.2 Daten'!B540,'2.2 Daten'!B543,'2.2 Daten'!B563,'2.2 Daten'!B573,'2.2 Daten'!B588,'2.2 Daten'!B604,x) -> 0 | B208: =IF($A208<>0,INDEX('2.2 Daten'!C$9:C$860,MATCH('2.2'!$A208,'2.2 Daten'!$B$9:$B$860,0))," ") ->  | C208: =IF($A208<>0,INDEX('2.2 Daten'!E$9:E$860,MATCH('2.2'!$A208,'2.2 Daten'!$B$9:$B$860,0))) -> FALSE | D208: =IF($A208<>0,INDEX('2.2 Daten'!F$9:F$860,MATCH('2.2'!$A208,'2.2 Daten'!$B$9:$B$860,0))) -> FALSE | E208: =IF($A208<>0,INDEX('2.2 Daten'!G$9:G$860,MATCH('2.2'!$A208,'2.2 Daten'!$B$9:$B$860,0))) -> FALSE | F208: =IF($A208<>0,INDEX('2.2 Daten'!H$9:H$860,MATCH('2.2'!$A208,'2.2 Daten'!$B$9:$B$860,0))) -> FALSE | G208: =IF($A208<>0,INDEX('2.2 Daten'!I$9:I$860,MATCH('2.2'!$A208,'2.2 Daten'!$B$9:$B$860,0))) -> FALSE | H208: =IF($A208<>0,INDEX('2.2 Daten'!K$9:K$860,MATCH('2.2'!$A208,'2.2 Daten'!$B$9:$B$860,0))) -> FALSE | I208: =IF($A208<>0,INDEX('2.2 Daten'!L$9:L$860,MATCH('2.2'!$A208,'2.2 Daten'!$B$9:$B$860,0))) -> FALSE | J208: =IF($A208<>0,INDEX('2.2 Daten'!M$9:M$860,MATCH('2.2'!$A208,'2.2 Daten'!$B$9:$B$860,0))) -> FALSE | K208: =IF($A208<>0,INDEX('2.2 Daten'!N$9:N$860,MATCH('2.2'!$A208,'2.2 Daten'!$B$9:$B$860,0))) -> FALSE | L208: =IF($A208<>0,INDEX('2.2 Daten'!O$9:O$860,MATCH('2.2'!$A208,'2.2 Daten'!$B$9:$B$860,0))) -> FALSE
A209: =CHOOSE('2.2 Daten'!$A$2,'2.2 Daten'!B631,'2.2 Daten'!B180,'2.2 Daten'!B197,'2.2 Daten'!B214,'2.2 Daten'!B217,'2.2 Daten'!B264,'2.2 Daten'!B268,'2.2 Daten'!B323,'2.2 Daten'!B351,'2.2 Daten'!B389,'2.2 Daten'!B435,'2.2 Daten'!B533,'2.2 Daten'!B541,'2.2 Daten'!B544,'2.2 Daten'!B564,'2.2 Daten'!B574,'2.2 Daten'!B589,'2.2 Daten'!B605,x) -> Rheinland-Pfalz | B209: =IF($A209<>0,INDEX('2.2 Daten'!C$9:C$860,MATCH('2.2'!$A209,'2.2 Daten'!$B$9:$B$860,0))," ") -> 07 | C209: =IF($A209<>0,INDEX('2.2 Daten'!E$9:E$860,MATCH('2.2'!$A209,'2.2 Daten'!$B$9:$B$860,0))) -> 82270 | D209: =IF($A209<>0,INDEX('2.2 Daten'!F$9:F$860,MATCH('2.2'!$A209,'2.2 Daten'!$B$9:$B$860,0))) -> 16939 | E209: =IF($A209<>0,INDEX('2.2 Daten'!G$9:G$860,MATCH('2.2'!$A209,'2.2 Daten'!$B$9:$B$860,0))) -> 15132 | F209: =IF($A209<>0,INDEX('2.2 Daten'!H$9:H$860,MATCH('2.2'!$A209,'2.2 Daten'!$B$9:$B$860,0))) -> 39692 | G209: =IF($A209<>0,INDEX('2.2 Daten'!I$9:I$860,MATCH('2.2'!$A209,'2.2 Daten'!$B$9:$B$860,0))) -> 10507 | H209: =IF($A209<>0,INDEX('2.2 Daten'!K$9:K$860,MATCH('2.2'!$A209,'2.2 Daten'!$B$9:$B$860,0))) -> 3.311441237 | I209: =IF($A209<>0,INDEX('2.2 Daten'!L$9:L$860,MATCH('2.2'!$A209,'2.2 Daten'!$B$9:$B$860,0))) -> 6.180655676 | J209: =IF($A209<>0,INDEX('2.2 Daten'!M$9:M$860,MATCH('2.2'!$A209,'2.2 Daten'!$B$9:$B$860,0))) -> 4.128819158 | K209: =IF($A209<>0,INDEX('2.2 Daten'!N$9:N$860,MATCH('2.2'!$A209,'2.2 Daten'!$B$9:$B$860,0))) -> 2.603076128 | L209: =IF($A209<>0,INDEX('2.2 Daten'!O$9:O$860,MATCH('2.2'!$A209,'2.2 Daten'!$B$9:$B$860,0))) -> 0.4205294849
A210: =CHOOSE('2.2 Daten'!$A$2,'2.2 Daten'!B632,'2.2 Daten'!B181,'2.2 Daten'!B198,'2.2 Daten'!B215,'2.2 Daten'!B218,'2.2 Daten'!B265,'2.2 Daten'!B269,'2.2 Daten'!B324,'2.2 Daten'!B352,'2.2 Daten'!B390,'2.2 Daten'!B436,'2.2 Daten'!B534,'2.2 Daten'!B542,'2.2 Daten'!B545,'2.2 Daten'!B565,'2.2 Daten'!B575,'2.2 Daten'!B590,'2.2 Daten'!B606,x) -> Koblenz, kreisfreie Stadt | B210: =IF($A210<>0,INDEX('2.2 Daten'!C$9:C$860,MATCH('2.2'!$A210,'2.2 Daten'!$B$9:$B$860,0))," ") -> 7111000 | C210: =IF($A210<>0,INDEX('2.2 Daten'!E$9:E$860,MATCH('2.2'!$A210,'2.2 Daten'!$B$9:$B$860,0))) -> 3414 | D210: =IF($A210<>0,INDEX('2.2 Daten'!F$9:F$860,MATCH('2.2'!$A210,'2.2 Daten'!$B$9:$B$860,0))) -> 713 | E210: =IF($A210<>0,INDEX('2.2 Daten'!G$9:G$860,MATCH('2.2'!$A210,'2.2 Daten'!$B$9:$B$860,0))) -> 619 | F210: =IF($A210<>0,INDEX('2.2 Daten'!H$9:H$860,MATCH('2.2'!$A210,'2.2 Daten'!$B$9:$B$860,0))) -> 1653 | G210: =IF($A210<>0,INDEX('2.2 Daten'!I$9:I$860,MATCH('2.2'!$A210,'2.2 Daten'!$B$9:$B$860,0))) -> 429 | H210: =IF($A210<>0,INDEX('2.2 Daten'!K$9:K$860,MATCH('2.2'!$A210,'2.2 Daten'!$B$9:$B$860,0))) -> 5.272895467 | I210: =IF($A210<>0,INDEX('2.2 Daten'!L$9:L$860,MATCH('2.2'!$A210,'2.2 Daten'!$B$9:$B$860,0))) -> 2.589928058 | J210: =IF($A210<>0,INDEX('2.2 Daten'!M$9:M$860,MATCH('2.2'!$A210,'2.2 Daten'!$B$9:$B$860,0))) -> 10.33868093 | K210: =IF($A210<>0,INDEX('2.2 Daten'!N$9:N$860,MATCH('2.2'!$A210,'2.2 Daten'!$B$9:$B$860,0))) -> 7.059585492 | L210: =IF($A210<>0,INDEX('2.2 Daten'!O$9:O$860,MATCH('2.2'!$A210,'2.2 Daten'!$B$9:$B$860,0))) -> -3.16027088
A211: =CHOOSE('2.2 Daten'!$A$2,'2.2 Daten'!B633,'2.2 Daten'!B182,'2.2 Daten'!B199,'2.2 Daten'!B216,'2.2 Daten'!B219,'2.2 Daten'!B266,'2.2 Daten'!B270,'2.2 Daten'!B325,'2.2 Daten'!B353,'2.2 Daten'!B391,'2.2 Daten'!B437,'2.2 Daten'!B535,'2.2 Daten'!B543,'2.2 Daten'!B546,'2.2 Daten'!B566,'2.2 Daten'!B576,'2.2 Daten'!B591,'2.2 Daten'!B607,x) -> Ahrweiler | B211: =IF($A211<>0,INDEX('2.2 Daten'!C$9:C$860,MATCH('2.2'!$A211,'2.2 Daten'!$B$9:$B$860,0))," ") -> 7131000 | C211: =IF($A211<>0,INDEX('2.2 Daten'!E$9:E$860,MATCH('2.2'!$A211,'2.2 Daten'!$B$9:$B$860,0))) -> 2233 | D211: =IF($A211<>0,INDEX('2.2 Daten'!F$9:F$860,MATCH('2.2'!$A211,'2.2 Daten'!$B$9:$B$860,0))) -> 470 | E211: =IF($A211<>0,INDEX('2.2 Daten'!G$9:G$860,MATCH('2.2'!$A211,'2.2 Daten'!$B$9:$B$860,0))) -> 400 | F211: =IF($A211<>0,INDEX('2.2 Daten'!H$9:H$860,MATCH('2.2'!$A211,'2.2 Daten'!$B$9:$B$860,0))) -> 1089 | G211: =IF($A211<>0,INDEX('2.2 Daten'!I$9:I$860,MATCH('2.2'!$A211,'2.2 Daten'!$B$9:$B$860,0))) -> 274 | H211: =IF($A211<>0,INDEX('2.2 Daten'!K$9:K$860,MATCH('2.2'!$A211,'2.2 Daten'!$B$9:$B$860,0))) -> 1.96347032 | I211: =IF($A211<>0,INDEX('2.2 Daten'!L$9:L$860,MATCH('2.2'!$A211,'2.2 Daten'!$B$9:$B$860,0))) -> 3.296703297 | J211: =IF($A211<>0,INDEX('2.2 Daten'!M$9:M$860,MATCH('2.2'!$A211,'2.2 Daten'!$B$9:$B$860,0))) -> -4.076738609 | K211: =IF($A211<>0,INDEX('2.2 Daten'!N$9:N$860,MATCH('2.2'!$A211,'2.2 Daten'!$B$9:$B$860,0))) -> 6.34765625 | L211: =IF($A211<>0,INDEX('2.2 Daten'!O$9:O$860,MATCH('2.2'!$A211,'2.2 Daten'!$B$9:$B$860,0))) -> -6.802721088
A212: =CHOOSE('2.2 Daten'!$A$2,'2.2 Daten'!B634,'2.2 Daten'!B183,'2.2 Daten'!B200,'2.2 Daten'!B217,'2.2 Daten'!B220,'2.2 Daten'!B267,'2.2 Daten'!B271,'2.2 Daten'!B326,'2.2 Daten'!B354,'2.2 Daten'!B392,'2.2 Daten'!B438,'2.2 Daten'!B536,'2.2 Daten'!B544,'2.2 Daten'!B547,'2.2 Daten'!B567,'2.2 Daten'!B577,'2.2 Daten'!B592,'2.2 Daten'!B608,x) -> Altenkirchen (Westerwald) | B212: =IF($A212<>0,INDEX('2.2 Daten'!C$9:C$860,MATCH('2.2'!$A212,'2.2 Daten'!$B$9:$B$860,0))," ") -> 7132000 | C212: =IF($A212<>0,INDEX('2.2 Daten'!E$9:E$860,MATCH('2.2'!$A212,'2.2 Daten'!$B$9:$B$860,0))) -> 2193 | D212: =IF($A212<>0,INDEX('2.2 Daten'!F$9:F$860,MATCH('2.2'!$A212,'2.2 Daten'!$B$9:$B$860,0))) -> 413 | E212: =IF($A212<>0,INDEX('2.2 Daten'!G$9:G$860,MATCH('2.2'!$A212,'2.2 Daten'!$B$9:$B$860,0))) -> 405 | F212: =IF($A212<>0,INDEX('2.2 Daten'!H$9:H$860,MATCH('2.2'!$A212,'2.2 Daten'!$B$9:$B$860,0))) -> 1089 | G212: =IF($A212<>0,INDEX('2.2 Daten'!I$9:I$860,MATCH('2.2'!$A212,'2.2 Daten'!$B$9:$B$860,0))) -> 286 | H212: =IF($A212<>0,INDEX('2.2 Daten'!K$9:K$860,MATCH('2.2'!$A212,'2.2 Daten'!$B$9:$B$860,0))) -> -1.438202247 | I212: =IF($A212<>0,INDEX('2.2 Daten'!L$9:L$860,MATCH('2.2'!$A212,'2.2 Daten'!$B$9:$B$860,0))) -> -2.364066194 | J212: =IF($A212<>0,INDEX('2.2 Daten'!M$9:M$860,MATCH('2.2'!$A212,'2.2 Daten'!$B$9:$B$860,0))) -> 0 | K212: =IF($A212<>0,INDEX('2.2 Daten'!N$9:N$860,MATCH('2.2'!$A212,'2.2 Daten'!$B$9:$B$860,0))) -> 0.9267840593 | L212: =IF($A212<>0,INDEX('2.2 Daten'!O$9:O$860,MATCH('2.2'!$A212,'2.2 Daten'!$B$9:$B$860,0))) -> -10.06289308
A213: =CHOOSE('2.2 Daten'!$A$2,'2.2 Daten'!B635,'2.2 Daten'!B184,'2.2 Daten'!B201,'2.2 Daten'!B218,'2.2 Daten'!B221,'2.2 Daten'!B268,'2.2 Daten'!B272,'2.2 Daten'!B327,'2.2 Daten'!B355,'2.2 Daten'!B393,'2.2 Daten'!B439,'2.2 Daten'!B537,'2.2 Daten'!B545,'2.2 Daten'!B548,'2.2 Daten'!B568,'2.2 Daten'!B578,'2.2 Daten'!B593,'2.2 Daten'!B609,x) -> Bad Kreuznach | B213: =IF($A213<>0,INDEX('2.2 Daten'!C$9:C$860,MATCH('2.2'!$A213,'2.2 Daten'!$B$9:$B$860,0))," ") -> 7133000 | C213: =IF($A213<>0,INDEX('2.2 Daten'!E$9:E$860,MATCH('2.2'!$A213,'2.2 Daten'!$B$9:$B$860,0))) -> 3667 | D213: =IF($A213<>0,INDEX('2.2 Daten'!F$9:F$860,MATCH('2.2'!$A213,'2.2 Daten'!$B$9:$B$860,0))) -> 720 | E213: =IF($A213<>0,INDEX('2.2 Daten'!G$9:G$860,MATCH('2.2'!$A213,'2.2 Daten'!$B$9:$B$860,0))) -> 639 | F213: =IF($A213<>0,INDEX('2.2 Daten'!H$9:H$860,MATCH('2.2'!$A213,'2.2 Daten'!$B$9:$B$860,0))) -> 1836 | G213: =IF($A213<>0,INDEX('2.2 Daten'!I$9:I$860,MATCH('2.2'!$A213,'2.2 Daten'!$B$9:$B$860,0))) -> 472 | H213: =IF($A213<>0,INDEX('2.2 Daten'!K$9:K$860,MATCH('2.2'!$A213,'2.2 Daten'!$B$9:$B$860,0))) -> 1.77629753 | I213: =IF($A213<>0,INDEX('2.2 Daten'!L$9:L$860,MATCH('2.2'!$A213,'2.2 Daten'!$B$9:$B$860,0))) -> 5.109489051 | J213: =IF($A213<>0,INDEX('2.2 Daten'!M$9:M$860,MATCH('2.2'!$A213,'2.2 Daten'!$B$9:$B$860,0))) -> 3.064516129 | K213: =IF($A213<>0,INDEX('2.2 Daten'!N$9:N$860,MATCH('2.2'!$A213,'2.2 Daten'!$B$9:$B$860,0))) -> 0.602739726 | L213: =IF($A213<>0,INDEX('2.2 Daten'!O$9:O$860,MATCH('2.2'!$A213,'2.2 Daten'!$B$9:$B$860,0))) -> -0.2114164905
A214: =CHOOSE('2.2 Daten'!$A$2,'2.2 Daten'!B636,'2.2 Daten'!B185,'2.2 Daten'!B202,'2.2 Daten'!B219,'2.2 Daten'!B222,'2.2 Daten'!B269,'2.2 Daten'!B273,'2.2 Daten'!B328,'2.2 Daten'!B356,'2.2 Daten'!B394,'2.2 Daten'!B440,'2.2 Daten'!B538,'2.2 Daten'!B546,'2.2 Daten'!B549,'2.2 Daten'!B569,'2.2 Daten'!B579,'2.2 Daten'!B594,'2.2 Daten'!B610,x) -> Birkenfeld | B214: =IF($A214<>0,INDEX('2.2 Daten'!C$9:C$860,MATCH('2.2'!$A214,'2.2 Daten'!$B$9:$B$860,0))," ") -> 7134000 | C214: =IF($A214<>0,INDEX('2.2 Daten'!E$9:E$860,MATCH('2.2'!$A214,'2.2 Daten'!$B$9:$B$860,0))) -> 1838 | D214: =IF($A214<>0,INDEX('2.2 Daten'!F$9:F$860,MATCH('2.2'!$A214,'2.2 Daten'!$B$9:$B$860,0))) -> 385 | E214: =IF($A214<>0,INDEX('2.2 Daten'!G$9:G$860,MATCH('2.2'!$A214,'2.2 Daten'!$B$9:$B$860,0))) -> 366 | F214: =IF($A214<>0,INDEX('2.2 Daten'!H$9:H$860,MATCH('2.2'!$A214,'2.2 Daten'!$B$9:$B$860,0))) -> 879 | G214: =IF($A214<>0,INDEX('2.2 Daten'!I$9:I$860,MATCH('2.2'!$A214,'2.2 Daten'!$B$9:$B$860,0))) -> 208 | H214: =IF($A214<>0,INDEX('2.2 Daten'!K$9:K$860,MATCH('2.2'!$A214,'2.2 Daten'!$B$9:$B$860,0))) -> 5.329512894 | I214: =IF($A214<>0,INDEX('2.2 Daten'!L$9:L$860,MATCH('2.2'!$A214,'2.2 Daten'!$B$9:$B$860,0))) -> 8.146067416 | J214: =IF($A214<>0,INDEX('2.2 Daten'!M$9:M$860,MATCH('2.2'!$A214,'2.2 Daten'!$B$9:$B$860,0))) -> 8.284023669 | K214: =IF($A214<>0,INDEX('2.2 Daten'!N$9:N$860,MATCH('2.2'!$A214,'2.2 Daten'!$B$9:$B$860,0))) -> 5.522208884 | L214: =IF($A214<>0,INDEX('2.2 Daten'!O$9:O$860,MATCH('2.2'!$A214,'2.2 Daten'!$B$9:$B$860,0))) -> -4.587155963
A215: =CHOOSE('2.2 Daten'!$A$2,'2.2 Daten'!B637,'2.2 Daten'!B186,'2.2 Daten'!B203,'2.2 Daten'!B220,'2.2 Daten'!B223,'2.2 Daten'!B270,'2.2 Daten'!B274,'2.2 Daten'!B329,'2.2 Daten'!B357,'2.2 Daten'!B395,'2.2 Daten'!B441,'2.2 Daten'!B539,'2.2 Daten'!B547,'2.2 Daten'!B550,'2.2 Daten'!B570,'2.2 Daten'!B580,'2.2 Daten'!B595,'2.2 Daten'!B611,x) -> Cochem-Zell | B215: =IF($A215<>0,INDEX('2.2 Daten'!C$9:C$860,MATCH('2.2'!$A215,'2.2 Daten'!$B$9:$B$860,0))," ") -> 7135000 | C215: =IF($A215<>0,INDEX('2.2 Daten'!E$9:E$860,MATCH('2.2'!$A215,'2.2 Daten'!$B$9:$B$860,0))) -> 728 | D215: =IF($A215<>0,INDEX('2.2 Daten'!F$9:F$860,MATCH('2.2'!$A215,'2.2 Daten'!$B$9:$B$860,0))) -> 170 | E215: =IF($A215<>0,INDEX('2.2 Daten'!G$9:G$860,MATCH('2.2'!$A215,'2.2 Daten'!$B$9:$B$860,0))) -> 136 | F215: =IF($A215<>0,INDEX('2.2 Daten'!H$9:H$860,MATCH('2.2'!$A215,'2.2 Daten'!$B$9:$B$860,0))) -> 328 | G215: =IF($A215<>0,INDEX('2.2 Daten'!I$9:I$860,MATCH('2.2'!$A215,'2.2 Daten'!$B$9:$B$860,0))) -> 94 | H215: =IF($A215<>0,INDEX('2.2 Daten'!K$9:K$860,MATCH('2.2'!$A215,'2.2 Daten'!$B$9:$B$860,0))) -> -3.57615894 | I215: =IF($A215<>0,INDEX('2.2 Daten'!L$9:L$860,MATCH('2.2'!$A215,'2.2 Daten'!$B$9:$B$860,0))) -> 0.5917159763 | J215: =IF($A215<>0,INDEX('2.2 Daten'!M$9:M$860,MATCH('2.2'!$A215,'2.2 Daten'!$B$9:$B$860,0))) -> -4.895104895 | K215: =IF($A215<>0,INDEX('2.2 Daten'!N$9:N$860,MATCH('2.2'!$A215,'2.2 Daten'!$B$9:$B$860,0))) -> -5.747126437 | L215: =IF($A215<>0,INDEX('2.2 Daten'!O$9:O$860,MATCH('2.2'!$A215,'2.2 Daten'!$B$9:$B$860,0))) -> -1.052631579
A216: =CHOOSE('2.2 Daten'!$A$2,'2.2 Daten'!B638,'2.2 Daten'!B187,'2.2 Daten'!B204,'2.2 Daten'!B221,'2.2 Daten'!B224,'2.2 Daten'!B271,'2.2 Daten'!B275,'2.2 Daten'!B330,'2.2 Daten'!B358,'2.2 Daten'!B396,'2.2 Daten'!B442,'2.2 Daten'!B540,'2.2 Daten'!B548,'2.2 Daten'!B551,'2.2 Daten'!B571,'2.2 Daten'!B581,'2.2 Daten'!B596,'2.2 Daten'!B612,x) -> Mayen-Koblenz | B216: =IF($A216<>0,INDEX('2.2 Daten'!C$9:C$860,MATCH('2.2'!$A216,'2.2 Daten'!$B$9:$B$860,0))," ") -> 7137000 | C216: =IF($A216<>0,INDEX('2.2 Daten'!E$9:E$860,MATCH('2.2'!$A216,'2.2 Daten'!$B$9:$B$860,0))) -> 3796 | D216: =IF($A216<>0,INDEX('2.2 Daten'!F$9:F$860,MATCH('2.2'!$A216,'2.2 Daten'!$B$9:$B$860,0))) -> 784 | E216: =IF($A216<>0,INDEX('2.2 Daten'!G$9:G$860,MATCH('2.2'!$A216,'2.2 Daten'!$B$9:$B$860,0))) -> 690 | F216: =IF($A216<>0,INDEX('2.2 Daten'!H$9:H$860,MATCH('2.2'!$A216,'2.2 Daten'!$B$9:$B$860,0))) -> 1822 | G216: =IF($A216<>0,INDEX('2.2 Daten'!I$9:I$860,MATCH('2.2'!$A216,'2.2 Daten'!$B$9:$B$860,0))) -> 500 | H216: =IF($A216<>0,INDEX('2.2 Daten'!K$9:K$860,MATCH('2.2'!$A216,'2.2 Daten'!$B$9:$B$860,0))) -> 1.011176158 | I216: =IF($A216<>0,INDEX('2.2 Daten'!L$9:L$860,MATCH('2.2'!$A216,'2.2 Daten'!$B$9:$B$860,0))) -> -1.134930643 | J216: =IF($A216<>0,INDEX('2.2 Daten'!M$9:M$860,MATCH('2.2'!$A216,'2.2 Daten'!$B$9:$B$860,0))) -> 4.229607251 | K216: =IF($A216<>0,INDEX('2.2 Daten'!N$9:N$860,MATCH('2.2'!$A216,'2.2 Daten'!$B$9:$B$860,0))) -> -0.1096491228 | L216: =IF($A216<>0,INDEX('2.2 Daten'!O$9:O$860,MATCH('2.2'!$A216,'2.2 Daten'!$B$9:$B$860,0))) -> 4.384133612
A217: =CHOOSE('2.2 Daten'!$A$2,'2.2 Daten'!B639,'2.2 Daten'!B188,'2.2 Daten'!B205,'2.2 Daten'!B222,'2.2 Daten'!B225,'2.2 Daten'!B272,'2.2 Daten'!B276,'2.2 Daten'!B331,'2.2 Daten'!B359,'2.2 Daten'!B397,'2.2 Daten'!B443,'2.2 Daten'!B541,'2.2 Daten'!B549,'2.2 Daten'!B552,'2.2 Daten'!B572,'2.2 Daten'!B582,'2.2 Daten'!B597,'2.2 Daten'!B613,x) -> Neuwied | B217: =IF($A217<>0,INDEX('2.2 Daten'!C$9:C$860,MATCH('2.2'!$A217,'2.2 Daten'!$B$9:$B$860,0))," ") -> 7138000 | C217: =IF($A217<>0,INDEX('2.2 Daten'!E$9:E$860,MATCH('2.2'!$A217,'2.2 Daten'!$B$9:$B$860,0))) -> 4022 | D217: =IF($A217<>0,INDEX('2.2 Daten'!F$9:F$860,MATCH('2.2'!$A217,'2.2 Daten'!$B$9:$B$860,0))) -> 781 | E217: =IF($A217<>0,INDEX('2.2 Daten'!G$9:G$860,MATCH('2.2'!$A217,'2.2 Daten'!$B$9:$B$860,0))) -> 755 | F217: =IF($A217<>0,INDEX('2.2 Daten'!H$9:H$860,MATCH('2.2'!$A217,'2.2 Daten'!$B$9:$B$860,0))) -> 1927 | G217: =IF($A217<>0,INDEX('2.2 Daten'!I$9:I$860,MATCH('2.2'!$A217,'2.2 Daten'!$B$9:$B$860,0))) -> 559 | H217: =IF($A217<>0,INDEX('2.2 Daten'!K$9:K$860,MATCH('2.2'!$A217,'2.2 Daten'!$B$9:$B$860,0))) -> 3.579706413 | I217: =IF($A217<>0,INDEX('2.2 Daten'!L$9:L$860,MATCH('2.2'!$A217,'2.2 Daten'!$B$9:$B$860,0))) -> 5.540540541 | J217: =IF($A217<>0,INDEX('2.2 Daten'!M$9:M$860,MATCH('2.2'!$A217,'2.2 Daten'!$B$9:$B$860,0))) -> 8.78962536 | K217: =IF($A217<>0,INDEX('2.2 Daten'!N$9:N$860,MATCH('2.2'!$A217,'2.2 Daten'!$B$9:$B$860,0))) -> 1.688654354 | L217: =IF($A217<>0,INDEX('2.2 Daten'!O$9:O$860,MATCH('2.2'!$A217,'2.2 Daten'!$B$9:$B$860,0))) -> 0.9025270758
A218: =CHOOSE('2.2 Daten'!$A$2,'2.2 Daten'!B640,'2.2 Daten'!B189,'2.2 Daten'!B206,'2.2 Daten'!B223,'2.2 Daten'!B226,'2.2 Daten'!B273,'2.2 Daten'!B277,'2.2 Daten'!B332,'2.2 Daten'!B360,'2.2 Daten'!B398,'2.2 Daten'!B444,'2.2 Daten'!B542,'2.2 Daten'!B550,'2.2 Daten'!B553,'2.2 Daten'!B573,'2.2 Daten'!B583,'2.2 Daten'!B598,'2.2 Daten'!B614,x) -> Rhein-Hunsrück-Kreis | B218: =IF($A218<>0,INDEX('2.2 Daten'!C$9:C$860,MATCH('2.2'!$A218,'2.2 Daten'!$B$9:$B$860,0))," ") -> 7140000 | C218: =IF($A218<>0,INDEX('2.2 Daten'!E$9:E$860,MATCH('2.2'!$A218,'2.2 Daten'!$B$9:$B$860,0))) -> 1523 | D218: =IF($A218<>0,INDEX('2.2 Daten'!F$9:F$860,MATCH('2.2'!$A218,'2.2 Daten'!$B$9:$B$860,0))) -> 330 | E218: =IF($A218<>0,INDEX('2.2 Daten'!G$9:G$860,MATCH('2.2'!$A218,'2.2 Daten'!$B$9:$B$860,0))) -> 271 | F218: =IF($A218<>0,INDEX('2.2 Daten'!H$9:H$860,MATCH('2.2'!$A218,'2.2 Daten'!$B$9:$B$860,0))) -> 720 | G218: =IF($A218<>0,INDEX('2.2 Daten'!I$9:I$860,MATCH('2.2'!$A218,'2.2 Daten'!$B$9:$B$860,0))) -> 202 | H218: =IF($A218<>0,INDEX('2.2 Daten'!K$9:K$860,MATCH('2.2'!$A218,'2.2 Daten'!$B$9:$B$860,0))) -> 2.905405405 | I218: =IF($A218<>0,INDEX('2.2 Daten'!L$9:L$860,MATCH('2.2'!$A218,'2.2 Daten'!$B$9:$B$860,0))) -> 6.109324759 | J218: =IF($A218<>0,INDEX('2.2 Daten'!M$9:M$860,MATCH('2.2'!$A218,'2.2 Daten'!$B$9:$B$860,0))) -> 5.03875969 | K218: =IF($A218<>0,INDEX('2.2 Daten'!N$9:N$860,MATCH('2.2'!$A218,'2.2 Daten'!$B$9:$B$860,0))) -> 0 | L218: =IF($A218<>0,INDEX('2.2 Daten'!O$9:O$860,MATCH('2.2'!$A218,'2.2 Daten'!$B$9:$B$860,0))) -> 5.759162304
A219: =CHOOSE('2.2 Daten'!$A$2,'2.2 Daten'!B641,'2.2 Daten'!B190,'2.2 Daten'!B207,'2.2 Daten'!B224,'2.2 Daten'!B227,'2.2 Daten'!B274,'2.2 Daten'!B278,'2.2 Daten'!B333,'2.2 Daten'!B361,'2.2 Daten'!B399,'2.2 Daten'!B445,'2.2 Daten'!B543,'2.2 Daten'!B551,'2.2 Daten'!B554,'2.2 Daten'!B574,'2.2 Daten'!B584,'2.2 Daten'!B599,'2.2 Daten'!B615,x) -> Rhein-Lahn-Kreis | B219: =IF($A219<>0,INDEX('2.2 Daten'!C$9:C$860,MATCH('2.2'!$A219,'2.2 Daten'!$B$9:$B$860,0))," ") -> 7141000 | C219: =IF($A219<>0,INDEX('2.2 Daten'!E$9:E$860,MATCH('2.2'!$A219,'2.2 Daten'!$B$9:$B$860,0))) -> 2185 | D219: =IF($A219<>0,INDEX('2.2 Daten'!F$9:F$860,MATCH('2.2'!$A219,'2.2 Daten'!$B$9:$B$860,0))) -> 505 | E219: =IF($A219<>0,INDEX('2.2 Daten'!G$9:G$860,MATCH('2.2'!$A219,'2.2 Daten'!$B$9:$B$860,0))) -> 433 | F219: =IF($A219<>0,INDEX('2.2 Daten'!H$9:H$860,MATCH('2.2'!$A219,'2.2 Daten'!$B$9:$B$860,0))) -> 1014 | G219: =IF($A219<>0,INDEX('2.2 Daten'!I$9:I$860,MATCH('2.2'!$A219,'2.2 Daten'!$B$9:$B$860,0))) -> 233 | H219: =IF($A219<>0,INDEX('2.2 Daten'!K$9:K$860,MATCH('2.2'!$A219,'2.2 Daten'!$B$9:$B$860,0))) -> 10.63291139 | I219: =IF($A219<>0,INDEX('2.2 Daten'!L$9:L$860,MATCH('2.2'!$A219,'2.2 Daten'!$B$9:$B$860,0))) -> 8.137044968 | J219: =IF($A219<>0,INDEX('2.2 Daten'!M$9:M$860,MATCH('2.2'!$A219,'2.2 Daten'!$B$9:$B$860,0))) -> 16.39784946 | K219: =IF($A219<>0,INDEX('2.2 Daten'!N$9:N$860,MATCH('2.2'!$A219,'2.2 Daten'!$B$9:$B$860,0))) -> 10.45751634 | L219: =IF($A219<>0,INDEX('2.2 Daten'!O$9:O$860,MATCH('2.2'!$A219,'2.2 Daten'!$B$9:$B$860,0))) -> 6.880733945
A220: =CHOOSE('2.2 Daten'!$A$2,'2.2 Daten'!B642,'2.2 Daten'!B191,'2.2 Daten'!B208,'2.2 Daten'!B225,'2.2 Daten'!B228,'2.2 Daten'!B275,'2.2 Daten'!B279,'2.2 Daten'!B334,'2.2 Daten'!B362,'2.2 Daten'!B400,'2.2 Daten'!B446,'2.2 Daten'!B544,'2.2 Daten'!B552,'2.2 Daten'!B555,'2.2 Daten'!B575,'2.2 Daten'!B585,'2.2 Daten'!B600,'2.2 Daten'!B616,x) -> Westerwaldkreis | B220: =IF($A220<>0,INDEX('2.2 Daten'!C$9:C$860,MATCH('2.2'!$A220,'2.2 Daten'!$B$9:$B$860,0))," ") -> 7143000 | C220: =IF($A220<>0,INDEX('2.2 Daten'!E$9:E$860,MATCH('2.2'!$A220,'2.2 Daten'!$B$9:$B$860,0))) -> 2990 | D220: =IF($A220<>0,INDEX('2.2 Daten'!F$9:F$860,MATCH('2.2'!$A220,'2.2 Daten'!$B$9:$B$860,0))) -> 619 | E220: =IF($A220<>0,INDEX('2.2 Daten'!G$9:G$860,MATCH('2.2'!$A220,'2.2 Daten'!$B$9:$B$860,0))) -> 560 | F220: =IF($A220<>0,INDEX('2.2 Daten'!H$9:H$860,MATCH('2.2'!$A220,'2.2 Daten'!$B$9:$B$860,0))) -> 1455 | G220: =IF($A220<>0,INDEX('2.2 Daten'!I$9:I$860,MATCH('2.2'!$A220,'2.2 Daten'!$B$9:$B$860,0))) -> 356 | H220: =IF($A220<>0,INDEX('2.2 Daten'!K$9:K$860,MATCH('2.2'!$A220,'2.2 Daten'!$B$9:$B$860,0))) -> 2.925989673 | I220: =IF($A220<>0,INDEX('2.2 Daten'!L$9:L$860,MATCH('2.2'!$A220,'2.2 Daten'!$B$9:$B$860,0))) -> 5.451448041 | J220: =IF($A220<>0,INDEX('2.2 Daten'!M$9:M$860,MATCH('2.2'!$A220,'2.2 Daten'!$B$9:$B$860,0))) -> 7.692307692 | K220: =IF($A220<>0,INDEX('2.2 Daten'!N$9:N$860,MATCH('2.2'!$A220,'2.2 Daten'!$B$9:$B$860,0))) -> -0.6825938567 | L220: =IF($A220<>0,INDEX('2.2 Daten'!O$9:O$860,MATCH('2.2'!$A220,'2.2 Daten'!$B$9:$B$860,0))) -> 6.906906907
